Workbook

Sheet Akkumuleringsberegning (hidden)
D1: ladning trin 1 | E1: afladning trin 1 | F1: afladning trin 2 | H1: Tank | I1: Ladning trin2 | J1: Afladning trin 3 | K1: dif aflad | L1: Diff lad | N1: Seneste maks | O1: række | Q1: Tank | R1: Ladning trin2 | S1: Afladning trin 3 | U1: Ønsket produktion | W1: Prod 1 | X1: Prod 2 | Y1: Prod 3 | Z1: Prod 4 | AA1: Prod 5 | AB1: Prod 6 | AE1: Prod | AF1: Prod | AG1: Prod | AH1: Prod | AI1: Prod | AJ1: Prod | AM1: Prod | AN1: Prod | AO1: Prod | AP1: Prod | AQ1: Prod | AR1: Prod
A2: 2 | B2: 1 | D2: =SUMIF($BC$29:$BC$2656,"="&B2,$BJ$29:$BJ$2656) -> 10 | E2: =SUMIF($BC$29:$BC$2656,"="&B2,$BL$29:$BL$2656) -> 0 | F2: =IF(B2>O$2,SUM(AE2:AJ2),E2) -> 0 | H2: ='438 timer'!AS2 -> 119.9685126 | I2: =MIN(D2,'Input og resultater'!$I$12,'Input og resultater'!$I$13-H2) -> 10 | J2: =MIN(E2,'Input og resultater'!$I$12,H2) -> 0 | K2: =E2-J2 -> 0 | L2: =D2-I2 -> 0 | N2: =IF(D2>0,1+A2*0.000009,0) -> 1.000018 | O2: =MATCH(LARGE(N2:N500,1),N2:N500,0) -> 391 | Q2: =H2 -> 119.9685126 | R2: =MIN(D2,'Input og resultater'!$I$12,'Input og resultater'!$I$13-Q2) -> 10 | S2: =MIN(F2,'Input og resultater'!$I$12,Q2) -> 0 | U2: =IF(B2>$O$2,'438 timer'!$BC2,0) -> 0 | W2: =MIN($U2-SUM(V2:$V2),'438 timer'!AK2) -> 0 | X2: =MIN($U2-SUM($V2:W2),'438 timer'!AL2) -> 0 | Y2: =MIN($U2-SUM($V2:X2),'438 timer'!AM2) -> 0 | Z2: =MIN($U2-SUM($V2:Y2),'438 timer'!AN2) -> 0 | AA2: =MIN($U2-SUM($V2:Z2),'438 timer'!AO2) -> 0 | AB2: =MIN($U2-SUM($V2:AA2),'438 timer'!AP2) -> 0 | AE2: =W2*AM$4 -> 0 | AF2: =X2*AN$4 -> 0 | AG2: =Y2*AO$4 -> 0 | AH2: =Z2*AP$4 -> 0 | AI2: =AA2*AQ$4 -> 0 | AJ2: =AB2*AR$4 -> 0 | AM2: =SUM(W1:W439) -> 0 | AN2: 0 | AO2: 658 | AP2: 87.94554893 | AQ2: 0 | AR2: 0
A3: 3 | B3: 2 | D3: =SUMIF($BC$29:$BC$2656,"="&B3,$BJ$29:$BJ$2656) -> 10 | E3: 0 | F3: 0 | H3: =H2+I2-J2 -> 129.9685126 | I3: =MIN(D3,'Input og resultater'!$I$12,'Input og resultater'!$I$13-H3) -> 10 | J3: =MIN(E3,'Input og resultater'!$I$12,H3) -> 0 | K3: =E3-J3 -> 0 | L3: =D3-I3 -> 0 | N3: 1.000027 | O3: =SUMIF(B:B,">"&O2,K:K) -> 43.24563821 | Q3: =Q2+R2-S2 -> 129.9685126 | R3: =MIN(D3,'Input og resultater'!$I$12,'Input og resultater'!$I$13-Q3) -> 10 | S3: =MIN(F3,'Input og resultater'!$I$12,Q3) -> 0 | U3: =IF(B3>$O$2,'438 timer'!$BC3,0) -> 0 | W3: =MIN($U3-SUM(V3:$V3),'438 timer'!AK3) -> 0 | X3: =MIN($U3-SUM($V3:W3),'438 timer'!AL3) -> 0 | Y3: =MIN($U3-SUM($V3:X3),'438 timer'!AM3) -> 0 | Z3: =MIN($U3-SUM($V3:Y3),'438 timer'!AN3) -> 0 | AA3: =MIN($U3-SUM($V3:Z3),'438 timer'!AO3) -> 0 | AB3: =MIN($U3-SUM($V3:AA3),'438 timer'!AP3) -> 0 | AE3: =W3*AM$4 -> 0 | AF3: 0 | AG3: 0 | AH3: 0 | AI3: 0 | AJ3: 0 | AL3: Afladning i periode | AM3: =MIN(AN3-AN2*AN4) -> 0 | AN3: =MIN(AO3-AO2*AO4) -> 0 | AO3: =MIN(AP3-AP2*AP4) -> 79.62097687 | AP3: =MIN(AQ3-AQ2*AQ4) -> 167.5665258 | AQ3: =MIN(AR3-AR2*AR4) -> 167.5665258 | AR3: =AM8 -> 167.5665258
A4: 4 | B4: 3 | D4: =SUMIF($BC$29:$BC$2656,"="&B4,$BJ$29:$BJ$2656) -> 10 | E4: 0 | F4: 0 | H4: =H3+I3-J3 -> 139.9685126 | I4: =MIN(D4,'Input og resultater'!$I$12,'Input og resultater'!$I$13-H4) -> 10 | J4: =MIN(E4,'Input og resultater'!$I$12,H4) -> 0 | K4: 0 | L4: 0 | N4: 1.000036 | O4: =SUMIF(B:B,">"&O2,J:J) -> 167.5665258 | Q4: =Q3+R3-S3 -> 139.9685126 | R4: =MIN(D4,'Input og resultater'!$I$12,'Input og resultater'!$I$13-Q4) -> 10 | S4: =MIN(F4,'Input og resultater'!$I$12,Q4) -> 0 | U4: =IF(B4>$O$2,'438 timer'!$BC4,0) -> 0 | W4: =MIN($U4-SUM(V4:$V4),'438 timer'!AK4) -> 0 | X4: =MIN($U4-SUM($V4:W4),'438 timer'!AL4) -> 0 | Y4: =MIN($U4-SUM($V4:X4),'438 timer'!AM4) -> 0 | Z4: =MIN($U4-SUM($V4:Y4),'438 timer'!AN4) -> 0 | AA4: =MIN($U4-SUM($V4:Z4),'438 timer'!AO4) -> 0 | AB4: =MIN($U4-SUM($V4:AA4),'438 timer'!AP4) -> 0 | AE4: 0 | AF4: 0 | AG4: 0 | AH4: 0 | AI4: 0 | AJ4: 0 | AL4: Faktor | AM4: =IFERROR(MIN(AM3/AM2,1),0) -> 0 | AN4: 0 | AO4: 0.1210045241 | AP4: 1 | AQ4: 0 | AR4: 0
A5: 5 | B5: 4 | D5: 10 | E5: 0 | F5: 0 | H5: =H4+I4-J4 -> 149.9685126 | I5: =MIN(D5,'Input og resultater'!$I$12,'Input og resultater'!$I$13-H5) -> 10 | J5: =MIN(E5,'Input og resultater'!$I$12,H5) -> 0 | K5: 0 | L5: 0 | N5: 1.000045 | Q5: =Q4+R4-S4 -> 149.9685126 | R5: =MIN(D5,'Input og resultater'!$I$12,'Input og resultater'!$I$13-Q5) -> 10 | S5: =MIN(F5,'Input og resultater'!$I$12,Q5) -> 0 | U5: =IF(B5>$O$2,'438 timer'!$BC5,0) -> 0 | W5: =MIN($U5-SUM(V5:$V5),'438 timer'!AK5) -> 0 | X5: =MIN($U5-SUM($V5:W5),'438 timer'!AL5) -> 0 | Y5: =MIN($U5-SUM($V5:X5),'438 timer'!AM5) -> 0 | Z5: =MIN($U5-SUM($V5:Y5),'438 timer'!AN5) -> 0 | AA5: =MIN($U5-SUM($V5:Z5),'438 timer'!AO5) -> 0 | AB5: =MIN($U5-SUM($V5:AA5),'438 timer'!AP5) -> 0 | AE5: =W5*AM$4 -> 0 | AF5: 0 | AG5: 0 | AH5: 0 | AI5: 0 | AJ5: 0
A6: 6 | B6: 5 | D6: 10 | E6: 0 | F6: 0 | H6: =H5+I5-J5 -> 159.9685126 | I6: =MIN(D6,'Input og resultater'!$I$12,'Input og resultater'!$I$13-H6) -> 10 | J6: =MIN(E6,'Input og resultater'!$I$12,H6) -> 0 | K6: 0 | L6: 0 | N6: 1.000054 | O6: =O4+O3 -> 210.812164 | Q6: =Q5+R5-S5 -> 159.9685126 | R6: =MIN(D6,'Input og resultater'!$I$12,'Input og resultater'!$I$13-Q6) -> 10 | S6: =MIN(F6,'Input og resultater'!$I$12,Q6) -> 0 | U6: =IF(B6>$O$2,'438 timer'!$BC6,0) -> 0 | W6: =MIN($U6-SUM(V6:$V6),'438 timer'!AK6) -> 0 | X6: =MIN($U6-SUM($V6:W6),'438 timer'!AL6) -> 0 | Y6: =MIN($U6-SUM($V6:X6),'438 timer'!AM6) -> 0 | Z6: =MIN($U6-SUM($V6:Y6),'438 timer'!AN6) -> 0 | AA6: =MIN($U6-SUM($V6:Z6),'438 timer'!AO6) -> 0 | AB6: =MIN($U6-SUM($V6:AA6),'438 timer'!AP6) -> 0 | AE6: 0 | AF6: 0 | AG6: 0 | AH6: 0 | AI6: 0 | AJ6: 0 | AL6: afladnings afvigelse
A7: 7 | B7: 6 | D7: 10 | E7: 0 | F7: 0 | H7: 169.9685126 | I7: =MIN(D7,'Input og resultater'!$I$12,'Input og resultater'!$I$13-H7) -> 10 | J7: =MIN(E7,'Input og resultater'!$I$12,H7) -> 0 | K7: 0 | L7: 0 | N7: 1.000063 | O7: =O4/O6*1 -> 0.7948617509 | Q7: 169.9685126 | R7: =MIN(D7,'Input og resultater'!$I$12,'Input og resultater'!$I$13-Q7) -> 10 | S7: =MIN(F7,'Input og resultater'!$I$12,Q7) -> 0 | U7: =IF(B7>$O$2,'438 timer'!$BC7,0) -> 0 | W7: =MIN($U7-SUM(V7:$V7),'438 timer'!AK7) -> 0 | X7: =MIN($U7-SUM($V7:W7),'438 timer'!AL7) -> 0 | Y7: =MIN($U7-SUM($V7:X7),'438 timer'!AM7) -> 0 | Z7: =MIN($U7-SUM($V7:Y7),'438 timer'!AN7) -> 0 | AA7: =MIN($U7-SUM($V7:Z7),'438 timer'!AO7) -> 0 | AB7: =MIN($U7-SUM($V7:AA7),'438 timer'!AP7) -> 0 | AE7: 0 | AF7: 0 | AG7: 0 | AH7: 0 | AI7: 0 | AJ7: 0 | AL7: Ønsket afladning | AM7: =O3 -> 43.24563821
A8: 8 | B8: 7 | D8: 10 | E8: 0 | F8: 0 | H8: 179.9685126 | I8: =MIN(D8,'Input og resultater'!$I$12,'Input og resultater'!$I$13-H8) -> 8.031487415 | J8: =MIN(E8,'Input og resultater'!$I$12,H8) -> 0 | K8: 0 | L8: 1.968512585 | N8: 1.000072 | Q8: 179.9685126 | R8: =MIN(D8,'Input og resultater'!$I$12,'Input og resultater'!$I$13-Q8) -> 8.031487415 | S8: =MIN(F8,'Input og resultater'!$I$12,Q8) -> 0 | U8: =IF(B8>$O$2,'438 timer'!$BC8,0) -> 0 | W8: =MIN($U8-SUM(V8:$V8),'438 timer'!AK8) -> 0 | X8: =MIN($U8-SUM($V8:W8),'438 timer'!AL8) -> 0 | Y8: =MIN($U8-SUM($V8:X8),'438 timer'!AM8) -> 0 | Z8: =MIN($U8-SUM($V8:Y8),'438 timer'!AN8) -> 0 | AA8: =MIN($U8-SUM($V8:Z8),'438 timer'!AO8) -> 0 | AB8: =MIN($U8-SUM($V8:AA8),'438 timer'!AP8) -> 0 | AE8: 0 | AF8: 0 | AG8: 0 | AH8: 0 | AI8: 0 | AJ8: 0 | AL8: Faktisk afladning | AM8: =O4 -> 167.5665258
A9: 9 | B9: 8 | D9: 10 | E9: 0 | F9: 0 | H9: 188 | I9: =MIN(D9,'Input og resultater'!$I$12,'Input og resultater'!$I$13-H9) -> 0 | J9: =MIN(E9,'Input og resultater'!$I$12,H9) -> 0 | K9: 0 | L9: 10 | N9: 1.000081 | Q9: 188 | R9: =MIN(D9,'Input og resultater'!$I$12,'Input og resultater'!$I$13-Q9) -> 0 | S9: =MIN(F9,'Input og resultater'!$I$12,Q9) -> 0 | U9: =IF(B9>$O$2,'438 timer'!$BC9,0) -> 0 | W9: =MIN($U9-SUM(V9:$V9),'438 timer'!AK9) -> 0 | X9: =MIN($U9-SUM($V9:W9),'438 timer'!AL9) -> 0 | Y9: =MIN($U9-SUM($V9:X9),'438 timer'!AM9) -> 0 | Z9: =MIN($U9-SUM($V9:Y9),'438 timer'!AN9) -> 0 | AA9: =MIN($U9-SUM($V9:Z9),'438 timer'!AO9) -> 0 | AB9: =MIN($U9-SUM($V9:AA9),'438 timer'!AP9) -> 0 | AE9: 0 | AF9: 0 | AG9: 0 | AH9: 0 | AI9: 0 | AJ9: 0
A10: 10 | B10: 9 | D10: 10 | E10: 0 | F10: 0 | H10: 188 | I10: =MIN(D10,'Input og resultater'!$I$12,'Input og resultater'!$I$13-H10) -> 0 | J10: =MIN(E10,'Input og resultater'!$I$12,H10) -> 0 | K10: 0 | L10: 10 | N10: 1.00009 | Q10: 188 | R10: =MIN(D10,'Input og resultater'!$I$12,'Input og resultater'!$I$13-Q10) -> 0 | S10: =MIN(F10,'Input og resultater'!$I$12,Q10) -> 0 | U10: =IF(B10>$O$2,'438 timer'!$BC10,0) -> 0 | W10: =MIN($U10-SUM(V10:$V10),'438 timer'!AK10) -> 0 | X10: =MIN($U10-SUM($V10:W10),'438 timer'!AL10) -> 0 | Y10: =MIN($U10-SUM($V10:X10),'438 timer'!AM10) -> 0 | Z10: =MIN($U10-SUM($V10:Y10),'438 timer'!AN10) -> 0 | AA10: =MIN($U10-SUM($V10:Z10),'438 timer'!AO10) -> 0 | AB10: =MIN($U10-SUM($V10:AA10),'438 timer'!AP10) -> 0 | AE10: 0 | AF10: 0 | AG10: 0 | AH10: 0 | AI10: 0 | AJ10: 0
A11: 11 | B11: 10 | D11: 8.240479974 | E11: 0 | F11: 0 | H11: 188 | I11: =MIN(D11,'Input og resultater'!$I$12,'Input og resultater'!$I$13-H11) -> 0 | J11: =MIN(E11,'Input og resultater'!$I$12,H11) -> 0 | K11: 0 | L11: 8.240479974 | N11: 1.000099 | Q11: 188 | R11: =MIN(D11,'Input og resultater'!$I$12,'Input og resultater'!$I$13-Q11) -> 0 | S11: =MIN(F11,'Input og resultater'!$I$12,Q11) -> 0 | U11: =IF(B11>$O$2,'438 timer'!$BC11,0) -> 0 | W11: =MIN($U11-SUM(V11:$V11),'438 timer'!AK11) -> 0 | X11: =MIN($U11-SUM($V11:W11),'438 timer'!AL11) -> 0 | Y11: =MIN($U11-SUM($V11:X11),'438 timer'!AM11) -> 0 | Z11: =MIN($U11-SUM($V11:Y11),'438 timer'!AN11) -> 0 | AA11: =MIN($U11-SUM($V11:Z11),'438 timer'!AO11) -> 0 | AB11: =MIN($U11-SUM($V11:AA11),'438 timer'!AP11) -> 0 | AE11: 0 | AF11: 0 | AG11: 0 | AH11: 0 | AI11: 0 | AJ11: 0
A12: 12 | B12: 11 | D12: 8.909011975 | E12: 0 | F12: 0 | H12: 188 | I12: =MIN(D12,'Input og resultater'!$I$12,'Input og resultater'!$I$13-H12) -> 0 | J12: =MIN(E12,'Input og resultater'!$I$12,H12) -> 0 | K12: 0 | L12: 8.909011975 | N12: 1.000108 | Q12: 188 | R12: =MIN(D12,'Input og resultater'!$I$12,'Input og resultater'!$I$13-Q12) -> 0 | S12: =MIN(F12,'Input og resultater'!$I$12,Q12) -> 0 | U12: =IF(B12>$O$2,'438 timer'!$BC12,0) -> 0 | W12: =MIN($U12-SUM(V12:$V12),'438 timer'!AK12) -> 0 | X12: =MIN($U12-SUM($V12:W12),'438 timer'!AL12) -> 0 | Y12: =MIN($U12-SUM($V12:X12),'438 timer'!AM12) -> 0 | Z12: =MIN($U12-SUM($V12:Y12),'438 timer'!AN12) -> 0 | AA12: =MIN($U12-SUM($V12:Z12),'438 timer'!AO12) -> 0 | AB12: =MIN($U12-SUM($V12:AA12),'438 timer'!AP12) -> 0 | AE12: 0 | AF12: 0 | AG12: 0 | AH12: 0 | AI12: 0 | AJ12: 0
A13: 13 | B13: 12 | D13: 10 | E13: 0 | F13: 0 | H13: 188 | I13: =MIN(D13,'Input og resultater'!$I$12,'Input og resultater'!$I$13-H13) -> 0 | J13: =MIN(E13,'Input og resultater'!$I$12,H13) -> 0 | K13: 0 | L13: 10 | N13: 1.000117 | Q13: 188 | R13: =MIN(D13,'Input og resultater'!$I$12,'Input og resultater'!$I$13-Q13) -> 0 | S13: =MIN(F13,'Input og resultater'!$I$12,Q13) -> 0 | U13: =IF(B13>$O$2,'438 timer'!$BC13,0) -> 0 | W13: =MIN($U13-SUM(V13:$V13),'438 timer'!AK13) -> 0 | X13: =MIN($U13-SUM($V13:W13),'438 timer'!AL13) -> 0 | Y13: =MIN($U13-SUM($V13:X13),'438 timer'!AM13) -> 0 | Z13: =MIN($U13-SUM($V13:Y13),'438 timer'!AN13) -> 0 | AA13: =MIN($U13-SUM($V13:Z13),'438 timer'!AO13) -> 0 | AB13: =MIN($U13-SUM($V13:AA13),'438 timer'!AP13) -> 0 | AE13: 0 | AF13: 0 | AG13: 0 | AH13: 0 | AI13: 0 | AJ13: 0
A14: 14 | B14: 13 | D14: 10 | E14: 0 | F14: 0 | H14: 188 | I14: =MIN(D14,'Input og resultater'!$I$12,'Input og resultater'!$I$13-H14) -> 0 | J14: =MIN(E14,'Input og resultater'!$I$12,H14) -> 0 | K14: 0 | L14: 10 | N14: 1.000126 | Q14: 188 | R14: =MIN(D14,'Input og resultater'!$I$12,'Input og resultater'!$I$13-Q14) -> 0 | S14: =MIN(F14,'Input og resultater'!$I$12,Q14) -> 0 | U14: =IF(B14>$O$2,'438 timer'!$BC14,0) -> 0 | W14: =MIN($U14-SUM(V14:$V14),'438 timer'!AK14) -> 0 | X14: =MIN($U14-SUM($V14:W14),'438 timer'!AL14) -> 0 | Y14: =MIN($U14-SUM($V14:X14),'438 timer'!AM14) -> 0 | Z14: =MIN($U14-SUM($V14:Y14),'438 timer'!AN14) -> 0 | AA14: =MIN($U14-SUM($V14:Z14),'438 timer'!AO14) -> 0 | AB14: =MIN($U14-SUM($V14:AA14),'438 timer'!AP14) -> 0 | AE14: 0 | AF14: 0 | AG14: 0 | AH14: 0 | AI14: 0 | AJ14: 0
A15: 15 | B15: 14 | D15: 10 | E15: 0 | F15: 0 | H15: 188 | I15: =MIN(D15,'Input og resultater'!$I$12,'Input og resultater'!$I$13-H15) -> 0 | J15: =MIN(E15,'Input og resultater'!$I$12,H15) -> 0 | K15: 0 | L15: 10 | N15: 1.000135 | Q15: 188 | R15: =MIN(D15,'Input og resultater'!$I$12,'Input og resultater'!$I$13-Q15) -> 0 | S15: =MIN(F15,'Input og resultater'!$I$12,Q15) -> 0 | U15: =IF(B15>$O$2,'438 timer'!$BC15,0) -> 0 | W15: =MIN($U15-SUM(V15:$V15),'438 timer'!AK15) -> 0 | X15: =MIN($U15-SUM($V15:W15),'438 timer'!AL15) -> 0 | Y15: =MIN($U15-SUM($V15:X15),'438 timer'!AM15) -> 0 | Z15: =MIN($U15-SUM($V15:Y15),'438 timer'!AN15) -> 0 | AA15: =MIN($U15-SUM($V15:Z15),'438 timer'!AO15) -> 0 | AB15: =MIN($U15-SUM($V15:AA15),'438 timer'!AP15) -> 0 | AE15: 0 | AF15: 0 | AG15: 0 | AH15: 0 | AI15: 0 | AJ15: 0
A16: 16 | B16: 15 | D16: 10 | E16: 0 | F16: 0 | H16: 188 | I16: =MIN(D16,'Input og resultater'!$I$12,'Input og resultater'!$I$13-H16) -> 0 | J16: =MIN(E16,'Input og resultater'!$I$12,H16) -> 0 | K16: 0 | L16: 10 | N16: 1.000144 | Q16: 188 | R16: =MIN(D16,'Input og resultater'!$I$12,'Input og resultater'!$I$13-Q16) -> 0 | S16: =MIN(F16,'Input og resultater'!$I$12,Q16) -> 0 | U16: =IF(B16>$O$2,'438 timer'!$BC16,0) -> 0 | W16: =MIN($U16-SUM(V16:$V16),'438 timer'!AK16) -> 0 | X16: =MIN($U16-SUM($V16:W16),'438 timer'!AL16) -> 0 | Y16: =MIN($U16-SUM($V16:X16),'438 timer'!AM16) -> 0 | Z16: =MIN($U16-SUM($V16:Y16),'438 timer'!AN16) -> 0 | AA16: =MIN($U16-SUM($V16:Z16),'438 timer'!AO16) -> 0 | AB16: =MIN($U16-SUM($V16:AA16),'438 timer'!AP16) -> 0 | AE16: 0 | AF16: 0 | AG16: 0 | AH16: 0 | AI16: 0 | AJ16: 0
A17: 17 | B17: 16 | D17: 10 | E17: 0 | F17: 0 | H17: 188 | I17: =MIN(D17,'Input og resultater'!$I$12,'Input og resultater'!$I$13-H17) -> 0 | J17: =MIN(E17,'Input og resultater'!$I$12,H17) -> 0 | K17: 0 | L17: 10 | N17: 1.000153 | Q17: 188 | R17: =MIN(D17,'Input og resultater'!$I$12,'Input og resultater'!$I$13-Q17) -> 0 | S17: =MIN(F17,'Input og resultater'!$I$12,Q17) -> 0 | U17: =IF(B17>$O$2,'438 timer'!$BC17,0) -> 0 | W17: =MIN($U17-SUM(V17:$V17),'438 timer'!AK17) -> 0 | X17: =MIN($U17-SUM($V17:W17),'438 timer'!AL17) -> 0 | Y17: =MIN($U17-SUM($V17:X17),'438 timer'!AM17) -> 0 | Z17: =MIN($U17-SUM($V17:Y17),'438 timer'!AN17) -> 0 | AA17: =MIN($U17-SUM($V17:Z17),'438 timer'!AO17) -> 0 | AB17: =MIN($U17-SUM($V17:AA17),'438 timer'!AP17) -> 0 | AE17: 0 | AF17: 0 | AG17: 0 | AH17: 0 | AI17: 0 | AJ17: 0
A18: 18 | B18: 17 | D18: 10 | E18: 0 | F18: 0 | H18: 188 | I18: =MIN(D18,'Input og resultater'!$I$12,'Input og resultater'!$I$13-H18) -> 0 | J18: =MIN(E18,'Input og resultater'!$I$12,H18) -> 0 | K18: 0 | L18: 10 | N18: 1.000162 | Q18: 188 | R18: =MIN(D18,'Input og resultater'!$I$12,'Input og resultater'!$I$13-Q18) -> 0 | S18: =MIN(F18,'Input og resultater'!$I$12,Q18) -> 0 | U18: =IF(B18>$O$2,'438 timer'!$BC18,0) -> 0 | W18: =MIN($U18-SUM(V18:$V18),'438 timer'!AK18) -> 0 | X18: =MIN($U18-SUM($V18:W18),'438 timer'!AL18) -> 0 | Y18: =MIN($U18-SUM($V18:X18),'438 timer'!AM18) -> 0 | Z18: =MIN($U18-SUM($V18:Y18),'438 timer'!AN18) -> 0 | AA18: =MIN($U18-SUM($V18:Z18),'438 timer'!AO18) -> 0 | AB18: =MIN($U18-SUM($V18:AA18),'438 timer'!AP18) -> 0 | AE18: 0 | AF18: 0 | AG18: 0 | AH18: 0 | AI18: 0 | AJ18: 0
A19: 19 | B19: 18 | D19: 10 | E19: 0 | F19: 0 | H19: 188 | I19: =MIN(D19,'Input og resultater'!$I$12,'Input og resultater'!$I$13-H19) -> 0 | J19: =MIN(E19,'Input og resultater'!$I$12,H19) -> 0 | K19: 0 | L19: 10 | N19: 1.000171 | Q19: 188 | R19: =MIN(D19,'Input og resultater'!$I$12,'Input og resultater'!$I$13-Q19) -> 0 | S19: =MIN(F19,'Input og resultater'!$I$12,Q19) -> 0 | U19: =IF(B19>$O$2,'438 timer'!$BC19,0) -> 0 | W19: =MIN($U19-SUM(V19:$V19),'438 timer'!AK19) -> 0 | X19: =MIN($U19-SUM($V19:W19),'438 timer'!AL19) -> 0 | Y19: =MIN($U19-SUM($V19:X19),'438 timer'!AM19) -> 0 | Z19: =MIN($U19-SUM($V19:Y19),'438 timer'!AN19) -> 0 | AA19: =MIN($U19-SUM($V19:Z19),'438 timer'!AO19) -> 0 | AB19: =MIN($U19-SUM($V19:AA19),'438 timer'!AP19) -> 0 | AE19: 0 | AF19: 0 | AG19: 0 | AH19: 0 | AI19: 0 | AJ19: 0
A20: 20 | B20: 19 | D20: 9.577542976 | E20: 0 | F20: 0 | H20: 188 | I20: =MIN(D20,'Input og resultater'!$I$12,'Input og resultater'!$I$13-H20) -> 0 | J20: =MIN(E20,'Input og resultater'!$I$12,H20) -> 0 | K20: 0 | L20: 9.577542976 | N20: 1.00018 | Q20: 188 | R20: =MIN(D20,'Input og resultater'!$I$12,'Input og resultater'!$I$13-Q20) -> 0 | S20: =MIN(F20,'Input og resultater'!$I$12,Q20) -> 0 | U20: =IF(B20>$O$2,'438 timer'!$BC20,0) -> 0 | W20: =MIN($U20-SUM(V20:$V20),'438 timer'!AK20) -> 0 | X20: =MIN($U20-SUM($V20:W20),'438 timer'!AL20) -> 0 | Y20: =MIN($U20-SUM($V20:X20),'438 timer'!AM20) -> 0 | Z20: =MIN($U20-SUM($V20:Y20),'438 timer'!AN20) -> 0 | AA20: =MIN($U20-SUM($V20:Z20),'438 timer'!AO20) -> 0 | AB20: =MIN($U20-SUM($V20:AA20),'438 timer'!AP20) -> 0 | AE20: 0 | AF20: 0 | AG20: 0 | AH20: 0 | AI20: 0 | AJ20: 0
A21: 21 | B21: 20 | D21: 8.611886975 | E21: 0 | F21: 0 | H21: 188 | I21: =MIN(D21,'Input og resultater'!$I$12,'Input og resultater'!$I$13-H21) -> 0 | J21: =MIN(E21,'Input og resultater'!$I$12,H21) -> 0 | K21: 0 | L21: 8.611886975 | N21: 1.000189 | Q21: 188 | R21: =MIN(D21,'Input og resultater'!$I$12,'Input og resultater'!$I$13-Q21) -> 0 | S21: =MIN(F21,'Input og resultater'!$I$12,Q21) -> 0 | U21: =IF(B21>$O$2,'438 timer'!$BC21,0) -> 0 | W21: =MIN($U21-SUM(V21:$V21),'438 timer'!AK21) -> 0 | X21: =MIN($U21-SUM($V21:W21),'438 timer'!AL21) -> 0 | Y21: =MIN($U21-SUM($V21:X21),'438 timer'!AM21) -> 0 | Z21: =MIN($U21-SUM($V21:Y21),'438 timer'!AN21) -> 0 | AA21: =MIN($U21-SUM($V21:Z21),'438 timer'!AO21) -> 0 | AB21: =MIN($U21-SUM($V21:AA21),'438 timer'!AP21) -> 0 | AE21: 0 | AF21: 0 | AG21: 0 | AH21: 0 | AI21: 0 | AJ21: 0
A22: 22 | B22: 21 | D22: 8.909011975 | E22: 0 | F22: 0 | H22: 188 | I22: =MIN(D22,'Input og resultater'!$I$12,'Input og resultater'!$I$13-H22) -> 0 | J22: =MIN(E22,'Input og resultater'!$I$12,H22) -> 0 | K22: 0 | L22: 8.909011975 | N22: 1.000198 | Q22: 188 | R22: =MIN(D22,'Input og resultater'!$I$12,'Input og resultater'!$I$13-Q22) -> 0 | S22: =MIN(F22,'Input og resultater'!$I$12,Q22) -> 0 | U22: =IF(B22>$O$2,'438 timer'!$BC22,0) -> 0 | W22: =MIN($U22-SUM(V22:$V22),'438 timer'!AK22) -> 0 | X22: =MIN($U22-SUM($V22:W22),'438 timer'!AL22) -> 0 | Y22: =MIN($U22-SUM($V22:X22),'438 timer'!AM22) -> 0 | Z22: =MIN($U22-SUM($V22:Y22),'438 timer'!AN22) -> 0 | AA22: =MIN($U22-SUM($V22:Z22),'438 timer'!AO22) -> 0 | AB22: =MIN($U22-SUM($V22:AA22),'438 timer'!AP22) -> 0 | AE22: 0 | AF22: 0 | AG22: 0 | AH22: 0 | AI22: 0 | AJ22: 0
A23: 23 | B23: 22 | D23: 8.760448975 | E23: 0 | F23: 0 | H23: 188 | I23: =MIN(D23,'Input og resultater'!$I$12,'Input og resultater'!$I$13-H23) -> 0 | J23: =MIN(E23,'Input og resultater'!$I$12,H23) -> 0 | K23: 0 | L23: 8.760448975 | N23: 1.000207 | Q23: 188 | R23: =MIN(D23,'Input og resultater'!$I$12,'Input og resultater'!$I$13-Q23) -> 0 | S23: =MIN(F23,'Input og resultater'!$I$12,Q23) -> 0 | U23: =IF(B23>$O$2,'438 timer'!$BC23,0) -> 0 | W23: =MIN($U23-SUM(V23:$V23),'438 timer'!AK23) -> 0 | X23: =MIN($U23-SUM($V23:W23),'438 timer'!AL23) -> 0 | Y23: =MIN($U23-SUM($V23:X23),'438 timer'!AM23) -> 0 | Z23: =MIN($U23-SUM($V23:Y23),'438 timer'!AN23) -> 0 | AA23: =MIN($U23-SUM($V23:Z23),'438 timer'!AO23) -> 0 | AB23: =MIN($U23-SUM($V23:AA23),'438 timer'!AP23) -> 0 | AE23: 0 | AF23: 0 | AG23: 0 | AH23: 0 | AI23: 0 | AJ23: 0
A24: 24 | B24: 23 | D24: =SUMIF($BC$29:$BC$2656,"="&B24,$BJ$29:$BJ$2656) -> 0 | E24: 6.462395025 | F24: 6.462395025 | H24: 188 | I24: =MIN(D24,'Input og resultater'!$I$12,'Input og resultater'!$I$13-H24) -> 0 | J24: =MIN(E24,'Input og resultater'!$I$12,H24) -> 6.462395025 | K24: 0 | L24: 0 | N24: 0 | Q24: 188 | R24: =MIN(D24,'Input og resultater'!$I$12,'Input og resultater'!$I$13-Q24) -> 0 | S24: =MIN(F24,'Input og resultater'!$I$12,Q24) -> 6.462395025 | U24: =IF(B24>$O$2,'438 timer'!$BC24,0) -> 0 | W24: =MIN($U24-SUM(V24:$V24),'438 timer'!AK24) -> 0 | X24: =MIN($U24-SUM($V24:W24),'438 timer'!AL24) -> 0 | Y24: =MIN($U24-SUM($V24:X24),'438 timer'!AM24) -> 0 | Z24: =MIN($U24-SUM($V24:Y24),'438 timer'!AN24) -> 0 | AA24: =MIN($U24-SUM($V24:Z24),'438 timer'!AO24) -> 0 | AB24: =MIN($U24-SUM($V24:AA24),'438 timer'!AP24) -> 0 | AE24: 0 | AF24: 0 | AG24: 0 | AH24: 0 | AI24: 0 | AJ24: 0
A25: 25 | B25: 24 | D25: 0 | E25: =SUMIF($BC$29:$BC$2656,"="&B25,$BL$29:$BL$2656) -> 7.130926026 | F25: 7.130926026 | H25: 181.537605 | I25: =MIN(D25,'Input og resultater'!$I$12,'Input og resultater'!$I$13-H25) -> 0 | J25: =MIN(E25,'Input og resultater'!$I$12,H25) -> 7.130926026 | K25: 0 | L25: 0 | N25: 0 | Q25: 181.537605 | R25: =MIN(D25,'Input og resultater'!$I$12,'Input og resultater'!$I$13-Q25) -> 0 | S25: =MIN(F25,'Input og resultater'!$I$12,Q25) -> 7.130926026 | U25: =IF(B25>$O$2,'438 timer'!$BC25,0) -> 0 | W25: =MIN($U25-SUM(V25:$V25),'438 timer'!AK25) -> 0 | X25: =MIN($U25-SUM($V25:W25),'438 timer'!AL25) -> 0 | Y25: =MIN($U25-SUM($V25:X25),'438 timer'!AM25) -> 0 | Z25: =MIN($U25-SUM($V25:Y25),'438 timer'!AN25) -> 0 | AA25: =MIN($U25-SUM($V25:Z25),'438 timer'!AO25) -> 0 | AB25: =MIN($U25-SUM($V25:AA25),'438 timer'!AP25) -> 0 | AE25: 0 | AF25: 0 | AG25: 0 | AH25: 0 | AI25: 0 | AJ25: 0
A26: 26 | B26: 25 | D26: 7.571948973 | E26: 0 | F26: 0 | H26: 174.4066789 | I26: =MIN(D26,'Input og resultater'!$I$12,'Input og resultater'!$I$13-H26) -> 7.571948973 | J26: =MIN(E26,'Input og resultater'!$I$12,H26) -> 0 | K26: 0 | L26: 0 | N26: 1.000234 | Q26: 174.4066789 | R26: =MIN(D26,'Input og resultater'!$I$12,'Input og resultater'!$I$13-Q26) -> 7.571948973 | S26: =MIN(F26,'Input og resultater'!$I$12,Q26) -> 0 | U26: =IF(B26>$O$2,'438 timer'!$BC26,0) -> 0 | W26: =MIN($U26-SUM(V26:$V26),'438 timer'!AK26) -> 0 | X26: =MIN($U26-SUM($V26:W26),'438 timer'!AL26) -> 0 | Y26: =MIN($U26-SUM($V26:X26),'438 timer'!AM26) -> 0 | Z26: =MIN($U26-SUM($V26:Y26),'438 timer'!AN26) -> 0 | AA26: =MIN($U26-SUM($V26:Z26),'438 timer'!AO26) -> 0 | AB26: =MIN($U26-SUM($V26:AA26),'438 timer'!AP26) -> 0 | AE26: 0 | AF26: 0 | AG26: 0 | AH26: 0 | AI26: 0 | AJ26: 0
A27: 27 | B27: 26 | D27: 7.571948973 | E27: 0 | F27: 0 | H27: 181.9786279 | I27: =MIN(D27,'Input og resultater'!$I$12,'Input og resultater'!$I$13-H27) -> 6.021372078 | J27: =MIN(E27,'Input og resultater'!$I$12,H27) -> 0 | K27: 0 | L27: 1.550576895 | N27: 1.000243 | Q27: 181.9786279 | R27: =MIN(D27,'Input og resultater'!$I$12,'Input og resultater'!$I$13-Q27) -> 6.021372078 | S27: =MIN(F27,'Input og resultater'!$I$12,Q27) -> 0 | U27: =IF(B27>$O$2,'438 timer'!$BC27,0) -> 0 | W27: =MIN($U27-SUM(V27:$V27),'438 timer'!AK27) -> 0 | X27: =MIN($U27-SUM($V27:W27),'438 timer'!AL27) -> 0 | Y27: =MIN($U27-SUM($V27:X27),'438 timer'!AM27) -> 0 | Z27: =MIN($U27-SUM($V27:Y27),'438 timer'!AN27) -> 0 | AA27: =MIN($U27-SUM($V27:Z27),'438 timer'!AO27) -> 0 | AB27: =MIN($U27-SUM($V27:AA27),'438 timer'!AP27) -> 0 | AE27: 0 | AF27: 0 | AG27: 0 | AH27: 0 | AI27: 0 | AJ27: 0
A28: 28 | B28: 27 | D28: 7.571948973 | E28: 0 | F28: 0 | H28: 188 | I28: =MIN(D28,'Input og resultater'!$I$12,'Input og resultater'!$I$13-H28) -> 0 | J28: =MIN(E28,'Input og resultater'!$I$12,H28) -> 0 | K28: 0 | L28: 7.571948973 | N28: 1.000252 | Q28: 188 | R28: =MIN(D28,'Input og resultater'!$I$12,'Input og resultater'!$I$13-Q28) -> 0 | S28: =MIN(F28,'Input og resultater'!$I$12,Q28) -> 0 | U28: =IF(B28>$O$2,'438 timer'!$BC28,0) -> 0 | W28: =MIN($U28-SUM(V28:$V28),'438 timer'!AK28) -> 0 | X28: =MIN($U28-SUM($V28:W28),'438 timer'!AL28) -> 0 | Y28: =MIN($U28-SUM($V28:X28),'438 timer'!AM28) -> 0 | Z28: =MIN($U28-SUM($V28:Y28),'438 timer'!AN28) -> 0 | AA28: =MIN($U28-SUM($V28:Z28),'438 timer'!AO28) -> 0 | AB28: =MIN($U28-SUM($V28:AA28),'438 timer'!AP28) -> 0 | AE28: 0 | AF28: 0 | AG28: 0 | AH28: 0 | AI28: 0 | AJ28: 0 | AV28: Spot | AW28: Række 1 | AX28: Række 2 | AY28: Række 3 | AZ28: Række 4 | BA28: Række 5 | BB28: Række 6 | BC28: Række | BD28: kolonne | BE28: MW | BF28: Behov MW minus anden produktion | BG28: Behov akku rå | BH28: Maks ladning i perioden | BI28: Produktion | BJ28: Overproduktion | BK28: akku over prod. | BL28: afladning | BM28: Bhov | BN28: Behov akk | BO28: Største | BP28: række excel | BQ28: Ræke | BR28: kolone | BS28: Vak kapacitet | BT28: Maks afladning | BU28: Produktion | BV28: Afladning overproduktion | BW28: Kapacitet tilbaeg | BX28: Afladet | BY28: afladning 2 | BZ28: Diff | CB28: Beregning tank | CC28: Bhov | CD28: Overproduktion | CE28: afladningspotentiale | CF28: over ladet
A29: 29 | B29: 28 | D29: 7.274823973 | E29: 0 | F29: 0 | H29: 188 | I29: =MIN(D29,'Input og resultater'!$I$12,'Input og resultater'!$I$13-H29) -> 0 | J29: =MIN(E29,'Input og resultater'!$I$12,H29) -> 0 | K29: 0 | L29: 7.274823973 | N29: 1.000261 | Q29: 188 | R29: =MIN(D29,'Input og resultater'!$I$12,'Input og resultater'!$I$13-Q29) -> 0 | S29: =MIN(F29,'Input og resultater'!$I$12,Q29) -> 0 | U29: =IF(B29>$O$2,'438 timer'!$BC29,0) -> 0 | W29: =MIN($U29-SUM(V29:$V29),'438 timer'!AK29) -> 0 | X29: =MIN($U29-SUM($V29:W29),'438 timer'!AL29) -> 0 | Y29: =MIN($U29-SUM($V29:X29),'438 timer'!AM29) -> 0 | Z29: =MIN($U29-SUM($V29:Y29),'438 timer'!AN29) -> 0 | AA29: =MIN($U29-SUM($V29:Z29),'438 timer'!AO29) -> 0 | AB29: =MIN($U29-SUM($V29:AA29),'438 timer'!AP29) -> 0 | AE29: 0 | AF29: 0 | AG29: 0 | AH29: 0 | AI29: 0 | AJ29: 0 | AT29: 0 | AU29: 1 | AV29: =SMALL('438 timer'!$AD$2:$AI$439,$AU29) -> 1.5e-06 | AW29: =IFERROR(MATCH($AV29,'438 timer'!AD$2:AD$439,0),0) -> 1 | AX29: =IFERROR(MATCH($AV29,'438 timer'!AE$2:AE$439,0),0) -> 0 | AY29: =IFERROR(MATCH($AV29,'438 timer'!AF$2:AF$439,0),0) -> 0 | AZ29: =IFERROR(MATCH($AV29,'438 timer'!AG$2:AG$439,0),0) -> 0 | BA29: =IFERROR(MATCH($AV29,'438 timer'!AH$2:AH$439,0),0) -> 0 | BB29: =IFERROR(MATCH($AV29,'438 timer'!AI$2:AI$439,0),0) -> 0 | BC29: =SUM(AW29:BB29,0) -> 1 | BD29: =MATCH(BC29,AW29:BB29,0) -> 1 | BE29: =INDEX('438 timer'!$AK$2:$AQ$439,BC29,BD29) -> 0 | BF29: =MAX(INDEX('438 timer'!$BC$2:$BC$439,BC29,)-SUMIF(BC$27:BC28,"="&BC29,BI$27:BI28),0) -> 19.05105102 | BG29: =MAX(INDEX('438 timer'!$BD$2:$BD$439,BC29,1)-SUM(BI$26:BI28),0) -> 7327.45026 | BH29: ='Input og resultater'!$I$12-SUMIF(BC$27:BC28,"="&BC29,BJ$27:BJ28) -> 10 | BI29: =MIN(MAX(MIN(BF29,BE29),MIN(BE29,BN29)),BF29+BH29) -> 0 | BJ29: =MAX(BI29-BF29,0) -> 0 | BK29: =SUMIF(BC$27:BC28,"<="&BC29,BJ$27:BJ28)+'438 timer'!$AS$2 -> 119.9685126 | BL29: =INDEX($BV$29:$BV$2656,BP29,1) -> 0 | BM29: =INDEX('438 timer'!$BC$2:$BC$439,BC29,) -> 19.05105102 | BN29: =MAX('438 timer'!$BD$2-SUM(BI$26:BI28)-AT29,0) -> 7327.45026 | BO29: =LARGE('438 timer'!$AD$2:$AI$439,$AU29) -> 2662.119814 | BP29: =MATCH(BO29,$AV$29:$AV$2656,0) -> 2628 | BQ29: =INDEX($BC$29:$BC$2656,MATCH(BO29,$AV$29:$AV$2656,0),1) -> 226 | BR29: =INDEX($BD$29:$BD$2656,MATCH(BO29,$AV$29:$AV$2656,0),1) -> 6 | BS29: =SUMIFS($BJ$29:$BJ$2656,$BC$29:$BC$2656,"<"&BQ29,$AV$29:$AV$2656,"<="&BO29)-SUMIF(BQ$27:BQ28,">"&BQ29,BV$27:BV28)+SUMIFS(BV$27:BV28,BQ$27:BQ28,">"&BQ29,$BO$27:BO28,"<="&BO29) -> 469.1617579 | BT29: ='Input og resultater'!$I$12-SUMIF(BQ$27:BQ28,"="&BQ29,BX$27:BX28) -> 10 | BU29: =INDEX($BI$29:$BI$2656,BP29,1) -> 0 | BV29: =BX29 -> 0 | BW29: =MAX(LARGE($BZ$29:$BZ$2656,1)-SUM(BX$27:BX28),0) -> 1045.845736 | BX29: =MIN(MAX(MIN(CE29,'Input og resultater'!$I$12,BW29),0),BT29) -> 0 | BZ29: =-INDEX($BF$29:$BF$2656,BP29,1)+INDEX($BK$29:$BK$2656,BP29,1) -> 589.1302705 | CA29: =INDEX($BJ$29:$BJ$2656,BP29,1) -> 0 | CB29: =SUMIF($BC$29:$BC$2656,"<"&BQ29,$BJ$29:$BJ$2656)-SUM(BX$27:BX28) -> 469.1617579 | CC29: =INDEX($BF$29:$BF$2656,BP29,1) -> 0 | CD29: =INDEX($BJ$29:$BJ$2656,BP29,1) -> 0 | CE29: =IF(CD29>0,0,BU29) -> 0 | CG29: =MIN(MAX(SUMIF($BC$29:$BC$2656,"<"&BQ29,$BJ$29:$BJ$2656)-SUM(BX$27:BX28),0),'Input og resultater'!$I$13) -> 188
A30: 30 | B30: 29 | D30: 6.977698973 | E30: 0 | F30: 0 | H30: 188 | I30: =MIN(D30,'Input og resultater'!$I$12,'Input og resultater'!$I$13-H30) -> 0 | J30: =MIN(E30,'Input og resultater'!$I$12,H30) -> 0 | K30: 0 | L30: 6.977698973 | N30: 1.00027 | Q30: 188 | R30: =MIN(D30,'Input og resultater'!$I$12,'Input og resultater'!$I$13-Q30) -> 0 | S30: =MIN(F30,'Input og resultater'!$I$12,Q30) -> 0 | U30: =IF(B30>$O$2,'438 timer'!$BC30,0) -> 0 | W30: =MIN($U30-SUM(V30:$V30),'438 timer'!AK30) -> 0 | X30: =MIN($U30-SUM($V30:W30),'438 timer'!AL30) -> 0 | Y30: =MIN($U30-SUM($V30:X30),'438 timer'!AM30) -> 0 | Z30: =MIN($U30-SUM($V30:Y30),'438 timer'!AN30) -> 0 | AA30: =MIN($U30-SUM($V30:Z30),'438 timer'!AO30) -> 0 | AB30: =MIN($U30-SUM($V30:AA30),'438 timer'!AP30) -> 0 | AE30: 0 | AF30: 0 | AG30: 0 | AH30: 0 | AI30: 0 | AJ30: 0 | AT30: 0 | AU30: 2 | AV30: =SMALL('438 timer'!$AD$2:$AI$439,$AU30) -> 1.6e-06 | AW30: =IFERROR(MATCH($AV30,'438 timer'!AD$2:AD$439,0),0) -> 0 | AX30: =IFERROR(MATCH($AV30,'438 timer'!AE$2:AE$439,0),0) -> 1 | AY30: =IFERROR(MATCH($AV30,'438 timer'!AF$2:AF$439,0),0) -> 0 | AZ30: =IFERROR(MATCH($AV30,'438 timer'!AG$2:AG$439,0),0) -> 0 | BA30: =IFERROR(MATCH($AV30,'438 timer'!AH$2:AH$439,0),0) -> 0 | BB30: =IFERROR(MATCH($AV30,'438 timer'!AI$2:AI$439,0),0) -> 0 | BC30: =SUM(AW30:BB30,0) -> 1 | BD30: =MATCH(BC30,AW30:BB30,0) -> 2 | BE30: =INDEX('438 timer'!$AK$2:$AQ$439,BC30,BD30) -> 0 | BF30: =MAX(INDEX('438 timer'!$BC$2:$BC$439,BC30,)-SUMIF(BC$27:BC29,"="&BC30,BI$27:BI29),0) -> 19.05105102 | BG30: =MAX(INDEX('438 timer'!$BD$2:$BD$439,BC30,1)-SUM(BI$26:BI29),0) -> 7327.45026 | BH30: ='Input og resultater'!$I$12-SUMIF(BC$27:BC29,"="&BC30,BJ$27:BJ29) -> 10 | BI30: =MIN(MAX(MIN(BF30,BE30),MIN(BE30,BN30)),BF30+BH30) -> 0 | BJ30: =MAX(BI30-BF30,0) -> 0 | BK30: =SUMIF(BC$27:BC29,"<="&BC30,BJ$27:BJ29)+'438 timer'!$AS$2 -> 119.9685126 | BL30: =INDEX($BV$29:$BV$2656,BP30,1) -> 0 | BM30: =INDEX('438 timer'!$BC$2:$BC$439,BC30,) -> 19.05105102 | BN30: =MAX('438 timer'!$BD$2-SUM(BI$26:BI29)-AT30,0) -> 7327.45026 | BO30: =LARGE('438 timer'!$AD$2:$AI$439,$AU30) -> 2653.599287 | BP30: =MATCH(BO30,$AV$29:$AV$2656,0) -> 2627 | BQ30: =INDEX($BC$29:$BC$2656,MATCH(BO30,$AV$29:$AV$2656,0),1) -> 225 | BR30: =INDEX($BD$29:$BD$2656,MATCH(BO30,$AV$29:$AV$2656,0),1) -> 6 | BS30: =SUMIFS($BJ$29:$BJ$2656,$BC$29:$BC$2656,"<"&BQ30,$AV$29:$AV$2656,"<="&BO30)-SUMIF(BQ$27:BQ29,">"&BQ30,BV$27:BV29)+SUMIFS(BV$27:BV29,BQ$27:BQ29,">"&BQ30,$BO$27:BO29,"<="&BO30) -> 469.1617579 | BT30: ='Input og resultater'!$I$12-SUMIF(BQ$27:BQ29,"="&BQ30,BX$27:BX29) -> 10 | BU30: =INDEX($BI$29:$BI$2656,BP30,1) -> 0 | BV30: =BX30 -> 0 | BW30: =MAX(LARGE($BZ$29:$BZ$2656,1)-SUM(BX$27:BX29),0) -> 1045.845736 | BX30: =MIN(MAX(MIN(CE30,'Input og resultater'!$I$12,BW30),0),BT30) -> 0 | BZ30: =-INDEX($BF$29:$BF$2656,BP30,1)+INDEX($BK$29:$BK$2656,BP30,1) -> 589.1302705 | CA30: =INDEX($BJ$29:$BJ$2656,BP30,1) -> 0 | CB30: =SUMIF($BC$29:$BC$2656,"<"&BQ30,$BJ$29:$BJ$2656)-SUM(BX$27:BX29) -> 469.1617579 | CC30: =INDEX($BF$29:$BF$2656,BP30,1) -> 0 | CD30: =INDEX($BJ$29:$BJ$2656,BP30,1) -> 0 | CE30: =IF(CD30>0,0,BU30) -> 0 | CG30: =MIN(MAX(SUMIF($BC$29:$BC$2656,"<"&BQ30,$BJ$29:$BJ$2656)-SUM(BX$27:BX29),0),'Input og resultater'!$I$13) -> 188
A31: 31 | B31: 30 | D31: 7.646230973 | E31: 0 | F31: 0 | H31: 188 | I31: =MIN(D31,'Input og resultater'!$I$12,'Input og resultater'!$I$13-H31) -> 0 | J31: =MIN(E31,'Input og resultater'!$I$12,H31) -> 0 | K31: 0 | L31: 7.646230973 | N31: 1.000279 | Q31: 188 | R31: =MIN(D31,'Input og resultater'!$I$12,'Input og resultater'!$I$13-Q31) -> 0 | S31: =MIN(F31,'Input og resultater'!$I$12,Q31) -> 0 | U31: =IF(B31>$O$2,'438 timer'!$BC31,0) -> 0 | W31: =MIN($U31-SUM(V31:$V31),'438 timer'!AK31) -> 0 | X31: =MIN($U31-SUM($V31:W31),'438 timer'!AL31) -> 0 | Y31: =MIN($U31-SUM($V31:X31),'438 timer'!AM31) -> 0 | Z31: =MIN($U31-SUM($V31:Y31),'438 timer'!AN31) -> 0 | AA31: =MIN($U31-SUM($V31:Z31),'438 timer'!AO31) -> 0 | AB31: =MIN($U31-SUM($V31:AA31),'438 timer'!AP31) -> 0 | AE31: 0 | AF31: 0 | AG31: 0 | AH31: 0 | AI31: 0 | AJ31: 0 | AT31: 0 | AU31: 3 | AV31: =SMALL('438 timer'!$AD$2:$AI$439,$AU31) -> 2.5e-06 | AW31: =IFERROR(MATCH($AV31,'438 timer'!AD$2:AD$439,0),0) -> 2 | AX31: =IFERROR(MATCH($AV31,'438 timer'!AE$2:AE$439,0),0) -> 0 | AY31: =IFERROR(MATCH($AV31,'438 timer'!AF$2:AF$439,0),0) -> 0 | AZ31: =IFERROR(MATCH($AV31,'438 timer'!AG$2:AG$439,0),0) -> 0 | BA31: =IFERROR(MATCH($AV31,'438 timer'!AH$2:AH$439,0),0) -> 0 | BB31: =IFERROR(MATCH($AV31,'438 timer'!AI$2:AI$439,0),0) -> 0 | BC31: 2 | BD31: 1 | BE31: =INDEX('438 timer'!$AK$2:$AQ$439,BC31,BD31) -> 0 | BF31: =MAX(INDEX('438 timer'!$BC$2:$BC$439,BC31,)-SUMIF(BC$27:BC30,"="&BC31,BI$27:BI30),0) -> 19.34817602 | BG31: =MAX(INDEX('438 timer'!$BD$2:$BD$439,BC31,1)-SUM(BI$26:BI30),0) -> 7308.399209 | BH31: ='Input og resultater'!$I$12-SUMIF(BC$27:BC30,"="&BC31,BJ$27:BJ30) -> 10 | BI31: 0 | BJ31: =MAX(BI31-BF31,0) -> 0 | BK31: =SUMIF(BC$27:BC30,"<="&BC31,BJ$27:BJ30)+'438 timer'!$AS$2 -> 119.9685126 | BL31: =INDEX($BV$29:$BV$2656,BP31,1) -> 0 | BM31: =INDEX('438 timer'!$BC$2:$BC$439,BC31,) -> 19.34817602 | BN31: =MAX('438 timer'!$BD$2-SUM(BI$26:BI30)-AT31,0) -> 7327.45026 | BO31: =LARGE('438 timer'!$AD$2:$AI$439,$AU31) -> 2629.130664 | BP31: 2626 | BQ31: 235 | BR31: 6 | BS31: =SUMIFS($BJ$29:$BJ$2656,$BC$29:$BC$2656,"<"&BQ31,$AV$29:$AV$2656,"<="&BO31)-SUMIF(BQ$27:BQ30,">"&BQ31,BV$27:BV30)+SUMIFS(BV$27:BV30,BQ$27:BQ30,">"&BQ31,$BO$27:BO30,"<="&BO31) -> 469.1617579 | BT31: ='Input og resultater'!$I$12-SUMIF(BQ$27:BQ30,"="&BQ31,BX$27:BX30) -> 10 | BU31: =INDEX($BI$29:$BI$2656,BP31,1) -> 0 | BV31: 0 | BW31: =MAX(LARGE($BZ$29:$BZ$2656,1)-SUM(BX$27:BX30),0) -> 1045.845736 | BX31: =MIN(MAX(MIN(CE31,'Input og resultater'!$I$12,BW31),0),BT31) -> 0 | BZ31: =-INDEX($BF$29:$BF$2656,BP31,1)+INDEX($BK$29:$BK$2656,BP31,1) -> 589.1302705 | CA31: =INDEX($BJ$29:$BJ$2656,BP31,1) -> 0 | CB31: =SUMIF($BC$29:$BC$2656,"<"&BQ31,$BJ$29:$BJ$2656)-SUM(BX$27:BX30) -> 469.1617579 | CC31: =INDEX($BF$29:$BF$2656,BP31,1) -> 0 | CD31: =INDEX($BJ$29:$BJ$2656,BP31,1) -> 0 | CE31: 0 | CG31: =MIN(MAX(SUMIF($BC$29:$BC$2656,"<"&BQ31,$BJ$29:$BJ$2656)-SUM(BX$27:BX30),0),'Input og resultater'!$I$13) -> 188
A32: 32 | B32: 31 | D32: 7.943355974 | E32: 0 | F32: 0 | H32: 188 | I32: =MIN(D32,'Input og resultater'!$I$12,'Input og resultater'!$I$13-H32) -> 0 | J32: =MIN(E32,'Input og resultater'!$I$12,H32) -> 0 | K32: 0 | L32: 7.943355974 | N32: 1.000288 | Q32: 188 | R32: =MIN(D32,'Input og resultater'!$I$12,'Input og resultater'!$I$13-Q32) -> 0 | S32: =MIN(F32,'Input og resultater'!$I$12,Q32) -> 0 | U32: =IF(B32>$O$2,'438 timer'!$BC32,0) -> 0 | W32: =MIN($U32-SUM(V32:$V32),'438 timer'!AK32) -> 0 | X32: =MIN($U32-SUM($V32:W32),'438 timer'!AL32) -> 0 | Y32: =MIN($U32-SUM($V32:X32),'438 timer'!AM32) -> 0 | Z32: =MIN($U32-SUM($V32:Y32),'438 timer'!AN32) -> 0 | AA32: =MIN($U32-SUM($V32:Z32),'438 timer'!AO32) -> 0 | AB32: =MIN($U32-SUM($V32:AA32),'438 timer'!AP32) -> 0 | AE32: 0 | AF32: 0 | AG32: 0 | AH32: 0 | AI32: 0 | AJ32: 0 | AT32: 0 | AU32: 4 | AV32: =SMALL('438 timer'!$AD$2:$AI$439,$AU32) -> 2.6e-06 | AW32: =IFERROR(MATCH($AV32,'438 timer'!AD$2:AD$439,0),0) -> 0 | AX32: =IFERROR(MATCH($AV32,'438 timer'!AE$2:AE$439,0),0) -> 2 | AY32: =IFERROR(MATCH($AV32,'438 timer'!AF$2:AF$439,0),0) -> 0 | AZ32: =IFERROR(MATCH($AV32,'438 timer'!AG$2:AG$439,0),0) -> 0 | BA32: =IFERROR(MATCH($AV32,'438 timer'!AH$2:AH$439,0),0) -> 0 | BB32: =IFERROR(MATCH($AV32,'438 timer'!AI$2:AI$439,0),0) -> 0 | BC32: 2 | BD32: 2 | BE32: =INDEX('438 timer'!$AK$2:$AQ$439,BC32,BD32) -> 0 | BF32: =MAX(INDEX('438 timer'!$BC$2:$BC$439,BC32,)-SUMIF(BC$27:BC31,"="&BC32,BI$27:BI31),0) -> 19.34817602 | BG32: =MAX(INDEX('438 timer'!$BD$2:$BD$439,BC32,1)-SUM(BI$26:BI31),0) -> 7308.399209 | BH32: ='Input og resultater'!$I$12-SUMIF(BC$27:BC31,"="&BC32,BJ$27:BJ31) -> 10 | BI32: 0 | BJ32: 0 | BK32: =SUMIF(BC$27:BC31,"<="&BC32,BJ$27:BJ31)+'438 timer'!$AS$2 -> 119.9685126 | BL32: =INDEX($BV$29:$BV$2656,BP32,1) -> 0 | BM32: =INDEX('438 timer'!$BC$2:$BC$439,BC32,) -> 19.34817602 | BN32: =MAX('438 timer'!$BD$2-SUM(BI$26:BI31)-AT32,0) -> 7327.45026 | BO32: =LARGE('438 timer'!$AD$2:$AI$439,$AU32) -> 2625.894561 | BP32: 2625 | BQ32: 227 | BR32: 6 | BS32: =SUMIFS($BJ$29:$BJ$2656,$BC$29:$BC$2656,"<"&BQ32,$AV$29:$AV$2656,"<="&BO32)-SUMIF(BQ$27:BQ31,">"&BQ32,BV$27:BV31)+SUMIFS(BV$27:BV31,BQ$27:BQ31,">"&BQ32,$BO$27:BO31,"<="&BO32) -> 469.1617579 | BT32: ='Input og resultater'!$I$12-SUMIF(BQ$27:BQ31,"="&BQ32,BX$27:BX31) -> 10 | BU32: =INDEX($BI$29:$BI$2656,BP32,1) -> 0 | BV32: 0 | BW32: =MAX(LARGE($BZ$29:$BZ$2656,1)-SUM(BX$27:BX31),0) -> 1045.845736 | BX32: =MIN(MAX(MIN(CE32,'Input og resultater'!$I$12,BW32),0),BT32) -> 0 | BZ32: =-INDEX($BF$29:$BF$2656,BP32,1)+INDEX($BK$29:$BK$2656,BP32,1) -> 589.1302705 | CA32: =INDEX($BJ$29:$BJ$2656,BP32,1) -> 0 | CB32: =SUMIF($BC$29:$BC$2656,"<"&BQ32,$BJ$29:$BJ$2656)-SUM(BX$27:BX31) -> 469.1617579 | CC32: =INDEX($BF$29:$BF$2656,BP32,1) -> 0 | CD32: =INDEX($BJ$29:$BJ$2656,BP32,1) -> 0 | CE32: 0 | CG32: =MIN(MAX(SUMIF($BC$29:$BC$2656,"<"&BQ32,$BJ$29:$BJ$2656)-SUM(BX$27:BX31),0),'Input og resultater'!$I$13) -> 188
A33: 33 | B33: 32 | D33: 8.389042974 | E33: 0 | F33: 0 | H33: 188 | I33: =MIN(D33,'Input og resultater'!$I$12,'Input og resultater'!$I$13-H33) -> 0 | J33: =MIN(E33,'Input og resultater'!$I$12,H33) -> 0 | K33: 0 | L33: 8.389042974 | N33: 1.000297 | Q33: 188 | R33: =MIN(D33,'Input og resultater'!$I$12,'Input og resultater'!$I$13-Q33) -> 0 | S33: =MIN(F33,'Input og resultater'!$I$12,Q33) -> 0 | U33: =IF(B33>$O$2,'438 timer'!$BC33,0) -> 0 | W33: =MIN($U33-SUM(V33:$V33),'438 timer'!AK33) -> 0 | X33: =MIN($U33-SUM($V33:W33),'438 timer'!AL33) -> 0 | Y33: =MIN($U33-SUM($V33:X33),'438 timer'!AM33) -> 0 | Z33: =MIN($U33-SUM($V33:Y33),'438 timer'!AN33) -> 0 | AA33: =MIN($U33-SUM($V33:Z33),'438 timer'!AO33) -> 0 | AB33: =MIN($U33-SUM($V33:AA33),'438 timer'!AP33) -> 0 | AE33: 0 | AF33: 0 | AG33: 0 | AH33: 0 | AI33: 0 | AJ33: 0 | AT33: 0 | AU33: 5 | AV33: =SMALL('438 timer'!$AD$2:$AI$439,$AU33) -> 3.5e-06 | AW33: =IFERROR(MATCH($AV33,'438 timer'!AD$2:AD$439,0),0) -> 3 | AX33: =IFERROR(MATCH($AV33,'438 timer'!AE$2:AE$439,0),0) -> 0 | AY33: =IFERROR(MATCH($AV33,'438 timer'!AF$2:AF$439,0),0) -> 0 | AZ33: =IFERROR(MATCH($AV33,'438 timer'!AG$2:AG$439,0),0) -> 0 | BA33: =IFERROR(MATCH($AV33,'438 timer'!AH$2:AH$439,0),0) -> 0 | BB33: =IFERROR(MATCH($AV33,'438 timer'!AI$2:AI$439,0),0) -> 0 | BC33: 3 | BD33: 1 | BE33: =INDEX('438 timer'!$AK$2:$AQ$439,BC33,BD33) -> 0 | BF33: =MAX(INDEX('438 timer'!$BC$2:$BC$439,BC33,)-SUMIF(BC$27:BC32,"="&BC33,BI$27:BI32),0) -> 19.94242602 | BG33: =MAX(INDEX('438 timer'!$BD$2:$BD$439,BC33,1)-SUM(BI$26:BI32),0) -> 7289.051033 | BH33: ='Input og resultater'!$I$12-SUMIF(BC$27:BC32,"="&BC33,BJ$27:BJ32) -> 10 | BI33: 0 | BJ33: 0 | BK33: =SUMIF(BC$27:BC32,"<="&BC33,BJ$27:BJ32)+'438 timer'!$AS$2 -> 119.9685126 | BL33: =INDEX($BV$29:$BV$2656,BP33,1) -> 0 | BM33: =INDEX('438 timer'!$BC$2:$BC$439,BC33,) -> 19.94242602 | BN33: =MAX('438 timer'!$BD$2-SUM(BI$26:BI32)-AT33,0) -> 7327.45026 | BO33: =LARGE('438 timer'!$AD$2:$AI$439,$AU33) -> 2623.294702 | BP33: 2624 | BQ33: 228 | BR33: 6 | BS33: =SUMIFS($BJ$29:$BJ$2656,$BC$29:$BC$2656,"<"&BQ33,$AV$29:$AV$2656,"<="&BO33)-SUMIF(BQ$27:BQ32,">"&BQ33,BV$27:BV32)+SUMIFS(BV$27:BV32,BQ$27:BQ32,">"&BQ33,$BO$27:BO32,"<="&BO33) -> 469.1617579 | BT33: ='Input og resultater'!$I$12-SUMIF(BQ$27:BQ32,"="&BQ33,BX$27:BX32) -> 10 | BU33: =INDEX($BI$29:$BI$2656,BP33,1) -> 0 | BV33: 0 | BW33: =MAX(LARGE($BZ$29:$BZ$2656,1)-SUM(BX$27:BX32),0) -> 1045.845736 | BX33: =MIN(MAX(MIN(CE33,'Input og resultater'!$I$12,BW33),0),BT33) -> 0 | BZ33: =-INDEX($BF$29:$BF$2656,BP33,1)+INDEX($BK$29:$BK$2656,BP33,1) -> 589.1302705 | CA33: =INDEX($BJ$29:$BJ$2656,BP33,1) -> 0 | CB33: =SUMIF($BC$29:$BC$2656,"<"&BQ33,$BJ$29:$BJ$2656)-SUM(BX$27:BX32) -> 469.1617579 | CC33: =INDEX($BF$29:$BF$2656,BP33,1) -> 0 | CD33: =INDEX($BJ$29:$BJ$2656,BP33,1) -> 0 | CE33: 0 | CG33: =MIN(MAX(SUMIF($BC$29:$BC$2656,"<"&BQ33,$BJ$29:$BJ$2656)-SUM(BX$27:BX32),0),'Input og resultater'!$I$13) -> 188
A34: 34 | B34: 33 | D34: 8.760448975 | E34: 0 | F34: 0 | H34: 188 | I34: =MIN(D34,'Input og resultater'!$I$12,'Input og resultater'!$I$13-H34) -> 0 | J34: =MIN(E34,'Input og resultater'!$I$12,H34) -> 0 | K34: 0 | L34: 8.760448975 | N34: 1.000306 | Q34: 188 | R34: =MIN(D34,'Input og resultater'!$I$12,'Input og resultater'!$I$13-Q34) -> 0 | S34: =MIN(F34,'Input og resultater'!$I$12,Q34) -> 0 | U34: =IF(B34>$O$2,'438 timer'!$BC34,0) -> 0 | W34: =MIN($U34-SUM(V34:$V34),'438 timer'!AK34) -> 0 | X34: =MIN($U34-SUM($V34:W34),'438 timer'!AL34) -> 0 | Y34: =MIN($U34-SUM($V34:X34),'438 timer'!AM34) -> 0 | Z34: =MIN($U34-SUM($V34:Y34),'438 timer'!AN34) -> 0 | AA34: =MIN($U34-SUM($V34:Z34),'438 timer'!AO34) -> 0 | AB34: =MIN($U34-SUM($V34:AA34),'438 timer'!AP34) -> 0 | AE34: 0 | AF34: 0 | AG34: 0 | AH34: 0 | AI34: 0 | AJ34: 0 | AT34: 0 | AU34: 6 | AV34: =SMALL('438 timer'!$AD$2:$AI$439,$AU34) -> 3.6e-06 | AW34: =IFERROR(MATCH($AV34,'438 timer'!AD$2:AD$439,0),0) -> 0 | AX34: =IFERROR(MATCH($AV34,'438 timer'!AE$2:AE$439,0),0) -> 3 | AY34: =IFERROR(MATCH($AV34,'438 timer'!AF$2:AF$439,0),0) -> 0 | AZ34: =IFERROR(MATCH($AV34,'438 timer'!AG$2:AG$439,0),0) -> 0 | BA34: =IFERROR(MATCH($AV34,'438 timer'!AH$2:AH$439,0),0) -> 0 | BB34: =IFERROR(MATCH($AV34,'438 timer'!AI$2:AI$439,0),0) -> 0 | BC34: 3 | BD34: 2 | BE34: =INDEX('438 timer'!$AK$2:$AQ$439,BC34,BD34) -> 0 | BF34: =MAX(INDEX('438 timer'!$BC$2:$BC$439,BC34,)-SUMIF(BC$27:BC33,"="&BC34,BI$27:BI33),0) -> 19.94242602 | BG34: =MAX(INDEX('438 timer'!$BD$2:$BD$439,BC34,1)-SUM(BI$26:BI33),0) -> 7289.051033 | BH34: ='Input og resultater'!$I$12-SUMIF(BC$27:BC33,"="&BC34,BJ$27:BJ33) -> 10 | BI34: 0 | BJ34: 0 | BK34: =SUMIF(BC$27:BC33,"<="&BC34,BJ$27:BJ33)+'438 timer'!$AS$2 -> 119.9685126 | BL34: =INDEX($BV$29:$BV$2656,BP34,1) -> 0 | BM34: =INDEX('438 timer'!$BC$2:$BC$439,BC34,) -> 19.94242602 | BN34: =MAX('438 timer'!$BD$2-SUM(BI$26:BI33)-AT34,0) -> 7327.45026 | BO34: =LARGE('438 timer'!$AD$2:$AI$439,$AU34) -> 2621.873022 | BP34: 2623 | BQ34: 234 | BR34: 6 | BS34: =SUMIFS($BJ$29:$BJ$2656,$BC$29:$BC$2656,"<"&BQ34,$AV$29:$AV$2656,"<="&BO34)-SUMIF(BQ$27:BQ33,">"&BQ34,BV$27:BV33)+SUMIFS(BV$27:BV33,BQ$27:BQ33,">"&BQ34,$BO$27:BO33,"<="&BO34) -> 469.1617579 | BT34: ='Input og resultater'!$I$12-SUMIF(BQ$27:BQ33,"="&BQ34,BX$27:BX33) -> 10 | BU34: =INDEX($BI$29:$BI$2656,BP34,1) -> 0 | BV34: 0 | BW34: =MAX(LARGE($BZ$29:$BZ$2656,1)-SUM(BX$27:BX33),0) -> 1045.845736 | BX34: =MIN(MAX(MIN(CE34,'Input og resultater'!$I$12,BW34),0),BT34) -> 0 | BZ34: =-INDEX($BF$29:$BF$2656,BP34,1)+INDEX($BK$29:$BK$2656,BP34,1) -> 589.1302705 | CA34: =INDEX($BJ$29:$BJ$2656,BP34,1) -> 0 | CB34: =SUMIF($BC$29:$BC$2656,"<"&BQ34,$BJ$29:$BJ$2656)-SUM(BX$27:BX33) -> 469.1617579 | CC34: =INDEX($BF$29:$BF$2656,BP34,1) -> 0 | CD34: =INDEX($BJ$29:$BJ$2656,BP34,1) -> 0 | CE34: 0 | CG34: =MIN(MAX(SUMIF($BC$29:$BC$2656,"<"&BQ34,$BJ$29:$BJ$2656)-SUM(BX$27:BX33),0),'Input og resultater'!$I$13) -> 188
A35: 35 | B35: 34 | D35: 0 | E35: 5.942426025 | F35: 5.942426025 | H35: 188 | I35: =MIN(D35,'Input og resultater'!$I$12,'Input og resultater'!$I$13-H35) -> 0 | J35: =MIN(E35,'Input og resultater'!$I$12,H35) -> 5.942426025 | K35: 0 | L35: 0 | N35: 0 | Q35: 188 | R35: =MIN(D35,'Input og resultater'!$I$12,'Input og resultater'!$I$13-Q35) -> 0 | S35: =MIN(F35,'Input og resultater'!$I$12,Q35) -> 5.942426025 | U35: =IF(B35>$O$2,'438 timer'!$BC35,0) -> 0 | W35: =MIN($U35-SUM(V35:$V35),'438 timer'!AK35) -> 0 | X35: =MIN($U35-SUM($V35:W35),'438 timer'!AL35) -> 0 | Y35: =MIN($U35-SUM($V35:X35),'438 timer'!AM35) -> 0 | Z35: =MIN($U35-SUM($V35:Y35),'438 timer'!AN35) -> 0 | AA35: =MIN($U35-SUM($V35:Z35),'438 timer'!AO35) -> 0 | AB35: =MIN($U35-SUM($V35:AA35),'438 timer'!AP35) -> 0 | AE35: 0 | AF35: 0 | AG35: 0 | AH35: 0 | AI35: 0 | AJ35: 0 | AT35: 0 | AU35: 7 | AV35: =SMALL('438 timer'!$AD$2:$AI$439,$AU35) -> 4.5e-06 | AW35: =IFERROR(MATCH($AV35,'438 timer'!AD$2:AD$439,0),0) -> 4 | AX35: =IFERROR(MATCH($AV35,'438 timer'!AE$2:AE$439,0),0) -> 0 | AY35: =IFERROR(MATCH($AV35,'438 timer'!AF$2:AF$439,0),0) -> 0 | AZ35: =IFERROR(MATCH($AV35,'438 timer'!AG$2:AG$439,0),0) -> 0 | BA35: =IFERROR(MATCH($AV35,'438 timer'!AH$2:AH$439,0),0) -> 0 | BB35: =IFERROR(MATCH($AV35,'438 timer'!AI$2:AI$439,0),0) -> 0 | BC35: 4 | BD35: 1 | BE35: =INDEX('438 timer'!$AK$2:$AQ$439,BC35,BD35) -> 0 | BF35: =MAX(INDEX('438 timer'!$BC$2:$BC$439,BC35,)-SUMIF(BC$27:BC34,"="&BC35,BI$27:BI34),0) -> 19.94242602 | BG35: =MAX(INDEX('438 timer'!$BD$2:$BD$439,BC35,1)-SUM(BI$26:BI34),0) -> 7269.108607 | BH35: ='Input og resultater'!$I$12-SUMIF(BC$27:BC34,"="&BC35,BJ$27:BJ34) -> 10 | BI35: 0 | BJ35: 0 | BK35: =SUMIF(BC$27:BC34,"<="&BC35,BJ$27:BJ34)+'438 timer'!$AS$2 -> 119.9685126 | BL35: =INDEX($BV$29:$BV$2656,BP35,1) -> 0 | BM35: =INDEX('438 timer'!$BC$2:$BC$439,BC35,) -> 19.94242602 | BN35: =MAX('438 timer'!$BD$2-SUM(BI$26:BI34)-AT35,0) -> 7327.45026 | BO35: =LARGE('438 timer'!$AD$2:$AI$439,$AU35) -> 2553.358831 | BP35: 2622 | BQ35: 233 | BR35: 6 | BS35: =SUMIFS($BJ$29:$BJ$2656,$BC$29:$BC$2656,"<"&BQ35,$AV$29:$AV$2656,"<="&BO35)-SUMIF(BQ$27:BQ34,">"&BQ35,BV$27:BV34)+SUMIFS(BV$27:BV34,BQ$27:BQ34,">"&BQ35,$BO$27:BO34,"<="&BO35) -> 469.1617579 | BT35: ='Input og resultater'!$I$12-SUMIF(BQ$27:BQ34,"="&BQ35,BX$27:BX34) -> 10 | BU35: =INDEX($BI$29:$BI$2656,BP35,1) -> 0 | BV35: 0 | BW35: =MAX(LARGE($BZ$29:$BZ$2656,1)-SUM(BX$27:BX34),0) -> 1045.845736 | BX35: =MIN(MAX(MIN(CE35,'Input og resultater'!$I$12,BW35),0),BT35) -> 0 | BZ35: =-INDEX($BF$29:$BF$2656,BP35,1)+INDEX($BK$29:$BK$2656,BP35,1) -> 589.1302705 | CA35: =INDEX($BJ$29:$BJ$2656,BP35,1) -> 0 | CB35: =SUMIF($BC$29:$BC$2656,"<"&BQ35,$BJ$29:$BJ$2656)-SUM(BX$27:BX34) -> 469.1617579 | CC35: =INDEX($BF$29:$BF$2656,BP35,1) -> 0 | CD35: =INDEX($BJ$29:$BJ$2656,BP35,1) -> 0 | CE35: 0 | CG35: =MIN(MAX(SUMIF($BC$29:$BC$2656,"<"&BQ35,$BJ$29:$BJ$2656)-SUM(BX$27:BX34),0),'Input og resultater'!$I$13) -> 188
A36: 36 | B36: 35 | D36: 0 | E36: 6.090988025 | F36: 6.090988025 | H36: 182.057574 | I36: =MIN(D36,'Input og resultater'!$I$12,'Input og resultater'!$I$13-H36) -> 0 | J36: =MIN(E36,'Input og resultater'!$I$12,H36) -> 6.090988025 | K36: 0 | L36: 0 | N36: 0 | Q36: 182.057574 | R36: =MIN(D36,'Input og resultater'!$I$12,'Input og resultater'!$I$13-Q36) -> 0 | S36: =MIN(F36,'Input og resultater'!$I$12,Q36) -> 6.090988025 | U36: =IF(B36>$O$2,'438 timer'!$BC36,0) -> 0 | W36: =MIN($U36-SUM(V36:$V36),'438 timer'!AK36) -> 0 | X36: =MIN($U36-SUM($V36:W36),'438 timer'!AL36) -> 0 | Y36: =MIN($U36-SUM($V36:X36),'438 timer'!AM36) -> 0 | Z36: =MIN($U36-SUM($V36:Y36),'438 timer'!AN36) -> 0 | AA36: =MIN($U36-SUM($V36:Z36),'438 timer'!AO36) -> 0 | AB36: =MIN($U36-SUM($V36:AA36),'438 timer'!AP36) -> 0 | AE36: 0 | AF36: 0 | AG36: 0 | AH36: 0 | AI36: 0 | AJ36: 0 | AT36: 0 | AU36: 8 | AV36: =SMALL('438 timer'!$AD$2:$AI$439,$AU36) -> 4.6e-06 | AW36: =IFERROR(MATCH($AV36,'438 timer'!AD$2:AD$439,0),0) -> 0 | AX36: =IFERROR(MATCH($AV36,'438 timer'!AE$2:AE$439,0),0) -> 4 | AY36: =IFERROR(MATCH($AV36,'438 timer'!AF$2:AF$439,0),0) -> 0 | AZ36: =IFERROR(MATCH($AV36,'438 timer'!AG$2:AG$439,0),0) -> 0 | BA36: =IFERROR(MATCH($AV36,'438 timer'!AH$2:AH$439,0),0) -> 0 | BB36: =IFERROR(MATCH($AV36,'438 timer'!AI$2:AI$439,0),0) -> 0 | BC36: 4 | BD36: 2 | BE36: =INDEX('438 timer'!$AK$2:$AQ$439,BC36,BD36) -> 0 | BF36: =MAX(INDEX('438 timer'!$BC$2:$BC$439,BC36,)-SUMIF(BC$27:BC35,"="&BC36,BI$27:BI35),0) -> 19.94242602 | BG36: =MAX(INDEX('438 timer'!$BD$2:$BD$439,BC36,1)-SUM(BI$26:BI35),0) -> 7269.108607 | BH36: ='Input og resultater'!$I$12-SUMIF(BC$27:BC35,"="&BC36,BJ$27:BJ35) -> 10 | BI36: 0 | BJ36: 0 | BK36: =SUMIF(BC$27:BC35,"<="&BC36,BJ$27:BJ35)+'438 timer'!$AS$2 -> 119.9685126 | BL36: =INDEX($BV$29:$BV$2656,BP36,1) -> 0 | BM36: =INDEX('438 timer'!$BC$2:$BC$439,BC36,) -> 19.94242602 | BN36: =MAX('438 timer'!$BD$2-SUM(BI$26:BI35)-AT36,0) -> 7327.45026 | BO36: =LARGE('438 timer'!$AD$2:$AI$439,$AU36) -> 2543.734734 | BP36: 2621 | BQ36: 229 | BR36: 6 | BS36: =SUMIFS($BJ$29:$BJ$2656,$BC$29:$BC$2656,"<"&BQ36,$AV$29:$AV$2656,"<="&BO36)-SUMIF(BQ$27:BQ35,">"&BQ36,BV$27:BV35)+SUMIFS(BV$27:BV35,BQ$27:BQ35,">"&BQ36,$BO$27:BO35,"<="&BO36) -> 469.1617579 | BT36: ='Input og resultater'!$I$12-SUMIF(BQ$27:BQ35,"="&BQ36,BX$27:BX35) -> 10 | BU36: =INDEX($BI$29:$BI$2656,BP36,1) -> 0 | BV36: 0 | BW36: =MAX(LARGE($BZ$29:$BZ$2656,1)-SUM(BX$27:BX35),0) -> 1045.845736 | BX36: =MIN(MAX(MIN(CE36,'Input og resultater'!$I$12,BW36),0),BT36) -> 0 | BZ36: =-INDEX($BF$29:$BF$2656,BP36,1)+INDEX($BK$29:$BK$2656,BP36,1) -> 589.1302705 | CA36: =INDEX($BJ$29:$BJ$2656,BP36,1) -> 0 | CB36: =SUMIF($BC$29:$BC$2656,"<"&BQ36,$BJ$29:$BJ$2656)-SUM(BX$27:BX35) -> 469.1617579 | CC36: =INDEX($BF$29:$BF$2656,BP36,1) -> 0 | CD36: =INDEX($BJ$29:$BJ$2656,BP36,1) -> 0 | CE36: 0 | CG36: =MIN(MAX(SUMIF($BC$29:$BC$2656,"<"&BQ36,$BJ$29:$BJ$2656)-SUM(BX$27:BX35),0),'Input og resultater'!$I$13) -> 188
A37: 37 | B37: 36 | D37: 0 | E37: 5.645301024 | F37: 5.645301024 | H37: 175.966586 | I37: =MIN(D37,'Input og resultater'!$I$12,'Input og resultater'!$I$13-H37) -> 0 | J37: =MIN(E37,'Input og resultater'!$I$12,H37) -> 5.645301024 | K37: 0 | L37: 0 | N37: 0 | Q37: 175.966586 | R37: =MIN(D37,'Input og resultater'!$I$12,'Input og resultater'!$I$13-Q37) -> 0 | S37: =MIN(F37,'Input og resultater'!$I$12,Q37) -> 5.645301024 | U37: =IF(B37>$O$2,'438 timer'!$BC37,0) -> 0 | W37: =MIN($U37-SUM(V37:$V37),'438 timer'!AK37) -> 0 | X37: =MIN($U37-SUM($V37:W37),'438 timer'!AL37) -> 0 | Y37: =MIN($U37-SUM($V37:X37),'438 timer'!AM37) -> 0 | Z37: =MIN($U37-SUM($V37:Y37),'438 timer'!AN37) -> 0 | AA37: =MIN($U37-SUM($V37:Z37),'438 timer'!AO37) -> 0 | AB37: =MIN($U37-SUM($V37:AA37),'438 timer'!AP37) -> 0 | AE37: 0 | AF37: 0 | AG37: 0 | AH37: 0 | AI37: 0 | AJ37: 0 | AT37: 0 | AU37: 9 | AV37: =SMALL('438 timer'!$AD$2:$AI$439,$AU37) -> 5.5e-06 | AW37: =IFERROR(MATCH($AV37,'438 timer'!AD$2:AD$439,0),0) -> 5 | AX37: =IFERROR(MATCH($AV37,'438 timer'!AE$2:AE$439,0),0) -> 0 | AY37: =IFERROR(MATCH($AV37,'438 timer'!AF$2:AF$439,0),0) -> 0 | AZ37: =IFERROR(MATCH($AV37,'438 timer'!AG$2:AG$439,0),0) -> 0 | BA37: =IFERROR(MATCH($AV37,'438 timer'!AH$2:AH$439,0),0) -> 0 | BB37: =IFERROR(MATCH($AV37,'438 timer'!AI$2:AI$439,0),0) -> 0 | BC37: 5 | BD37: 1 | BE37: =INDEX('438 timer'!$AK$2:$AQ$439,BC37,BD37) -> 0 | BF37: =MAX(INDEX('438 timer'!$BC$2:$BC$439,BC37,)-SUMIF(BC$27:BC36,"="&BC37,BI$27:BI36),0) -> 20.31383203 | BG37: =MAX(INDEX('438 timer'!$BD$2:$BD$439,BC37,1)-SUM(BI$26:BI36),0) -> 7249.166181 | BH37: ='Input og resultater'!$I$12-SUMIF(BC$27:BC36,"="&BC37,BJ$27:BJ36) -> 10 | BI37: 0 | BJ37: 0 | BK37: =SUMIF(BC$27:BC36,"<="&BC37,BJ$27:BJ36)+'438 timer'!$AS$2 -> 119.9685126 | BL37: =INDEX($BV$29:$BV$2656,BP37,1) -> 0 | BM37: =INDEX('438 timer'!$BC$2:$BC$439,BC37,) -> 20.31383203 | BN37: =MAX('438 timer'!$BD$2-SUM(BI$26:BI36)-AT37,0) -> 7327.45026 | BO37: =LARGE('438 timer'!$AD$2:$AI$439,$AU37) -> 2543.416359 | BP37: 2620 | BQ37: 231 | BR37: 6 | BS37: =SUMIFS($BJ$29:$BJ$2656,$BC$29:$BC$2656,"<"&BQ37,$AV$29:$AV$2656,"<="&BO37)-SUMIF(BQ$27:BQ36,">"&BQ37,BV$27:BV36)+SUMIFS(BV$27:BV36,BQ$27:BQ36,">"&BQ37,$BO$27:BO36,"<="&BO37) -> 469.1617579 | BT37: ='Input og resultater'!$I$12-SUMIF(BQ$27:BQ36,"="&BQ37,BX$27:BX36) -> 10 | BU37: =INDEX($BI$29:$BI$2656,BP37,1) -> 0 | BV37: 0 | BW37: =MAX(LARGE($BZ$29:$BZ$2656,1)-SUM(BX$27:BX36),0) -> 1045.845736 | BX37: =MIN(MAX(MIN(CE37,'Input og resultater'!$I$12,BW37),0),BT37) -> 0 | BZ37: =-INDEX($BF$29:$BF$2656,BP37,1)+INDEX($BK$29:$BK$2656,BP37,1) -> 589.1302705 | CA37: =INDEX($BJ$29:$BJ$2656,BP37,1) -> 0 | CB37: =SUMIF($BC$29:$BC$2656,"<"&BQ37,$BJ$29:$BJ$2656)-SUM(BX$27:BX36) -> 469.1617579 | CC37: =INDEX($BF$29:$BF$2656,BP37,1) -> 0 | CD37: =INDEX($BJ$29:$BJ$2656,BP37,1) -> 0 | CE37: 0 | CG37: =MIN(MAX(SUMIF($BC$29:$BC$2656,"<"&BQ37,$BJ$29:$BJ$2656)-SUM(BX$27:BX36),0),'Input og resultater'!$I$13) -> 188
A38: 38 | B38: 37 | D38: 0 | E38: 4.828207023 | F38: 4.828207023 | H38: 170.3212849 | I38: =MIN(D38,'Input og resultater'!$I$12,'Input og resultater'!$I$13-H38) -> 0 | J38: =MIN(E38,'Input og resultater'!$I$12,H38) -> 4.828207023 | K38: 0 | L38: 0 | N38: 0 | Q38: 170.3212849 | R38: =MIN(D38,'Input og resultater'!$I$12,'Input og resultater'!$I$13-Q38) -> 0 | S38: =MIN(F38,'Input og resultater'!$I$12,Q38) -> 4.828207023 | U38: =IF(B38>$O$2,'438 timer'!$BC38,0) -> 0 | W38: =MIN($U38-SUM(V38:$V38),'438 timer'!AK38) -> 0 | X38: =MIN($U38-SUM($V38:W38),'438 timer'!AL38) -> 0 | Y38: =MIN($U38-SUM($V38:X38),'438 timer'!AM38) -> 0 | Z38: =MIN($U38-SUM($V38:Y38),'438 timer'!AN38) -> 0 | AA38: =MIN($U38-SUM($V38:Z38),'438 timer'!AO38) -> 0 | AB38: =MIN($U38-SUM($V38:AA38),'438 timer'!AP38) -> 0 | AE38: 0 | AF38: 0 | AG38: 0 | AH38: 0 | AI38: 0 | AJ38: 0 | AT38: 0 | AU38: 10 | AV38: =SMALL('438 timer'!$AD$2:$AI$439,$AU38) -> 5.6e-06 | AW38: =IFERROR(MATCH($AV38,'438 timer'!AD$2:AD$439,0),0) -> 0 | AX38: =IFERROR(MATCH($AV38,'438 timer'!AE$2:AE$439,0),0) -> 5 | AY38: =IFERROR(MATCH($AV38,'438 timer'!AF$2:AF$439,0),0) -> 0 | AZ38: =IFERROR(MATCH($AV38,'438 timer'!AG$2:AG$439,0),0) -> 0 | BA38: =IFERROR(MATCH($AV38,'438 timer'!AH$2:AH$439,0),0) -> 0 | BB38: =IFERROR(MATCH($AV38,'438 timer'!AI$2:AI$439,0),0) -> 0 | BC38: 5 | BD38: 2 | BE38: =INDEX('438 timer'!$AK$2:$AQ$439,BC38,BD38) -> 0 | BF38: =MAX(INDEX('438 timer'!$BC$2:$BC$439,BC38,)-SUMIF(BC$27:BC37,"="&BC38,BI$27:BI37),0) -> 20.31383203 | BG38: =MAX(INDEX('438 timer'!$BD$2:$BD$439,BC38,1)-SUM(BI$26:BI37),0) -> 7249.166181 | BH38: ='Input og resultater'!$I$12-SUMIF(BC$27:BC37,"="&BC38,BJ$27:BJ37) -> 10 | BI38: 0 | BJ38: 0 | BK38: =SUMIF(BC$27:BC37,"<="&BC38,BJ$27:BJ37)+'438 timer'!$AS$2 -> 119.9685126 | BL38: =INDEX($BV$29:$BV$2656,BP38,1) -> 0 | BM38: =INDEX('438 timer'!$BC$2:$BC$439,BC38,) -> 20.31383203 | BN38: =MAX('438 timer'!$BD$2-SUM(BI$26:BI37)-AT38,0) -> 7327.45026 | BO38: =LARGE('438 timer'!$AD$2:$AI$439,$AU38) -> 2543.342263 | BP38: 2619 | BQ38: 224 | BR38: 6 | BS38: =SUMIFS($BJ$29:$BJ$2656,$BC$29:$BC$2656,"<"&BQ38,$AV$29:$AV$2656,"<="&BO38)-SUMIF(BQ$27:BQ37,">"&BQ38,BV$27:BV37)+SUMIFS(BV$27:BV37,BQ$27:BQ37,">"&BQ38,$BO$27:BO37,"<="&BO38) -> 469.1617579 | BT38: ='Input og resultater'!$I$12-SUMIF(BQ$27:BQ37,"="&BQ38,BX$27:BX37) -> 10 | BU38: =INDEX($BI$29:$BI$2656,BP38,1) -> 0 | BV38: 0 | BW38: =MAX(LARGE($BZ$29:$BZ$2656,1)-SUM(BX$27:BX37),0) -> 1045.845736 | BX38: =MIN(MAX(MIN(CE38,'Input og resultater'!$I$12,BW38),0),BT38) -> 0 | BZ38: =-INDEX($BF$29:$BF$2656,BP38,1)+INDEX($BK$29:$BK$2656,BP38,1) -> 589.1302705 | CA38: =INDEX($BJ$29:$BJ$2656,BP38,1) -> 0 | CB38: =SUMIF($BC$29:$BC$2656,"<"&BQ38,$BJ$29:$BJ$2656)-SUM(BX$27:BX37) -> 469.1617579 | CC38: =INDEX($BF$29:$BF$2656,BP38,1) -> 0 | CD38: =INDEX($BJ$29:$BJ$2656,BP38,1) -> 0 | CE38: 0 | CG38: =MIN(MAX(SUMIF($BC$29:$BC$2656,"<"&BQ38,$BJ$29:$BJ$2656)-SUM(BX$27:BX37),0),'Input og resultater'!$I$13) -> 188
A39: 39 | B39: 38 | D39: 10 | E39: 0 | F39: 0 | H39: 165.4930779 | I39: =MIN(D39,'Input og resultater'!$I$12,'Input og resultater'!$I$13-H39) -> 10 | J39: =MIN(E39,'Input og resultater'!$I$12,H39) -> 0 | K39: 0 | L39: 0 | N39: 1.000351 | Q39: 165.4930779 | R39: =MIN(D39,'Input og resultater'!$I$12,'Input og resultater'!$I$13-Q39) -> 10 | S39: =MIN(F39,'Input og resultater'!$I$12,Q39) -> 0 | U39: =IF(B39>$O$2,'438 timer'!$BC39,0) -> 0 | W39: =MIN($U39-SUM(V39:$V39),'438 timer'!AK39) -> 0 | X39: =MIN($U39-SUM($V39:W39),'438 timer'!AL39) -> 0 | Y39: =MIN($U39-SUM($V39:X39),'438 timer'!AM39) -> 0 | Z39: =MIN($U39-SUM($V39:Y39),'438 timer'!AN39) -> 0 | AA39: =MIN($U39-SUM($V39:Z39),'438 timer'!AO39) -> 0 | AB39: =MIN($U39-SUM($V39:AA39),'438 timer'!AP39) -> 0 | AE39: 0 | AF39: 0 | AG39: 0 | AH39: 0 | AI39: 0 | AJ39: 0 | AT39: 0 | AU39: 11 | AV39: =SMALL('438 timer'!$AD$2:$AI$439,$AU39) -> 6.5e-06 | AW39: =IFERROR(MATCH($AV39,'438 timer'!AD$2:AD$439,0),0) -> 6 | AX39: =IFERROR(MATCH($AV39,'438 timer'!AE$2:AE$439,0),0) -> 0 | AY39: =IFERROR(MATCH($AV39,'438 timer'!AF$2:AF$439,0),0) -> 0 | AZ39: =IFERROR(MATCH($AV39,'438 timer'!AG$2:AG$439,0),0) -> 0 | BA39: =IFERROR(MATCH($AV39,'438 timer'!AH$2:AH$439,0),0) -> 0 | BB39: =IFERROR(MATCH($AV39,'438 timer'!AI$2:AI$439,0),0) -> 0 | BC39: 6 | BD39: 1 | BE39: =INDEX('438 timer'!$AK$2:$AQ$439,BC39,BD39) -> 0 | BF39: =MAX(INDEX('438 timer'!$BC$2:$BC$439,BC39,)-SUMIF(BC$27:BC38,"="&BC39,BI$27:BI38),0) -> 19.79386302 | BG39: =MAX(INDEX('438 timer'!$BD$2:$BD$439,BC39,1)-SUM(BI$26:BI38),0) -> 7228.852349 | BH39: ='Input og resultater'!$I$12-SUMIF(BC$27:BC38,"="&BC39,BJ$27:BJ38) -> 10 | BI39: 0 | BJ39: 0 | BK39: =SUMIF(BC$27:BC38,"<="&BC39,BJ$27:BJ38)+'438 timer'!$AS$2 -> 119.9685126 | BL39: =INDEX($BV$29:$BV$2656,BP39,1) -> 0 | BM39: =INDEX('438 timer'!$BC$2:$BC$439,BC39,) -> 19.79386302 | BN39: =MAX('438 timer'!$BD$2-SUM(BI$26:BI38)-AT39,0) -> 7327.45026 | BO39: =LARGE('438 timer'!$AD$2:$AI$439,$AU39) -> 2520.136262 | BP39: 2618 | BQ39: 230 | BR39: 6 | BS39: =SUMIFS($BJ$29:$BJ$2656,$BC$29:$BC$2656,"<"&BQ39,$AV$29:$AV$2656,"<="&BO39)-SUMIF(BQ$27:BQ38,">"&BQ39,BV$27:BV38)+SUMIFS(BV$27:BV38,BQ$27:BQ38,">"&BQ39,$BO$27:BO38,"<="&BO39) -> 469.1617579 | BT39: ='Input og resultater'!$I$12-SUMIF(BQ$27:BQ38,"="&BQ39,BX$27:BX38) -> 10 | BU39: =INDEX($BI$29:$BI$2656,BP39,1) -> 0 | BV39: 0 | BW39: =MAX(LARGE($BZ$29:$BZ$2656,1)-SUM(BX$27:BX38),0) -> 1045.845736 | BX39: =MIN(MAX(MIN(CE39,'Input og resultater'!$I$12,BW39),0),BT39) -> 0 | BZ39: =-INDEX($BF$29:$BF$2656,BP39,1)+INDEX($BK$29:$BK$2656,BP39,1) -> 589.1302705 | CA39: =INDEX($BJ$29:$BJ$2656,BP39,1) -> 0 | CB39: =SUMIF($BC$29:$BC$2656,"<"&BQ39,$BJ$29:$BJ$2656)-SUM(BX$27:BX38) -> 469.1617579 | CC39: =INDEX($BF$29:$BF$2656,BP39,1) -> 0 | CD39: =INDEX($BJ$29:$BJ$2656,BP39,1) -> 0 | CE39: 0 | CG39: =MIN(MAX(SUMIF($BC$29:$BC$2656,"<"&BQ39,$BJ$29:$BJ$2656)-SUM(BX$27:BX38),0),'Input og resultater'!$I$13) -> 188
A40: 40 | B40: 39 | D40: 9.948948976 | E40: 0 | F40: 0 | H40: 175.4930779 | I40: =MIN(D40,'Input og resultater'!$I$12,'Input og resultater'!$I$13-H40) -> 9.948948976 | J40: =MIN(E40,'Input og resultater'!$I$12,H40) -> 0 | K40: 0 | L40: 0 | N40: 1.00036 | Q40: 175.4930779 | R40: =MIN(D40,'Input og resultater'!$I$12,'Input og resultater'!$I$13-Q40) -> 9.948948976 | S40: =MIN(F40,'Input og resultater'!$I$12,Q40) -> 0 | U40: =IF(B40>$O$2,'438 timer'!$BC40,0) -> 0 | W40: =MIN($U40-SUM(V40:$V40),'438 timer'!AK40) -> 0 | X40: =MIN($U40-SUM($V40:W40),'438 timer'!AL40) -> 0 | Y40: =MIN($U40-SUM($V40:X40),'438 timer'!AM40) -> 0 | Z40: =MIN($U40-SUM($V40:Y40),'438 timer'!AN40) -> 0 | AA40: =MIN($U40-SUM($V40:Z40),'438 timer'!AO40) -> 0 | AB40: =MIN($U40-SUM($V40:AA40),'438 timer'!AP40) -> 0 | AE40: 0 | AF40: 0 | AG40: 0 | AH40: 0 | AI40: 0 | AJ40: 0 | AT40: 0 | AU40: 12 | AV40: =SMALL('438 timer'!$AD$2:$AI$439,$AU40) -> 6.6e-06 | AW40: =IFERROR(MATCH($AV40,'438 timer'!AD$2:AD$439,0),0) -> 0 | AX40: =IFERROR(MATCH($AV40,'438 timer'!AE$2:AE$439,0),0) -> 6 | AY40: =IFERROR(MATCH($AV40,'438 timer'!AF$2:AF$439,0),0) -> 0 | AZ40: =IFERROR(MATCH($AV40,'438 timer'!AG$2:AG$439,0),0) -> 0 | BA40: =IFERROR(MATCH($AV40,'438 timer'!AH$2:AH$439,0),0) -> 0 | BB40: =IFERROR(MATCH($AV40,'438 timer'!AI$2:AI$439,0),0) -> 0 | BC40: 6 | BD40: 2 | BE40: =INDEX('438 timer'!$AK$2:$AQ$439,BC40,BD40) -> 0 | BF40: =MAX(INDEX('438 timer'!$BC$2:$BC$439,BC40,)-SUMIF(BC$27:BC39,"="&BC40,BI$27:BI39),0) -> 19.79386302 | BG40: =MAX(INDEX('438 timer'!$BD$2:$BD$439,BC40,1)-SUM(BI$26:BI39),0) -> 7228.852349 | BH40: ='Input og resultater'!$I$12-SUMIF(BC$27:BC39,"="&BC40,BJ$27:BJ39) -> 10 | BI40: 0 | BJ40: 0 | BK40: =SUMIF(BC$27:BC39,"<="&BC40,BJ$27:BJ39)+'438 timer'!$AS$2 -> 119.9685126 | BL40: =INDEX($BV$29:$BV$2656,BP40,1) -> 0 | BM40: =INDEX('438 timer'!$BC$2:$BC$439,BC40,) -> 19.79386302 | BN40: =MAX('438 timer'!$BD$2-SUM(BI$26:BI39)-AT40,0) -> 7327.45026 | BO40: =LARGE('438 timer'!$AD$2:$AI$439,$AU40) -> 2504.114073 | BP40: 2617 | BQ40: 236 | BR40: 6 | BS40: =SUMIFS($BJ$29:$BJ$2656,$BC$29:$BC$2656,"<"&BQ40,$AV$29:$AV$2656,"<="&BO40)-SUMIF(BQ$27:BQ39,">"&BQ40,BV$27:BV39)+SUMIFS(BV$27:BV39,BQ$27:BQ39,">"&BQ40,$BO$27:BO39,"<="&BO40) -> 469.1617579 | BT40: ='Input og resultater'!$I$12-SUMIF(BQ$27:BQ39,"="&BQ40,BX$27:BX39) -> 10 | BU40: =INDEX($BI$29:$BI$2656,BP40,1) -> 0 | BV40: 0 | BW40: =MAX(LARGE($BZ$29:$BZ$2656,1)-SUM(BX$27:BX39),0) -> 1045.845736 | BX40: =MIN(MAX(MIN(CE40,'Input og resultater'!$I$12,BW40),0),BT40) -> 0 | BZ40: =-INDEX($BF$29:$BF$2656,BP40,1)+INDEX($BK$29:$BK$2656,BP40,1) -> 589.1302705 | CA40: =INDEX($BJ$29:$BJ$2656,BP40,1) -> 0 | CB40: =SUMIF($BC$29:$BC$2656,"<"&BQ40,$BJ$29:$BJ$2656)-SUM(BX$27:BX39) -> 469.1617579 | CC40: =INDEX($BF$29:$BF$2656,BP40,1) -> 0 | CD40: =INDEX($BJ$29:$BJ$2656,BP40,1) -> 0 | CE40: 0 | CG40: =MIN(MAX(SUMIF($BC$29:$BC$2656,"<"&BQ40,$BJ$29:$BJ$2656)-SUM(BX$27:BX39),0),'Input og resultater'!$I$13) -> 188
A41: 41 | B41: 40 | D41: 0 | E41: 5.571020024 | F41: 5.571020024 | H41: 185.4420269 | I41: =MIN(D41,'Input og resultater'!$I$12,'Input og resultater'!$I$13-H41) -> 0 | J41: =MIN(E41,'Input og resultater'!$I$12,H41) -> 5.571020024 | K41: 0 | L41: 0 | N41: 0 | Q41: 185.4420269 | R41: =MIN(D41,'Input og resultater'!$I$12,'Input og resultater'!$I$13-Q41) -> 0 | S41: =MIN(F41,'Input og resultater'!$I$12,Q41) -> 5.571020024 | U41: =IF(B41>$O$2,'438 timer'!$BC41,0) -> 0 | W41: =MIN($U41-SUM(V41:$V41),'438 timer'!AK41) -> 0 | X41: =MIN($U41-SUM($V41:W41),'438 timer'!AL41) -> 0 | Y41: =MIN($U41-SUM($V41:X41),'438 timer'!AM41) -> 0 | Z41: =MIN($U41-SUM($V41:Y41),'438 timer'!AN41) -> 0 | AA41: =MIN($U41-SUM($V41:Z41),'438 timer'!AO41) -> 0 | AB41: =MIN($U41-SUM($V41:AA41),'438 timer'!AP41) -> 0 | AE41: 0 | AF41: 0 | AG41: 0 | AH41: 0 | AI41: 0 | AJ41: 0 | AT41: 0 | AU41: 13 | AV41: =SMALL('438 timer'!$AD$2:$AI$439,$AU41) -> 7.5e-06 | AW41: =IFERROR(MATCH($AV41,'438 timer'!AD$2:AD$439,0),0) -> 7 | AX41: =IFERROR(MATCH($AV41,'438 timer'!AE$2:AE$439,0),0) -> 0 | AY41: =IFERROR(MATCH($AV41,'438 timer'!AF$2:AF$439,0),0) -> 0 | AZ41: =IFERROR(MATCH($AV41,'438 timer'!AG$2:AG$439,0),0) -> 0 | BA41: =IFERROR(MATCH($AV41,'438 timer'!AH$2:AH$439,0),0) -> 0 | BB41: =IFERROR(MATCH($AV41,'438 timer'!AI$2:AI$439,0),0) -> 0 | BC41: 7 | BD41: 1 | BE41: =INDEX('438 timer'!$AK$2:$AQ$439,BC41,BD41) -> 0 | BF41: =MAX(INDEX('438 timer'!$BC$2:$BC$439,BC41,)-SUMIF(BC$27:BC40,"="&BC41,BI$27:BI40),0) -> 20.31383203 | BG41: =MAX(INDEX('438 timer'!$BD$2:$BD$439,BC41,1)-SUM(BI$26:BI40),0) -> 7209.058486 | BH41: ='Input og resultater'!$I$12-SUMIF(BC$27:BC40,"="&BC41,BJ$27:BJ40) -> 10 | BI41: 0 | BJ41: 0 | BK41: =SUMIF(BC$27:BC40,"<="&BC41,BJ$27:BJ40)+'438 timer'!$AS$2 -> 119.9685126 | BL41: =INDEX($BV$29:$BV$2656,BP41,1) -> 0 | BM41: =INDEX('438 timer'!$BC$2:$BC$439,BC41,) -> 20.31383203 | BN41: =MAX('438 timer'!$BD$2-SUM(BI$26:BI40)-AT41,0) -> 7327.45026 | BO41: =LARGE('438 timer'!$AD$2:$AI$439,$AU41) -> 2475.072108 | BP41: 2616 | BQ41: 232 | BR41: 6 | BS41: =SUMIFS($BJ$29:$BJ$2656,$BC$29:$BC$2656,"<"&BQ41,$AV$29:$AV$2656,"<="&BO41)-SUMIF(BQ$27:BQ40,">"&BQ41,BV$27:BV40)+SUMIFS(BV$27:BV40,BQ$27:BQ40,">"&BQ41,$BO$27:BO40,"<="&BO41) -> 469.1617579 | BT41: ='Input og resultater'!$I$12-SUMIF(BQ$27:BQ40,"="&BQ41,BX$27:BX40) -> 10 | BU41: =INDEX($BI$29:$BI$2656,BP41,1) -> 0 | BV41: 0 | BW41: =MAX(LARGE($BZ$29:$BZ$2656,1)-SUM(BX$27:BX40),0) -> 1045.845736 | BX41: =MIN(MAX(MIN(CE41,'Input og resultater'!$I$12,BW41),0),BT41) -> 0 | BZ41: =-INDEX($BF$29:$BF$2656,BP41,1)+INDEX($BK$29:$BK$2656,BP41,1) -> 589.1302705 | CA41: =INDEX($BJ$29:$BJ$2656,BP41,1) -> 0 | CB41: =SUMIF($BC$29:$BC$2656,"<"&BQ41,$BJ$29:$BJ$2656)-SUM(BX$27:BX40) -> 469.1617579 | CC41: =INDEX($BF$29:$BF$2656,BP41,1) -> 0 | CD41: =INDEX($BJ$29:$BJ$2656,BP41,1) -> 0 | CE41: 0 | CG41: =MIN(MAX(SUMIF($BC$29:$BC$2656,"<"&BQ41,$BJ$29:$BJ$2656)-SUM(BX$27:BX40),0),'Input og resultater'!$I$13) -> 188
A42: 42 | B42: 41 | D42: 0 | E42: 6.090988025 | F42: 6.090988025 | H42: 179.8710069 | I42: =MIN(D42,'Input og resultater'!$I$12,'Input og resultater'!$I$13-H42) -> 0 | J42: =MIN(E42,'Input og resultater'!$I$12,H42) -> 6.090988025 | K42: 0 | L42: 0 | N42: 0 | Q42: 179.8710069 | R42: =MIN(D42,'Input og resultater'!$I$12,'Input og resultater'!$I$13-Q42) -> 0 | S42: =MIN(F42,'Input og resultater'!$I$12,Q42) -> 6.090988025 | U42: =IF(B42>$O$2,'438 timer'!$BC42,0) -> 0 | W42: =MIN($U42-SUM(V42:$V42),'438 timer'!AK42) -> 0 | X42: =MIN($U42-SUM($V42:W42),'438 timer'!AL42) -> 0 | Y42: =MIN($U42-SUM($V42:X42),'438 timer'!AM42) -> 0 | Z42: =MIN($U42-SUM($V42:Y42),'438 timer'!AN42) -> 0 | AA42: =MIN($U42-SUM($V42:Z42),'438 timer'!AO42) -> 0 | AB42: =MIN($U42-SUM($V42:AA42),'438 timer'!AP42) -> 0 | AE42: 0 | AF42: 0 | AG42: 0 | AH42: 0 | AI42: 0 | AJ42: 0 | AT42: 0 | AU42: 14 | AV42: =SMALL('438 timer'!$AD$2:$AI$439,$AU42) -> 7.6e-06 | AW42: =IFERROR(MATCH($AV42,'438 timer'!AD$2:AD$439,0),0) -> 0 | AX42: =IFERROR(MATCH($AV42,'438 timer'!AE$2:AE$439,0),0) -> 7 | AY42: =IFERROR(MATCH($AV42,'438 timer'!AF$2:AF$439,0),0) -> 0 | AZ42: =IFERROR(MATCH($AV42,'438 timer'!AG$2:AG$439,0),0) -> 0 | BA42: =IFERROR(MATCH($AV42,'438 timer'!AH$2:AH$439,0),0) -> 0 | BB42: =IFERROR(MATCH($AV42,'438 timer'!AI$2:AI$439,0),0) -> 0 | BC42: 7 | BD42: 2 | BE42: =INDEX('438 timer'!$AK$2:$AQ$439,BC42,BD42) -> 0 | BF42: =MAX(INDEX('438 timer'!$BC$2:$BC$439,BC42,)-SUMIF(BC$27:BC41,"="&BC42,BI$27:BI41),0) -> 20.31383203 | BG42: =MAX(INDEX('438 timer'!$BD$2:$BD$439,BC42,1)-SUM(BI$26:BI41),0) -> 7209.058486 | BH42: ='Input og resultater'!$I$12-SUMIF(BC$27:BC41,"="&BC42,BJ$27:BJ41) -> 10 | BI42: 0 | BJ42: 0 | BK42: =SUMIF(BC$27:BC41,"<="&BC42,BJ$27:BJ41)+'438 timer'!$AS$2 -> 119.9685126 | BL42: =INDEX($BV$29:$BV$2656,BP42,1) -> 0 | BM42: =INDEX('438 timer'!$BC$2:$BC$439,BC42,) -> 20.31383203 | BN42: =MAX('438 timer'!$BD$2-SUM(BI$26:BI41)-AT42,0) -> 7327.45026 | BO42: =LARGE('438 timer'!$AD$2:$AI$439,$AU42) -> 2444.757084 | BP42: 2615 | BQ42: 417 | BR42: 6 | BS42: =SUMIFS($BJ$29:$BJ$2656,$BC$29:$BC$2656,"<"&BQ42,$AV$29:$AV$2656,"<="&BO42)-SUMIF(BQ$27:BQ41,">"&BQ42,BV$27:BV41)+SUMIFS(BV$27:BV41,BQ$27:BQ41,">"&BQ42,$BO$27:BO41,"<="&BO42) -> 925.8772234 | BT42: ='Input og resultater'!$I$12-SUMIF(BQ$27:BQ41,"="&BQ42,BX$27:BX41) -> 10 | BU42: =INDEX($BI$29:$BI$2656,BP42,1) -> 0 | BV42: 0 | BW42: =MAX(LARGE($BZ$29:$BZ$2656,1)-SUM(BX$27:BX41),0) -> 1045.845736 | BX42: =MIN(MAX(MIN(CE42,'Input og resultater'!$I$12,BW42),0),BT42) -> 0 | BZ42: =-INDEX($BF$29:$BF$2656,BP42,1)+INDEX($BK$29:$BK$2656,BP42,1) -> 1045.845736 | CA42: =INDEX($BJ$29:$BJ$2656,BP42,1) -> 0 | CB42: =SUMIF($BC$29:$BC$2656,"<"&BQ42,$BJ$29:$BJ$2656)-SUM(BX$27:BX41) -> 925.8772234 | CC42: =INDEX($BF$29:$BF$2656,BP42,1) -> 0 | CD42: =INDEX($BJ$29:$BJ$2656,BP42,1) -> 0 | CE42: 0 | CG42: =MIN(MAX(SUMIF($BC$29:$BC$2656,"<"&BQ42,$BJ$29:$BJ$2656)-SUM(BX$27:BX41),0),'Input og resultater'!$I$13) -> 188
A43: 43 | B43: 42 | D43: 0 | E43: 6.908082026 | F43: 6.908082026 | H43: 173.7800188 | I43: =MIN(D43,'Input og resultater'!$I$12,'Input og resultater'!$I$13-H43) -> 0 | J43: =MIN(E43,'Input og resultater'!$I$12,H43) -> 6.908082026 | K43: 0 | L43: 0 | N43: 0 | Q43: 173.7800188 | R43: =MIN(D43,'Input og resultater'!$I$12,'Input og resultater'!$I$13-Q43) -> 0 | S43: =MIN(F43,'Input og resultater'!$I$12,Q43) -> 6.908082026 | U43: =IF(B43>$O$2,'438 timer'!$BC43,0) -> 0 | W43: =MIN($U43-SUM(V43:$V43),'438 timer'!AK43) -> 0 | X43: =MIN($U43-SUM($V43:W43),'438 timer'!AL43) -> 0 | Y43: =MIN($U43-SUM($V43:X43),'438 timer'!AM43) -> 0 | Z43: =MIN($U43-SUM($V43:Y43),'438 timer'!AN43) -> 0 | AA43: =MIN($U43-SUM($V43:Z43),'438 timer'!AO43) -> 0 | AB43: =MIN($U43-SUM($V43:AA43),'438 timer'!AP43) -> 0 | AE43: 0 | AF43: 0 | AG43: 0 | AH43: 0 | AI43: 0 | AJ43: 0 | AT43: 0 | AU43: 15 | AV43: =SMALL('438 timer'!$AD$2:$AI$439,$AU43) -> 8.5e-06 | AW43: =IFERROR(MATCH($AV43,'438 timer'!AD$2:AD$439,0),0) -> 8 | AX43: =IFERROR(MATCH($AV43,'438 timer'!AE$2:AE$439,0),0) -> 0 | AY43: =IFERROR(MATCH($AV43,'438 timer'!AF$2:AF$439,0),0) -> 0 | AZ43: =IFERROR(MATCH($AV43,'438 timer'!AG$2:AG$439,0),0) -> 0 | BA43: =IFERROR(MATCH($AV43,'438 timer'!AH$2:AH$439,0),0) -> 0 | BB43: =IFERROR(MATCH($AV43,'438 timer'!AI$2:AI$439,0),0) -> 0 | BC43: 8 | BD43: 1 | BE43: =INDEX('438 timer'!$AK$2:$AQ$439,BC43,BD43) -> 0 | BF43: =MAX(INDEX('438 timer'!$BC$2:$BC$439,BC43,)-SUMIF(BC$27:BC42,"="&BC43,BI$27:BI42),0) -> 20.31383203 | BG43: =MAX(INDEX('438 timer'!$BD$2:$BD$439,BC43,1)-SUM(BI$26:BI42),0) -> 7188.744654 | BH43: ='Input og resultater'!$I$12-SUMIF(BC$27:BC42,"="&BC43,BJ$27:BJ42) -> 10 | BI43: 0 | BJ43: 0 | BK43: =SUMIF(BC$27:BC42,"<="&BC43,BJ$27:BJ42)+'438 timer'!$AS$2 -> 119.9685126 | BL43: =INDEX($BV$29:$BV$2656,BP43,1) -> 0 | BM43: =INDEX('438 timer'!$BC$2:$BC$439,BC43,) -> 20.31383203 | BN43: =MAX('438 timer'!$BD$2-SUM(BI$26:BI42)-AT43,0) -> 7327.45026 | BO43: =LARGE('438 timer'!$AD$2:$AI$439,$AU43) -> 2304.099758 | BP43: 2614 | BQ43: 138 | BR43: 6 | BS43: =SUMIFS($BJ$29:$BJ$2656,$BC$29:$BC$2656,"<"&BQ43,$AV$29:$AV$2656,"<="&BO43)-SUMIF(BQ$27:BQ42,">"&BQ43,BV$27:BV42)+SUMIFS(BV$27:BV42,BQ$27:BQ42,">"&BQ43,$BO$27:BO42,"<="&BO43) -> 431.5831034 | BT43: ='Input og resultater'!$I$12-SUMIF(BQ$27:BQ42,"="&BQ43,BX$27:BX42) -> 10 | BU43: =INDEX($BI$29:$BI$2656,BP43,1) -> 0 | BV43: 0 | BW43: =MAX(LARGE($BZ$29:$BZ$2656,1)-SUM(BX$27:BX42),0) -> 1045.845736 | BX43: =MIN(MAX(MIN(CE43,'Input og resultater'!$I$12,BW43),0),BT43) -> 0 | BZ43: =-INDEX($BF$29:$BF$2656,BP43,1)+INDEX($BK$29:$BK$2656,BP43,1) -> 551.5516159 | CA43: =INDEX($BJ$29:$BJ$2656,BP43,1) -> 0 | CB43: =SUMIF($BC$29:$BC$2656,"<"&BQ43,$BJ$29:$BJ$2656)-SUM(BX$27:BX42) -> 431.5831034 | CC43: =INDEX($BF$29:$BF$2656,BP43,1) -> 0 | CD43: =INDEX($BJ$29:$BJ$2656,BP43,1) -> 0 | CE43: 0 | CG43: =MIN(MAX(SUMIF($BC$29:$BC$2656,"<"&BQ43,$BJ$29:$BJ$2656)-SUM(BX$27:BX42),0),'Input og resultater'!$I$13) -> 188
A44: 44 | B44: 43 | D44: 0 | E44: 6.759520026 | F44: 6.759520026 | H44: 166.8719368 | I44: =MIN(D44,'Input og resultater'!$I$12,'Input og resultater'!$I$13-H44) -> 0 | J44: =MIN(E44,'Input og resultater'!$I$12,H44) -> 6.759520026 | K44: 0 | L44: 0 | N44: 0 | Q44: 166.8719368 | R44: =MIN(D44,'Input og resultater'!$I$12,'Input og resultater'!$I$13-Q44) -> 0 | S44: =MIN(F44,'Input og resultater'!$I$12,Q44) -> 6.759520026 | U44: =IF(B44>$O$2,'438 timer'!$BC44,0) -> 0 | W44: =MIN($U44-SUM(V44:$V44),'438 timer'!AK44) -> 0 | X44: =MIN($U44-SUM($V44:W44),'438 timer'!AL44) -> 0 | Y44: =MIN($U44-SUM($V44:X44),'438 timer'!AM44) -> 0 | Z44: =MIN($U44-SUM($V44:Y44),'438 timer'!AN44) -> 0 | AA44: =MIN($U44-SUM($V44:Z44),'438 timer'!AO44) -> 0 | AB44: =MIN($U44-SUM($V44:AA44),'438 timer'!AP44) -> 0 | AE44: 0 | AF44: 0 | AG44: 0 | AH44: 0 | AI44: 0 | AJ44: 0 | AT44: 0 | AU44: 16 | AV44: =SMALL('438 timer'!$AD$2:$AI$439,$AU44) -> 8.6e-06 | AW44: =IFERROR(MATCH($AV44,'438 timer'!AD$2:AD$439,0),0) -> 0 | AX44: =IFERROR(MATCH($AV44,'438 timer'!AE$2:AE$439,0),0) -> 8 | AY44: =IFERROR(MATCH($AV44,'438 timer'!AF$2:AF$439,0),0) -> 0 | AZ44: =IFERROR(MATCH($AV44,'438 timer'!AG$2:AG$439,0),0) -> 0 | BA44: =IFERROR(MATCH($AV44,'438 timer'!AH$2:AH$439,0),0) -> 0 | BB44: =IFERROR(MATCH($AV44,'438 timer'!AI$2:AI$439,0),0) -> 0 | BC44: 8 | BD44: 2 | BE44: =INDEX('438 timer'!$AK$2:$AQ$439,BC44,BD44) -> 0 | BF44: =MAX(INDEX('438 timer'!$BC$2:$BC$439,BC44,)-SUMIF(BC$27:BC43,"="&BC44,BI$27:BI43),0) -> 20.31383203 | BG44: =MAX(INDEX('438 timer'!$BD$2:$BD$439,BC44,1)-SUM(BI$26:BI43),0) -> 7188.744654 | BH44: ='Input og resultater'!$I$12-SUMIF(BC$27:BC43,"="&BC44,BJ$27:BJ43) -> 10 | BI44: 0 | BJ44: 0 | BK44: =SUMIF(BC$27:BC43,"<="&BC44,BJ$27:BJ43)+'438 timer'!$AS$2 -> 119.9685126 | BL44: =INDEX($BV$29:$BV$2656,BP44,1) -> 0 | BM44: =INDEX('438 timer'!$BC$2:$BC$439,BC44,) -> 20.31383203 | BN44: =MAX('438 timer'!$BD$2-SUM(BI$26:BI43)-AT44,0) -> 7327.45026 | BO44: =LARGE('438 timer'!$AD$2:$AI$439,$AU44) -> 2298.815588 | BP44: 2613 | BQ44: 139 | BR44: 6 | BS44: =SUMIFS($BJ$29:$BJ$2656,$BC$29:$BC$2656,"<"&BQ44,$AV$29:$AV$2656,"<="&BO44)-SUMIF(BQ$27:BQ43,">"&BQ44,BV$27:BV43)+SUMIFS(BV$27:BV43,BQ$27:BQ43,">"&BQ44,$BO$27:BO43,"<="&BO44) -> 431.5831034 | BT44: ='Input og resultater'!$I$12-SUMIF(BQ$27:BQ43,"="&BQ44,BX$27:BX43) -> 10 | BU44: =INDEX($BI$29:$BI$2656,BP44,1) -> 0 | BV44: 0 | BW44: =MAX(LARGE($BZ$29:$BZ$2656,1)-SUM(BX$27:BX43),0) -> 1045.845736 | BX44: =MIN(MAX(MIN(CE44,'Input og resultater'!$I$12,BW44),0),BT44) -> 0 | BZ44: =-INDEX($BF$29:$BF$2656,BP44,1)+INDEX($BK$29:$BK$2656,BP44,1) -> 551.5516159 | CA44: =INDEX($BJ$29:$BJ$2656,BP44,1) -> 0 | CB44: =SUMIF($BC$29:$BC$2656,"<"&BQ44,$BJ$29:$BJ$2656)-SUM(BX$27:BX43) -> 431.5831034 | CC44: =INDEX($BF$29:$BF$2656,BP44,1) -> 0 | CD44: =INDEX($BJ$29:$BJ$2656,BP44,1) -> 0 | CE44: 0 | CG44: =MIN(MAX(SUMIF($BC$29:$BC$2656,"<"&BQ44,$BJ$29:$BJ$2656)-SUM(BX$27:BX43),0),'Input og resultater'!$I$13) -> 188
A45: 45 | B45: 44 | D45: 0 | E45: 7.130926026 | F45: 7.130926026 | H45: 160.1124168 | I45: =MIN(D45,'Input og resultater'!$I$12,'Input og resultater'!$I$13-H45) -> 0 | J45: =MIN(E45,'Input og resultater'!$I$12,H45) -> 7.130926026 | K45: 0 | L45: 0 | N45: 0 | Q45: 160.1124168 | R45: =MIN(D45,'Input og resultater'!$I$12,'Input og resultater'!$I$13-Q45) -> 0 | S45: =MIN(F45,'Input og resultater'!$I$12,Q45) -> 7.130926026 | U45: =IF(B45>$O$2,'438 timer'!$BC45,0) -> 0 | W45: =MIN($U45-SUM(V45:$V45),'438 timer'!AK45) -> 0 | X45: =MIN($U45-SUM($V45:W45),'438 timer'!AL45) -> 0 | Y45: =MIN($U45-SUM($V45:X45),'438 timer'!AM45) -> 0 | Z45: =MIN($U45-SUM($V45:Y45),'438 timer'!AN45) -> 0 | AA45: =MIN($U45-SUM($V45:Z45),'438 timer'!AO45) -> 0 | AB45: =MIN($U45-SUM($V45:AA45),'438 timer'!AP45) -> 0 | AE45: 0 | AF45: 0 | AG45: 0 | AH45: 0 | AI45: 0 | AJ45: 0 | AT45: 0 | AU45: 17 | AV45: =SMALL('438 timer'!$AD$2:$AI$439,$AU45) -> 9.5e-06 | AW45: =IFERROR(MATCH($AV45,'438 timer'!AD$2:AD$439,0),0) -> 9 | AX45: =IFERROR(MATCH($AV45,'438 timer'!AE$2:AE$439,0),0) -> 0 | AY45: =IFERROR(MATCH($AV45,'438 timer'!AF$2:AF$439,0),0) -> 0 | AZ45: =IFERROR(MATCH($AV45,'438 timer'!AG$2:AG$439,0),0) -> 0 | BA45: =IFERROR(MATCH($AV45,'438 timer'!AH$2:AH$439,0),0) -> 0 | BB45: =IFERROR(MATCH($AV45,'438 timer'!AI$2:AI$439,0),0) -> 0 | BC45: 9 | BD45: 1 | BE45: =INDEX('438 timer'!$AK$2:$AQ$439,BC45,BD45) -> 0 | BF45: =MAX(INDEX('438 timer'!$BC$2:$BC$439,BC45,)-SUMIF(BC$27:BC44,"="&BC45,BI$27:BI44),0) -> 21.35376903 | BG45: =MAX(INDEX('438 timer'!$BD$2:$BD$439,BC45,1)-SUM(BI$26:BI44),0) -> 7168.430822 | BH45: ='Input og resultater'!$I$12-SUMIF(BC$27:BC44,"="&BC45,BJ$27:BJ44) -> 10 | BI45: 0 | BJ45: 0 | BK45: =SUMIF(BC$27:BC44,"<="&BC45,BJ$27:BJ44)+'438 timer'!$AS$2 -> 119.9685126 | BL45: =INDEX($BV$29:$BV$2656,BP45,1) -> 0 | BM45: =INDEX('438 timer'!$BC$2:$BC$439,BC45,) -> 21.35376903 | BN45: =MAX('438 timer'!$BD$2-SUM(BI$26:BI44)-AT45,0) -> 7327.45026 | BO45: =LARGE('438 timer'!$AD$2:$AI$439,$AU45) -> 2285.340139 | BP45: 2612 | BQ45: 416 | BR45: 6 | BS45: =SUMIFS($BJ$29:$BJ$2656,$BC$29:$BC$2656,"<"&BQ45,$AV$29:$AV$2656,"<="&BO45)-SUMIF(BQ$27:BQ44,">"&BQ45,BV$27:BV44)+SUMIFS(BV$27:BV44,BQ$27:BQ44,">"&BQ45,$BO$27:BO44,"<="&BO45) -> 925.8772234 | BT45: ='Input og resultater'!$I$12-SUMIF(BQ$27:BQ44,"="&BQ45,BX$27:BX44) -> 10 | BU45: =INDEX($BI$29:$BI$2656,BP45,1) -> 0 | BV45: 0 | BW45: =MAX(LARGE($BZ$29:$BZ$2656,1)-SUM(BX$27:BX44),0) -> 1045.845736 | BX45: =MIN(MAX(MIN(CE45,'Input og resultater'!$I$12,BW45),0),BT45) -> 0 | BZ45: =-INDEX($BF$29:$BF$2656,BP45,1)+INDEX($BK$29:$BK$2656,BP45,1) -> 1045.845736 | CA45: =INDEX($BJ$29:$BJ$2656,BP45,1) -> 0 | CB45: =SUMIF($BC$29:$BC$2656,"<"&BQ45,$BJ$29:$BJ$2656)-SUM(BX$27:BX44) -> 925.8772234 | CC45: =INDEX($BF$29:$BF$2656,BP45,1) -> 0 | CD45: =INDEX($BJ$29:$BJ$2656,BP45,1) -> 0 | CE45: 0 | CG45: =MIN(MAX(SUMIF($BC$29:$BC$2656,"<"&BQ45,$BJ$29:$BJ$2656)-SUM(BX$27:BX44),0),'Input og resultater'!$I$13) -> 188
A46: 46 | B46: 45 | D46: 7.720511974 | E46: 0 | F46: 0 | H46: 152.9814908 | I46: =MIN(D46,'Input og resultater'!$I$12,'Input og resultater'!$I$13-H46) -> 7.720511974 | J46: =MIN(E46,'Input og resultater'!$I$12,H46) -> 0 | K46: 0 | L46: 0 | N46: 1.000414 | Q46: 152.9814908 | R46: =MIN(D46,'Input og resultater'!$I$12,'Input og resultater'!$I$13-Q46) -> 7.720511974 | S46: =MIN(F46,'Input og resultater'!$I$12,Q46) -> 0 | U46: =IF(B46>$O$2,'438 timer'!$BC46,0) -> 0 | W46: =MIN($U46-SUM(V46:$V46),'438 timer'!AK46) -> 0 | X46: =MIN($U46-SUM($V46:W46),'438 timer'!AL46) -> 0 | Y46: =MIN($U46-SUM($V46:X46),'438 timer'!AM46) -> 0 | Z46: =MIN($U46-SUM($V46:Y46),'438 timer'!AN46) -> 0 | AA46: =MIN($U46-SUM($V46:Z46),'438 timer'!AO46) -> 0 | AB46: =MIN($U46-SUM($V46:AA46),'438 timer'!AP46) -> 0 | AE46: 0 | AF46: 0 | AG46: 0 | AH46: 0 | AI46: 0 | AJ46: 0 | AT46: 0 | AU46: 18 | AV46: =SMALL('438 timer'!$AD$2:$AI$439,$AU46) -> 9.6e-06 | AW46: =IFERROR(MATCH($AV46,'438 timer'!AD$2:AD$439,0),0) -> 0 | AX46: =IFERROR(MATCH($AV46,'438 timer'!AE$2:AE$439,0),0) -> 9 | AY46: =IFERROR(MATCH($AV46,'438 timer'!AF$2:AF$439,0),0) -> 0 | AZ46: =IFERROR(MATCH($AV46,'438 timer'!AG$2:AG$439,0),0) -> 0 | BA46: =IFERROR(MATCH($AV46,'438 timer'!AH$2:AH$439,0),0) -> 0 | BB46: =IFERROR(MATCH($AV46,'438 timer'!AI$2:AI$439,0),0) -> 0 | BC46: 9 | BD46: 2 | BE46: =INDEX('438 timer'!$AK$2:$AQ$439,BC46,BD46) -> 0 | BF46: =MAX(INDEX('438 timer'!$BC$2:$BC$439,BC46,)-SUMIF(BC$27:BC45,"="&BC46,BI$27:BI45),0) -> 21.35376903 | BG46: =MAX(INDEX('438 timer'!$BD$2:$BD$439,BC46,1)-SUM(BI$26:BI45),0) -> 7168.430822 | BH46: ='Input og resultater'!$I$12-SUMIF(BC$27:BC45,"="&BC46,BJ$27:BJ45) -> 10 | BI46: 0 | BJ46: 0 | BK46: =SUMIF(BC$27:BC45,"<="&BC46,BJ$27:BJ45)+'438 timer'!$AS$2 -> 119.9685126 | BL46: =INDEX($BV$29:$BV$2656,BP46,1) -> 0 | BM46: =INDEX('438 timer'!$BC$2:$BC$439,BC46,) -> 21.35376903 | BN46: =MAX('438 timer'!$BD$2-SUM(BI$26:BI45)-AT46,0) -> 7327.45026 | BO46: =LARGE('438 timer'!$AD$2:$AI$439,$AU46) -> 2217.600338 | BP46: 2611 | BQ46: 237 | BR46: 6 | BS46: =SUMIFS($BJ$29:$BJ$2656,$BC$29:$BC$2656,"<"&BQ46,$AV$29:$AV$2656,"<="&BO46)-SUMIF(BQ$27:BQ45,">"&BQ46,BV$27:BV45)+SUMIFS(BV$27:BV45,BQ$27:BQ45,">"&BQ46,$BO$27:BO45,"<="&BO46) -> 469.1617579 | BT46: ='Input og resultater'!$I$12-SUMIF(BQ$27:BQ45,"="&BQ46,BX$27:BX45) -> 10 | BU46: =INDEX($BI$29:$BI$2656,BP46,1) -> 0 | BV46: 0 | BW46: =MAX(LARGE($BZ$29:$BZ$2656,1)-SUM(BX$27:BX45),0) -> 1045.845736 | BX46: =MIN(MAX(MIN(CE46,'Input og resultater'!$I$12,BW46),0),BT46) -> 0 | BZ46: =-INDEX($BF$29:$BF$2656,BP46,1)+INDEX($BK$29:$BK$2656,BP46,1) -> 589.1302705 | CA46: =INDEX($BJ$29:$BJ$2656,BP46,1) -> 0 | CB46: =SUMIF($BC$29:$BC$2656,"<"&BQ46,$BJ$29:$BJ$2656)-SUM(BX$27:BX45) -> 469.1617579 | CC46: =INDEX($BF$29:$BF$2656,BP46,1) -> 0 | CD46: =INDEX($BJ$29:$BJ$2656,BP46,1) -> 0 | CE46: 0 | CG46: =MIN(MAX(SUMIF($BC$29:$BC$2656,"<"&BQ46,$BJ$29:$BJ$2656)-SUM(BX$27:BX45),0),'Input og resultater'!$I$13) -> 188
A47: 47 | B47: 46 | D47: 8.091917974 | E47: 0 | F47: 0 | H47: 160.7020027 | I47: =MIN(D47,'Input og resultater'!$I$12,'Input og resultater'!$I$13-H47) -> 8.091917974 | J47: =MIN(E47,'Input og resultater'!$I$12,H47) -> 0 | K47: 0 | L47: 0 | N47: 1.000423 | Q47: 160.7020027 | R47: =MIN(D47,'Input og resultater'!$I$12,'Input og resultater'!$I$13-Q47) -> 8.091917974 | S47: =MIN(F47,'Input og resultater'!$I$12,Q47) -> 0 | U47: =IF(B47>$O$2,'438 timer'!$BC47,0) -> 0 | W47: =MIN($U47-SUM(V47:$V47),'438 timer'!AK47) -> 0 | X47: =MIN($U47-SUM($V47:W47),'438 timer'!AL47) -> 0 | Y47: =MIN($U47-SUM($V47:X47),'438 timer'!AM47) -> 0 | Z47: =MIN($U47-SUM($V47:Y47),'438 timer'!AN47) -> 0 | AA47: =MIN($U47-SUM($V47:Z47),'438 timer'!AO47) -> 0 | AB47: =MIN($U47-SUM($V47:AA47),'438 timer'!AP47) -> 0 | AE47: 0 | AF47: 0 | AG47: 0 | AH47: 0 | AI47: 0 | AJ47: 0 | AT47: 0 | AU47: 19 | AV47: =SMALL('438 timer'!$AD$2:$AI$439,$AU47) -> 1.05e-05 | AW47: =IFERROR(MATCH($AV47,'438 timer'!AD$2:AD$439,0),0) -> 10 | AX47: =IFERROR(MATCH($AV47,'438 timer'!AE$2:AE$439,0),0) -> 0 | AY47: =IFERROR(MATCH($AV47,'438 timer'!AF$2:AF$439,0),0) -> 0 | AZ47: =IFERROR(MATCH($AV47,'438 timer'!AG$2:AG$439,0),0) -> 0 | BA47: =IFERROR(MATCH($AV47,'438 timer'!AH$2:AH$439,0),0) -> 0 | BB47: =IFERROR(MATCH($AV47,'438 timer'!AI$2:AI$439,0),0) -> 0 | BC47: 10 | BD47: 1 | BE47: =INDEX('438 timer'!$AK$2:$AQ$439,BC47,BD47) -> 0 | BF47: =MAX(INDEX('438 timer'!$BC$2:$BC$439,BC47,)-SUMIF(BC$27:BC46,"="&BC47,BI$27:BI46),0) -> 20.75952003 | BG47: =MAX(INDEX('438 timer'!$BD$2:$BD$439,BC47,1)-SUM(BI$26:BI46),0) -> 7147.077053 | BH47: ='Input og resultater'!$I$12-SUMIF(BC$27:BC46,"="&BC47,BJ$27:BJ46) -> 10 | BI47: 0 | BJ47: 0 | BK47: =SUMIF(BC$27:BC46,"<="&BC47,BJ$27:BJ46)+'438 timer'!$AS$2 -> 119.9685126 | BL47: =INDEX($BV$29:$BV$2656,BP47,1) -> 0 | BM47: =INDEX('438 timer'!$BC$2:$BC$439,BC47,) -> 20.75952003 | BN47: =MAX('438 timer'!$BD$2-SUM(BI$26:BI46)-AT47,0) -> 7327.45026 | BO47: =LARGE('438 timer'!$AD$2:$AI$439,$AU47) -> 2179.645632 | BP47: 2610 | BQ47: 354 | BR47: 6 | BS47: =SUMIFS($BJ$29:$BJ$2656,$BC$29:$BC$2656,"<"&BQ47,$AV$29:$AV$2656,"<="&BO47)-SUMIF(BQ$27:BQ46,">"&BQ47,BV$27:BV46)+SUMIFS(BV$27:BV46,BQ$27:BQ46,">"&BQ47,$BO$27:BO46,"<="&BO47) -> 815.8772234 | BT47: ='Input og resultater'!$I$12-SUMIF(BQ$27:BQ46,"="&BQ47,BX$27:BX46) -> 10 | BU47: =INDEX($BI$29:$BI$2656,BP47,1) -> 0 | BV47: 0 | BW47: =MAX(LARGE($BZ$29:$BZ$2656,1)-SUM(BX$27:BX46),0) -> 1045.845736 | BX47: =MIN(MAX(MIN(CE47,'Input og resultater'!$I$12,BW47),0),BT47) -> 0 | BZ47: =-INDEX($BF$29:$BF$2656,BP47,1)+INDEX($BK$29:$BK$2656,BP47,1) -> 935.845736 | CA47: =INDEX($BJ$29:$BJ$2656,BP47,1) -> 0 | CB47: =SUMIF($BC$29:$BC$2656,"<"&BQ47,$BJ$29:$BJ$2656)-SUM(BX$27:BX46) -> 815.8772234 | CC47: =INDEX($BF$29:$BF$2656,BP47,1) -> 0 | CD47: =INDEX($BJ$29:$BJ$2656,BP47,1) -> 0 | CE47: 0 | CG47: =MIN(MAX(SUMIF($BC$29:$BC$2656,"<"&BQ47,$BJ$29:$BJ$2656)-SUM(BX$27:BX46),0),'Input og resultater'!$I$13) -> 188
A48: 48 | B48: 47 | D48: 9.428979976 | E48: 0 | F48: 0 | H48: 168.7939207 | I48: =MIN(D48,'Input og resultater'!$I$12,'Input og resultater'!$I$13-H48) -> 9.428979976 | J48: =MIN(E48,'Input og resultater'!$I$12,H48) -> 0 | K48: 0 | L48: 0 | N48: 1.000432 | Q48: 168.7939207 | R48: =MIN(D48,'Input og resultater'!$I$12,'Input og resultater'!$I$13-Q48) -> 9.428979976 | S48: =MIN(F48,'Input og resultater'!$I$12,Q48) -> 0 | U48: =IF(B48>$O$2,'438 timer'!$BC48,0) -> 0 | W48: =MIN($U48-SUM(V48:$V48),'438 timer'!AK48) -> 0 | X48: =MIN($U48-SUM($V48:W48),'438 timer'!AL48) -> 0 | Y48: =MIN($U48-SUM($V48:X48),'438 timer'!AM48) -> 0 | Z48: =MIN($U48-SUM($V48:Y48),'438 timer'!AN48) -> 0 | AA48: =MIN($U48-SUM($V48:Z48),'438 timer'!AO48) -> 0 | AB48: =MIN($U48-SUM($V48:AA48),'438 timer'!AP48) -> 0 | AE48: 0 | AF48: 0 | AG48: 0 | AH48: 0 | AI48: 0 | AJ48: 0 | AT48: 0 | AU48: 20 | AV48: =SMALL('438 timer'!$AD$2:$AI$439,$AU48) -> 1.06e-05 | AW48: =IFERROR(MATCH($AV48,'438 timer'!AD$2:AD$439,0),0) -> 0 | AX48: =IFERROR(MATCH($AV48,'438 timer'!AE$2:AE$439,0),0) -> 10 | AY48: =IFERROR(MATCH($AV48,'438 timer'!AF$2:AF$439,0),0) -> 0 | AZ48: =IFERROR(MATCH($AV48,'438 timer'!AG$2:AG$439,0),0) -> 0 | BA48: =IFERROR(MATCH($AV48,'438 timer'!AH$2:AH$439,0),0) -> 0 | BB48: =IFERROR(MATCH($AV48,'438 timer'!AI$2:AI$439,0),0) -> 0 | BC48: 10 | BD48: 2 | BE48: =INDEX('438 timer'!$AK$2:$AQ$439,BC48,BD48) -> 0 | BF48: =MAX(INDEX('438 timer'!$BC$2:$BC$439,BC48,)-SUMIF(BC$27:BC47,"="&BC48,BI$27:BI47),0) -> 20.75952003 | BG48: =MAX(INDEX('438 timer'!$BD$2:$BD$439,BC48,1)-SUM(BI$26:BI47),0) -> 7147.077053 | BH48: ='Input og resultater'!$I$12-SUMIF(BC$27:BC47,"="&BC48,BJ$27:BJ47) -> 10 | BI48: 0 | BJ48: 0 | BK48: =SUMIF(BC$27:BC47,"<="&BC48,BJ$27:BJ47)+'438 timer'!$AS$2 -> 119.9685126 | BL48: =INDEX($BV$29:$BV$2656,BP48,1) -> 0 | BM48: =INDEX('438 timer'!$BC$2:$BC$439,BC48,) -> 20.75952003 | BN48: =MAX('438 timer'!$BD$2-SUM(BI$26:BI47)-AT48,0) -> 7327.45026 | BO48: =LARGE('438 timer'!$AD$2:$AI$439,$AU48) -> 2134.687622 | BP48: 2609 | BQ48: 418 | BR48: 6 | BS48: =SUMIFS($BJ$29:$BJ$2656,$BC$29:$BC$2656,"<"&BQ48,$AV$29:$AV$2656,"<="&BO48)-SUMIF(BQ$27:BQ47,">"&BQ48,BV$27:BV47)+SUMIFS(BV$27:BV47,BQ$27:BQ47,">"&BQ48,$BO$27:BO47,"<="&BO48) -> 925.8772234 | BT48: ='Input og resultater'!$I$12-SUMIF(BQ$27:BQ47,"="&BQ48,BX$27:BX47) -> 10 | BU48: =INDEX($BI$29:$BI$2656,BP48,1) -> 0 | BV48: 0 | BW48: =MAX(LARGE($BZ$29:$BZ$2656,1)-SUM(BX$27:BX47),0) -> 1045.845736 | BX48: =MIN(MAX(MIN(CE48,'Input og resultater'!$I$12,BW48),0),BT48) -> 0 | BZ48: =-INDEX($BF$29:$BF$2656,BP48,1)+INDEX($BK$29:$BK$2656,BP48,1) -> 1045.845736 | CA48: =INDEX($BJ$29:$BJ$2656,BP48,1) -> 0 | CB48: =SUMIF($BC$29:$BC$2656,"<"&BQ48,$BJ$29:$BJ$2656)-SUM(BX$27:BX47) -> 925.8772234 | CC48: =INDEX($BF$29:$BF$2656,BP48,1) -> 0 | CD48: =INDEX($BJ$29:$BJ$2656,BP48,1) -> 0 | CE48: 0 | CG48: =MIN(MAX(SUMIF($BC$29:$BC$2656,"<"&BQ48,$BJ$29:$BJ$2656)-SUM(BX$27:BX47),0),'Input og resultater'!$I$13) -> 188
A49: 49 | B49: 48 | D49: 10 | E49: 0 | F49: 0 | H49: 178.2229007 | I49: =MIN(D49,'Input og resultater'!$I$12,'Input og resultater'!$I$13-H49) -> 9.777099325 | J49: =MIN(E49,'Input og resultater'!$I$12,H49) -> 0 | K49: 0 | L49: 0.2229006749 | N49: 1.000441 | Q49: 178.2229007 | R49: =MIN(D49,'Input og resultater'!$I$12,'Input og resultater'!$I$13-Q49) -> 9.777099325 | S49: =MIN(F49,'Input og resultater'!$I$12,Q49) -> 0 | U49: =IF(B49>$O$2,'438 timer'!$BC49,0) -> 0 | W49: =MIN($U49-SUM(V49:$V49),'438 timer'!AK49) -> 0 | X49: =MIN($U49-SUM($V49:W49),'438 timer'!AL49) -> 0 | Y49: =MIN($U49-SUM($V49:X49),'438 timer'!AM49) -> 0 | Z49: =MIN($U49-SUM($V49:Y49),'438 timer'!AN49) -> 0 | AA49: =MIN($U49-SUM($V49:Z49),'438 timer'!AO49) -> 0 | AB49: =MIN($U49-SUM($V49:AA49),'438 timer'!AP49) -> 0 | AE49: 0 | AF49: 0 | AG49: 0 | AH49: 0 | AI49: 0 | AJ49: 0 | AT49: 0 | AU49: 21 | AV49: =SMALL('438 timer'!$AD$2:$AI$439,$AU49) -> 1.15e-05 | AW49: =IFERROR(MATCH($AV49,'438 timer'!AD$2:AD$439,0),0) -> 11 | AX49: =IFERROR(MATCH($AV49,'438 timer'!AE$2:AE$439,0),0) -> 0 | AY49: =IFERROR(MATCH($AV49,'438 timer'!AF$2:AF$439,0),0) -> 0 | AZ49: =IFERROR(MATCH($AV49,'438 timer'!AG$2:AG$439,0),0) -> 0 | BA49: =IFERROR(MATCH($AV49,'438 timer'!AH$2:AH$439,0),0) -> 0 | BB49: =IFERROR(MATCH($AV49,'438 timer'!AI$2:AI$439,0),0) -> 0 | BC49: 11 | BD49: 1 | BE49: =INDEX('438 timer'!$AK$2:$AQ$439,BC49,BD49) -> 0 | BF49: =MAX(INDEX('438 timer'!$BC$2:$BC$439,BC49,)-SUMIF(BC$27:BC48,"="&BC49,BI$27:BI48),0) -> 20.09098802 | BG49: =MAX(INDEX('438 timer'!$BD$2:$BD$439,BC49,1)-SUM(BI$26:BI48),0) -> 7126.317533 | BH49: ='Input og resultater'!$I$12-SUMIF(BC$27:BC48,"="&BC49,BJ$27:BJ48) -> 10 | BI49: 0 | BJ49: 0 | BK49: =SUMIF(BC$27:BC48,"<="&BC49,BJ$27:BJ48)+'438 timer'!$AS$2 -> 119.9685126 | BL49: =INDEX($BV$29:$BV$2656,BP49,1) -> 0 | BM49: =INDEX('438 timer'!$BC$2:$BC$439,BC49,) -> 20.09098802 | BN49: =MAX('438 timer'!$BD$2-SUM(BI$26:BI48)-AT49,0) -> 7327.45026 | BO49: =LARGE('438 timer'!$AD$2:$AI$439,$AU49) -> 2095.915384 | BP49: 2608 | BQ49: 163 | BR49: 6 | BS49: =SUMIFS($BJ$29:$BJ$2656,$BC$29:$BC$2656,"<"&BQ49,$AV$29:$AV$2656,"<="&BO49)-SUMIF(BQ$27:BQ48,">"&BQ49,BV$27:BV48)+SUMIFS(BV$27:BV48,BQ$27:BQ48,">"&BQ49,$BO$27:BO48,"<="&BO49) -> 431.5831034 | BT49: ='Input og resultater'!$I$12-SUMIF(BQ$27:BQ48,"="&BQ49,BX$27:BX48) -> 10 | BU49: =INDEX($BI$29:$BI$2656,BP49,1) -> 0 | BV49: 0 | BW49: =MAX(LARGE($BZ$29:$BZ$2656,1)-SUM(BX$27:BX48),0) -> 1045.845736 | BX49: =MIN(MAX(MIN(CE49,'Input og resultater'!$I$12,BW49),0),BT49) -> 0 | BZ49: =-INDEX($BF$29:$BF$2656,BP49,1)+INDEX($BK$29:$BK$2656,BP49,1) -> 551.5516159 | CA49: =INDEX($BJ$29:$BJ$2656,BP49,1) -> 0 | CB49: =SUMIF($BC$29:$BC$2656,"<"&BQ49,$BJ$29:$BJ$2656)-SUM(BX$27:BX48) -> 431.5831034 | CC49: =INDEX($BF$29:$BF$2656,BP49,1) -> 0 | CD49: =INDEX($BJ$29:$BJ$2656,BP49,1) -> 0 | CE49: 0 | CG49: =MIN(MAX(SUMIF($BC$29:$BC$2656,"<"&BQ49,$BJ$29:$BJ$2656)-SUM(BX$27:BX48),0),'Input og resultater'!$I$13) -> 188
A50: 50 | B50: 49 | D50: 10 | E50: 0 | F50: 0 | H50: 188 | I50: =MIN(D50,'Input og resultater'!$I$12,'Input og resultater'!$I$13-H50) -> 0 | J50: =MIN(E50,'Input og resultater'!$I$12,H50) -> 0 | K50: 0 | L50: 10 | N50: 1.00045 | Q50: 188 | R50: =MIN(D50,'Input og resultater'!$I$12,'Input og resultater'!$I$13-Q50) -> 0 | S50: =MIN(F50,'Input og resultater'!$I$12,Q50) -> 0 | U50: =IF(B50>$O$2,'438 timer'!$BC50,0) -> 0 | W50: =MIN($U50-SUM(V50:$V50),'438 timer'!AK50) -> 0 | X50: =MIN($U50-SUM($V50:W50),'438 timer'!AL50) -> 0 | Y50: =MIN($U50-SUM($V50:X50),'438 timer'!AM50) -> 0 | Z50: =MIN($U50-SUM($V50:Y50),'438 timer'!AN50) -> 0 | AA50: =MIN($U50-SUM($V50:Z50),'438 timer'!AO50) -> 0 | AB50: =MIN($U50-SUM($V50:AA50),'438 timer'!AP50) -> 0 | AE50: 0 | AF50: 0 | AG50: 0 | AH50: 0 | AI50: 0 | AJ50: 0 | AT50: 0 | AU50: 22 | AV50: =SMALL('438 timer'!$AD$2:$AI$439,$AU50) -> 1.16e-05 | AW50: =IFERROR(MATCH($AV50,'438 timer'!AD$2:AD$439,0),0) -> 0 | AX50: =IFERROR(MATCH($AV50,'438 timer'!AE$2:AE$439,0),0) -> 11 | AY50: =IFERROR(MATCH($AV50,'438 timer'!AF$2:AF$439,0),0) -> 0 | AZ50: =IFERROR(MATCH($AV50,'438 timer'!AG$2:AG$439,0),0) -> 0 | BA50: =IFERROR(MATCH($AV50,'438 timer'!AH$2:AH$439,0),0) -> 0 | BB50: =IFERROR(MATCH($AV50,'438 timer'!AI$2:AI$439,0),0) -> 0 | BC50: 11 | BD50: 2 | BE50: =INDEX('438 timer'!$AK$2:$AQ$439,BC50,BD50) -> 0 | BF50: =MAX(INDEX('438 timer'!$BC$2:$BC$439,BC50,)-SUMIF(BC$27:BC49,"="&BC50,BI$27:BI49),0) -> 20.09098802 | BG50: =MAX(INDEX('438 timer'!$BD$2:$BD$439,BC50,1)-SUM(BI$26:BI49),0) -> 7126.317533 | BH50: ='Input og resultater'!$I$12-SUMIF(BC$27:BC49,"="&BC50,BJ$27:BJ49) -> 10 | BI50: 0 | BJ50: 0 | BK50: =SUMIF(BC$27:BC49,"<="&BC50,BJ$27:BJ49)+'438 timer'!$AS$2 -> 119.9685126 | BL50: =INDEX($BV$29:$BV$2656,BP50,1) -> 0 | BM50: =INDEX('438 timer'!$BC$2:$BC$439,BC50,) -> 20.09098802 | BN50: =MAX('438 timer'!$BD$2-SUM(BI$26:BI49)-AT50,0) -> 7327.45026 | BO50: =LARGE('438 timer'!$AD$2:$AI$439,$AU50) -> 2095.363623 | BP50: 2607 | BQ50: 211 | BR50: 6 | BS50: =SUMIFS($BJ$29:$BJ$2656,$BC$29:$BC$2656,"<"&BQ50,$AV$29:$AV$2656,"<="&BO50)-SUMIF(BQ$27:BQ49,">"&BQ50,BV$27:BV49)+SUMIFS(BV$27:BV49,BQ$27:BQ49,">"&BQ50,$BO$27:BO49,"<="&BO50) -> 468.492717 | BT50: ='Input og resultater'!$I$12-SUMIF(BQ$27:BQ49,"="&BQ50,BX$27:BX49) -> 10 | BU50: =INDEX($BI$29:$BI$2656,BP50,1) -> 0 | BV50: 0 | BW50: =MAX(LARGE($BZ$29:$BZ$2656,1)-SUM(BX$27:BX49),0) -> 1045.845736 | BX50: =MIN(MAX(MIN(CE50,'Input og resultater'!$I$12,BW50),0),BT50) -> 0 | BZ50: =-INDEX($BF$29:$BF$2656,BP50,1)+INDEX($BK$29:$BK$2656,BP50,1) -> 588.6841466 | CA50: =INDEX($BJ$29:$BJ$2656,BP50,1) -> 0 | CB50: =SUMIF($BC$29:$BC$2656,"<"&BQ50,$BJ$29:$BJ$2656)-SUM(BX$27:BX49) -> 468.492717 | CC50: =INDEX($BF$29:$BF$2656,BP50,1) -> 0 | CD50: =INDEX($BJ$29:$BJ$2656,BP50,1) -> 0 | CE50: 0 | CG50: =MIN(MAX(SUMIF($BC$29:$BC$2656,"<"&BQ50,$BJ$29:$BJ$2656)-SUM(BX$27:BX49),0),'Input og resultater'!$I$13) -> 188
A51: 51 | B51: 50 | D51: 10 | E51: 0 | F51: 0 | H51: 188 | I51: =MIN(D51,'Input og resultater'!$I$12,'Input og resultater'!$I$13-H51) -> 0 | J51: =MIN(E51,'Input og resultater'!$I$12,H51) -> 0 | K51: 0 | L51: 10 | N51: 1.000459 | Q51: 188 | R51: =MIN(D51,'Input og resultater'!$I$12,'Input og resultater'!$I$13-Q51) -> 0 | S51: =MIN(F51,'Input og resultater'!$I$12,Q51) -> 0 | U51: =IF(B51>$O$2,'438 timer'!$BC51,0) -> 0 | W51: =MIN($U51-SUM(V51:$V51),'438 timer'!AK51) -> 0 | X51: =MIN($U51-SUM($V51:W51),'438 timer'!AL51) -> 0 | Y51: =MIN($U51-SUM($V51:X51),'438 timer'!AM51) -> 0 | Z51: =MIN($U51-SUM($V51:Y51),'438 timer'!AN51) -> 0 | AA51: =MIN($U51-SUM($V51:Z51),'438 timer'!AO51) -> 0 | AB51: =MIN($U51-SUM($V51:AA51),'438 timer'!AP51) -> 0 | AE51: 0 | AF51: 0 | AG51: 0 | AH51: 0 | AI51: 0 | AJ51: 0 | AT51: 0 | AU51: 23 | AV51: =SMALL('438 timer'!$AD$2:$AI$439,$AU51) -> 1.25e-05 | AW51: =IFERROR(MATCH($AV51,'438 timer'!AD$2:AD$439,0),0) -> 12 | AX51: =IFERROR(MATCH($AV51,'438 timer'!AE$2:AE$439,0),0) -> 0 | AY51: =IFERROR(MATCH($AV51,'438 timer'!AF$2:AF$439,0),0) -> 0 | AZ51: =IFERROR(MATCH($AV51,'438 timer'!AG$2:AG$439,0),0) -> 0 | BA51: =IFERROR(MATCH($AV51,'438 timer'!AH$2:AH$439,0),0) -> 0 | BB51: =IFERROR(MATCH($AV51,'438 timer'!AI$2:AI$439,0),0) -> 0 | BC51: 12 | BD51: 1 | BE51: =INDEX('438 timer'!$AK$2:$AQ$439,BC51,BD51) -> 0 | BF51: =MAX(INDEX('438 timer'!$BC$2:$BC$439,BC51,)-SUMIF(BC$27:BC50,"="&BC51,BI$27:BI50),0) -> 18.97677002 | BG51: =MAX(INDEX('438 timer'!$BD$2:$BD$439,BC51,1)-SUM(BI$26:BI50),0) -> 7106.226545 | BH51: ='Input og resultater'!$I$12-SUMIF(BC$27:BC50,"="&BC51,BJ$27:BJ50) -> 10 | BI51: 0 | BJ51: 0 | BK51: =SUMIF(BC$27:BC50,"<="&BC51,BJ$27:BJ50)+'438 timer'!$AS$2 -> 119.9685126 | BL51: =INDEX($BV$29:$BV$2656,BP51,1) -> 0 | BM51: =INDEX('438 timer'!$BC$2:$BC$439,BC51,) -> 18.97677002 | BN51: =MAX('438 timer'!$BD$2-SUM(BI$26:BI50)-AT51,0) -> 7327.45026 | BO51: =LARGE('438 timer'!$AD$2:$AI$439,$AU51) -> 2081.834769 | BP51: 2606 | BQ51: 137 | BR51: 6 | BS51: =SUMIFS($BJ$29:$BJ$2656,$BC$29:$BC$2656,"<"&BQ51,$AV$29:$AV$2656,"<="&BO51)-SUMIF(BQ$27:BQ50,">"&BQ51,BV$27:BV50)+SUMIFS(BV$27:BV50,BQ$27:BQ50,">"&BQ51,$BO$27:BO50,"<="&BO51) -> 431.5831034 | BT51: ='Input og resultater'!$I$12-SUMIF(BQ$27:BQ50,"="&BQ51,BX$27:BX50) -> 10 | BU51: =INDEX($BI$29:$BI$2656,BP51,1) -> 0 | BV51: 0 | BW51: =MAX(LARGE($BZ$29:$BZ$2656,1)-SUM(BX$27:BX50),0) -> 1045.845736 | BX51: =MIN(MAX(MIN(CE51,'Input og resultater'!$I$12,BW51),0),BT51) -> 0 | BZ51: =-INDEX($BF$29:$BF$2656,BP51,1)+INDEX($BK$29:$BK$2656,BP51,1) -> 551.5516159 | CA51: =INDEX($BJ$29:$BJ$2656,BP51,1) -> 0 | CB51: =SUMIF($BC$29:$BC$2656,"<"&BQ51,$BJ$29:$BJ$2656)-SUM(BX$27:BX50) -> 431.5831034 | CC51: =INDEX($BF$29:$BF$2656,BP51,1) -> 0 | CD51: =INDEX($BJ$29:$BJ$2656,BP51,1) -> 0 | CE51: 0 | CG51: =MIN(MAX(SUMIF($BC$29:$BC$2656,"<"&BQ51,$BJ$29:$BJ$2656)-SUM(BX$27:BX50),0),'Input og resultater'!$I$13) -> 188
A52: 52 | B52: 51 | D52: 10 | E52: 0 | F52: 0 | H52: 188 | I52: =MIN(D52,'Input og resultater'!$I$12,'Input og resultater'!$I$13-H52) -> 0 | J52: =MIN(E52,'Input og resultater'!$I$12,H52) -> 0 | K52: 0 | L52: 10 | N52: 1.000468 | Q52: 188 | R52: =MIN(D52,'Input og resultater'!$I$12,'Input og resultater'!$I$13-Q52) -> 0 | S52: =MIN(F52,'Input og resultater'!$I$12,Q52) -> 0 | U52: =IF(B52>$O$2,'438 timer'!$BC52,0) -> 0 | W52: =MIN($U52-SUM(V52:$V52),'438 timer'!AK52) -> 0 | X52: =MIN($U52-SUM($V52:W52),'438 timer'!AL52) -> 0 | Y52: =MIN($U52-SUM($V52:X52),'438 timer'!AM52) -> 0 | Z52: =MIN($U52-SUM($V52:Y52),'438 timer'!AN52) -> 0 | AA52: =MIN($U52-SUM($V52:Z52),'438 timer'!AO52) -> 0 | AB52: =MIN($U52-SUM($V52:AA52),'438 timer'!AP52) -> 0 | AE52: 0 | AF52: 0 | AG52: 0 | AH52: 0 | AI52: 0 | AJ52: 0 | AT52: 0 | AU52: 24 | AV52: =SMALL('438 timer'!$AD$2:$AI$439,$AU52) -> 1.26e-05 | AW52: =IFERROR(MATCH($AV52,'438 timer'!AD$2:AD$439,0),0) -> 0 | AX52: =IFERROR(MATCH($AV52,'438 timer'!AE$2:AE$439,0),0) -> 12 | AY52: =IFERROR(MATCH($AV52,'438 timer'!AF$2:AF$439,0),0) -> 0 | AZ52: =IFERROR(MATCH($AV52,'438 timer'!AG$2:AG$439,0),0) -> 0 | BA52: =IFERROR(MATCH($AV52,'438 timer'!AH$2:AH$439,0),0) -> 0 | BB52: =IFERROR(MATCH($AV52,'438 timer'!AI$2:AI$439,0),0) -> 0 | BC52: 12 | BD52: 2 | BE52: =INDEX('438 timer'!$AK$2:$AQ$439,BC52,BD52) -> 0 | BF52: =MAX(INDEX('438 timer'!$BC$2:$BC$439,BC52,)-SUMIF(BC$27:BC51,"="&BC52,BI$27:BI51),0) -> 18.97677002 | BG52: =MAX(INDEX('438 timer'!$BD$2:$BD$439,BC52,1)-SUM(BI$26:BI51),0) -> 7106.226545 | BH52: ='Input og resultater'!$I$12-SUMIF(BC$27:BC51,"="&BC52,BJ$27:BJ51) -> 10 | BI52: 0 | BJ52: 0 | BK52: =SUMIF(BC$27:BC51,"<="&BC52,BJ$27:BJ51)+'438 timer'!$AS$2 -> 119.9685126 | BL52: =INDEX($BV$29:$BV$2656,BP52,1) -> 0 | BM52: =INDEX('438 timer'!$BC$2:$BC$439,BC52,) -> 18.97677002 | BN52: =MAX('438 timer'!$BD$2-SUM(BI$26:BI51)-AT52,0) -> 7327.45026 | BO52: =LARGE('438 timer'!$AD$2:$AI$439,$AU52) -> 2059.530812 | BP52: 2605 | BQ52: 162 | BR52: 6 | BS52: =SUMIFS($BJ$29:$BJ$2656,$BC$29:$BC$2656,"<"&BQ52,$AV$29:$AV$2656,"<="&BO52)-SUMIF(BQ$27:BQ51,">"&BQ52,BV$27:BV51)+SUMIFS(BV$27:BV51,BQ$27:BQ51,">"&BQ52,$BO$27:BO51,"<="&BO52) -> 431.5831034 | BT52: ='Input og resultater'!$I$12-SUMIF(BQ$27:BQ51,"="&BQ52,BX$27:BX51) -> 10 | BU52: =INDEX($BI$29:$BI$2656,BP52,1) -> 0 | BV52: 0 | BW52: =MAX(LARGE($BZ$29:$BZ$2656,1)-SUM(BX$27:BX51),0) -> 1045.845736 | BX52: =MIN(MAX(MIN(CE52,'Input og resultater'!$I$12,BW52),0),BT52) -> 0 | BZ52: =-INDEX($BF$29:$BF$2656,BP52,1)+INDEX($BK$29:$BK$2656,BP52,1) -> 551.5516159 | CA52: =INDEX($BJ$29:$BJ$2656,BP52,1) -> 0 | CB52: =SUMIF($BC$29:$BC$2656,"<"&BQ52,$BJ$29:$BJ$2656)-SUM(BX$27:BX51) -> 431.5831034 | CC52: =INDEX($BF$29:$BF$2656,BP52,1) -> 0 | CD52: =INDEX($BJ$29:$BJ$2656,BP52,1) -> 0 | CE52: 0 | CG52: =MIN(MAX(SUMIF($BC$29:$BC$2656,"<"&BQ52,$BJ$29:$BJ$2656)-SUM(BX$27:BX51),0),'Input og resultater'!$I$13) -> 188
A53: 53 | B53: 52 | D53: 10 | E53: 0 | F53: 0 | H53: 188 | I53: =MIN(D53,'Input og resultater'!$I$12,'Input og resultater'!$I$13-H53) -> 0 | J53: =MIN(E53,'Input og resultater'!$I$12,H53) -> 0 | K53: 0 | L53: 10 | N53: 1.000477 | Q53: 188 | R53: =MIN(D53,'Input og resultater'!$I$12,'Input og resultater'!$I$13-Q53) -> 0 | S53: =MIN(F53,'Input og resultater'!$I$12,Q53) -> 0 | U53: =IF(B53>$O$2,'438 timer'!$BC53,0) -> 0 | W53: =MIN($U53-SUM(V53:$V53),'438 timer'!AK53) -> 0 | X53: =MIN($U53-SUM($V53:W53),'438 timer'!AL53) -> 0 | Y53: =MIN($U53-SUM($V53:X53),'438 timer'!AM53) -> 0 | Z53: =MIN($U53-SUM($V53:Y53),'438 timer'!AN53) -> 0 | AA53: =MIN($U53-SUM($V53:Z53),'438 timer'!AO53) -> 0 | AB53: =MIN($U53-SUM($V53:AA53),'438 timer'!AP53) -> 0 | AE53: 0 | AF53: 0 | AG53: 0 | AH53: 0 | AI53: 0 | AJ53: 0 | AT53: 0 | AU53: 25 | AV53: =SMALL('438 timer'!$AD$2:$AI$439,$AU53) -> 1.35e-05 | AW53: =IFERROR(MATCH($AV53,'438 timer'!AD$2:AD$439,0),0) -> 13 | AX53: =IFERROR(MATCH($AV53,'438 timer'!AE$2:AE$439,0),0) -> 0 | AY53: =IFERROR(MATCH($AV53,'438 timer'!AF$2:AF$439,0),0) -> 0 | AZ53: =IFERROR(MATCH($AV53,'438 timer'!AG$2:AG$439,0),0) -> 0 | BA53: =IFERROR(MATCH($AV53,'438 timer'!AH$2:AH$439,0),0) -> 0 | BB53: =IFERROR(MATCH($AV53,'438 timer'!AI$2:AI$439,0),0) -> 0 | BC53: 13 | BD53: 1 | BE53: =INDEX('438 timer'!$AK$2:$AQ$439,BC53,BD53) -> 0 | BF53: =MAX(INDEX('438 timer'!$BC$2:$BC$439,BC53,)-SUMIF(BC$27:BC52,"="&BC53,BI$27:BI52),0) -> 17.86255102 | BG53: =MAX(INDEX('438 timer'!$BD$2:$BD$439,BC53,1)-SUM(BI$26:BI52),0) -> 7087.249775 | BH53: ='Input og resultater'!$I$12-SUMIF(BC$27:BC52,"="&BC53,BJ$27:BJ52) -> 10 | BI53: 0 | BJ53: 0 | BK53: =SUMIF(BC$27:BC52,"<="&BC53,BJ$27:BJ52)+'438 timer'!$AS$2 -> 119.9685126 | BL53: =INDEX($BV$29:$BV$2656,BP53,1) -> 0 | BM53: =INDEX('438 timer'!$BC$2:$BC$439,BC53,) -> 17.86255102 | BN53: =MAX('438 timer'!$BD$2-SUM(BI$26:BI52)-AT53,0) -> 7327.45026 | BO53: =LARGE('438 timer'!$AD$2:$AI$439,$AU53) -> 1992.046128 | BP53: 2604 | BQ53: 346 | BR53: 6 | BS53: =SUMIFS($BJ$29:$BJ$2656,$BC$29:$BC$2656,"<"&BQ53,$AV$29:$AV$2656,"<="&BO53)-SUMIF(BQ$27:BQ52,">"&BQ53,BV$27:BV52)+SUMIFS(BV$27:BV52,BQ$27:BQ52,">"&BQ53,$BO$27:BO52,"<="&BO53) -> 815.8772234 | BT53: ='Input og resultater'!$I$12-SUMIF(BQ$27:BQ52,"="&BQ53,BX$27:BX52) -> 10 | BU53: =INDEX($BI$29:$BI$2656,BP53,1) -> 0 | BV53: 0 | BW53: =MAX(LARGE($BZ$29:$BZ$2656,1)-SUM(BX$27:BX52),0) -> 1045.845736 | BX53: =MIN(MAX(MIN(CE53,'Input og resultater'!$I$12,BW53),0),BT53) -> 0 | BZ53: =-INDEX($BF$29:$BF$2656,BP53,1)+INDEX($BK$29:$BK$2656,BP53,1) -> 935.845736 | CA53: =INDEX($BJ$29:$BJ$2656,BP53,1) -> 0 | CB53: =SUMIF($BC$29:$BC$2656,"<"&BQ53,$BJ$29:$BJ$2656)-SUM(BX$27:BX52) -> 815.8772234 | CC53: =INDEX($BF$29:$BF$2656,BP53,1) -> 0 | CD53: =INDEX($BJ$29:$BJ$2656,BP53,1) -> 0 | CE53: 0 | CG53: =MIN(MAX(SUMIF($BC$29:$BC$2656,"<"&BQ53,$BJ$29:$BJ$2656)-SUM(BX$27:BX52),0),'Input og resultater'!$I$13) -> 188
A54: 54 | B54: 53 | D54: 10 | E54: 0 | F54: 0 | H54: 188 | I54: =MIN(D54,'Input og resultater'!$I$12,'Input og resultater'!$I$13-H54) -> 0 | J54: =MIN(E54,'Input og resultater'!$I$12,H54) -> 0 | K54: 0 | L54: 10 | N54: 1.000486 | Q54: 188 | R54: =MIN(D54,'Input og resultater'!$I$12,'Input og resultater'!$I$13-Q54) -> 0 | S54: =MIN(F54,'Input og resultater'!$I$12,Q54) -> 0 | U54: =IF(B54>$O$2,'438 timer'!$BC54,0) -> 0 | W54: =MIN($U54-SUM(V54:$V54),'438 timer'!AK54) -> 0 | X54: =MIN($U54-SUM($V54:W54),'438 timer'!AL54) -> 0 | Y54: =MIN($U54-SUM($V54:X54),'438 timer'!AM54) -> 0 | Z54: =MIN($U54-SUM($V54:Y54),'438 timer'!AN54) -> 0 | AA54: =MIN($U54-SUM($V54:Z54),'438 timer'!AO54) -> 0 | AB54: =MIN($U54-SUM($V54:AA54),'438 timer'!AP54) -> 0 | AE54: 0 | AF54: 0 | AG54: 0 | AH54: 0 | AI54: 0 | AJ54: 0 | AT54: 0 | AU54: 26 | AV54: =SMALL('438 timer'!$AD$2:$AI$439,$AU54) -> 1.36e-05 | AW54: =IFERROR(MATCH($AV54,'438 timer'!AD$2:AD$439,0),0) -> 0 | AX54: =IFERROR(MATCH($AV54,'438 timer'!AE$2:AE$439,0),0) -> 13 | AY54: =IFERROR(MATCH($AV54,'438 timer'!AF$2:AF$439,0),0) -> 0 | AZ54: =IFERROR(MATCH($AV54,'438 timer'!AG$2:AG$439,0),0) -> 0 | BA54: =IFERROR(MATCH($AV54,'438 timer'!AH$2:AH$439,0),0) -> 0 | BB54: =IFERROR(MATCH($AV54,'438 timer'!AI$2:AI$439,0),0) -> 0 | BC54: 13 | BD54: 2 | BE54: =INDEX('438 timer'!$AK$2:$AQ$439,BC54,BD54) -> 0 | BF54: =MAX(INDEX('438 timer'!$BC$2:$BC$439,BC54,)-SUMIF(BC$27:BC53,"="&BC54,BI$27:BI53),0) -> 17.86255102 | BG54: =MAX(INDEX('438 timer'!$BD$2:$BD$439,BC54,1)-SUM(BI$26:BI53),0) -> 7087.249775 | BH54: ='Input og resultater'!$I$12-SUMIF(BC$27:BC53,"="&BC54,BJ$27:BJ53) -> 10 | BI54: 0 | BJ54: 0 | BK54: =SUMIF(BC$27:BC53,"<="&BC54,BJ$27:BJ53)+'438 timer'!$AS$2 -> 119.9685126 | BL54: =INDEX($BV$29:$BV$2656,BP54,1) -> 0 | BM54: =INDEX('438 timer'!$BC$2:$BC$439,BC54,) -> 17.86255102 | BN54: =MAX('438 timer'!$BD$2-SUM(BI$26:BI53)-AT54,0) -> 7327.45026 | BO54: =LARGE('438 timer'!$AD$2:$AI$439,$AU54) -> 1986.432835 | BP54: 2603 | BQ54: 223 | BR54: 6 | BS54: =SUMIFS($BJ$29:$BJ$2656,$BC$29:$BC$2656,"<"&BQ54,$AV$29:$AV$2656,"<="&BO54)-SUMIF(BQ$27:BQ53,">"&BQ54,BV$27:BV53)+SUMIFS(BV$27:BV53,BQ$27:BQ53,">"&BQ54,$BO$27:BO53,"<="&BO54) -> 469.1617579 | BT54: ='Input og resultater'!$I$12-SUMIF(BQ$27:BQ53,"="&BQ54,BX$27:BX53) -> 10 | BU54: =INDEX($BI$29:$BI$2656,BP54,1) -> 0 | BV54: 0 | BW54: =MAX(LARGE($BZ$29:$BZ$2656,1)-SUM(BX$27:BX53),0) -> 1045.845736 | BX54: =MIN(MAX(MIN(CE54,'Input og resultater'!$I$12,BW54),0),BT54) -> 0 | BZ54: =-INDEX($BF$29:$BF$2656,BP54,1)+INDEX($BK$29:$BK$2656,BP54,1) -> 589.1302705 | CA54: =INDEX($BJ$29:$BJ$2656,BP54,1) -> 0 | CB54: =SUMIF($BC$29:$BC$2656,"<"&BQ54,$BJ$29:$BJ$2656)-SUM(BX$27:BX53) -> 469.1617579 | CC54: =INDEX($BF$29:$BF$2656,BP54,1) -> 0 | CD54: =INDEX($BJ$29:$BJ$2656,BP54,1) -> 0 | CE54: 0 | CG54: =MIN(MAX(SUMIF($BC$29:$BC$2656,"<"&BQ54,$BJ$29:$BJ$2656)-SUM(BX$27:BX53),0),'Input og resultater'!$I$13) -> 188
A55: 55 | B55: 54 | D55: 10 | E55: 0 | F55: 0 | H55: 188 | I55: =MIN(D55,'Input og resultater'!$I$12,'Input og resultater'!$I$13-H55) -> 0 | J55: =MIN(E55,'Input og resultater'!$I$12,H55) -> 0 | K55: 0 | L55: 10 | N55: 1.000495 | Q55: 188 | R55: =MIN(D55,'Input og resultater'!$I$12,'Input og resultater'!$I$13-Q55) -> 0 | S55: =MIN(F55,'Input og resultater'!$I$12,Q55) -> 0 | U55: =IF(B55>$O$2,'438 timer'!$BC55,0) -> 0 | W55: =MIN($U55-SUM(V55:$V55),'438 timer'!AK55) -> 0 | X55: =MIN($U55-SUM($V55:W55),'438 timer'!AL55) -> 0 | Y55: =MIN($U55-SUM($V55:X55),'438 timer'!AM55) -> 0 | Z55: =MIN($U55-SUM($V55:Y55),'438 timer'!AN55) -> 0 | AA55: =MIN($U55-SUM($V55:Z55),'438 timer'!AO55) -> 0 | AB55: =MIN($U55-SUM($V55:AA55),'438 timer'!AP55) -> 0 | AE55: 0 | AF55: 0 | AG55: 0 | AH55: 0 | AI55: 0 | AJ55: 0 | AT55: 0 | AU55: 27 | AV55: =SMALL('438 timer'!$AD$2:$AI$439,$AU55) -> 1.45e-05 | AW55: =IFERROR(MATCH($AV55,'438 timer'!AD$2:AD$439,0),0) -> 14 | AX55: =IFERROR(MATCH($AV55,'438 timer'!AE$2:AE$439,0),0) -> 0 | AY55: =IFERROR(MATCH($AV55,'438 timer'!AF$2:AF$439,0),0) -> 0 | AZ55: =IFERROR(MATCH($AV55,'438 timer'!AG$2:AG$439,0),0) -> 0 | BA55: =IFERROR(MATCH($AV55,'438 timer'!AH$2:AH$439,0),0) -> 0 | BB55: =IFERROR(MATCH($AV55,'438 timer'!AI$2:AI$439,0),0) -> 0 | BC55: 14 | BD55: 1 | BE55: =INDEX('438 timer'!$AK$2:$AQ$439,BC55,BD55) -> 0 | BF55: =MAX(INDEX('438 timer'!$BC$2:$BC$439,BC55,)-SUMIF(BC$27:BC54,"="&BC55,BI$27:BI54),0) -> 17.49114502 | BG55: =MAX(INDEX('438 timer'!$BD$2:$BD$439,BC55,1)-SUM(BI$26:BI54),0) -> 7069.387224 | BH55: ='Input og resultater'!$I$12-SUMIF(BC$27:BC54,"="&BC55,BJ$27:BJ54) -> 10 | BI55: 0 | BJ55: 0 | BK55: =SUMIF(BC$27:BC54,"<="&BC55,BJ$27:BJ54)+'438 timer'!$AS$2 -> 119.9685126 | BL55: =INDEX($BV$29:$BV$2656,BP55,1) -> 0 | BM55: =INDEX('438 timer'!$BC$2:$BC$439,BC55,) -> 17.49114502 | BN55: =MAX('438 timer'!$BD$2-SUM(BI$26:BI54)-AT55,0) -> 7327.45026 | BO55: =LARGE('438 timer'!$AD$2:$AI$439,$AU55) -> 1970.940987 | BP55: 2602 | BQ55: 132 | BR55: 6 | BS55: =SUMIFS($BJ$29:$BJ$2656,$BC$29:$BC$2656,"<"&BQ55,$AV$29:$AV$2656,"<="&BO55)-SUMIF(BQ$27:BQ54,">"&BQ55,BV$27:BV54)+SUMIFS(BV$27:BV54,BQ$27:BQ54,">"&BQ55,$BO$27:BO54,"<="&BO55) -> 431.5831034 | BT55: ='Input og resultater'!$I$12-SUMIF(BQ$27:BQ54,"="&BQ55,BX$27:BX54) -> 10 | BU55: =INDEX($BI$29:$BI$2656,BP55,1) -> 0 | BV55: 0 | BW55: =MAX(LARGE($BZ$29:$BZ$2656,1)-SUM(BX$27:BX54),0) -> 1045.845736 | BX55: =MIN(MAX(MIN(CE55,'Input og resultater'!$I$12,BW55),0),BT55) -> 0 | BZ55: =-INDEX($BF$29:$BF$2656,BP55,1)+INDEX($BK$29:$BK$2656,BP55,1) -> 551.5516159 | CA55: =INDEX($BJ$29:$BJ$2656,BP55,1) -> 0 | CB55: =SUMIF($BC$29:$BC$2656,"<"&BQ55,$BJ$29:$BJ$2656)-SUM(BX$27:BX54) -> 431.5831034 | CC55: =INDEX($BF$29:$BF$2656,BP55,1) -> 0 | CD55: =INDEX($BJ$29:$BJ$2656,BP55,1) -> 0 | CE55: 0 | CG55: =MIN(MAX(SUMIF($BC$29:$BC$2656,"<"&BQ55,$BJ$29:$BJ$2656)-SUM(BX$27:BX54),0),'Input og resultater'!$I$13) -> 188
A56: 56 | B56: 55 | D56: 10 | E56: 0 | F56: 0 | H56: 188 | I56: =MIN(D56,'Input og resultater'!$I$12,'Input og resultater'!$I$13-H56) -> 0 | J56: =MIN(E56,'Input og resultater'!$I$12,H56) -> 0 | K56: 0 | L56: 10 | N56: 1.000504 | Q56: 188 | R56: =MIN(D56,'Input og resultater'!$I$12,'Input og resultater'!$I$13-Q56) -> 0 | S56: =MIN(F56,'Input og resultater'!$I$12,Q56) -> 0 | U56: =IF(B56>$O$2,'438 timer'!$BC56,0) -> 0 | W56: =MIN($U56-SUM(V56:$V56),'438 timer'!AK56) -> 0 | X56: =MIN($U56-SUM($V56:W56),'438 timer'!AL56) -> 0 | Y56: =MIN($U56-SUM($V56:X56),'438 timer'!AM56) -> 0 | Z56: =MIN($U56-SUM($V56:Y56),'438 timer'!AN56) -> 0 | AA56: =MIN($U56-SUM($V56:Z56),'438 timer'!AO56) -> 0 | AB56: =MIN($U56-SUM($V56:AA56),'438 timer'!AP56) -> 0 | AE56: 0 | AF56: 0 | AG56: 0 | AH56: 0 | AI56: 0 | AJ56: 0 | AT56: 0 | AU56: 28 | AV56: =SMALL('438 timer'!$AD$2:$AI$439,$AU56) -> 1.46e-05 | AW56: =IFERROR(MATCH($AV56,'438 timer'!AD$2:AD$439,0),0) -> 0 | AX56: =IFERROR(MATCH($AV56,'438 timer'!AE$2:AE$439,0),0) -> 14 | AY56: =IFERROR(MATCH($AV56,'438 timer'!AF$2:AF$439,0),0) -> 0 | AZ56: =IFERROR(MATCH($AV56,'438 timer'!AG$2:AG$439,0),0) -> 0 | BA56: =IFERROR(MATCH($AV56,'438 timer'!AH$2:AH$439,0),0) -> 0 | BB56: =IFERROR(MATCH($AV56,'438 timer'!AI$2:AI$439,0),0) -> 0 | BC56: 14 | BD56: 2 | BE56: =INDEX('438 timer'!$AK$2:$AQ$439,BC56,BD56) -> 0 | BF56: =MAX(INDEX('438 timer'!$BC$2:$BC$439,BC56,)-SUMIF(BC$27:BC55,"="&BC56,BI$27:BI55),0) -> 17.49114502 | BG56: =MAX(INDEX('438 timer'!$BD$2:$BD$439,BC56,1)-SUM(BI$26:BI55),0) -> 7069.387224 | BH56: ='Input og resultater'!$I$12-SUMIF(BC$27:BC55,"="&BC56,BJ$27:BJ55) -> 10 | BI56: 0 | BJ56: 0 | BK56: =SUMIF(BC$27:BC55,"<="&BC56,BJ$27:BJ55)+'438 timer'!$AS$2 -> 119.9685126 | BL56: =INDEX($BV$29:$BV$2656,BP56,1) -> 0 | BM56: =INDEX('438 timer'!$BC$2:$BC$439,BC56,) -> 17.49114502 | BN56: =MAX('438 timer'!$BD$2-SUM(BI$26:BI55)-AT56,0) -> 7327.45026 | BO56: =LARGE('438 timer'!$AD$2:$AI$439,$AU56) -> 1962.027869 | BP56: 2601 | BQ56: 136 | BR56: 6 | BS56: =SUMIFS($BJ$29:$BJ$2656,$BC$29:$BC$2656,"<"&BQ56,$AV$29:$AV$2656,"<="&BO56)-SUMIF(BQ$27:BQ55,">"&BQ56,BV$27:BV55)+SUMIFS(BV$27:BV55,BQ$27:BQ55,">"&BQ56,$BO$27:BO55,"<="&BO56) -> 431.5831034 | BT56: ='Input og resultater'!$I$12-SUMIF(BQ$27:BQ55,"="&BQ56,BX$27:BX55) -> 10 | BU56: =INDEX($BI$29:$BI$2656,BP56,1) -> 0 | BV56: 0 | BW56: =MAX(LARGE($BZ$29:$BZ$2656,1)-SUM(BX$27:BX55),0) -> 1045.845736 | BX56: =MIN(MAX(MIN(CE56,'Input og resultater'!$I$12,BW56),0),BT56) -> 0 | BZ56: =-INDEX($BF$29:$BF$2656,BP56,1)+INDEX($BK$29:$BK$2656,BP56,1) -> 551.5516159 | CA56: =INDEX($BJ$29:$BJ$2656,BP56,1) -> 0 | CB56: =SUMIF($BC$29:$BC$2656,"<"&BQ56,$BJ$29:$BJ$2656)-SUM(BX$27:BX55) -> 431.5831034 | CC56: =INDEX($BF$29:$BF$2656,BP56,1) -> 0 | CD56: =INDEX($BJ$29:$BJ$2656,BP56,1) -> 0 | CE56: 0 | CG56: =MIN(MAX(SUMIF($BC$29:$BC$2656,"<"&BQ56,$BJ$29:$BJ$2656)-SUM(BX$27:BX55),0),'Input og resultater'!$I$13) -> 188
A57: 57 | B57: 56 | D57: 0 | E57: 2.748333021 | F57: 2.748333021 | H57: 188 | I57: =MIN(D57,'Input og resultater'!$I$12,'Input og resultater'!$I$13-H57) -> 0 | J57: =MIN(E57,'Input og resultater'!$I$12,H57) -> 2.748333021 | K57: 0 | L57: 0 | N57: 0 | Q57: 188 | R57: =MIN(D57,'Input og resultater'!$I$12,'Input og resultater'!$I$13-Q57) -> 0 | S57: =MIN(F57,'Input og resultater'!$I$12,Q57) -> 2.748333021 | U57: =IF(B57>$O$2,'438 timer'!$BC57,0) -> 0 | W57: =MIN($U57-SUM(V57:$V57),'438 timer'!AK57) -> 0 | X57: =MIN($U57-SUM($V57:W57),'438 timer'!AL57) -> 0 | Y57: =MIN($U57-SUM($V57:X57),'438 timer'!AM57) -> 0 | Z57: =MIN($U57-SUM($V57:Y57),'438 timer'!AN57) -> 0 | AA57: =MIN($U57-SUM($V57:Z57),'438 timer'!AO57) -> 0 | AB57: =MIN($U57-SUM($V57:AA57),'438 timer'!AP57) -> 0 | AE57: 0 | AF57: 0 | AG57: 0 | AH57: 0 | AI57: 0 | AJ57: 0 | AT57: 0 | AU57: 29 | AV57: =SMALL('438 timer'!$AD$2:$AI$439,$AU57) -> 1.55e-05 | AW57: =IFERROR(MATCH($AV57,'438 timer'!AD$2:AD$439,0),0) -> 15 | AX57: =IFERROR(MATCH($AV57,'438 timer'!AE$2:AE$439,0),0) -> 0 | AY57: =IFERROR(MATCH($AV57,'438 timer'!AF$2:AF$439,0),0) -> 0 | AZ57: =IFERROR(MATCH($AV57,'438 timer'!AG$2:AG$439,0),0) -> 0 | BA57: =IFERROR(MATCH($AV57,'438 timer'!AH$2:AH$439,0),0) -> 0 | BB57: =IFERROR(MATCH($AV57,'438 timer'!AI$2:AI$439,0),0) -> 0 | BC57: 15 | BD57: 1 | BE57: =INDEX('438 timer'!$AK$2:$AQ$439,BC57,BD57) -> 0 | BF57: =MAX(INDEX('438 timer'!$BC$2:$BC$439,BC57,)-SUMIF(BC$27:BC56,"="&BC57,BI$27:BI56),0) -> 17.34258302 | BG57: =MAX(INDEX('438 timer'!$BD$2:$BD$439,BC57,1)-SUM(BI$26:BI56),0) -> 7051.896079 | BH57: ='Input og resultater'!$I$12-SUMIF(BC$27:BC56,"="&BC57,BJ$27:BJ56) -> 10 | BI57: 0 | BJ57: 0 | BK57: =SUMIF(BC$27:BC56,"<="&BC57,BJ$27:BJ56)+'438 timer'!$AS$2 -> 119.9685126 | BL57: =INDEX($BV$29:$BV$2656,BP57,1) -> 0 | BM57: =INDEX('438 timer'!$BC$2:$BC$439,BC57,) -> 17.34258302 | BN57: =MAX('438 timer'!$BD$2-SUM(BI$26:BI56)-AT57,0) -> 7327.45026 | BO57: =LARGE('438 timer'!$AD$2:$AI$439,$AU57) -> 1947.416731 | BP57: 2600 | BQ57: 129 | BR57: 6 | BS57: =SUMIFS($BJ$29:$BJ$2656,$BC$29:$BC$2656,"<"&BQ57,$AV$29:$AV$2656,"<="&BO57)-SUMIF(BQ$27:BQ56,">"&BQ57,BV$27:BV56)+SUMIFS(BV$27:BV56,BQ$27:BQ56,">"&BQ57,$BO$27:BO56,"<="&BO57) -> 431.5831034 | BT57: ='Input og resultater'!$I$12-SUMIF(BQ$27:BQ56,"="&BQ57,BX$27:BX56) -> 10 | BU57: =INDEX($BI$29:$BI$2656,BP57,1) -> 0 | BV57: 0 | BW57: =MAX(LARGE($BZ$29:$BZ$2656,1)-SUM(BX$27:BX56),0) -> 1045.845736 | BX57: =MIN(MAX(MIN(CE57,'Input og resultater'!$I$12,BW57),0),BT57) -> 0 | BZ57: =-INDEX($BF$29:$BF$2656,BP57,1)+INDEX($BK$29:$BK$2656,BP57,1) -> 551.5516159 | CA57: =INDEX($BJ$29:$BJ$2656,BP57,1) -> 0 | CB57: =SUMIF($BC$29:$BC$2656,"<"&BQ57,$BJ$29:$BJ$2656)-SUM(BX$27:BX56) -> 431.5831034 | CC57: =INDEX($BF$29:$BF$2656,BP57,1) -> 0 | CD57: =INDEX($BJ$29:$BJ$2656,BP57,1) -> 0 | CE57: 0 | CG57: =MIN(MAX(SUMIF($BC$29:$BC$2656,"<"&BQ57,$BJ$29:$BJ$2656)-SUM(BX$27:BX56),0),'Input og resultater'!$I$13) -> 188
A58: 58 | B58: 57 | D58: 0 | E58: 2.30264502 | F58: 2.30264502 | H58: 185.251667 | I58: =MIN(D58,'Input og resultater'!$I$12,'Input og resultater'!$I$13-H58) -> 0 | J58: =MIN(E58,'Input og resultater'!$I$12,H58) -> 2.30264502 | K58: 0 | L58: 0 | N58: 0 | Q58: 185.251667 | R58: =MIN(D58,'Input og resultater'!$I$12,'Input og resultater'!$I$13-Q58) -> 0 | S58: =MIN(F58,'Input og resultater'!$I$12,Q58) -> 2.30264502 | U58: =IF(B58>$O$2,'438 timer'!$BC58,0) -> 0 | W58: =MIN($U58-SUM(V58:$V58),'438 timer'!AK58) -> 0 | X58: =MIN($U58-SUM($V58:W58),'438 timer'!AL58) -> 0 | Y58: =MIN($U58-SUM($V58:X58),'438 timer'!AM58) -> 0 | Z58: =MIN($U58-SUM($V58:Y58),'438 timer'!AN58) -> 0 | AA58: =MIN($U58-SUM($V58:Z58),'438 timer'!AO58) -> 0 | AB58: =MIN($U58-SUM($V58:AA58),'438 timer'!AP58) -> 0 | AE58: 0 | AF58: 0 | AG58: 0 | AH58: 0 | AI58: 0 | AJ58: 0 | AT58: 0 | AU58: 30 | AV58: =SMALL('438 timer'!$AD$2:$AI$439,$AU58) -> 1.56e-05 | AW58: =IFERROR(MATCH($AV58,'438 timer'!AD$2:AD$439,0),0) -> 0 | AX58: =IFERROR(MATCH($AV58,'438 timer'!AE$2:AE$439,0),0) -> 15 | AY58: =IFERROR(MATCH($AV58,'438 timer'!AF$2:AF$439,0),0) -> 0 | AZ58: =IFERROR(MATCH($AV58,'438 timer'!AG$2:AG$439,0),0) -> 0 | BA58: =IFERROR(MATCH($AV58,'438 timer'!AH$2:AH$439,0),0) -> 0 | BB58: =IFERROR(MATCH($AV58,'438 timer'!AI$2:AI$439,0),0) -> 0 | BC58: 15 | BD58: 2 | BE58: =INDEX('438 timer'!$AK$2:$AQ$439,BC58,BD58) -> 0 | BF58: =MAX(INDEX('438 timer'!$BC$2:$BC$439,BC58,)-SUMIF(BC$27:BC57,"="&BC58,BI$27:BI57),0) -> 17.34258302 | BG58: =MAX(INDEX('438 timer'!$BD$2:$BD$439,BC58,1)-SUM(BI$26:BI57),0) -> 7051.896079 | BH58: ='Input og resultater'!$I$12-SUMIF(BC$27:BC57,"="&BC58,BJ$27:BJ57) -> 10 | BI58: 0 | BJ58: 0 | BK58: =SUMIF(BC$27:BC57,"<="&BC58,BJ$27:BJ57)+'438 timer'!$AS$2 -> 119.9685126 | BL58: =INDEX($BV$29:$BV$2656,BP58,1) -> 0 | BM58: =INDEX('438 timer'!$BC$2:$BC$439,BC58,) -> 17.34258302 | BN58: =MAX('438 timer'!$BD$2-SUM(BI$26:BI57)-AT58,0) -> 7327.45026 | BO58: =LARGE('438 timer'!$AD$2:$AI$439,$AU58) -> 1938.387091 | BP58: 2599 | BQ58: 210 | BR58: 6 | BS58: =SUMIFS($BJ$29:$BJ$2656,$BC$29:$BC$2656,"<"&BQ58,$AV$29:$AV$2656,"<="&BO58)-SUMIF(BQ$27:BQ57,">"&BQ58,BV$27:BV57)+SUMIFS(BV$27:BV57,BQ$27:BQ57,">"&BQ58,$BO$27:BO57,"<="&BO58) -> 468.195519 | BT58: ='Input og resultater'!$I$12-SUMIF(BQ$27:BQ57,"="&BQ58,BX$27:BX57) -> 10 | BU58: =INDEX($BI$29:$BI$2656,BP58,1) -> 0 | BV58: 0 | BW58: =MAX(LARGE($BZ$29:$BZ$2656,1)-SUM(BX$27:BX57),0) -> 1045.845736 | BX58: =MIN(MAX(MIN(CE58,'Input og resultater'!$I$12,BW58),0),BT58) -> 0 | BZ58: =-INDEX($BF$29:$BF$2656,BP58,1)+INDEX($BK$29:$BK$2656,BP58,1) -> 588.4612296 | CA58: =INDEX($BJ$29:$BJ$2656,BP58,1) -> 0 | CB58: =SUMIF($BC$29:$BC$2656,"<"&BQ58,$BJ$29:$BJ$2656)-SUM(BX$27:BX57) -> 468.195519 | CC58: =INDEX($BF$29:$BF$2656,BP58,1) -> 0 | CD58: =INDEX($BJ$29:$BJ$2656,BP58,1) -> 0 | CE58: 0 | CG58: =MIN(MAX(SUMIF($BC$29:$BC$2656,"<"&BQ58,$BJ$29:$BJ$2656)-SUM(BX$27:BX57),0),'Input og resultater'!$I$13) -> 188
A59: 59 | B59: 58 | D59: 0 | E59: 1.634114019 | F59: 1.634114019 | H59: 182.949022 | I59: =MIN(D59,'Input og resultater'!$I$12,'Input og resultater'!$I$13-H59) -> 0 | J59: =MIN(E59,'Input og resultater'!$I$12,H59) -> 1.634114019 | K59: 0 | L59: 0 | N59: 0 | Q59: 182.949022 | R59: =MIN(D59,'Input og resultater'!$I$12,'Input og resultater'!$I$13-Q59) -> 0 | S59: =MIN(F59,'Input og resultater'!$I$12,Q59) -> 1.634114019 | U59: =IF(B59>$O$2,'438 timer'!$BC59,0) -> 0 | W59: =MIN($U59-SUM(V59:$V59),'438 timer'!AK59) -> 0 | X59: =MIN($U59-SUM($V59:W59),'438 timer'!AL59) -> 0 | Y59: =MIN($U59-SUM($V59:X59),'438 timer'!AM59) -> 0 | Z59: =MIN($U59-SUM($V59:Y59),'438 timer'!AN59) -> 0 | AA59: =MIN($U59-SUM($V59:Z59),'438 timer'!AO59) -> 0 | AB59: =MIN($U59-SUM($V59:AA59),'438 timer'!AP59) -> 0 | AE59: 0 | AF59: 0 | AG59: 0 | AH59: 0 | AI59: 0 | AJ59: 0 | AT59: 0 | AU59: 31 | AV59: =SMALL('438 timer'!$AD$2:$AI$439,$AU59) -> 1.65e-05 | AW59: =IFERROR(MATCH($AV59,'438 timer'!AD$2:AD$439,0),0) -> 16 | AX59: =IFERROR(MATCH($AV59,'438 timer'!AE$2:AE$439,0),0) -> 0 | AY59: =IFERROR(MATCH($AV59,'438 timer'!AF$2:AF$439,0),0) -> 0 | AZ59: =IFERROR(MATCH($AV59,'438 timer'!AG$2:AG$439,0),0) -> 0 | BA59: =IFERROR(MATCH($AV59,'438 timer'!AH$2:AH$439,0),0) -> 0 | BB59: =IFERROR(MATCH($AV59,'438 timer'!AI$2:AI$439,0),0) -> 0 | BC59: 16 | BD59: 1 | BE59: =INDEX('438 timer'!$AK$2:$AQ$439,BC59,BD59) -> 0 | BF59: =MAX(INDEX('438 timer'!$BC$2:$BC$439,BC59,)-SUMIF(BC$27:BC58,"="&BC59,BI$27:BI58),0) -> 17.34258302 | BG59: =MAX(INDEX('438 timer'!$BD$2:$BD$439,BC59,1)-SUM(BI$26:BI58),0) -> 7034.553496 | BH59: ='Input og resultater'!$I$12-SUMIF(BC$27:BC58,"="&BC59,BJ$27:BJ58) -> 10 | BI59: 0 | BJ59: 0 | BK59: =SUMIF(BC$27:BC58,"<="&BC59,BJ$27:BJ58)+'438 timer'!$AS$2 -> 119.9685126 | BL59: =INDEX($BV$29:$BV$2656,BP59,1) -> 0 | BM59: =INDEX('438 timer'!$BC$2:$BC$439,BC59,) -> 17.34258302 | BN59: =MAX('438 timer'!$BD$2-SUM(BI$26:BI58)-AT59,0) -> 7327.45026 | BO59: =LARGE('438 timer'!$AD$2:$AI$439,$AU59) -> 1924.370047 | BP59: 2598 | BQ59: 133 | BR59: 6 | BS59: =SUMIFS($BJ$29:$BJ$2656,$BC$29:$BC$2656,"<"&BQ59,$AV$29:$AV$2656,"<="&BO59)-SUMIF(BQ$27:BQ58,">"&BQ59,BV$27:BV58)+SUMIFS(BV$27:BV58,BQ$27:BQ58,">"&BQ59,$BO$27:BO58,"<="&BO59) -> 431.5831034 | BT59: ='Input og resultater'!$I$12-SUMIF(BQ$27:BQ58,"="&BQ59,BX$27:BX58) -> 10 | BU59: =INDEX($BI$29:$BI$2656,BP59,1) -> 0 | BV59: 0 | BW59: =MAX(LARGE($BZ$29:$BZ$2656,1)-SUM(BX$27:BX58),0) -> 1045.845736 | BX59: =MIN(MAX(MIN(CE59,'Input og resultater'!$I$12,BW59),0),BT59) -> 0 | BZ59: =-INDEX($BF$29:$BF$2656,BP59,1)+INDEX($BK$29:$BK$2656,BP59,1) -> 551.5516159 | CA59: =INDEX($BJ$29:$BJ$2656,BP59,1) -> 0 | CB59: =SUMIF($BC$29:$BC$2656,"<"&BQ59,$BJ$29:$BJ$2656)-SUM(BX$27:BX58) -> 431.5831034 | CC59: =INDEX($BF$29:$BF$2656,BP59,1) -> 0 | CD59: =INDEX($BJ$29:$BJ$2656,BP59,1) -> 0 | CE59: 0 | CG59: =MIN(MAX(SUMIF($BC$29:$BC$2656,"<"&BQ59,$BJ$29:$BJ$2656)-SUM(BX$27:BX58),0),'Input og resultater'!$I$13) -> 188
A60: 60 | B60: 59 | D60: 0 | E60: 1.188427019 | F60: 1.188427019 | H60: 181.3149079 | I60: =MIN(D60,'Input og resultater'!$I$12,'Input og resultater'!$I$13-H60) -> 0 | J60: =MIN(E60,'Input og resultater'!$I$12,H60) -> 1.188427019 | K60: 0 | L60: 0 | N60: 0 | Q60: 181.3149079 | R60: =MIN(D60,'Input og resultater'!$I$12,'Input og resultater'!$I$13-Q60) -> 0 | S60: =MIN(F60,'Input og resultater'!$I$12,Q60) -> 1.188427019 | U60: =IF(B60>$O$2,'438 timer'!$BC60,0) -> 0 | W60: =MIN($U60-SUM(V60:$V60),'438 timer'!AK60) -> 0 | X60: =MIN($U60-SUM($V60:W60),'438 timer'!AL60) -> 0 | Y60: =MIN($U60-SUM($V60:X60),'438 timer'!AM60) -> 0 | Z60: =MIN($U60-SUM($V60:Y60),'438 timer'!AN60) -> 0 | AA60: =MIN($U60-SUM($V60:Z60),'438 timer'!AO60) -> 0 | AB60: =MIN($U60-SUM($V60:AA60),'438 timer'!AP60) -> 0 | AE60: 0 | AF60: 0 | AG60: 0 | AH60: 0 | AI60: 0 | AJ60: 0 | AT60: 0 | AU60: 32 | AV60: =SMALL('438 timer'!$AD$2:$AI$439,$AU60) -> 1.66e-05 | AW60: =IFERROR(MATCH($AV60,'438 timer'!AD$2:AD$439,0),0) -> 0 | AX60: =IFERROR(MATCH($AV60,'438 timer'!AE$2:AE$439,0),0) -> 16 | AY60: =IFERROR(MATCH($AV60,'438 timer'!AF$2:AF$439,0),0) -> 0 | AZ60: =IFERROR(MATCH($AV60,'438 timer'!AG$2:AG$439,0),0) -> 0 | BA60: =IFERROR(MATCH($AV60,'438 timer'!AH$2:AH$439,0),0) -> 0 | BB60: =IFERROR(MATCH($AV60,'438 timer'!AI$2:AI$439,0),0) -> 0 | BC60: 16 | BD60: 2 | BE60: =INDEX('438 timer'!$AK$2:$AQ$439,BC60,BD60) -> 0 | BF60: =MAX(INDEX('438 timer'!$BC$2:$BC$439,BC60,)-SUMIF(BC$27:BC59,"="&BC60,BI$27:BI59),0) -> 17.34258302 | BG60: =MAX(INDEX('438 timer'!$BD$2:$BD$439,BC60,1)-SUM(BI$26:BI59),0) -> 7034.553496 | BH60: ='Input og resultater'!$I$12-SUMIF(BC$27:BC59,"="&BC60,BJ$27:BJ59) -> 10 | BI60: 0 | BJ60: 0 | BK60: =SUMIF(BC$27:BC59,"<="&BC60,BJ$27:BJ59)+'438 timer'!$AS$2 -> 119.9685126 | BL60: =INDEX($BV$29:$BV$2656,BP60,1) -> 0 | BM60: =INDEX('438 timer'!$BC$2:$BC$439,BC60,) -> 17.34258302 | BN60: =MAX('438 timer'!$BD$2-SUM(BI$26:BI59)-AT60,0) -> 7327.45026 | BO60: =LARGE('438 timer'!$AD$2:$AI$439,$AU60) -> 1920.115289 | BP60: 2597 | BQ60: 353 | BR60: 6 | BS60: =SUMIFS($BJ$29:$BJ$2656,$BC$29:$BC$2656,"<"&BQ60,$AV$29:$AV$2656,"<="&BO60)-SUMIF(BQ$27:BQ59,">"&BQ60,BV$27:BV59)+SUMIFS(BV$27:BV59,BQ$27:BQ59,">"&BQ60,$BO$27:BO59,"<="&BO60) -> 815.8772234 | BT60: ='Input og resultater'!$I$12-SUMIF(BQ$27:BQ59,"="&BQ60,BX$27:BX59) -> 10 | BU60: =INDEX($BI$29:$BI$2656,BP60,1) -> 0 | BV60: 0 | BW60: =MAX(LARGE($BZ$29:$BZ$2656,1)-SUM(BX$27:BX59),0) -> 1045.845736 | BX60: =MIN(MAX(MIN(CE60,'Input og resultater'!$I$12,BW60),0),BT60) -> 0 | BZ60: =-INDEX($BF$29:$BF$2656,BP60,1)+INDEX($BK$29:$BK$2656,BP60,1) -> 935.845736 | CA60: =INDEX($BJ$29:$BJ$2656,BP60,1) -> 0 | CB60: =SUMIF($BC$29:$BC$2656,"<"&BQ60,$BJ$29:$BJ$2656)-SUM(BX$27:BX59) -> 815.8772234 | CC60: =INDEX($BF$29:$BF$2656,BP60,1) -> 0 | CD60: =INDEX($BJ$29:$BJ$2656,BP60,1) -> 0 | CE60: 0 | CG60: =MIN(MAX(SUMIF($BC$29:$BC$2656,"<"&BQ60,$BJ$29:$BJ$2656)-SUM(BX$27:BX59),0),'Input og resultater'!$I$13) -> 188
A61: 61 | B61: 60 | D61: 0 | E61: 0.519896018 | F61: 0.519896018 | H61: 180.1264809 | I61: =MIN(D61,'Input og resultater'!$I$12,'Input og resultater'!$I$13-H61) -> 0 | J61: =MIN(E61,'Input og resultater'!$I$12,H61) -> 0.519896018 | K61: 0 | L61: 0 | N61: 0 | Q61: 180.1264809 | R61: =MIN(D61,'Input og resultater'!$I$12,'Input og resultater'!$I$13-Q61) -> 0 | S61: =MIN(F61,'Input og resultater'!$I$12,Q61) -> 0.519896018 | U61: =IF(B61>$O$2,'438 timer'!$BC61,0) -> 0 | W61: =MIN($U61-SUM(V61:$V61),'438 timer'!AK61) -> 0 | X61: =MIN($U61-SUM($V61:W61),'438 timer'!AL61) -> 0 | Y61: =MIN($U61-SUM($V61:X61),'438 timer'!AM61) -> 0 | Z61: =MIN($U61-SUM($V61:Y61),'438 timer'!AN61) -> 0 | AA61: =MIN($U61-SUM($V61:Z61),'438 timer'!AO61) -> 0 | AB61: =MIN($U61-SUM($V61:AA61),'438 timer'!AP61) -> 0 | AE61: 0 | AF61: 0 | AG61: 0 | AH61: 0 | AI61: 0 | AJ61: 0 | AT61: 0 | AU61: 33 | AV61: =SMALL('438 timer'!$AD$2:$AI$439,$AU61) -> 1.75e-05 | AW61: =IFERROR(MATCH($AV61,'438 timer'!AD$2:AD$439,0),0) -> 17 | AX61: =IFERROR(MATCH($AV61,'438 timer'!AE$2:AE$439,0),0) -> 0 | AY61: =IFERROR(MATCH($AV61,'438 timer'!AF$2:AF$439,0),0) -> 0 | AZ61: =IFERROR(MATCH($AV61,'438 timer'!AG$2:AG$439,0),0) -> 0 | BA61: =IFERROR(MATCH($AV61,'438 timer'!AH$2:AH$439,0),0) -> 0 | BB61: =IFERROR(MATCH($AV61,'438 timer'!AI$2:AI$439,0),0) -> 0 | BC61: 17 | BD61: 1 | BE61: =INDEX('438 timer'!$AK$2:$AQ$439,BC61,BD61) -> 0 | BF61: =MAX(INDEX('438 timer'!$BC$2:$BC$439,BC61,)-SUMIF(BC$27:BC60,"="&BC61,BI$27:BI60),0) -> 17.86255102 | BG61: =MAX(INDEX('438 timer'!$BD$2:$BD$439,BC61,1)-SUM(BI$26:BI60),0) -> 7017.210913 | BH61: ='Input og resultater'!$I$12-SUMIF(BC$27:BC60,"="&BC61,BJ$27:BJ60) -> 10 | BI61: 0 | BJ61: 0 | BK61: =SUMIF(BC$27:BC60,"<="&BC61,BJ$27:BJ60)+'438 timer'!$AS$2 -> 119.9685126 | BL61: =INDEX($BV$29:$BV$2656,BP61,1) -> 0 | BM61: =INDEX('438 timer'!$BC$2:$BC$439,BC61,) -> 17.86255102 | BN61: =MAX('438 timer'!$BD$2-SUM(BI$26:BI60)-AT61,0) -> 7327.45026 | BO61: =LARGE('438 timer'!$AD$2:$AI$439,$AU61) -> 1875.199512 | BP61: 2596 | BQ61: 140 | BR61: 6 | BS61: =SUMIFS($BJ$29:$BJ$2656,$BC$29:$BC$2656,"<"&BQ61,$AV$29:$AV$2656,"<="&BO61)-SUMIF(BQ$27:BQ60,">"&BQ61,BV$27:BV60)+SUMIFS(BV$27:BV60,BQ$27:BQ60,">"&BQ61,$BO$27:BO60,"<="&BO61) -> 431.5831034 | BT61: ='Input og resultater'!$I$12-SUMIF(BQ$27:BQ60,"="&BQ61,BX$27:BX60) -> 10 | BU61: =INDEX($BI$29:$BI$2656,BP61,1) -> 0 | BV61: 0 | BW61: =MAX(LARGE($BZ$29:$BZ$2656,1)-SUM(BX$27:BX60),0) -> 1045.845736 | BX61: =MIN(MAX(MIN(CE61,'Input og resultater'!$I$12,BW61),0),BT61) -> 0 | BZ61: =-INDEX($BF$29:$BF$2656,BP61,1)+INDEX($BK$29:$BK$2656,BP61,1) -> 551.5516159 | CA61: =INDEX($BJ$29:$BJ$2656,BP61,1) -> 0 | CB61: =SUMIF($BC$29:$BC$2656,"<"&BQ61,$BJ$29:$BJ$2656)-SUM(BX$27:BX60) -> 431.5831034 | CC61: =INDEX($BF$29:$BF$2656,BP61,1) -> 0 | CD61: =INDEX($BJ$29:$BJ$2656,BP61,1) -> 0 | CE61: 0 | CG61: =MIN(MAX(SUMIF($BC$29:$BC$2656,"<"&BQ61,$BJ$29:$BJ$2656)-SUM(BX$27:BX60),0),'Input og resultater'!$I$13) -> 188
A62: 62 | B62: 61 | D62: 0 | E62: 0.07420801748 | F62: 0.07420801748 | H62: 179.6065849 | I62: =MIN(D62,'Input og resultater'!$I$12,'Input og resultater'!$I$13-H62) -> 0 | J62: =MIN(E62,'Input og resultater'!$I$12,H62) -> 0.07420801748 | K62: 0 | L62: 0 | N62: 0 | Q62: 179.6065849 | R62: =MIN(D62,'Input og resultater'!$I$12,'Input og resultater'!$I$13-Q62) -> 0 | S62: =MIN(F62,'Input og resultater'!$I$12,Q62) -> 0.07420801748 | U62: =IF(B62>$O$2,'438 timer'!$BC62,0) -> 0 | W62: =MIN($U62-SUM(V62:$V62),'438 timer'!AK62) -> 0 | X62: =MIN($U62-SUM($V62:W62),'438 timer'!AL62) -> 0 | Y62: =MIN($U62-SUM($V62:X62),'438 timer'!AM62) -> 0 | Z62: =MIN($U62-SUM($V62:Y62),'438 timer'!AN62) -> 0 | AA62: =MIN($U62-SUM($V62:Z62),'438 timer'!AO62) -> 0 | AB62: =MIN($U62-SUM($V62:AA62),'438 timer'!AP62) -> 0 | AE62: 0 | AF62: 0 | AG62: 0 | AH62: 0 | AI62: 0 | AJ62: 0 | AT62: 0 | AU62: 34 | AV62: =SMALL('438 timer'!$AD$2:$AI$439,$AU62) -> 1.76e-05 | AW62: =IFERROR(MATCH($AV62,'438 timer'!AD$2:AD$439,0),0) -> 0 | AX62: =IFERROR(MATCH($AV62,'438 timer'!AE$2:AE$439,0),0) -> 17 | AY62: =IFERROR(MATCH($AV62,'438 timer'!AF$2:AF$439,0),0) -> 0 | AZ62: =IFERROR(MATCH($AV62,'438 timer'!AG$2:AG$439,0),0) -> 0 | BA62: =IFERROR(MATCH($AV62,'438 timer'!AH$2:AH$439,0),0) -> 0 | BB62: =IFERROR(MATCH($AV62,'438 timer'!AI$2:AI$439,0),0) -> 0 | BC62: 17 | BD62: 2 | BE62: =INDEX('438 timer'!$AK$2:$AQ$439,BC62,BD62) -> 0 | BF62: =MAX(INDEX('438 timer'!$BC$2:$BC$439,BC62,)-SUMIF(BC$27:BC61,"="&BC62,BI$27:BI61),0) -> 17.86255102 | BG62: =MAX(INDEX('438 timer'!$BD$2:$BD$439,BC62,1)-SUM(BI$26:BI61),0) -> 7017.210913 | BH62: ='Input og resultater'!$I$12-SUMIF(BC$27:BC61,"="&BC62,BJ$27:BJ61) -> 10 | BI62: 0 | BJ62: =MAX(BI62-BF62,0) -> 0 | BK62: =SUMIF(BC$27:BC61,"<="&BC62,BJ$27:BJ61)+'438 timer'!$AS$2 -> 119.9685126 | BL62: =INDEX($BV$29:$BV$2656,BP62,1) -> 0 | BM62: =INDEX('438 timer'!$BC$2:$BC$439,BC62,) -> 17.86255102 | BN62: =MAX('438 timer'!$BD$2-SUM(BI$26:BI61)-AT62,0) -> 7327.45026 | BO62: =LARGE('438 timer'!$AD$2:$AI$439,$AU62) -> 1860.524654 | BP62: 2595 | BQ62: 141 | BR62: 6 | BS62: =SUMIFS($BJ$29:$BJ$2656,$BC$29:$BC$2656,"<"&BQ62,$AV$29:$AV$2656,"<="&BO62)-SUMIF(BQ$27:BQ61,">"&BQ62,BV$27:BV61)+SUMIFS(BV$27:BV61,BQ$27:BQ61,">"&BQ62,$BO$27:BO61,"<="&BO62) -> 431.5831034 | BT62: ='Input og resultater'!$I$12-SUMIF(BQ$27:BQ61,"="&BQ62,BX$27:BX61) -> 10 | BU62: =INDEX($BI$29:$BI$2656,BP62,1) -> 0 | BV62: 0 | BW62: =MAX(LARGE($BZ$29:$BZ$2656,1)-SUM(BX$27:BX61),0) -> 1045.845736 | BX62: =MIN(MAX(MIN(CE62,'Input og resultater'!$I$12,BW62),0),BT62) -> 0 | BZ62: =-INDEX($BF$29:$BF$2656,BP62,1)+INDEX($BK$29:$BK$2656,BP62,1) -> 551.5516159 | CA62: =INDEX($BJ$29:$BJ$2656,BP62,1) -> 0 | CB62: =SUMIF($BC$29:$BC$2656,"<"&BQ62,$BJ$29:$BJ$2656)-SUM(BX$27:BX61) -> 431.5831034 | CC62: =INDEX($BF$29:$BF$2656,BP62,1) -> 0 | CD62: =INDEX($BJ$29:$BJ$2656,BP62,1) -> 0 | CE62: 0 | CG62: =MIN(MAX(SUMIF($BC$29:$BC$2656,"<"&BQ62,$BJ$29:$BJ$2656)-SUM(BX$27:BX61),0),'Input og resultater'!$I$13) -> 188
A63: 63 | B63: 62 | D63: 0.1486349828 | E63: 0 | F63: 0 | H63: 179.5323769 | I63: =MIN(D63,'Input og resultater'!$I$12,'Input og resultater'!$I$13-H63) -> 0.1486349828 | J63: =MIN(E63,'Input og resultater'!$I$12,H63) -> 0 | K63: 0 | L63: 0 | N63: 1.000567 | Q63: 179.5323769 | R63: =MIN(D63,'Input og resultater'!$I$12,'Input og resultater'!$I$13-Q63) -> 0.1486349828 | S63: =MIN(F63,'Input og resultater'!$I$12,Q63) -> 0 | U63: =IF(B63>$O$2,'438 timer'!$BC63,0) -> 0 | W63: =MIN($U63-SUM(V63:$V63),'438 timer'!AK63) -> 0 | X63: =MIN($U63-SUM($V63:W63),'438 timer'!AL63) -> 0 | Y63: =MIN($U63-SUM($V63:X63),'438 timer'!AM63) -> 0 | Z63: =MIN($U63-SUM($V63:Y63),'438 timer'!AN63) -> 0 | AA63: =MIN($U63-SUM($V63:Z63),'438 timer'!AO63) -> 0 | AB63: =MIN($U63-SUM($V63:AA63),'438 timer'!AP63) -> 0 | AE63: 0 | AF63: 0 | AG63: 0 | AH63: 0 | AI63: 0 | AJ63: 0 | AT63: 0 | AU63: 35 | AV63: =SMALL('438 timer'!$AD$2:$AI$439,$AU63) -> 1.85e-05 | AW63: =IFERROR(MATCH($AV63,'438 timer'!AD$2:AD$439,0),0) -> 18 | AX63: =IFERROR(MATCH($AV63,'438 timer'!AE$2:AE$439,0),0) -> 0 | AY63: =IFERROR(MATCH($AV63,'438 timer'!AF$2:AF$439,0),0) -> 0 | AZ63: =IFERROR(MATCH($AV63,'438 timer'!AG$2:AG$439,0),0) -> 0 | BA63: =IFERROR(MATCH($AV63,'438 timer'!AH$2:AH$439,0),0) -> 0 | BB63: =IFERROR(MATCH($AV63,'438 timer'!AI$2:AI$439,0),0) -> 0 | BC63: 18 | BD63: 1 | BE63: =INDEX('438 timer'!$AK$2:$AQ$439,BC63,BD63) -> 0 | BF63: =MAX(INDEX('438 timer'!$BC$2:$BC$439,BC63,)-SUMIF(BC$27:BC62,"="&BC63,BI$27:BI62),0) -> 18.38252002 | BG63: =MAX(INDEX('438 timer'!$BD$2:$BD$439,BC63,1)-SUM(BI$26:BI62),0) -> 6999.348362 | BH63: ='Input og resultater'!$I$12-SUMIF(BC$27:BC62,"="&BC63,BJ$27:BJ62) -> 10 | BI63: 0 | BJ63: 0 | BK63: =SUMIF(BC$27:BC62,"<="&BC63,BJ$27:BJ62)+'438 timer'!$AS$2 -> 119.9685126 | BL63: =INDEX($BV$29:$BV$2656,BP63,1) -> 0 | BM63: =INDEX('438 timer'!$BC$2:$BC$439,BC63,) -> 18.38252002 | BN63: =MAX('438 timer'!$BD$2-SUM(BI$26:BI62)-AT63,0) -> 7327.45026 | BO63: =LARGE('438 timer'!$AD$2:$AI$439,$AU63) -> 1845.913647 | BP63: 2594 | BQ63: 135 | BR63: 6 | BS63: =SUMIFS($BJ$29:$BJ$2656,$BC$29:$BC$2656,"<"&BQ63,$AV$29:$AV$2656,"<="&BO63)-SUMIF(BQ$27:BQ62,">"&BQ63,BV$27:BV62)+SUMIFS(BV$27:BV62,BQ$27:BQ62,">"&BQ63,$BO$27:BO62,"<="&BO63) -> 431.5831034 | BT63: ='Input og resultater'!$I$12-SUMIF(BQ$27:BQ62,"="&BQ63,BX$27:BX62) -> 10 | BU63: =INDEX($BI$29:$BI$2656,BP63,1) -> 0 | BV63: 0 | BW63: =MAX(LARGE($BZ$29:$BZ$2656,1)-SUM(BX$27:BX62),0) -> 1045.845736 | BX63: =MIN(MAX(MIN(CE63,'Input og resultater'!$I$12,BW63),0),BT63) -> 0 | BZ63: =-INDEX($BF$29:$BF$2656,BP63,1)+INDEX($BK$29:$BK$2656,BP63,1) -> 551.5516159 | CA63: =INDEX($BJ$29:$BJ$2656,BP63,1) -> 0 | CB63: =SUMIF($BC$29:$BC$2656,"<"&BQ63,$BJ$29:$BJ$2656)-SUM(BX$27:BX62) -> 431.5831034 | CC63: =INDEX($BF$29:$BF$2656,BP63,1) -> 0 | CD63: =INDEX($BJ$29:$BJ$2656,BP63,1) -> 0 | CE63: 0 | CG63: =MIN(MAX(SUMIF($BC$29:$BC$2656,"<"&BQ63,$BJ$29:$BJ$2656)-SUM(BX$27:BX62),0),'Input og resultater'!$I$13) -> 188
A64: 64 | B64: 63 | D64: 0.3714789831 | E64: 0 | F64: 0 | H64: 179.6810119 | I64: =MIN(D64,'Input og resultater'!$I$12,'Input og resultater'!$I$13-H64) -> 0.3714789831 | J64: =MIN(E64,'Input og resultater'!$I$12,H64) -> 0 | K64: 0 | L64: 0 | N64: 1.000576 | Q64: 179.6810119 | R64: =MIN(D64,'Input og resultater'!$I$12,'Input og resultater'!$I$13-Q64) -> 0.3714789831 | S64: =MIN(F64,'Input og resultater'!$I$12,Q64) -> 0 | U64: =IF(B64>$O$2,'438 timer'!$BC64,0) -> 0 | W64: =MIN($U64-SUM(V64:$V64),'438 timer'!AK64) -> 0 | X64: =MIN($U64-SUM($V64:W64),'438 timer'!AL64) -> 0 | Y64: =MIN($U64-SUM($V64:X64),'438 timer'!AM64) -> 0 | Z64: =MIN($U64-SUM($V64:Y64),'438 timer'!AN64) -> 0 | AA64: =MIN($U64-SUM($V64:Z64),'438 timer'!AO64) -> 0 | AB64: =MIN($U64-SUM($V64:AA64),'438 timer'!AP64) -> 0 | AE64: 0 | AF64: 0 | AG64: 0 | AH64: 0 | AI64: 0 | AJ64: 0 | AT64: 0 | AU64: 36 | AV64: =SMALL('438 timer'!$AD$2:$AI$439,$AU64) -> 1.86e-05 | AW64: =IFERROR(MATCH($AV64,'438 timer'!AD$2:AD$439,0),0) -> 0 | AX64: =IFERROR(MATCH($AV64,'438 timer'!AE$2:AE$439,0),0) -> 18 | AY64: =IFERROR(MATCH($AV64,'438 timer'!AF$2:AF$439,0),0) -> 0 | AZ64: =IFERROR(MATCH($AV64,'438 timer'!AG$2:AG$439,0),0) -> 0 | BA64: =IFERROR(MATCH($AV64,'438 timer'!AH$2:AH$439,0),0) -> 0 | BB64: =IFERROR(MATCH($AV64,'438 timer'!AI$2:AI$439,0),0) -> 0 | BC64: 18 | BD64: 2 | BE64: =INDEX('438 timer'!$AK$2:$AQ$439,BC64,BD64) -> 0 | BF64: =MAX(INDEX('438 timer'!$BC$2:$BC$439,BC64,)-SUMIF(BC$27:BC63,"="&BC64,BI$27:BI63),0) -> 18.38252002 | BG64: =MAX(INDEX('438 timer'!$BD$2:$BD$439,BC64,1)-SUM(BI$26:BI63),0) -> 6999.348362 | BH64: ='Input og resultater'!$I$12-SUMIF(BC$27:BC63,"="&BC64,BJ$27:BJ63) -> 10 | BI64: 0 | BJ64: 0 | BK64: =SUMIF(BC$27:BC63,"<="&BC64,BJ$27:BJ63)+'438 timer'!$AS$2 -> 119.9685126 | BL64: =INDEX($BV$29:$BV$2656,BP64,1) -> 0 | BM64: =INDEX('438 timer'!$BC$2:$BC$439,BC64,) -> 18.38252002 | BN64: =MAX('438 timer'!$BD$2-SUM(BI$26:BI63)-AT64,0) -> 7327.45026 | BO64: =LARGE('438 timer'!$AD$2:$AI$439,$AU64) -> 1841.499502 | BP64: 2593 | BQ64: 131 | BR64: 6 | BS64: =SUMIFS($BJ$29:$BJ$2656,$BC$29:$BC$2656,"<"&BQ64,$AV$29:$AV$2656,"<="&BO64)-SUMIF(BQ$27:BQ63,">"&BQ64,BV$27:BV63)+SUMIFS(BV$27:BV63,BQ$27:BQ63,">"&BQ64,$BO$27:BO63,"<="&BO64) -> 431.5831034 | BT64: ='Input og resultater'!$I$12-SUMIF(BQ$27:BQ63,"="&BQ64,BX$27:BX63) -> 10 | BU64: =INDEX($BI$29:$BI$2656,BP64,1) -> 0 | BV64: 0 | BW64: =MAX(LARGE($BZ$29:$BZ$2656,1)-SUM(BX$27:BX63),0) -> 1045.845736 | BX64: =MIN(MAX(MIN(CE64,'Input og resultater'!$I$12,BW64),0),BT64) -> 0 | BZ64: =-INDEX($BF$29:$BF$2656,BP64,1)+INDEX($BK$29:$BK$2656,BP64,1) -> 551.5516159 | CA64: =INDEX($BJ$29:$BJ$2656,BP64,1) -> 0 | CB64: =SUMIF($BC$29:$BC$2656,"<"&BQ64,$BJ$29:$BJ$2656)-SUM(BX$27:BX63) -> 431.5831034 | CC64: =INDEX($BF$29:$BF$2656,BP64,1) -> 0 | CD64: =INDEX($BJ$29:$BJ$2656,BP64,1) -> 0 | CE64: 0 | CG64: =MIN(MAX(SUMIF($BC$29:$BC$2656,"<"&BQ64,$BJ$29:$BJ$2656)-SUM(BX$27:BX63),0),'Input og resultater'!$I$13) -> 188
A65: 65 | B65: 64 | D65: 0 | E65: 0.6684580182 | F65: 0.6684580182 | H65: 180.0524909 | I65: =MIN(D65,'Input og resultater'!$I$12,'Input og resultater'!$I$13-H65) -> 0 | J65: =MIN(E65,'Input og resultater'!$I$12,H65) -> 0.6684580182 | K65: 0 | L65: 0 | N65: 0 | Q65: 180.0524909 | R65: =MIN(D65,'Input og resultater'!$I$12,'Input og resultater'!$I$13-Q65) -> 0 | S65: =MIN(F65,'Input og resultater'!$I$12,Q65) -> 0.6684580182 | U65: =IF(B65>$O$2,'438 timer'!$BC65,0) -> 0 | W65: =MIN($U65-SUM(V65:$V65),'438 timer'!AK65) -> 0 | X65: =MIN($U65-SUM($V65:W65),'438 timer'!AL65) -> 0 | Y65: =MIN($U65-SUM($V65:X65),'438 timer'!AM65) -> 0 | Z65: =MIN($U65-SUM($V65:Y65),'438 timer'!AN65) -> 0 | AA65: =MIN($U65-SUM($V65:Z65),'438 timer'!AO65) -> 0 | AB65: =MIN($U65-SUM($V65:AA65),'438 timer'!AP65) -> 0 | AE65: 0 | AF65: 0 | AG65: 0 | AH65: 0 | AI65: 0 | AJ65: 0 | AT65: 0 | AU65: 37 | AV65: =SMALL('438 timer'!$AD$2:$AI$439,$AU65) -> 1.95e-05 | AW65: =IFERROR(MATCH($AV65,'438 timer'!AD$2:AD$439,0),0) -> 19 | AX65: =IFERROR(MATCH($AV65,'438 timer'!AE$2:AE$439,0),0) -> 0 | AY65: =IFERROR(MATCH($AV65,'438 timer'!AF$2:AF$439,0),0) -> 0 | AZ65: =IFERROR(MATCH($AV65,'438 timer'!AG$2:AG$439,0),0) -> 0 | BA65: =IFERROR(MATCH($AV65,'438 timer'!AH$2:AH$439,0),0) -> 0 | BB65: =IFERROR(MATCH($AV65,'438 timer'!AI$2:AI$439,0),0) -> 0 | BC65: 19 | BD65: 1 | BE65: =INDEX('438 timer'!$AK$2:$AQ$439,BC65,BD65) -> 0 | BF65: =MAX(INDEX('438 timer'!$BC$2:$BC$439,BC65,)-SUMIF(BC$27:BC64,"="&BC65,BI$27:BI64),0) -> 19.42245702 | BG65: =MAX(INDEX('438 timer'!$BD$2:$BD$439,BC65,1)-SUM(BI$26:BI64),0) -> 6980.965842 | BH65: ='Input og resultater'!$I$12-SUMIF(BC$27:BC64,"="&BC65,BJ$27:BJ64) -> 10 | BI65: 0 | BJ65: 0 | BK65: =SUMIF(BC$27:BC64,"<="&BC65,BJ$27:BJ64)+'438 timer'!$AS$2 -> 119.9685126 | BL65: =INDEX($BV$29:$BV$2656,BP65,1) -> 0 | BM65: =INDEX('438 timer'!$BC$2:$BC$439,BC65,) -> 19.42245702 | BN65: =MAX('438 timer'!$BD$2-SUM(BI$26:BI64)-AT65,0) -> 7327.45026 | BO65: =LARGE('438 timer'!$AD$2:$AI$439,$AU65) -> 1832.86247 | BP65: 2592 | BQ65: 355 | BR65: 6 | BS65: =SUMIFS($BJ$29:$BJ$2656,$BC$29:$BC$2656,"<"&BQ65,$AV$29:$AV$2656,"<="&BO65)-SUMIF(BQ$27:BQ64,">"&BQ65,BV$27:BV64)+SUMIFS(BV$27:BV64,BQ$27:BQ64,">"&BQ65,$BO$27:BO64,"<="&BO65) -> 815.8772234 | BT65: ='Input og resultater'!$I$12-SUMIF(BQ$27:BQ64,"="&BQ65,BX$27:BX64) -> 10 | BU65: =INDEX($BI$29:$BI$2656,BP65,1) -> 0 | BV65: 0 | BW65: =MAX(LARGE($BZ$29:$BZ$2656,1)-SUM(BX$27:BX64),0) -> 1045.845736 | BX65: =MIN(MAX(MIN(CE65,'Input og resultater'!$I$12,BW65),0),BT65) -> 0 | BZ65: =-INDEX($BF$29:$BF$2656,BP65,1)+INDEX($BK$29:$BK$2656,BP65,1) -> 935.845736 | CA65: =INDEX($BJ$29:$BJ$2656,BP65,1) -> 0 | CB65: =SUMIF($BC$29:$BC$2656,"<"&BQ65,$BJ$29:$BJ$2656)-SUM(BX$27:BX64) -> 815.8772234 | CC65: =INDEX($BF$29:$BF$2656,BP65,1) -> 0 | CD65: =INDEX($BJ$29:$BJ$2656,BP65,1) -> 0 | CE65: 0 | CG65: =MIN(MAX(SUMIF($BC$29:$BC$2656,"<"&BQ65,$BJ$29:$BJ$2656)-SUM(BX$27:BX64),0),'Input og resultater'!$I$13) -> 188
A66: 66 | B66: 65 | D66: =SUMIF($BC$29:$BC$2656,"="&B66,$BJ$29:$BJ$2656) -> 0 | E66: =SUMIF($BC$29:$BC$2656,"="&B66,$BL$29:$BL$2656) -> 0.8913020185 | F66: =IF(B66>O$2,SUM(AE66:AJ66),E66) -> 0.8913020185 | H66: 179.3840328 | I66: =MIN(D66,'Input og resultater'!$I$12,'Input og resultater'!$I$13-H66) -> 0 | J66: =MIN(E66,'Input og resultater'!$I$12,H66) -> 0.8913020185 | K66: 0 | L66: 0 | N66: =IF(D66>0,1+A66*0.000009,0) -> 0 | Q66: 179.3840328 | R66: =MIN(D66,'Input og resultater'!$I$12,'Input og resultater'!$I$13-Q66) -> 0 | S66: =MIN(F66,'Input og resultater'!$I$12,Q66) -> 0.8913020185 | U66: =IF(B66>$O$2,'438 timer'!$BC66,0) -> 0 | W66: =MIN($U66-SUM(V66:$V66),'438 timer'!AK66) -> 0 | X66: =MIN($U66-SUM($V66:W66),'438 timer'!AL66) -> 0 | Y66: =MIN($U66-SUM($V66:X66),'438 timer'!AM66) -> 0 | Z66: =MIN($U66-SUM($V66:Y66),'438 timer'!AN66) -> 0 | AA66: =MIN($U66-SUM($V66:Z66),'438 timer'!AO66) -> 0 | AB66: =MIN($U66-SUM($V66:AA66),'438 timer'!AP66) -> 0 | AE66: =W66*AM$4 -> 0 | AF66: =X66*AN$4 -> 0 | AG66: =Y66*AO$4 -> 0 | AH66: =Z66*AP$4 -> 0 | AI66: =AA66*AQ$4 -> 0 | AJ66: =AB66*AR$4 -> 0 | AT66: 0 | AU66: 38 | AV66: =SMALL('438 timer'!$AD$2:$AI$439,$AU66) -> 1.96e-05 | AW66: =IFERROR(MATCH($AV66,'438 timer'!AD$2:AD$439,0),0) -> 0 | AX66: =IFERROR(MATCH($AV66,'438 timer'!AE$2:AE$439,0),0) -> 19 | AY66: =IFERROR(MATCH($AV66,'438 timer'!AF$2:AF$439,0),0) -> 0 | AZ66: =IFERROR(MATCH($AV66,'438 timer'!AG$2:AG$439,0),0) -> 0 | BA66: =IFERROR(MATCH($AV66,'438 timer'!AH$2:AH$439,0),0) -> 0 | BB66: =IFERROR(MATCH($AV66,'438 timer'!AI$2:AI$439,0),0) -> 0 | BC66: 19 | BD66: 2 | BE66: =INDEX('438 timer'!$AK$2:$AQ$439,BC66,BD66) -> 0 | BF66: =MAX(INDEX('438 timer'!$BC$2:$BC$439,BC66,)-SUMIF(BC$27:BC65,"="&BC66,BI$27:BI65),0) -> 19.42245702 | BG66: =MAX(INDEX('438 timer'!$BD$2:$BD$439,BC66,1)-SUM(BI$26:BI65),0) -> 6980.965842 | BH66: ='Input og resultater'!$I$12-SUMIF(BC$27:BC65,"="&BC66,BJ$27:BJ65) -> 10 | BI66: 0 | BJ66: 0 | BK66: =SUMIF(BC$27:BC65,"<="&BC66,BJ$27:BJ65)+'438 timer'!$AS$2 -> 119.9685126 | BL66: =INDEX($BV$29:$BV$2656,BP66,1) -> 0 | BM66: =INDEX('438 timer'!$BC$2:$BC$439,BC66,) -> 19.42245702 | BN66: =MAX('438 timer'!$BD$2-SUM(BI$26:BI65)-AT66,0) -> 7327.45026 | BO66: =LARGE('438 timer'!$AD$2:$AI$439,$AU66) -> 1830.973704 | BP66: 2591 | BQ66: 347 | BR66: 6 | BS66: =SUMIFS($BJ$29:$BJ$2656,$BC$29:$BC$2656,"<"&BQ66,$AV$29:$AV$2656,"<="&BO66)-SUMIF(BQ$27:BQ65,">"&BQ66,BV$27:BV65)+SUMIFS(BV$27:BV65,BQ$27:BQ65,">"&BQ66,$BO$27:BO65,"<="&BO66) -> 815.8772234 | BT66: ='Input og resultater'!$I$12-SUMIF(BQ$27:BQ65,"="&BQ66,BX$27:BX65) -> 10 | BU66: =INDEX($BI$29:$BI$2656,BP66,1) -> 0 | BV66: 0 | BW66: =MAX(LARGE($BZ$29:$BZ$2656,1)-SUM(BX$27:BX65),0) -> 1045.845736 | BX66: =MIN(MAX(MIN(CE66,'Input og resultater'!$I$12,BW66),0),BT66) -> 0 | BZ66: =-INDEX($BF$29:$BF$2656,BP66,1)+INDEX($BK$29:$BK$2656,BP66,1) -> 935.845736 | CA66: =INDEX($BJ$29:$BJ$2656,BP66,1) -> 0 | CB66: =SUMIF($BC$29:$BC$2656,"<"&BQ66,$BJ$29:$BJ$2656)-SUM(BX$27:BX65) -> 815.8772234 | CC66: =INDEX($BF$29:$BF$2656,BP66,1) -> 0 | CD66: =INDEX($BJ$29:$BJ$2656,BP66,1) -> 0 | CE66: 0 | CG66: =MIN(MAX(SUMIF($BC$29:$BC$2656,"<"&BQ66,$BJ$29:$BJ$2656)-SUM(BX$27:BX65),0),'Input og resultater'!$I$13) -> 188
A67: 67 | B67: 66 | D67: 0 | E67: 1.485552019 | F67: 1.485552019 | H67: 178.4927308 | I67: =MIN(D67,'Input og resultater'!$I$12,'Input og resultater'!$I$13-H67) -> 0 | J67: =MIN(E67,'Input og resultater'!$I$12,H67) -> 1.485552019 | K67: =E67-J67 -> 0 | L67: =D67-I67 -> 0 | N67: 0 | Q67: 178.4927308 | R67: =MIN(D67,'Input og resultater'!$I$12,'Input og resultater'!$I$13-Q67) -> 0 | S67: =MIN(F67,'Input og resultater'!$I$12,Q67) -> 1.485552019 | U67: =IF(B67>$O$2,'438 timer'!$BC67,0) -> 0 | W67: =MIN($U67-SUM(V67:$V67),'438 timer'!AK67) -> 0 | X67: =MIN($U67-SUM($V67:W67),'438 timer'!AL67) -> 0 | Y67: =MIN($U67-SUM($V67:X67),'438 timer'!AM67) -> 0 | Z67: =MIN($U67-SUM($V67:Y67),'438 timer'!AN67) -> 0 | AA67: =MIN($U67-SUM($V67:Z67),'438 timer'!AO67) -> 0 | AB67: =MIN($U67-SUM($V67:AA67),'438 timer'!AP67) -> 0 | AE67: 0 | AF67: 0 | AG67: 0 | AH67: 0 | AI67: 0 | AJ67: 0 | AT67: 0 | AU67: 39 | AV67: =SMALL('438 timer'!$AD$2:$AI$439,$AU67) -> 2.05e-05 | AW67: =IFERROR(MATCH($AV67,'438 timer'!AD$2:AD$439,0),0) -> 20 | AX67: =IFERROR(MATCH($AV67,'438 timer'!AE$2:AE$439,0),0) -> 0 | AY67: =IFERROR(MATCH($AV67,'438 timer'!AF$2:AF$439,0),0) -> 0 | AZ67: =IFERROR(MATCH($AV67,'438 timer'!AG$2:AG$439,0),0) -> 0 | BA67: =IFERROR(MATCH($AV67,'438 timer'!AH$2:AH$439,0),0) -> 0 | BB67: =IFERROR(MATCH($AV67,'438 timer'!AI$2:AI$439,0),0) -> 0 | BC67: 20 | BD67: 1 | BE67: =INDEX('438 timer'!$AK$2:$AQ$439,BC67,BD67) -> 0 | BF67: =MAX(INDEX('438 timer'!$BC$2:$BC$439,BC67,)-SUMIF(BC$27:BC66,"="&BC67,BI$27:BI66),0) -> 20.38811303 | BG67: =MAX(INDEX('438 timer'!$BD$2:$BD$439,BC67,1)-SUM(BI$26:BI66),0) -> 6961.543385 | BH67: ='Input og resultater'!$I$12-SUMIF(BC$27:BC66,"="&BC67,BJ$27:BJ66) -> 10 | BI67: 0 | BJ67: 0 | BK67: =SUMIF(BC$27:BC66,"<="&BC67,BJ$27:BJ66)+'438 timer'!$AS$2 -> 119.9685126 | BL67: =INDEX($BV$29:$BV$2656,BP67,1) -> 0 | BM67: =INDEX('438 timer'!$BC$2:$BC$439,BC67,) -> 20.38811303 | BN67: =MAX('438 timer'!$BD$2-SUM(BI$26:BI66)-AT67,0) -> 7327.45026 | BO67: =LARGE('438 timer'!$AD$2:$AI$439,$AU67) -> 1830.655321 | BP67: 2590 | BQ67: 212 | BR67: 6 | BS67: =SUMIFS($BJ$29:$BJ$2656,$BC$29:$BC$2656,"<"&BQ67,$AV$29:$AV$2656,"<="&BO67)-SUMIF(BQ$27:BQ66,">"&BQ67,BV$27:BV66)+SUMIFS(BV$27:BV66,BQ$27:BQ66,">"&BQ67,$BO$27:BO66,"<="&BO67) -> 468.715634 | BT67: ='Input og resultater'!$I$12-SUMIF(BQ$27:BQ66,"="&BQ67,BX$27:BX66) -> 10 | BU67: =INDEX($BI$29:$BI$2656,BP67,1) -> 0 | BV67: 0 | BW67: =MAX(LARGE($BZ$29:$BZ$2656,1)-SUM(BX$27:BX66),0) -> 1045.845736 | BX67: =MIN(MAX(MIN(CE67,'Input og resultater'!$I$12,BW67),0),BT67) -> 0 | BZ67: =-INDEX($BF$29:$BF$2656,BP67,1)+INDEX($BK$29:$BK$2656,BP67,1) -> 588.8327816 | CA67: =INDEX($BJ$29:$BJ$2656,BP67,1) -> 0 | CB67: =SUMIF($BC$29:$BC$2656,"<"&BQ67,$BJ$29:$BJ$2656)-SUM(BX$27:BX66) -> 468.715634 | CC67: =INDEX($BF$29:$BF$2656,BP67,1) -> 0 | CD67: =INDEX($BJ$29:$BJ$2656,BP67,1) -> 0 | CE67: 0 | CG67: =MIN(MAX(SUMIF($BC$29:$BC$2656,"<"&BQ67,$BJ$29:$BJ$2656)-SUM(BX$27:BX66),0),'Input og resultater'!$I$13) -> 188
A68: 68 | B68: 67 | D68: 0 | E68: 2.22836402 | F68: 2.22836402 | H68: =H67+I67-J67 -> 177.0071788 | I68: =MIN(D68,'Input og resultater'!$I$12,'Input og resultater'!$I$13-H68) -> 0 | J68: =MIN(E68,'Input og resultater'!$I$12,H68) -> 2.22836402 | K68: 0 | L68: 0 | N68: 0 | Q68: 177.0071788 | R68: =MIN(D68,'Input og resultater'!$I$12,'Input og resultater'!$I$13-Q68) -> 0 | S68: =MIN(F68,'Input og resultater'!$I$12,Q68) -> 2.22836402 | U68: =IF(B68>$O$2,'438 timer'!$BC68,0) -> 0 | W68: =MIN($U68-SUM(V68:$V68),'438 timer'!AK68) -> 0 | X68: =MIN($U68-SUM($V68:W68),'438 timer'!AL68) -> 0 | Y68: =MIN($U68-SUM($V68:X68),'438 timer'!AM68) -> 0 | Z68: =MIN($U68-SUM($V68:Y68),'438 timer'!AN68) -> 0 | AA68: =MIN($U68-SUM($V68:Z68),'438 timer'!AO68) -> 0 | AB68: =MIN($U68-SUM($V68:AA68),'438 timer'!AP68) -> 0 | AE68: 0 | AF68: 0 | AG68: 0 | AH68: 0 | AI68: 0 | AJ68: 0 | AT68: 0 | AU68: 40 | AV68: =SMALL('438 timer'!$AD$2:$AI$439,$AU68) -> 2.06e-05 | AW68: =IFERROR(MATCH($AV68,'438 timer'!AD$2:AD$439,0),0) -> 0 | AX68: =IFERROR(MATCH($AV68,'438 timer'!AE$2:AE$439,0),0) -> 20 | AY68: =IFERROR(MATCH($AV68,'438 timer'!AF$2:AF$439,0),0) -> 0 | AZ68: =IFERROR(MATCH($AV68,'438 timer'!AG$2:AG$439,0),0) -> 0 | BA68: =IFERROR(MATCH($AV68,'438 timer'!AH$2:AH$439,0),0) -> 0 | BB68: =IFERROR(MATCH($AV68,'438 timer'!AI$2:AI$439,0),0) -> 0 | BC68: 20 | BD68: 2 | BE68: =INDEX('438 timer'!$AK$2:$AQ$439,BC68,BD68) -> 0 | BF68: =MAX(INDEX('438 timer'!$BC$2:$BC$439,BC68,)-SUMIF(BC$27:BC67,"="&BC68,BI$27:BI67),0) -> 20.38811303 | BG68: =MAX(INDEX('438 timer'!$BD$2:$BD$439,BC68,1)-SUM(BI$26:BI67),0) -> 6961.543385 | BH68: ='Input og resultater'!$I$12-SUMIF(BC$27:BC67,"="&BC68,BJ$27:BJ67) -> 10 | BI68: 0 | BJ68: 0 | BK68: =SUMIF(BC$27:BC67,"<="&BC68,BJ$27:BJ67)+'438 timer'!$AS$2 -> 119.9685126 | BL68: =INDEX($BV$29:$BV$2656,BP68,1) -> 0 | BM68: =INDEX('438 timer'!$BC$2:$BC$439,BC68,) -> 20.38811303 | BN68: =MAX('438 timer'!$BD$2-SUM(BI$26:BI67)-AT68,0) -> 7327.45026 | BO68: =LARGE('438 timer'!$AD$2:$AI$439,$AU68) -> 1829.28651 | BP68: 2589 | BQ68: 239 | BR68: 6 | BS68: =SUMIFS($BJ$29:$BJ$2656,$BC$29:$BC$2656,"<"&BQ68,$AV$29:$AV$2656,"<="&BO68)-SUMIF(BQ$27:BQ67,">"&BQ68,BV$27:BV67)+SUMIFS(BV$27:BV67,BQ$27:BQ67,">"&BQ68,$BO$27:BO67,"<="&BO68) -> 469.1617579 | BT68: ='Input og resultater'!$I$12-SUMIF(BQ$27:BQ67,"="&BQ68,BX$27:BX67) -> 10 | BU68: =INDEX($BI$29:$BI$2656,BP68,1) -> 0 | BV68: 0 | BW68: =MAX(LARGE($BZ$29:$BZ$2656,1)-SUM(BX$27:BX67),0) -> 1045.845736 | BX68: =MIN(MAX(MIN(CE68,'Input og resultater'!$I$12,BW68),0),BT68) -> 0 | BZ68: =-INDEX($BF$29:$BF$2656,BP68,1)+INDEX($BK$29:$BK$2656,BP68,1) -> 589.1302705 | CA68: =INDEX($BJ$29:$BJ$2656,BP68,1) -> 0 | CB68: =SUMIF($BC$29:$BC$2656,"<"&BQ68,$BJ$29:$BJ$2656)-SUM(BX$27:BX67) -> 469.1617579 | CC68: =INDEX($BF$29:$BF$2656,BP68,1) -> 0 | CD68: =INDEX($BJ$29:$BJ$2656,BP68,1) -> 0 | CE68: 0 | CG68: =MIN(MAX(SUMIF($BC$29:$BC$2656,"<"&BQ68,$BJ$29:$BJ$2656)-SUM(BX$27:BX67),0),'Input og resultater'!$I$13) -> 188
A69: 69 | B69: 68 | D69: 0 | E69: 2.971176021 | F69: 2.971176021 | H69: 174.7788148 | I69: =MIN(D69,'Input og resultater'!$I$12,'Input og resultater'!$I$13-H69) -> 0 | J69: =MIN(E69,'Input og resultater'!$I$12,H69) -> 2.971176021 | K69: 0 | L69: 0 | N69: 0 | Q69: =Q68+R68-S68 -> 174.7788148 | R69: =MIN(D69,'Input og resultater'!$I$12,'Input og resultater'!$I$13-Q69) -> 0 | S69: =MIN(F69,'Input og resultater'!$I$12,Q69) -> 2.971176021 | U69: =IF(B69>$O$2,'438 timer'!$BC69,0) -> 0 | W69: =MIN($U69-SUM(V69:$V69),'438 timer'!AK69) -> 0 | X69: =MIN($U69-SUM($V69:W69),'438 timer'!AL69) -> 0 | Y69: =MIN($U69-SUM($V69:X69),'438 timer'!AM69) -> 0 | Z69: =MIN($U69-SUM($V69:Y69),'438 timer'!AN69) -> 0 | AA69: =MIN($U69-SUM($V69:Z69),'438 timer'!AO69) -> 0 | AB69: =MIN($U69-SUM($V69:AA69),'438 timer'!AP69) -> 0 | AE69: 0 | AF69: 0 | AG69: 0 | AH69: 0 | AI69: 0 | AJ69: 0 | AT69: 0 | AU69: 41 | AV69: =SMALL('438 timer'!$AD$2:$AI$439,$AU69) -> 2.15e-05 | AW69: =IFERROR(MATCH($AV69,'438 timer'!AD$2:AD$439,0),0) -> 21 | AX69: =IFERROR(MATCH($AV69,'438 timer'!AE$2:AE$439,0),0) -> 0 | AY69: =IFERROR(MATCH($AV69,'438 timer'!AF$2:AF$439,0),0) -> 0 | AZ69: =IFERROR(MATCH($AV69,'438 timer'!AG$2:AG$439,0),0) -> 0 | BA69: =IFERROR(MATCH($AV69,'438 timer'!AH$2:AH$439,0),0) -> 0 | BB69: =IFERROR(MATCH($AV69,'438 timer'!AI$2:AI$439,0),0) -> 0 | BC69: 21 | BD69: 1 | BE69: =INDEX('438 timer'!$AK$2:$AQ$439,BC69,BD69) -> 0 | BF69: =MAX(INDEX('438 timer'!$BC$2:$BC$439,BC69,)-SUMIF(BC$27:BC68,"="&BC69,BI$27:BI68),0) -> 20.09098802 | BG69: =MAX(INDEX('438 timer'!$BD$2:$BD$439,BC69,1)-SUM(BI$26:BI68),0) -> 6941.155272 | BH69: ='Input og resultater'!$I$12-SUMIF(BC$27:BC68,"="&BC69,BJ$27:BJ68) -> 10 | BI69: 0 | BJ69: 0 | BK69: =SUMIF(BC$27:BC68,"<="&BC69,BJ$27:BJ68)+'438 timer'!$AS$2 -> 119.9685126 | BL69: =INDEX($BV$29:$BV$2656,BP69,1) -> 0 | BM69: =INDEX('438 timer'!$BC$2:$BC$439,BC69,) -> 20.09098802 | BN69: =MAX('438 timer'!$BD$2-SUM(BI$26:BI68)-AT69,0) -> 7327.45026 | BO69: =LARGE('438 timer'!$AD$2:$AI$439,$AU69) -> 1822.739581 | BP69: 2588 | BQ69: 238 | BR69: 6 | BS69: =SUMIFS($BJ$29:$BJ$2656,$BC$29:$BC$2656,"<"&BQ69,$AV$29:$AV$2656,"<="&BO69)-SUMIF(BQ$27:BQ68,">"&BQ69,BV$27:BV68)+SUMIFS(BV$27:BV68,BQ$27:BQ68,">"&BQ69,$BO$27:BO68,"<="&BO69) -> 469.1617579 | BT69: ='Input og resultater'!$I$12-SUMIF(BQ$27:BQ68,"="&BQ69,BX$27:BX68) -> 10 | BU69: =INDEX($BI$29:$BI$2656,BP69,1) -> 0 | BV69: 0 | BW69: =MAX(LARGE($BZ$29:$BZ$2656,1)-SUM(BX$27:BX68),0) -> 1045.845736 | BX69: =MIN(MAX(MIN(CE69,'Input og resultater'!$I$12,BW69),0),BT69) -> 0 | BZ69: =-INDEX($BF$29:$BF$2656,BP69,1)+INDEX($BK$29:$BK$2656,BP69,1) -> 589.1302705 | CA69: =INDEX($BJ$29:$BJ$2656,BP69,1) -> 0 | CB69: =SUMIF($BC$29:$BC$2656,"<"&BQ69,$BJ$29:$BJ$2656)-SUM(BX$27:BX68) -> 469.1617579 | CC69: =INDEX($BF$29:$BF$2656,BP69,1) -> 0 | CD69: =INDEX($BJ$29:$BJ$2656,BP69,1) -> 0 | CE69: 0 | CG69: =MIN(MAX(SUMIF($BC$29:$BC$2656,"<"&BQ69,$BJ$29:$BJ$2656)-SUM(BX$27:BX68),0),'Input og resultater'!$I$13) -> 188
A70: 70 | B70: 69 | D70: 0 | E70: 3.268301021 | F70: 3.268301021 | H70: 171.8076388 | I70: =MIN(D70,'Input og resultater'!$I$12,'Input og resultater'!$I$13-H70) -> 0 | J70: =MIN(E70,'Input og resultater'!$I$12,H70) -> 3.268301021 | K70: 0 | L70: 0 | N70: 0 | Q70: 171.8076388 | R70: =MIN(D70,'Input og resultater'!$I$12,'Input og resultater'!$I$13-Q70) -> 0 | S70: =MIN(F70,'Input og resultater'!$I$12,Q70) -> 3.268301021 | U70: =IF(B70>$O$2,'438 timer'!$BC70,0) -> 0 | W70: =MIN($U70-SUM(V70:$V70),'438 timer'!AK70) -> 0 | X70: =MIN($U70-SUM($V70:W70),'438 timer'!AL70) -> 0 | Y70: =MIN($U70-SUM($V70:X70),'438 timer'!AM70) -> 0 | Z70: =MIN($U70-SUM($V70:Y70),'438 timer'!AN70) -> 0 | AA70: =MIN($U70-SUM($V70:Z70),'438 timer'!AO70) -> 0 | AB70: =MIN($U70-SUM($V70:AA70),'438 timer'!AP70) -> 0 | AE70: 0 | AF70: 0 | AG70: 0 | AH70: 0 | AI70: 0 | AJ70: 0 | AT70: 0 | AU70: 42 | AV70: =SMALL('438 timer'!$AD$2:$AI$439,$AU70) -> 2.16e-05 | AW70: =IFERROR(MATCH($AV70,'438 timer'!AD$2:AD$439,0),0) -> 0 | AX70: =IFERROR(MATCH($AV70,'438 timer'!AE$2:AE$439,0),0) -> 21 | AY70: =IFERROR(MATCH($AV70,'438 timer'!AF$2:AF$439,0),0) -> 0 | AZ70: =IFERROR(MATCH($AV70,'438 timer'!AG$2:AG$439,0),0) -> 0 | BA70: =IFERROR(MATCH($AV70,'438 timer'!AH$2:AH$439,0),0) -> 0 | BB70: =IFERROR(MATCH($AV70,'438 timer'!AI$2:AI$439,0),0) -> 0 | BC70: 21 | BD70: 2 | BE70: =INDEX('438 timer'!$AK$2:$AQ$439,BC70,BD70) -> 0 | BF70: =MAX(INDEX('438 timer'!$BC$2:$BC$439,BC70,)-SUMIF(BC$27:BC69,"="&BC70,BI$27:BI69),0) -> 20.09098802 | BG70: =MAX(INDEX('438 timer'!$BD$2:$BD$439,BC70,1)-SUM(BI$26:BI69),0) -> 6941.155272 | BH70: ='Input og resultater'!$I$12-SUMIF(BC$27:BC69,"="&BC70,BJ$27:BJ69) -> 10 | BI70: 0 | BJ70: 0 | BK70: =SUMIF(BC$27:BC69,"<="&BC70,BJ$27:BJ69)+'438 timer'!$AS$2 -> 119.9685126 | BL70: =INDEX($BV$29:$BV$2656,BP70,1) -> 0 | BM70: =INDEX('438 timer'!$BC$2:$BC$439,BC70,) -> 20.09098802 | BN70: =MAX('438 timer'!$BD$2-SUM(BI$26:BI69)-AT70,0) -> 7327.45026 | BO70: =LARGE('438 timer'!$AD$2:$AI$439,$AU70) -> 1820.978196 | BP70: 2587 | BQ70: 130 | BR70: 6 | BS70: =SUMIFS($BJ$29:$BJ$2656,$BC$29:$BC$2656,"<"&BQ70,$AV$29:$AV$2656,"<="&BO70)-SUMIF(BQ$27:BQ69,">"&BQ70,BV$27:BV69)+SUMIFS(BV$27:BV69,BQ$27:BQ69,">"&BQ70,$BO$27:BO69,"<="&BO70) -> 431.5831034 | BT70: ='Input og resultater'!$I$12-SUMIF(BQ$27:BQ69,"="&BQ70,BX$27:BX69) -> 10 | BU70: =INDEX($BI$29:$BI$2656,BP70,1) -> 0 | BV70: 0 | BW70: =MAX(LARGE($BZ$29:$BZ$2656,1)-SUM(BX$27:BX69),0) -> 1045.845736 | BX70: =MIN(MAX(MIN(CE70,'Input og resultater'!$I$12,BW70),0),BT70) -> 0 | BZ70: =-INDEX($BF$29:$BF$2656,BP70,1)+INDEX($BK$29:$BK$2656,BP70,1) -> 551.5516159 | CA70: =INDEX($BJ$29:$BJ$2656,BP70,1) -> 0 | CB70: =SUMIF($BC$29:$BC$2656,"<"&BQ70,$BJ$29:$BJ$2656)-SUM(BX$27:BX69) -> 431.5831034 | CC70: =INDEX($BF$29:$BF$2656,BP70,1) -> 0 | CD70: =INDEX($BJ$29:$BJ$2656,BP70,1) -> 0 | CE70: 0 | CG70: =MIN(MAX(SUMIF($BC$29:$BC$2656,"<"&BQ70,$BJ$29:$BJ$2656)-SUM(BX$27:BX69),0),'Input og resultater'!$I$13) -> 188
A71: 71 | B71: 70 | D71: 0 | E71: 3.342583022 | F71: 3.342583022 | H71: 168.5393377 | I71: =MIN(D71,'Input og resultater'!$I$12,'Input og resultater'!$I$13-H71) -> 0 | J71: =MIN(E71,'Input og resultater'!$I$12,H71) -> 3.342583022 | K71: 0 | L71: 0 | N71: 0 | Q71: 168.5393377 | R71: =MIN(D71,'Input og resultater'!$I$12,'Input og resultater'!$I$13-Q71) -> 0 | S71: =MIN(F71,'Input og resultater'!$I$12,Q71) -> 3.342583022 | U71: =IF(B71>$O$2,'438 timer'!$BC71,0) -> 0 | W71: =MIN($U71-SUM(V71:$V71),'438 timer'!AK71) -> 0 | X71: =MIN($U71-SUM($V71:W71),'438 timer'!AL71) -> 0 | Y71: =MIN($U71-SUM($V71:X71),'438 timer'!AM71) -> 0 | Z71: =MIN($U71-SUM($V71:Y71),'438 timer'!AN71) -> 0 | AA71: =MIN($U71-SUM($V71:Z71),'438 timer'!AO71) -> 0 | AB71: =MIN($U71-SUM($V71:AA71),'438 timer'!AP71) -> 0 | AE71: 0 | AF71: 0 | AG71: 0 | AH71: 0 | AI71: 0 | AJ71: 0 | AT71: 0 | AU71: 43 | AV71: =SMALL('438 timer'!$AD$2:$AI$439,$AU71) -> 2.25e-05 | AW71: =IFERROR(MATCH($AV71,'438 timer'!AD$2:AD$439,0),0) -> 22 | AX71: =IFERROR(MATCH($AV71,'438 timer'!AE$2:AE$439,0),0) -> 0 | AY71: =IFERROR(MATCH($AV71,'438 timer'!AF$2:AF$439,0),0) -> 0 | AZ71: =IFERROR(MATCH($AV71,'438 timer'!AG$2:AG$439,0),0) -> 0 | BA71: =IFERROR(MATCH($AV71,'438 timer'!AH$2:AH$439,0),0) -> 0 | BB71: =IFERROR(MATCH($AV71,'438 timer'!AI$2:AI$439,0),0) -> 0 | BC71: 22 | BD71: 1 | BE71: =INDEX('438 timer'!$AK$2:$AQ$439,BC71,BD71) -> 0 | BF71: =MAX(INDEX('438 timer'!$BC$2:$BC$439,BC71,)-SUMIF(BC$27:BC70,"="&BC71,BI$27:BI70),0) -> 20.23955103 | BG71: =MAX(INDEX('438 timer'!$BD$2:$BD$439,BC71,1)-SUM(BI$26:BI70),0) -> 6921.064284 | BH71: ='Input og resultater'!$I$12-SUMIF(BC$27:BC70,"="&BC71,BJ$27:BJ70) -> 10 | BI71: 0 | BJ71: 0 | BK71: =SUMIF(BC$27:BC70,"<="&BC71,BJ$27:BJ70)+'438 timer'!$AS$2 -> 119.9685126 | BL71: =INDEX($BV$29:$BV$2656,BP71,1) -> 0 | BM71: =INDEX('438 timer'!$BC$2:$BC$439,BC71,) -> 20.23955103 | BN71: =MAX('438 timer'!$BD$2-SUM(BI$26:BI70)-AT71,0) -> 7327.45026 | BO71: =LARGE('438 timer'!$AD$2:$AI$439,$AU71) -> 1791.777179 | BP71: 2586 | BQ71: 134 | BR71: 6 | BS71: =SUMIFS($BJ$29:$BJ$2656,$BC$29:$BC$2656,"<"&BQ71,$AV$29:$AV$2656,"<="&BO71)-SUMIF(BQ$27:BQ70,">"&BQ71,BV$27:BV70)+SUMIFS(BV$27:BV70,BQ$27:BQ70,">"&BQ71,$BO$27:BO70,"<="&BO71) -> 431.5831034 | BT71: ='Input og resultater'!$I$12-SUMIF(BQ$27:BQ70,"="&BQ71,BX$27:BX70) -> 10 | BU71: =INDEX($BI$29:$BI$2656,BP71,1) -> 0 | BV71: 0 | BW71: =MAX(LARGE($BZ$29:$BZ$2656,1)-SUM(BX$27:BX70),0) -> 1045.845736 | BX71: =MIN(MAX(MIN(CE71,'Input og resultater'!$I$12,BW71),0),BT71) -> 0 | BZ71: =-INDEX($BF$29:$BF$2656,BP71,1)+INDEX($BK$29:$BK$2656,BP71,1) -> 551.5516159 | CA71: =INDEX($BJ$29:$BJ$2656,BP71,1) -> 0 | CB71: =SUMIF($BC$29:$BC$2656,"<"&BQ71,$BJ$29:$BJ$2656)-SUM(BX$27:BX70) -> 431.5831034 | CC71: =INDEX($BF$29:$BF$2656,BP71,1) -> 0 | CD71: =INDEX($BJ$29:$BJ$2656,BP71,1) -> 0 | CE71: 0 | CG71: =MIN(MAX(SUMIF($BC$29:$BC$2656,"<"&BQ71,$BJ$29:$BJ$2656)-SUM(BX$27:BX70),0),'Input og resultater'!$I$13) -> 188
A72: 72 | B72: 71 | D72: 0 | E72: 3.342583022 | F72: 3.342583022 | H72: 165.1967547 | I72: =MIN(D72,'Input og resultater'!$I$12,'Input og resultater'!$I$13-H72) -> 0 | J72: =MIN(E72,'Input og resultater'!$I$12,H72) -> 3.342583022 | K72: 0 | L72: 0 | N72: 0 | Q72: 165.1967547 | R72: =MIN(D72,'Input og resultater'!$I$12,'Input og resultater'!$I$13-Q72) -> 0 | S72: =MIN(F72,'Input og resultater'!$I$12,Q72) -> 3.342583022 | U72: =IF(B72>$O$2,'438 timer'!$BC72,0) -> 0 | W72: =MIN($U72-SUM(V72:$V72),'438 timer'!AK72) -> 0 | X72: =MIN($U72-SUM($V72:W72),'438 timer'!AL72) -> 0 | Y72: =MIN($U72-SUM($V72:X72),'438 timer'!AM72) -> 0 | Z72: =MIN($U72-SUM($V72:Y72),'438 timer'!AN72) -> 0 | AA72: =MIN($U72-SUM($V72:Z72),'438 timer'!AO72) -> 0 | AB72: =MIN($U72-SUM($V72:AA72),'438 timer'!AP72) -> 0 | AE72: 0 | AF72: 0 | AG72: 0 | AH72: 0 | AI72: 0 | AJ72: 0 | AT72: 0 | AU72: 44 | AV72: =SMALL('438 timer'!$AD$2:$AI$439,$AU72) -> 2.26e-05 | AW72: =IFERROR(MATCH($AV72,'438 timer'!AD$2:AD$439,0),0) -> 0 | AX72: =IFERROR(MATCH($AV72,'438 timer'!AE$2:AE$439,0),0) -> 22 | AY72: =IFERROR(MATCH($AV72,'438 timer'!AF$2:AF$439,0),0) -> 0 | AZ72: =IFERROR(MATCH($AV72,'438 timer'!AG$2:AG$439,0),0) -> 0 | BA72: =IFERROR(MATCH($AV72,'438 timer'!AH$2:AH$439,0),0) -> 0 | BB72: =IFERROR(MATCH($AV72,'438 timer'!AI$2:AI$439,0),0) -> 0 | BC72: 22 | BD72: 2 | BE72: =INDEX('438 timer'!$AK$2:$AQ$439,BC72,BD72) -> 0 | BF72: =MAX(INDEX('438 timer'!$BC$2:$BC$439,BC72,)-SUMIF(BC$27:BC71,"="&BC72,BI$27:BI71),0) -> 20.23955103 | BG72: =MAX(INDEX('438 timer'!$BD$2:$BD$439,BC72,1)-SUM(BI$26:BI71),0) -> 6921.064284 | BH72: ='Input og resultater'!$I$12-SUMIF(BC$27:BC71,"="&BC72,BJ$27:BJ71) -> 10 | BI72: 0 | BJ72: 0 | BK72: =SUMIF(BC$27:BC71,"<="&BC72,BJ$27:BJ71)+'438 timer'!$AS$2 -> 119.9685126 | BL72: =INDEX($BV$29:$BV$2656,BP72,1) -> 0 | BM72: =INDEX('438 timer'!$BC$2:$BC$439,BC72,) -> 20.23955103 | BN72: =MAX('438 timer'!$BD$2-SUM(BI$26:BI71)-AT72,0) -> 7327.45026 | BO72: =LARGE('438 timer'!$AD$2:$AI$439,$AU72) -> 1773.325121 | BP72: 2585 | BQ72: 348 | BR72: 6 | BS72: =SUMIFS($BJ$29:$BJ$2656,$BC$29:$BC$2656,"<"&BQ72,$AV$29:$AV$2656,"<="&BO72)-SUMIF(BQ$27:BQ71,">"&BQ72,BV$27:BV71)+SUMIFS(BV$27:BV71,BQ$27:BQ71,">"&BQ72,$BO$27:BO71,"<="&BO72) -> 815.8772234 | BT72: ='Input og resultater'!$I$12-SUMIF(BQ$27:BQ71,"="&BQ72,BX$27:BX71) -> 10 | BU72: =INDEX($BI$29:$BI$2656,BP72,1) -> 0 | BV72: 0 | BW72: =MAX(LARGE($BZ$29:$BZ$2656,1)-SUM(BX$27:BX71),0) -> 1045.845736 | BX72: =MIN(MAX(MIN(CE72,'Input og resultater'!$I$12,BW72),0),BT72) -> 0 | BZ72: =-INDEX($BF$29:$BF$2656,BP72,1)+INDEX($BK$29:$BK$2656,BP72,1) -> 935.845736 | CA72: =INDEX($BJ$29:$BJ$2656,BP72,1) -> 0 | CB72: =SUMIF($BC$29:$BC$2656,"<"&BQ72,$BJ$29:$BJ$2656)-SUM(BX$27:BX71) -> 815.8772234 | CC72: =INDEX($BF$29:$BF$2656,BP72,1) -> 0 | CD72: =INDEX($BJ$29:$BJ$2656,BP72,1) -> 0 | CE72: 0 | CG72: =MIN(MAX(SUMIF($BC$29:$BC$2656,"<"&BQ72,$BJ$29:$BJ$2656)-SUM(BX$27:BX71),0),'Input og resultater'!$I$13) -> 188
A73: 73 | B73: 72 | D73: 0 | E73: 3.936833022 | F73: 3.936833022 | H73: 161.8541717 | I73: =MIN(D73,'Input og resultater'!$I$12,'Input og resultater'!$I$13-H73) -> 0 | J73: =MIN(E73,'Input og resultater'!$I$12,H73) -> 3.936833022 | K73: 0 | L73: 0 | N73: 0 | Q73: 161.8541717 | R73: =MIN(D73,'Input og resultater'!$I$12,'Input og resultater'!$I$13-Q73) -> 0 | S73: =MIN(F73,'Input og resultater'!$I$12,Q73) -> 3.936833022 | U73: =IF(B73>$O$2,'438 timer'!$BC73,0) -> 0 | W73: =MIN($U73-SUM(V73:$V73),'438 timer'!AK73) -> 0 | X73: =MIN($U73-SUM($V73:W73),'438 timer'!AL73) -> 0 | Y73: =MIN($U73-SUM($V73:X73),'438 timer'!AM73) -> 0 | Z73: =MIN($U73-SUM($V73:Y73),'438 timer'!AN73) -> 0 | AA73: =MIN($U73-SUM($V73:Z73),'438 timer'!AO73) -> 0 | AB73: =MIN($U73-SUM($V73:AA73),'438 timer'!AP73) -> 0 | AE73: 0 | AF73: 0 | AG73: 0 | AH73: 0 | AI73: 0 | AJ73: 0 | AT73: 0 | AU73: 45 | AV73: =SMALL('438 timer'!$AD$2:$AI$439,$AU73) -> 2.35e-05 | AW73: =IFERROR(MATCH($AV73,'438 timer'!AD$2:AD$439,0),0) -> 23 | AX73: =IFERROR(MATCH($AV73,'438 timer'!AE$2:AE$439,0),0) -> 0 | AY73: =IFERROR(MATCH($AV73,'438 timer'!AF$2:AF$439,0),0) -> 0 | AZ73: =IFERROR(MATCH($AV73,'438 timer'!AG$2:AG$439,0),0) -> 0 | BA73: =IFERROR(MATCH($AV73,'438 timer'!AH$2:AH$439,0),0) -> 0 | BB73: =IFERROR(MATCH($AV73,'438 timer'!AI$2:AI$439,0),0) -> 0 | BC73: 23 | BD73: 1 | BE73: =INDEX('438 timer'!$AK$2:$AQ$439,BC73,BD73) -> 0 | BF73: =MAX(INDEX('438 timer'!$BC$2:$BC$439,BC73,)-SUMIF(BC$27:BC72,"="&BC73,BI$27:BI72),0) -> 20.46239503 | BG73: =MAX(INDEX('438 timer'!$BD$2:$BD$439,BC73,1)-SUM(BI$26:BI72),0) -> 6900.824733 | BH73: ='Input og resultater'!$I$12-SUMIF(BC$27:BC72,"="&BC73,BJ$27:BJ72) -> 10 | BI73: 0 | BJ73: 0 | BK73: =SUMIF(BC$27:BC72,"<="&BC73,BJ$27:BJ72)+'438 timer'!$AS$2 -> 119.9685126 | BL73: =INDEX($BV$29:$BV$2656,BP73,1) -> 0 | BM73: =INDEX('438 timer'!$BC$2:$BC$439,BC73,) -> 20.46239503 | BN73: =MAX('438 timer'!$BD$2-SUM(BI$26:BI72)-AT73,0) -> 7327.45026 | BO73: =LARGE('438 timer'!$AD$2:$AI$439,$AU73) -> 1755.912787 | BP73: 2584 | BQ73: 419 | BR73: 6 | BS73: =SUMIFS($BJ$29:$BJ$2656,$BC$29:$BC$2656,"<"&BQ73,$AV$29:$AV$2656,"<="&BO73)-SUMIF(BQ$27:BQ72,">"&BQ73,BV$27:BV72)+SUMIFS(BV$27:BV72,BQ$27:BQ72,">"&BQ73,$BO$27:BO72,"<="&BO73) -> 925.8772234 | BT73: ='Input og resultater'!$I$12-SUMIF(BQ$27:BQ72,"="&BQ73,BX$27:BX72) -> 10 | BU73: =INDEX($BI$29:$BI$2656,BP73,1) -> 0 | BV73: 0 | BW73: =MAX(LARGE($BZ$29:$BZ$2656,1)-SUM(BX$27:BX72),0) -> 1045.845736 | BX73: =MIN(MAX(MIN(CE73,'Input og resultater'!$I$12,BW73),0),BT73) -> 0 | BZ73: =-INDEX($BF$29:$BF$2656,BP73,1)+INDEX($BK$29:$BK$2656,BP73,1) -> 1045.845736 | CA73: =INDEX($BJ$29:$BJ$2656,BP73,1) -> 0 | CB73: =SUMIF($BC$29:$BC$2656,"<"&BQ73,$BJ$29:$BJ$2656)-SUM(BX$27:BX72) -> 925.8772234 | CC73: =INDEX($BF$29:$BF$2656,BP73,1) -> 0 | CD73: =INDEX($BJ$29:$BJ$2656,BP73,1) -> 0 | CE73: 0 | CG73: =MIN(MAX(SUMIF($BC$29:$BC$2656,"<"&BQ73,$BJ$29:$BJ$2656)-SUM(BX$27:BX72),0),'Input og resultater'!$I$13) -> 188
A74: 74 | B74: 73 | D74: 0 | E74: 4.456801023 | F74: 4.456801023 | H74: 157.9173387 | I74: =MIN(D74,'Input og resultater'!$I$12,'Input og resultater'!$I$13-H74) -> 0 | J74: =MIN(E74,'Input og resultater'!$I$12,H74) -> 4.456801023 | K74: 0 | L74: 0 | N74: 0 | Q74: 157.9173387 | R74: =MIN(D74,'Input og resultater'!$I$12,'Input og resultater'!$I$13-Q74) -> 0 | S74: =MIN(F74,'Input og resultater'!$I$12,Q74) -> 4.456801023 | U74: =IF(B74>$O$2,'438 timer'!$BC74,0) -> 0 | W74: =MIN($U74-SUM(V74:$V74),'438 timer'!AK74) -> 0 | X74: =MIN($U74-SUM($V74:W74),'438 timer'!AL74) -> 0 | Y74: =MIN($U74-SUM($V74:X74),'438 timer'!AM74) -> 0 | Z74: =MIN($U74-SUM($V74:Y74),'438 timer'!AN74) -> 0 | AA74: =MIN($U74-SUM($V74:Z74),'438 timer'!AO74) -> 0 | AB74: =MIN($U74-SUM($V74:AA74),'438 timer'!AP74) -> 0 | AE74: 0 | AF74: 0 | AG74: 0 | AH74: 0 | AI74: 0 | AJ74: 0 | AT74: 0 | AU74: 46 | AV74: =SMALL('438 timer'!$AD$2:$AI$439,$AU74) -> 2.36e-05 | AW74: =IFERROR(MATCH($AV74,'438 timer'!AD$2:AD$439,0),0) -> 0 | AX74: =IFERROR(MATCH($AV74,'438 timer'!AE$2:AE$439,0),0) -> 23 | AY74: =IFERROR(MATCH($AV74,'438 timer'!AF$2:AF$439,0),0) -> 0 | AZ74: =IFERROR(MATCH($AV74,'438 timer'!AG$2:AG$439,0),0) -> 0 | BA74: =IFERROR(MATCH($AV74,'438 timer'!AH$2:AH$439,0),0) -> 0 | BB74: =IFERROR(MATCH($AV74,'438 timer'!AI$2:AI$439,0),0) -> 0 | BC74: 23 | BD74: 2 | BE74: =INDEX('438 timer'!$AK$2:$AQ$439,BC74,BD74) -> 0 | BF74: =MAX(INDEX('438 timer'!$BC$2:$BC$439,BC74,)-SUMIF(BC$27:BC73,"="&BC74,BI$27:BI73),0) -> 20.46239503 | BG74: =MAX(INDEX('438 timer'!$BD$2:$BD$439,BC74,1)-SUM(BI$26:BI73),0) -> 6900.824733 | BH74: ='Input og resultater'!$I$12-SUMIF(BC$27:BC73,"="&BC74,BJ$27:BJ73) -> 10 | BI74: 0 | BJ74: 0 | BK74: =SUMIF(BC$27:BC73,"<="&BC74,BJ$27:BJ73)+'438 timer'!$AS$2 -> 119.9685126 | BL74: =INDEX($BV$29:$BV$2656,BP74,1) -> 0 | BM74: =INDEX('438 timer'!$BC$2:$BC$439,BC74,) -> 20.46239503 | BN74: =MAX('438 timer'!$BD$2-SUM(BI$26:BI73)-AT74,0) -> 7327.45026 | BO74: =LARGE('438 timer'!$AD$2:$AI$439,$AU74) -> 1745.280465 | BP74: 2583 | BQ74: 142 | BR74: 6 | BS74: =SUMIFS($BJ$29:$BJ$2656,$BC$29:$BC$2656,"<"&BQ74,$AV$29:$AV$2656,"<="&BO74)-SUMIF(BQ$27:BQ73,">"&BQ74,BV$27:BV73)+SUMIFS(BV$27:BV73,BQ$27:BQ73,">"&BQ74,$BO$27:BO73,"<="&BO74) -> 431.5831034 | BT74: ='Input og resultater'!$I$12-SUMIF(BQ$27:BQ73,"="&BQ74,BX$27:BX73) -> 10 | BU74: =INDEX($BI$29:$BI$2656,BP74,1) -> 0 | BV74: 0 | BW74: =MAX(LARGE($BZ$29:$BZ$2656,1)-SUM(BX$27:BX73),0) -> 1045.845736 | BX74: =MIN(MAX(MIN(CE74,'Input og resultater'!$I$12,BW74),0),BT74) -> 0 | BZ74: =-INDEX($BF$29:$BF$2656,BP74,1)+INDEX($BK$29:$BK$2656,BP74,1) -> 551.5516159 | CA74: =INDEX($BJ$29:$BJ$2656,BP74,1) -> 0 | CB74: =SUMIF($BC$29:$BC$2656,"<"&BQ74,$BJ$29:$BJ$2656)-SUM(BX$27:BX73) -> 431.5831034 | CC74: =INDEX($BF$29:$BF$2656,BP74,1) -> 0 | CD74: =INDEX($BJ$29:$BJ$2656,BP74,1) -> 0 | CE74: 0 | CG74: =MIN(MAX(SUMIF($BC$29:$BC$2656,"<"&BQ74,$BJ$29:$BJ$2656)-SUM(BX$27:BX73),0),'Input og resultater'!$I$13) -> 188
A75: 75 | B75: 74 | D75: 0 | E75: 4.308239023 | F75: 4.308239023 | H75: 153.4605376 | I75: =MIN(D75,'Input og resultater'!$I$12,'Input og resultater'!$I$13-H75) -> 0 | J75: =MIN(E75,'Input og resultater'!$I$12,H75) -> 4.308239023 | K75: 0 | L75: 0 | N75: 0 | Q75: 153.4605376 | R75: =MIN(D75,'Input og resultater'!$I$12,'Input og resultater'!$I$13-Q75) -> 0 | S75: =MIN(F75,'Input og resultater'!$I$12,Q75) -> 4.308239023 | U75: =IF(B75>$O$2,'438 timer'!$BC75,0) -> 0 | W75: =MIN($U75-SUM(V75:$V75),'438 timer'!AK75) -> 0 | X75: =MIN($U75-SUM($V75:W75),'438 timer'!AL75) -> 0 | Y75: =MIN($U75-SUM($V75:X75),'438 timer'!AM75) -> 0 | Z75: =MIN($U75-SUM($V75:Y75),'438 timer'!AN75) -> 0 | AA75: =MIN($U75-SUM($V75:Z75),'438 timer'!AO75) -> 0 | AB75: =MIN($U75-SUM($V75:AA75),'438 timer'!AP75) -> 0 | AE75: 0 | AF75: 0 | AG75: 0 | AH75: 0 | AI75: 0 | AJ75: 0 | AT75: 0 | AU75: 47 | AV75: =SMALL('438 timer'!$AD$2:$AI$439,$AU75) -> 2.45e-05 | AW75: =IFERROR(MATCH($AV75,'438 timer'!AD$2:AD$439,0),0) -> 24 | AX75: =IFERROR(MATCH($AV75,'438 timer'!AE$2:AE$439,0),0) -> 0 | AY75: =IFERROR(MATCH($AV75,'438 timer'!AF$2:AF$439,0),0) -> 0 | AZ75: =IFERROR(MATCH($AV75,'438 timer'!AG$2:AG$439,0),0) -> 0 | BA75: =IFERROR(MATCH($AV75,'438 timer'!AH$2:AH$439,0),0) -> 0 | BB75: =IFERROR(MATCH($AV75,'438 timer'!AI$2:AI$439,0),0) -> 0 | BC75: 24 | BD75: 1 | BE75: =INDEX('438 timer'!$AK$2:$AQ$439,BC75,BD75) -> 0 | BF75: =MAX(INDEX('438 timer'!$BC$2:$BC$439,BC75,)-SUMIF(BC$27:BC74,"="&BC75,BI$27:BI74),0) -> 21.13092603 | BG75: =MAX(INDEX('438 timer'!$BD$2:$BD$439,BC75,1)-SUM(BI$26:BI74),0) -> 6880.362338 | BH75: ='Input og resultater'!$I$12-SUMIF(BC$27:BC74,"="&BC75,BJ$27:BJ74) -> 10 | BI75: 0 | BJ75: 0 | BK75: =SUMIF(BC$27:BC74,"<="&BC75,BJ$27:BJ74)+'438 timer'!$AS$2 -> 119.9685126 | BL75: =INDEX($BV$29:$BV$2656,BP75,1) -> 0 | BM75: =INDEX('438 timer'!$BC$2:$BC$439,BC75,) -> 21.13092603 | BN75: =MAX('438 timer'!$BD$2-SUM(BI$26:BI74)-AT75,0) -> 7327.45026 | BO75: =LARGE('438 timer'!$AD$2:$AI$439,$AU75) -> 1731.550134 | BP75: 2582 | BQ75: 161 | BR75: 6 | BS75: =SUMIFS($BJ$29:$BJ$2656,$BC$29:$BC$2656,"<"&BQ75,$AV$29:$AV$2656,"<="&BO75)-SUMIF(BQ$27:BQ74,">"&BQ75,BV$27:BV74)+SUMIFS(BV$27:BV74,BQ$27:BQ74,">"&BQ75,$BO$27:BO74,"<="&BO75) -> 431.5831034 | BT75: ='Input og resultater'!$I$12-SUMIF(BQ$27:BQ74,"="&BQ75,BX$27:BX74) -> 10 | BU75: =INDEX($BI$29:$BI$2656,BP75,1) -> 0 | BV75: 0 | BW75: =MAX(LARGE($BZ$29:$BZ$2656,1)-SUM(BX$27:BX74),0) -> 1045.845736 | BX75: =MIN(MAX(MIN(CE75,'Input og resultater'!$I$12,BW75),0),BT75) -> 0 | BZ75: =-INDEX($BF$29:$BF$2656,BP75,1)+INDEX($BK$29:$BK$2656,BP75,1) -> 551.5516159 | CA75: =INDEX($BJ$29:$BJ$2656,BP75,1) -> 0 | CB75: =SUMIF($BC$29:$BC$2656,"<"&BQ75,$BJ$29:$BJ$2656)-SUM(BX$27:BX74) -> 431.5831034 | CC75: =INDEX($BF$29:$BF$2656,BP75,1) -> 0 | CD75: =INDEX($BJ$29:$BJ$2656,BP75,1) -> 0 | CE75: 0 | CG75: =MIN(MAX(SUMIF($BC$29:$BC$2656,"<"&BQ75,$BJ$29:$BJ$2656)-SUM(BX$27:BX74),0),'Input og resultater'!$I$13) -> 188
A76: 76 | B76: 75 | D76: 0 | E76: 3.936833022 | F76: 3.936833022 | H76: 149.1522986 | I76: =MIN(D76,'Input og resultater'!$I$12,'Input og resultater'!$I$13-H76) -> 0 | J76: =MIN(E76,'Input og resultater'!$I$12,H76) -> 3.936833022 | K76: 0 | L76: 0 | N76: 0 | Q76: 149.1522986 | R76: =MIN(D76,'Input og resultater'!$I$12,'Input og resultater'!$I$13-Q76) -> 0 | S76: =MIN(F76,'Input og resultater'!$I$12,Q76) -> 3.936833022 | U76: =IF(B76>$O$2,'438 timer'!$BC76,0) -> 0 | W76: =MIN($U76-SUM(V76:$V76),'438 timer'!AK76) -> 0 | X76: =MIN($U76-SUM($V76:W76),'438 timer'!AL76) -> 0 | Y76: =MIN($U76-SUM($V76:X76),'438 timer'!AM76) -> 0 | Z76: =MIN($U76-SUM($V76:Y76),'438 timer'!AN76) -> 0 | AA76: =MIN($U76-SUM($V76:Z76),'438 timer'!AO76) -> 0 | AB76: =MIN($U76-SUM($V76:AA76),'438 timer'!AP76) -> 0 | AE76: 0 | AF76: 0 | AG76: 0 | AH76: 0 | AI76: 0 | AJ76: 0 | AT76: 0 | AU76: 48 | AV76: =SMALL('438 timer'!$AD$2:$AI$439,$AU76) -> 2.46e-05 | AW76: =IFERROR(MATCH($AV76,'438 timer'!AD$2:AD$439,0),0) -> 0 | AX76: =IFERROR(MATCH($AV76,'438 timer'!AE$2:AE$439,0),0) -> 24 | AY76: =IFERROR(MATCH($AV76,'438 timer'!AF$2:AF$439,0),0) -> 0 | AZ76: =IFERROR(MATCH($AV76,'438 timer'!AG$2:AG$439,0),0) -> 0 | BA76: =IFERROR(MATCH($AV76,'438 timer'!AH$2:AH$439,0),0) -> 0 | BB76: =IFERROR(MATCH($AV76,'438 timer'!AI$2:AI$439,0),0) -> 0 | BC76: 24 | BD76: 2 | BE76: =INDEX('438 timer'!$AK$2:$AQ$439,BC76,BD76) -> 0 | BF76: =MAX(INDEX('438 timer'!$BC$2:$BC$439,BC76,)-SUMIF(BC$27:BC75,"="&BC76,BI$27:BI75),0) -> 21.13092603 | BG76: =MAX(INDEX('438 timer'!$BD$2:$BD$439,BC76,1)-SUM(BI$26:BI75),0) -> 6880.362338 | BH76: ='Input og resultater'!$I$12-SUMIF(BC$27:BC75,"="&BC76,BJ$27:BJ75) -> 10 | BI76: 0 | BJ76: 0 | BK76: =SUMIF(BC$27:BC75,"<="&BC76,BJ$27:BJ75)+'438 timer'!$AS$2 -> 119.9685126 | BL76: =INDEX($BV$29:$BV$2656,BP76,1) -> 0 | BM76: =INDEX('438 timer'!$BC$2:$BC$439,BC76,) -> 21.13092603 | BN76: =MAX('438 timer'!$BD$2-SUM(BI$26:BI75)-AT76,0) -> 7327.45026 | BO76: =LARGE('438 timer'!$AD$2:$AI$439,$AU76) -> 1687.186357 | BP76: 2581 | BQ76: 345 | BR76: 6 | BS76: =SUMIFS($BJ$29:$BJ$2656,$BC$29:$BC$2656,"<"&BQ76,$AV$29:$AV$2656,"<="&BO76)-SUMIF(BQ$27:BQ75,">"&BQ76,BV$27:BV75)+SUMIFS(BV$27:BV75,BQ$27:BQ75,">"&BQ76,$BO$27:BO75,"<="&BO76) -> 815.8772234 | BT76: ='Input og resultater'!$I$12-SUMIF(BQ$27:BQ75,"="&BQ76,BX$27:BX75) -> 10 | BU76: =INDEX($BI$29:$BI$2656,BP76,1) -> 0 | BV76: 0 | BW76: =MAX(LARGE($BZ$29:$BZ$2656,1)-SUM(BX$27:BX75),0) -> 1045.845736 | BX76: =MIN(MAX(MIN(CE76,'Input og resultater'!$I$12,BW76),0),BT76) -> 0 | BZ76: =-INDEX($BF$29:$BF$2656,BP76,1)+INDEX($BK$29:$BK$2656,BP76,1) -> 935.845736 | CA76: =INDEX($BJ$29:$BJ$2656,BP76,1) -> 0 | CB76: =SUMIF($BC$29:$BC$2656,"<"&BQ76,$BJ$29:$BJ$2656)-SUM(BX$27:BX75) -> 815.8772234 | CC76: =INDEX($BF$29:$BF$2656,BP76,1) -> 0 | CD76: =INDEX($BJ$29:$BJ$2656,BP76,1) -> 0 | CE76: 0 | CG76: =MIN(MAX(SUMIF($BC$29:$BC$2656,"<"&BQ76,$BJ$29:$BJ$2656)-SUM(BX$27:BX75),0),'Input og resultater'!$I$13) -> 188
A77: 77 | B77: 76 | D77: 0 | E77: 3.713989022 | F77: 3.713989022 | H77: 145.2154656 | I77: =MIN(D77,'Input og resultater'!$I$12,'Input og resultater'!$I$13-H77) -> 0 | J77: =MIN(E77,'Input og resultater'!$I$12,H77) -> 3.713989022 | K77: 0 | L77: 0 | N77: 0 | Q77: 145.2154656 | R77: =MIN(D77,'Input og resultater'!$I$12,'Input og resultater'!$I$13-Q77) -> 0 | S77: =MIN(F77,'Input og resultater'!$I$12,Q77) -> 3.713989022 | U77: =IF(B77>$O$2,'438 timer'!$BC77,0) -> 0 | W77: =MIN($U77-SUM(V77:$V77),'438 timer'!AK77) -> 0 | X77: =MIN($U77-SUM($V77:W77),'438 timer'!AL77) -> 0 | Y77: =MIN($U77-SUM($V77:X77),'438 timer'!AM77) -> 0 | Z77: =MIN($U77-SUM($V77:Y77),'438 timer'!AN77) -> 0 | AA77: =MIN($U77-SUM($V77:Z77),'438 timer'!AO77) -> 0 | AB77: =MIN($U77-SUM($V77:AA77),'438 timer'!AP77) -> 0 | AE77: 0 | AF77: 0 | AG77: 0 | AH77: 0 | AI77: 0 | AJ77: 0 | AT77: 0 | AU77: 49 | AV77: =SMALL('438 timer'!$AD$2:$AI$439,$AU77) -> 2.55e-05 | AW77: =IFERROR(MATCH($AV77,'438 timer'!AD$2:AD$439,0),0) -> 25 | AX77: =IFERROR(MATCH($AV77,'438 timer'!AE$2:AE$439,0),0) -> 0 | AY77: =IFERROR(MATCH($AV77,'438 timer'!AF$2:AF$439,0),0) -> 0 | AZ77: =IFERROR(MATCH($AV77,'438 timer'!AG$2:AG$439,0),0) -> 0 | BA77: =IFERROR(MATCH($AV77,'438 timer'!AH$2:AH$439,0),0) -> 0 | BB77: =IFERROR(MATCH($AV77,'438 timer'!AI$2:AI$439,0),0) -> 0 | BC77: 25 | BD77: 1 | BE77: =INDEX('438 timer'!$AK$2:$AQ$439,BC77,BD77) -> 0 | BF77: =MAX(INDEX('438 timer'!$BC$2:$BC$439,BC77,)-SUMIF(BC$27:BC76,"="&BC77,BI$27:BI76),0) -> 21.42805103 | BG77: =MAX(INDEX('438 timer'!$BD$2:$BD$439,BC77,1)-SUM(BI$26:BI76),0) -> 6859.231412 | BH77: ='Input og resultater'!$I$12-SUMIF(BC$27:BC76,"="&BC77,BJ$27:BJ76) -> 10 | BI77: 0 | BJ77: 0 | BK77: =SUMIF(BC$27:BC76,"<="&BC77,BJ$27:BJ76)+'438 timer'!$AS$2 -> 119.9685126 | BL77: =INDEX($BV$29:$BV$2656,BP77,1) -> 0 | BM77: =INDEX('438 timer'!$BC$2:$BC$439,BC77,) -> 21.42805103 | BN77: =MAX('438 timer'!$BD$2-SUM(BI$26:BI76)-AT77,0) -> 7327.45026 | BO77: =LARGE('438 timer'!$AD$2:$AI$439,$AU77) -> 1674.760959 | BP77: 2580 | BQ77: 186 | BR77: 6 | BS77: =SUMIFS($BJ$29:$BJ$2656,$BC$29:$BC$2656,"<"&BQ77,$AV$29:$AV$2656,"<="&BO77)-SUMIF(BQ$27:BQ76,">"&BQ77,BV$27:BV76)+SUMIFS(BV$27:BV76,BQ$27:BQ76,">"&BQ77,$BO$27:BO76,"<="&BO77) -> 431.9547283 | BT77: ='Input og resultater'!$I$12-SUMIF(BQ$27:BQ76,"="&BQ77,BX$27:BX76) -> 10 | BU77: =INDEX($BI$29:$BI$2656,BP77,1) -> 0 | BV77: 0 | BW77: =MAX(LARGE($BZ$29:$BZ$2656,1)-SUM(BX$27:BX76),0) -> 1045.845736 | BX77: =MIN(MAX(MIN(CE77,'Input og resultater'!$I$12,BW77),0),BT77) -> 0 | BZ77: =-INDEX($BF$29:$BF$2656,BP77,1)+INDEX($BK$29:$BK$2656,BP77,1) -> 552.2204389 | CA77: =INDEX($BJ$29:$BJ$2656,BP77,1) -> 0 | CB77: =SUMIF($BC$29:$BC$2656,"<"&BQ77,$BJ$29:$BJ$2656)-SUM(BX$27:BX76) -> 431.9547283 | CC77: =INDEX($BF$29:$BF$2656,BP77,1) -> 0 | CD77: =INDEX($BJ$29:$BJ$2656,BP77,1) -> 0 | CE77: 0 | CG77: =MIN(MAX(SUMIF($BC$29:$BC$2656,"<"&BQ77,$BJ$29:$BJ$2656)-SUM(BX$27:BX76),0),'Input og resultater'!$I$13) -> 188
A78: 78 | B78: 77 | D78: 0 | E78: 3.713989022 | F78: 3.713989022 | H78: 141.5014766 | I78: =MIN(D78,'Input og resultater'!$I$12,'Input og resultater'!$I$13-H78) -> 0 | J78: =MIN(E78,'Input og resultater'!$I$12,H78) -> 3.713989022 | K78: 0 | L78: 0 | N78: 0 | Q78: 141.5014766 | R78: =MIN(D78,'Input og resultater'!$I$12,'Input og resultater'!$I$13-Q78) -> 0 | S78: =MIN(F78,'Input og resultater'!$I$12,Q78) -> 3.713989022 | U78: =IF(B78>$O$2,'438 timer'!$BC78,0) -> 0 | W78: =MIN($U78-SUM(V78:$V78),'438 timer'!AK78) -> 0 | X78: =MIN($U78-SUM($V78:W78),'438 timer'!AL78) -> 0 | Y78: =MIN($U78-SUM($V78:X78),'438 timer'!AM78) -> 0 | Z78: =MIN($U78-SUM($V78:Y78),'438 timer'!AN78) -> 0 | AA78: =MIN($U78-SUM($V78:Z78),'438 timer'!AO78) -> 0 | AB78: =MIN($U78-SUM($V78:AA78),'438 timer'!AP78) -> 0 | AE78: 0 | AF78: 0 | AG78: 0 | AH78: 0 | AI78: 0 | AJ78: 0 | AT78: 0 | AU78: 50 | AV78: =SMALL('438 timer'!$AD$2:$AI$439,$AU78) -> 2.56e-05 | AW78: =IFERROR(MATCH($AV78,'438 timer'!AD$2:AD$439,0),0) -> 0 | AX78: =IFERROR(MATCH($AV78,'438 timer'!AE$2:AE$439,0),0) -> 25 | AY78: =IFERROR(MATCH($AV78,'438 timer'!AF$2:AF$439,0),0) -> 0 | AZ78: =IFERROR(MATCH($AV78,'438 timer'!AG$2:AG$439,0),0) -> 0 | BA78: =IFERROR(MATCH($AV78,'438 timer'!AH$2:AH$439,0),0) -> 0 | BB78: =IFERROR(MATCH($AV78,'438 timer'!AI$2:AI$439,0),0) -> 0 | BC78: 25 | BD78: 2 | BE78: =INDEX('438 timer'!$AK$2:$AQ$439,BC78,BD78) -> 0 | BF78: =MAX(INDEX('438 timer'!$BC$2:$BC$439,BC78,)-SUMIF(BC$27:BC77,"="&BC78,BI$27:BI77),0) -> 21.42805103 | BG78: =MAX(INDEX('438 timer'!$BD$2:$BD$439,BC78,1)-SUM(BI$26:BI77),0) -> 6859.231412 | BH78: ='Input og resultater'!$I$12-SUMIF(BC$27:BC77,"="&BC78,BJ$27:BJ77) -> 10 | BI78: 0 | BJ78: 0 | BK78: =SUMIF(BC$27:BC77,"<="&BC78,BJ$27:BJ77)+'438 timer'!$AS$2 -> 119.9685126 | BL78: =INDEX($BV$29:$BV$2656,BP78,1) -> 0 | BM78: =INDEX('438 timer'!$BC$2:$BC$439,BC78,) -> 21.42805103 | BN78: =MAX('438 timer'!$BD$2-SUM(BI$26:BI77)-AT78,0) -> 7327.45026 | BO78: =LARGE('438 timer'!$AD$2:$AI$439,$AU78) -> 1670.145243 | BP78: 2579 | BQ78: 128 | BR78: 6 | BS78: =SUMIFS($BJ$29:$BJ$2656,$BC$29:$BC$2656,"<"&BQ78,$AV$29:$AV$2656,"<="&BO78)-SUMIF(BQ$27:BQ77,">"&BQ78,BV$27:BV77)+SUMIFS(BV$27:BV77,BQ$27:BQ77,">"&BQ78,$BO$27:BO77,"<="&BO78) -> 431.5831034 | BT78: ='Input og resultater'!$I$12-SUMIF(BQ$27:BQ77,"="&BQ78,BX$27:BX77) -> 10 | BU78: =INDEX($BI$29:$BI$2656,BP78,1) -> 0 | BV78: 0 | BW78: =MAX(LARGE($BZ$29:$BZ$2656,1)-SUM(BX$27:BX77),0) -> 1045.845736 | BX78: =MIN(MAX(MIN(CE78,'Input og resultater'!$I$12,BW78),0),BT78) -> 0 | BZ78: =-INDEX($BF$29:$BF$2656,BP78,1)+INDEX($BK$29:$BK$2656,BP78,1) -> 551.5516159 | CA78: =INDEX($BJ$29:$BJ$2656,BP78,1) -> 0 | CB78: =SUMIF($BC$29:$BC$2656,"<"&BQ78,$BJ$29:$BJ$2656)-SUM(BX$27:BX77) -> 431.5831034 | CC78: =INDEX($BF$29:$BF$2656,BP78,1) -> 0 | CD78: =INDEX($BJ$29:$BJ$2656,BP78,1) -> 0 | CE78: 0 | CG78: =MIN(MAX(SUMIF($BC$29:$BC$2656,"<"&BQ78,$BJ$29:$BJ$2656)-SUM(BX$27:BX77),0),'Input og resultater'!$I$13) -> 188
A79: 79 | B79: 78 | D79: 0 | E79: 3.936833022 | F79: 3.936833022 | H79: 137.7874876 | I79: =MIN(D79,'Input og resultater'!$I$12,'Input og resultater'!$I$13-H79) -> 0 | J79: =MIN(E79,'Input og resultater'!$I$12,H79) -> 3.936833022 | K79: 0 | L79: 0 | N79: 0 | Q79: 137.7874876 | R79: =MIN(D79,'Input og resultater'!$I$12,'Input og resultater'!$I$13-Q79) -> 0 | S79: =MIN(F79,'Input og resultater'!$I$12,Q79) -> 3.936833022 | U79: =IF(B79>$O$2,'438 timer'!$BC79,0) -> 0 | W79: =MIN($U79-SUM(V79:$V79),'438 timer'!AK79) -> 0 | X79: =MIN($U79-SUM($V79:W79),'438 timer'!AL79) -> 0 | Y79: =MIN($U79-SUM($V79:X79),'438 timer'!AM79) -> 0 | Z79: =MIN($U79-SUM($V79:Y79),'438 timer'!AN79) -> 0 | AA79: =MIN($U79-SUM($V79:Z79),'438 timer'!AO79) -> 0 | AB79: =MIN($U79-SUM($V79:AA79),'438 timer'!AP79) -> 0 | AE79: 0 | AF79: 0 | AG79: 0 | AH79: 0 | AI79: 0 | AJ79: 0 | AT79: 0 | AU79: 51 | AV79: =SMALL('438 timer'!$AD$2:$AI$439,$AU79) -> 2.65e-05 | AW79: =IFERROR(MATCH($AV79,'438 timer'!AD$2:AD$439,0),0) -> 26 | AX79: =IFERROR(MATCH($AV79,'438 timer'!AE$2:AE$439,0),0) -> 0 | AY79: =IFERROR(MATCH($AV79,'438 timer'!AF$2:AF$439,0),0) -> 0 | AZ79: =IFERROR(MATCH($AV79,'438 timer'!AG$2:AG$439,0),0) -> 0 | BA79: =IFERROR(MATCH($AV79,'438 timer'!AH$2:AH$439,0),0) -> 0 | BB79: =IFERROR(MATCH($AV79,'438 timer'!AI$2:AI$439,0),0) -> 0 | BC79: 26 | BD79: 1 | BE79: =INDEX('438 timer'!$AK$2:$AQ$439,BC79,BD79) -> 0 | BF79: =MAX(INDEX('438 timer'!$BC$2:$BC$439,BC79,)-SUMIF(BC$27:BC78,"="&BC79,BI$27:BI78),0) -> 21.42805103 | BG79: =MAX(INDEX('438 timer'!$BD$2:$BD$439,BC79,1)-SUM(BI$26:BI78),0) -> 6837.80336 | BH79: ='Input og resultater'!$I$12-SUMIF(BC$27:BC78,"="&BC79,BJ$27:BJ78) -> 10 | BI79: 0 | BJ79: 0 | BK79: =SUMIF(BC$27:BC78,"<="&BC79,BJ$27:BJ78)+'438 timer'!$AS$2 -> 119.9685126 | BL79: =INDEX($BV$29:$BV$2656,BP79,1) -> 0 | BM79: =INDEX('438 timer'!$BC$2:$BC$439,BC79,) -> 21.42805103 | BN79: =MAX('438 timer'!$BD$2-SUM(BI$26:BI78)-AT79,0) -> 7327.45026 | BO79: =LARGE('438 timer'!$AD$2:$AI$439,$AU79) -> 1646.91818 | BP79: 2578 | BQ79: 209 | BR79: 6 | BS79: =SUMIFS($BJ$29:$BJ$2656,$BC$29:$BC$2656,"<"&BQ79,$AV$29:$AV$2656,"<="&BO79)-SUMIF(BQ$27:BQ78,">"&BQ79,BV$27:BV78)+SUMIFS(BV$27:BV78,BQ$27:BQ78,">"&BQ79,$BO$27:BO78,"<="&BO79) -> 467.8983211 | BT79: ='Input og resultater'!$I$12-SUMIF(BQ$27:BQ78,"="&BQ79,BX$27:BX78) -> 10 | BU79: =INDEX($BI$29:$BI$2656,BP79,1) -> 0 | BV79: 0 | BW79: =MAX(LARGE($BZ$29:$BZ$2656,1)-SUM(BX$27:BX78),0) -> 1045.845736 | BX79: =MIN(MAX(MIN(CE79,'Input og resultater'!$I$12,BW79),0),BT79) -> 0 | BZ79: =-INDEX($BF$29:$BF$2656,BP79,1)+INDEX($BK$29:$BK$2656,BP79,1) -> 588.1640316 | CA79: =INDEX($BJ$29:$BJ$2656,BP79,1) -> 0 | CB79: =SUMIF($BC$29:$BC$2656,"<"&BQ79,$BJ$29:$BJ$2656)-SUM(BX$27:BX78) -> 467.8983211 | CC79: =INDEX($BF$29:$BF$2656,BP79,1) -> 0 | CD79: =INDEX($BJ$29:$BJ$2656,BP79,1) -> 0 | CE79: 0 | CG79: =MIN(MAX(SUMIF($BC$29:$BC$2656,"<"&BQ79,$BJ$29:$BJ$2656)-SUM(BX$27:BX78),0),'Input og resultater'!$I$13) -> 188
A80: 80 | B80: 79 | D80: 0 | E80: 4.085395022 | F80: 4.085395022 | H80: 133.8506545 | I80: =MIN(D80,'Input og resultater'!$I$12,'Input og resultater'!$I$13-H80) -> 0 | J80: =MIN(E80,'Input og resultater'!$I$12,H80) -> 4.085395022 | K80: 0 | L80: 0 | N80: 0 | Q80: 133.8506545 | R80: =MIN(D80,'Input og resultater'!$I$12,'Input og resultater'!$I$13-Q80) -> 0 | S80: =MIN(F80,'Input og resultater'!$I$12,Q80) -> 4.085395022 | U80: =IF(B80>$O$2,'438 timer'!$BC80,0) -> 0 | W80: =MIN($U80-SUM(V80:$V80),'438 timer'!AK80) -> 0 | X80: =MIN($U80-SUM($V80:W80),'438 timer'!AL80) -> 0 | Y80: =MIN($U80-SUM($V80:X80),'438 timer'!AM80) -> 0 | Z80: =MIN($U80-SUM($V80:Y80),'438 timer'!AN80) -> 0 | AA80: =MIN($U80-SUM($V80:Z80),'438 timer'!AO80) -> 0 | AB80: =MIN($U80-SUM($V80:AA80),'438 timer'!AP80) -> 0 | AE80: 0 | AF80: 0 | AG80: 0 | AH80: 0 | AI80: 0 | AJ80: 0 | AT80: 0 | AU80: 52 | AV80: =SMALL('438 timer'!$AD$2:$AI$439,$AU80) -> 2.66e-05 | AW80: =IFERROR(MATCH($AV80,'438 timer'!AD$2:AD$439,0),0) -> 0 | AX80: =IFERROR(MATCH($AV80,'438 timer'!AE$2:AE$439,0),0) -> 26 | AY80: =IFERROR(MATCH($AV80,'438 timer'!AF$2:AF$439,0),0) -> 0 | AZ80: =IFERROR(MATCH($AV80,'438 timer'!AG$2:AG$439,0),0) -> 0 | BA80: =IFERROR(MATCH($AV80,'438 timer'!AH$2:AH$439,0),0) -> 0 | BB80: =IFERROR(MATCH($AV80,'438 timer'!AI$2:AI$439,0),0) -> 0 | BC80: 26 | BD80: 2 | BE80: =INDEX('438 timer'!$AK$2:$AQ$439,BC80,BD80) -> 0 | BF80: =MAX(INDEX('438 timer'!$BC$2:$BC$439,BC80,)-SUMIF(BC$27:BC79,"="&BC80,BI$27:BI79),0) -> 21.42805103 | BG80: =MAX(INDEX('438 timer'!$BD$2:$BD$439,BC80,1)-SUM(BI$26:BI79),0) -> 6837.80336 | BH80: ='Input og resultater'!$I$12-SUMIF(BC$27:BC79,"="&BC80,BJ$27:BJ79) -> 10 | BI80: 0 | BJ80: 0 | BK80: =SUMIF(BC$27:BC79,"<="&BC80,BJ$27:BJ79)+'438 timer'!$AS$2 -> 119.9685126 | BL80: =INDEX($BV$29:$BV$2656,BP80,1) -> 0 | BM80: =INDEX('438 timer'!$BC$2:$BC$439,BC80,) -> 21.42805103 | BN80: =MAX('438 timer'!$BD$2-SUM(BI$26:BI79)-AT80,0) -> 7327.45026 | BO80: =LARGE('438 timer'!$AD$2:$AI$439,$AU80) -> 1620.571521 | BP80: 2577 | BQ80: 164 | BR80: 6 | BS80: =SUMIFS($BJ$29:$BJ$2656,$BC$29:$BC$2656,"<"&BQ80,$AV$29:$AV$2656,"<="&BO80)-SUMIF(BQ$27:BQ79,">"&BQ80,BV$27:BV79)+SUMIFS(BV$27:BV79,BQ$27:BQ79,">"&BQ80,$BO$27:BO79,"<="&BO80) -> 431.5831034 | BT80: ='Input og resultater'!$I$12-SUMIF(BQ$27:BQ79,"="&BQ80,BX$27:BX79) -> 10 | BU80: =INDEX($BI$29:$BI$2656,BP80,1) -> 0 | BV80: 0 | BW80: =MAX(LARGE($BZ$29:$BZ$2656,1)-SUM(BX$27:BX79),0) -> 1045.845736 | BX80: =MIN(MAX(MIN(CE80,'Input og resultater'!$I$12,BW80),0),BT80) -> 0 | BZ80: =-INDEX($BF$29:$BF$2656,BP80,1)+INDEX($BK$29:$BK$2656,BP80,1) -> 551.5516159 | CA80: =INDEX($BJ$29:$BJ$2656,BP80,1) -> 0 | CB80: =SUMIF($BC$29:$BC$2656,"<"&BQ80,$BJ$29:$BJ$2656)-SUM(BX$27:BX79) -> 431.5831034 | CC80: =INDEX($BF$29:$BF$2656,BP80,1) -> 0 | CD80: =INDEX($BJ$29:$BJ$2656,BP80,1) -> 0 | CE80: 0 | CG80: =MIN(MAX(SUMIF($BC$29:$BC$2656,"<"&BQ80,$BJ$29:$BJ$2656)-SUM(BX$27:BX79),0),'Input og resultater'!$I$13) -> 188
A81: 81 | B81: 80 | D81: 0 | E81: 3.936833022 | F81: 3.936833022 | H81: 129.7652595 | I81: =MIN(D81,'Input og resultater'!$I$12,'Input og resultater'!$I$13-H81) -> 0 | J81: =MIN(E81,'Input og resultater'!$I$12,H81) -> 3.936833022 | K81: 0 | L81: 0 | N81: 0 | Q81: 129.7652595 | R81: =MIN(D81,'Input og resultater'!$I$12,'Input og resultater'!$I$13-Q81) -> 0 | S81: =MIN(F81,'Input og resultater'!$I$12,Q81) -> 3.936833022 | U81: =IF(B81>$O$2,'438 timer'!$BC81,0) -> 0 | W81: =MIN($U81-SUM(V81:$V81),'438 timer'!AK81) -> 0 | X81: =MIN($U81-SUM($V81:W81),'438 timer'!AL81) -> 0 | Y81: =MIN($U81-SUM($V81:X81),'438 timer'!AM81) -> 0 | Z81: =MIN($U81-SUM($V81:Y81),'438 timer'!AN81) -> 0 | AA81: =MIN($U81-SUM($V81:Z81),'438 timer'!AO81) -> 0 | AB81: =MIN($U81-SUM($V81:AA81),'438 timer'!AP81) -> 0 | AE81: 0 | AF81: 0 | AG81: 0 | AH81: 0 | AI81: 0 | AJ81: 0 | AT81: 0 | AU81: 53 | AV81: =SMALL('438 timer'!$AD$2:$AI$439,$AU81) -> 2.75e-05 | AW81: =IFERROR(MATCH($AV81,'438 timer'!AD$2:AD$439,0),0) -> 27 | AX81: =IFERROR(MATCH($AV81,'438 timer'!AE$2:AE$439,0),0) -> 0 | AY81: =IFERROR(MATCH($AV81,'438 timer'!AF$2:AF$439,0),0) -> 0 | AZ81: =IFERROR(MATCH($AV81,'438 timer'!AG$2:AG$439,0),0) -> 0 | BA81: =IFERROR(MATCH($AV81,'438 timer'!AH$2:AH$439,0),0) -> 0 | BB81: =IFERROR(MATCH($AV81,'438 timer'!AI$2:AI$439,0),0) -> 0 | BC81: 27 | BD81: 1 | BE81: =INDEX('438 timer'!$AK$2:$AQ$439,BC81,BD81) -> 0 | BF81: =MAX(INDEX('438 timer'!$BC$2:$BC$439,BC81,)-SUMIF(BC$27:BC80,"="&BC81,BI$27:BI80),0) -> 21.42805103 | BG81: =MAX(INDEX('438 timer'!$BD$2:$BD$439,BC81,1)-SUM(BI$26:BI80),0) -> 6816.375309 | BH81: ='Input og resultater'!$I$12-SUMIF(BC$27:BC80,"="&BC81,BJ$27:BJ80) -> 10 | BI81: 0 | BJ81: 0 | BK81: =SUMIF(BC$27:BC80,"<="&BC81,BJ$27:BJ80)+'438 timer'!$AS$2 -> 119.9685126 | BL81: =INDEX($BV$29:$BV$2656,BP81,1) -> 0 | BM81: =INDEX('438 timer'!$BC$2:$BC$439,BC81,) -> 21.42805103 | BN81: =MAX('438 timer'!$BD$2-SUM(BI$26:BI80)-AT81,0) -> 7327.45026 | BO81: =LARGE('438 timer'!$AD$2:$AI$439,$AU81) -> 1617.36692 | BP81: 2576 | BQ81: 80 | BR81: 6 | BS81: =SUMIFS($BJ$29:$BJ$2656,$BC$29:$BC$2656,"<"&BQ81,$AV$29:$AV$2656,"<="&BO81)-SUMIF(BQ$27:BQ80,">"&BQ81,BV$27:BV80)+SUMIFS(BV$27:BV80,BQ$27:BQ80,">"&BQ81,$BO$27:BO80,"<="&BO81) -> 408.4263045 | BT81: ='Input og resultater'!$I$12-SUMIF(BQ$27:BQ80,"="&BQ81,BX$27:BX80) -> 10 | BU81: =INDEX($BI$29:$BI$2656,BP81,1) -> 0 | BV81: 0 | BW81: =MAX(LARGE($BZ$29:$BZ$2656,1)-SUM(BX$27:BX80),0) -> 1045.845736 | BX81: =MIN(MAX(MIN(CE81,'Input og resultater'!$I$12,BW81),0),BT81) -> 0 | BZ81: =-INDEX($BF$29:$BF$2656,BP81,1)+INDEX($BK$29:$BK$2656,BP81,1) -> 528.3948171 | CA81: =INDEX($BJ$29:$BJ$2656,BP81,1) -> 0 | CB81: =SUMIF($BC$29:$BC$2656,"<"&BQ81,$BJ$29:$BJ$2656)-SUM(BX$27:BX80) -> 408.4263045 | CC81: =INDEX($BF$29:$BF$2656,BP81,1) -> 0 | CD81: =INDEX($BJ$29:$BJ$2656,BP81,1) -> 0 | CE81: 0 | CG81: =MIN(MAX(SUMIF($BC$29:$BC$2656,"<"&BQ81,$BJ$29:$BJ$2656)-SUM(BX$27:BX80),0),'Input og resultater'!$I$13) -> 188
A82: 82 | B82: 81 | D82: 0 | E82: 4.011114022 | F82: 4.011114022 | H82: 125.8284265 | I82: =MIN(D82,'Input og resultater'!$I$12,'Input og resultater'!$I$13-H82) -> 0 | J82: =MIN(E82,'Input og resultater'!$I$12,H82) -> 4.011114022 | K82: 0 | L82: 0 | N82: 0 | Q82: 125.8284265 | R82: =MIN(D82,'Input og resultater'!$I$12,'Input og resultater'!$I$13-Q82) -> 0 | S82: =MIN(F82,'Input og resultater'!$I$12,Q82) -> 4.011114022 | U82: =IF(B82>$O$2,'438 timer'!$BC82,0) -> 0 | W82: =MIN($U82-SUM(V82:$V82),'438 timer'!AK82) -> 0 | X82: =MIN($U82-SUM($V82:W82),'438 timer'!AL82) -> 0 | Y82: =MIN($U82-SUM($V82:X82),'438 timer'!AM82) -> 0 | Z82: =MIN($U82-SUM($V82:Y82),'438 timer'!AN82) -> 0 | AA82: =MIN($U82-SUM($V82:Z82),'438 timer'!AO82) -> 0 | AB82: =MIN($U82-SUM($V82:AA82),'438 timer'!AP82) -> 0 | AE82: 0 | AF82: 0 | AG82: 0 | AH82: 0 | AI82: 0 | AJ82: 0 | AT82: 0 | AU82: 54 | AV82: =SMALL('438 timer'!$AD$2:$AI$439,$AU82) -> 2.76e-05 | AW82: =IFERROR(MATCH($AV82,'438 timer'!AD$2:AD$439,0),0) -> 0 | AX82: =IFERROR(MATCH($AV82,'438 timer'!AE$2:AE$439,0),0) -> 27 | AY82: =IFERROR(MATCH($AV82,'438 timer'!AF$2:AF$439,0),0) -> 0 | AZ82: =IFERROR(MATCH($AV82,'438 timer'!AG$2:AG$439,0),0) -> 0 | BA82: =IFERROR(MATCH($AV82,'438 timer'!AH$2:AH$439,0),0) -> 0 | BB82: =IFERROR(MATCH($AV82,'438 timer'!AI$2:AI$439,0),0) -> 0 | BC82: 27 | BD82: 2 | BE82: =INDEX('438 timer'!$AK$2:$AQ$439,BC82,BD82) -> 0 | BF82: =MAX(INDEX('438 timer'!$BC$2:$BC$439,BC82,)-SUMIF(BC$27:BC81,"="&BC82,BI$27:BI81),0) -> 21.42805103 | BG82: =MAX(INDEX('438 timer'!$BD$2:$BD$439,BC82,1)-SUM(BI$26:BI81),0) -> 6816.375309 | BH82: ='Input og resultater'!$I$12-SUMIF(BC$27:BC81,"="&BC82,BJ$27:BJ81) -> 10 | BI82: 0 | BJ82: 0 | BK82: =SUMIF(BC$27:BC81,"<="&BC82,BJ$27:BJ81)+'438 timer'!$AS$2 -> 119.9685126 | BL82: =INDEX($BV$29:$BV$2656,BP82,1) -> 0 | BM82: =INDEX('438 timer'!$BC$2:$BC$439,BC82,) -> 21.42805103 | BN82: =MAX('438 timer'!$BD$2-SUM(BI$26:BI81)-AT82,0) -> 7327.45026 | BO82: =LARGE('438 timer'!$AD$2:$AI$439,$AU82) -> 1601.0793 | BP82: 2575 | BQ82: 160 | BR82: 6 | BS82: =SUMIFS($BJ$29:$BJ$2656,$BC$29:$BC$2656,"<"&BQ82,$AV$29:$AV$2656,"<="&BO82)-SUMIF(BQ$27:BQ81,">"&BQ82,BV$27:BV81)+SUMIFS(BV$27:BV81,BQ$27:BQ81,">"&BQ82,$BO$27:BO81,"<="&BO82) -> 431.5831034 | BT82: ='Input og resultater'!$I$12-SUMIF(BQ$27:BQ81,"="&BQ82,BX$27:BX81) -> 10 | BU82: =INDEX($BI$29:$BI$2656,BP82,1) -> 0 | BV82: 0 | BW82: =MAX(LARGE($BZ$29:$BZ$2656,1)-SUM(BX$27:BX81),0) -> 1045.845736 | BX82: =MIN(MAX(MIN(CE82,'Input og resultater'!$I$12,BW82),0),BT82) -> 0 | BZ82: =-INDEX($BF$29:$BF$2656,BP82,1)+INDEX($BK$29:$BK$2656,BP82,1) -> 551.5516159 | CA82: =INDEX($BJ$29:$BJ$2656,BP82,1) -> 0 | CB82: =SUMIF($BC$29:$BC$2656,"<"&BQ82,$BJ$29:$BJ$2656)-SUM(BX$27:BX81) -> 431.5831034 | CC82: =INDEX($BF$29:$BF$2656,BP82,1) -> 0 | CD82: =INDEX($BJ$29:$BJ$2656,BP82,1) -> 0 | CE82: 0 | CG82: =MIN(MAX(SUMIF($BC$29:$BC$2656,"<"&BQ82,$BJ$29:$BJ$2656)-SUM(BX$27:BX81),0),'Input og resultater'!$I$13) -> 188
A83: 83 | B83: 82 | D83: 0 | E83: 4.011114022 | F83: 4.011114022 | H83: 121.8173125 | I83: =MIN(D83,'Input og resultater'!$I$12,'Input og resultater'!$I$13-H83) -> 0 | J83: =MIN(E83,'Input og resultater'!$I$12,H83) -> 4.011114022 | K83: 0 | L83: 0 | N83: 0 | Q83: 121.8173125 | R83: =MIN(D83,'Input og resultater'!$I$12,'Input og resultater'!$I$13-Q83) -> 0 | S83: =MIN(F83,'Input og resultater'!$I$12,Q83) -> 4.011114022 | U83: =IF(B83>$O$2,'438 timer'!$BC83,0) -> 0 | W83: =MIN($U83-SUM(V83:$V83),'438 timer'!AK83) -> 0 | X83: =MIN($U83-SUM($V83:W83),'438 timer'!AL83) -> 0 | Y83: =MIN($U83-SUM($V83:X83),'438 timer'!AM83) -> 0 | Z83: =MIN($U83-SUM($V83:Y83),'438 timer'!AN83) -> 0 | AA83: =MIN($U83-SUM($V83:Z83),'438 timer'!AO83) -> 0 | AB83: =MIN($U83-SUM($V83:AA83),'438 timer'!AP83) -> 0 | AE83: 0 | AF83: 0 | AG83: 0 | AH83: 0 | AI83: 0 | AJ83: 0 | AT83: 0 | AU83: 55 | AV83: =SMALL('438 timer'!$AD$2:$AI$439,$AU83) -> 2.85e-05 | AW83: =IFERROR(MATCH($AV83,'438 timer'!AD$2:AD$439,0),0) -> 28 | AX83: =IFERROR(MATCH($AV83,'438 timer'!AE$2:AE$439,0),0) -> 0 | AY83: =IFERROR(MATCH($AV83,'438 timer'!AF$2:AF$439,0),0) -> 0 | AZ83: =IFERROR(MATCH($AV83,'438 timer'!AG$2:AG$439,0),0) -> 0 | BA83: =IFERROR(MATCH($AV83,'438 timer'!AH$2:AH$439,0),0) -> 0 | BB83: =IFERROR(MATCH($AV83,'438 timer'!AI$2:AI$439,0),0) -> 0 | BC83: 28 | BD83: 1 | BE83: =INDEX('438 timer'!$AK$2:$AQ$439,BC83,BD83) -> 0 | BF83: =MAX(INDEX('438 timer'!$BC$2:$BC$439,BC83,)-SUMIF(BC$27:BC82,"="&BC83,BI$27:BI82),0) -> 21.72517603 | BG83: =MAX(INDEX('438 timer'!$BD$2:$BD$439,BC83,1)-SUM(BI$26:BI82),0) -> 6794.947258 | BH83: ='Input og resultater'!$I$12-SUMIF(BC$27:BC82,"="&BC83,BJ$27:BJ82) -> 10 | BI83: 0 | BJ83: 0 | BK83: =SUMIF(BC$27:BC82,"<="&BC83,BJ$27:BJ82)+'438 timer'!$AS$2 -> 119.9685126 | BL83: =INDEX($BV$29:$BV$2656,BP83,1) -> 0 | BM83: =INDEX('438 timer'!$BC$2:$BC$439,BC83,) -> 21.72517603 | BN83: =MAX('438 timer'!$BD$2-SUM(BI$26:BI82)-AT83,0) -> 7327.45026 | BO83: =LARGE('438 timer'!$AD$2:$AI$439,$AU83) -> 1596.538131 | BP83: 2574 | BQ83: 352 | BR83: 6 | BS83: =SUMIFS($BJ$29:$BJ$2656,$BC$29:$BC$2656,"<"&BQ83,$AV$29:$AV$2656,"<="&BO83)-SUMIF(BQ$27:BQ82,">"&BQ83,BV$27:BV82)+SUMIFS(BV$27:BV82,BQ$27:BQ82,">"&BQ83,$BO$27:BO82,"<="&BO83) -> 815.8772234 | BT83: ='Input og resultater'!$I$12-SUMIF(BQ$27:BQ82,"="&BQ83,BX$27:BX82) -> 10 | BU83: =INDEX($BI$29:$BI$2656,BP83,1) -> 0 | BV83: 0 | BW83: =MAX(LARGE($BZ$29:$BZ$2656,1)-SUM(BX$27:BX82),0) -> 1045.845736 | BX83: =MIN(MAX(MIN(CE83,'Input og resultater'!$I$12,BW83),0),BT83) -> 0 | BZ83: =-INDEX($BF$29:$BF$2656,BP83,1)+INDEX($BK$29:$BK$2656,BP83,1) -> 935.845736 | CA83: =INDEX($BJ$29:$BJ$2656,BP83,1) -> 0 | CB83: =SUMIF($BC$29:$BC$2656,"<"&BQ83,$BJ$29:$BJ$2656)-SUM(BX$27:BX82) -> 815.8772234 | CC83: =INDEX($BF$29:$BF$2656,BP83,1) -> 0 | CD83: =INDEX($BJ$29:$BJ$2656,BP83,1) -> 0 | CE83: 0 | CG83: =MIN(MAX(SUMIF($BC$29:$BC$2656,"<"&BQ83,$BJ$29:$BJ$2656)-SUM(BX$27:BX82),0),'Input og resultater'!$I$13) -> 188
A84: 84 | B84: 83 | D84: 0 | E84: 3.936833022 | F84: 3.936833022 | H84: 117.8061984 | I84: =MIN(D84,'Input og resultater'!$I$12,'Input og resultater'!$I$13-H84) -> 0 | J84: =MIN(E84,'Input og resultater'!$I$12,H84) -> 3.936833022 | K84: 0 | L84: 0 | N84: 0 | Q84: 117.8061984 | R84: =MIN(D84,'Input og resultater'!$I$12,'Input og resultater'!$I$13-Q84) -> 0 | S84: =MIN(F84,'Input og resultater'!$I$12,Q84) -> 3.936833022 | U84: =IF(B84>$O$2,'438 timer'!$BC84,0) -> 0 | W84: =MIN($U84-SUM(V84:$V84),'438 timer'!AK84) -> 0 | X84: =MIN($U84-SUM($V84:W84),'438 timer'!AL84) -> 0 | Y84: =MIN($U84-SUM($V84:X84),'438 timer'!AM84) -> 0 | Z84: =MIN($U84-SUM($V84:Y84),'438 timer'!AN84) -> 0 | AA84: =MIN($U84-SUM($V84:Z84),'438 timer'!AO84) -> 0 | AB84: =MIN($U84-SUM($V84:AA84),'438 timer'!AP84) -> 0 | AE84: 0 | AF84: 0 | AG84: 0 | AH84: 0 | AI84: 0 | AJ84: 0 | AT84: 0 | AU84: 56 | AV84: =SMALL('438 timer'!$AD$2:$AI$439,$AU84) -> 2.86e-05 | AW84: =IFERROR(MATCH($AV84,'438 timer'!AD$2:AD$439,0),0) -> 0 | AX84: =IFERROR(MATCH($AV84,'438 timer'!AE$2:AE$439,0),0) -> 28 | AY84: =IFERROR(MATCH($AV84,'438 timer'!AF$2:AF$439,0),0) -> 0 | AZ84: =IFERROR(MATCH($AV84,'438 timer'!AG$2:AG$439,0),0) -> 0 | BA84: =IFERROR(MATCH($AV84,'438 timer'!AH$2:AH$439,0),0) -> 0 | BB84: =IFERROR(MATCH($AV84,'438 timer'!AI$2:AI$439,0),0) -> 0 | BC84: 28 | BD84: 2 | BE84: =INDEX('438 timer'!$AK$2:$AQ$439,BC84,BD84) -> 0 | BF84: =MAX(INDEX('438 timer'!$BC$2:$BC$439,BC84,)-SUMIF(BC$27:BC83,"="&BC84,BI$27:BI83),0) -> 21.72517603 | BG84: =MAX(INDEX('438 timer'!$BD$2:$BD$439,BC84,1)-SUM(BI$26:BI83),0) -> 6794.947258 | BH84: ='Input og resultater'!$I$12-SUMIF(BC$27:BC83,"="&BC84,BJ$27:BJ83) -> 10 | BI84: 0 | BJ84: 0 | BK84: =SUMIF(BC$27:BC83,"<="&BC84,BJ$27:BJ83)+'438 timer'!$AS$2 -> 119.9685126 | BL84: =INDEX($BV$29:$BV$2656,BP84,1) -> 0 | BM84: =INDEX('438 timer'!$BC$2:$BC$439,BC84,) -> 21.72517603 | BN84: =MAX('438 timer'!$BD$2-SUM(BI$26:BI83)-AT84,0) -> 7327.45026 | BO84: =LARGE('438 timer'!$AD$2:$AI$439,$AU84) -> 1553.988464 | BP84: 2573 | BQ84: 81 | BR84: 6 | BS84: =SUMIFS($BJ$29:$BJ$2656,$BC$29:$BC$2656,"<"&BQ84,$AV$29:$AV$2656,"<="&BO84)-SUMIF(BQ$27:BQ83,">"&BQ84,BV$27:BV83)+SUMIFS(BV$27:BV83,BQ$27:BQ83,">"&BQ84,$BO$27:BO83,"<="&BO84) -> 408.4263045 | BT84: ='Input og resultater'!$I$12-SUMIF(BQ$27:BQ83,"="&BQ84,BX$27:BX83) -> 10 | BU84: =INDEX($BI$29:$BI$2656,BP84,1) -> 0 | BV84: 0 | BW84: =MAX(LARGE($BZ$29:$BZ$2656,1)-SUM(BX$27:BX83),0) -> 1045.845736 | BX84: =MIN(MAX(MIN(CE84,'Input og resultater'!$I$12,BW84),0),BT84) -> 0 | BZ84: =-INDEX($BF$29:$BF$2656,BP84,1)+INDEX($BK$29:$BK$2656,BP84,1) -> 528.3948171 | CA84: =INDEX($BJ$29:$BJ$2656,BP84,1) -> 0 | CB84: =SUMIF($BC$29:$BC$2656,"<"&BQ84,$BJ$29:$BJ$2656)-SUM(BX$27:BX83) -> 408.4263045 | CC84: =INDEX($BF$29:$BF$2656,BP84,1) -> 0 | CD84: =INDEX($BJ$29:$BJ$2656,BP84,1) -> 0 | CE84: 0 | CG84: =MIN(MAX(SUMIF($BC$29:$BC$2656,"<"&BQ84,$BJ$29:$BJ$2656)-SUM(BX$27:BX83),0),'Input og resultater'!$I$13) -> 188
A85: 85 | B85: 84 | D85: 0 | E85: 3.862551022 | F85: 3.862551022 | H85: 113.8693654 | I85: =MIN(D85,'Input og resultater'!$I$12,'Input og resultater'!$I$13-H85) -> 0 | J85: =MIN(E85,'Input og resultater'!$I$12,H85) -> 3.862551022 | K85: 0 | L85: 0 | N85: 0 | Q85: 113.8693654 | R85: =MIN(D85,'Input og resultater'!$I$12,'Input og resultater'!$I$13-Q85) -> 0 | S85: =MIN(F85,'Input og resultater'!$I$12,Q85) -> 3.862551022 | U85: =IF(B85>$O$2,'438 timer'!$BC85,0) -> 0 | W85: =MIN($U85-SUM(V85:$V85),'438 timer'!AK85) -> 0 | X85: =MIN($U85-SUM($V85:W85),'438 timer'!AL85) -> 0 | Y85: =MIN($U85-SUM($V85:X85),'438 timer'!AM85) -> 0 | Z85: =MIN($U85-SUM($V85:Y85),'438 timer'!AN85) -> 0 | AA85: =MIN($U85-SUM($V85:Z85),'438 timer'!AO85) -> 0 | AB85: =MIN($U85-SUM($V85:AA85),'438 timer'!AP85) -> 0 | AE85: 0 | AF85: 0 | AG85: 0 | AH85: 0 | AI85: 0 | AJ85: 0 | AT85: 0 | AU85: 57 | AV85: =SMALL('438 timer'!$AD$2:$AI$439,$AU85) -> 2.95e-05 | AW85: =IFERROR(MATCH($AV85,'438 timer'!AD$2:AD$439,0),0) -> 29 | AX85: =IFERROR(MATCH($AV85,'438 timer'!AE$2:AE$439,0),0) -> 0 | AY85: =IFERROR(MATCH($AV85,'438 timer'!AF$2:AF$439,0),0) -> 0 | AZ85: =IFERROR(MATCH($AV85,'438 timer'!AG$2:AG$439,0),0) -> 0 | BA85: =IFERROR(MATCH($AV85,'438 timer'!AH$2:AH$439,0),0) -> 0 | BB85: =IFERROR(MATCH($AV85,'438 timer'!AI$2:AI$439,0),0) -> 0 | BC85: 29 | BD85: 1 | BE85: =INDEX('438 timer'!$AK$2:$AQ$439,BC85,BD85) -> 0 | BF85: =MAX(INDEX('438 timer'!$BC$2:$BC$439,BC85,)-SUMIF(BC$27:BC84,"="&BC85,BI$27:BI84),0) -> 22.02230103 | BG85: =MAX(INDEX('438 timer'!$BD$2:$BD$439,BC85,1)-SUM(BI$26:BI84),0) -> 6773.222082 | BH85: ='Input og resultater'!$I$12-SUMIF(BC$27:BC84,"="&BC85,BJ$27:BJ84) -> 10 | BI85: 0 | BJ85: 0 | BK85: =SUMIF(BC$27:BC84,"<="&BC85,BJ$27:BJ84)+'438 timer'!$AS$2 -> 119.9685126 | BL85: =INDEX($BV$29:$BV$2656,BP85,1) -> 0 | BM85: =INDEX('438 timer'!$BC$2:$BC$439,BC85,) -> 22.02230103 | BN85: =MAX('438 timer'!$BD$2-SUM(BI$26:BI84)-AT85,0) -> 7327.45026 | BO85: =LARGE('438 timer'!$AD$2:$AI$439,$AU85) -> 1546.348767 | BP85: 2572 | BQ85: 258 | BR85: 6 | BS85: =SUMIFS($BJ$29:$BJ$2656,$BC$29:$BC$2656,"<"&BQ85,$AV$29:$AV$2656,"<="&BO85)-SUMIF(BQ$27:BQ84,">"&BQ85,BV$27:BV84)+SUMIFS(BV$27:BV84,BQ$27:BQ84,">"&BQ85,$BO$27:BO84,"<="&BO85) -> 469.6818729 | BT85: ='Input og resultater'!$I$12-SUMIF(BQ$27:BQ84,"="&BQ85,BX$27:BX84) -> 10 | BU85: =INDEX($BI$29:$BI$2656,BP85,1) -> 0 | BV85: 0 | BW85: =MAX(LARGE($BZ$29:$BZ$2656,1)-SUM(BX$27:BX84),0) -> 1045.845736 | BX85: =MIN(MAX(MIN(CE85,'Input og resultater'!$I$12,BW85),0),BT85) -> 0 | BZ85: =-INDEX($BF$29:$BF$2656,BP85,1)+INDEX($BK$29:$BK$2656,BP85,1) -> 590.6161144 | CA85: =INDEX($BJ$29:$BJ$2656,BP85,1) -> 0 | CB85: =SUMIF($BC$29:$BC$2656,"<"&BQ85,$BJ$29:$BJ$2656)-SUM(BX$27:BX84) -> 469.6818729 | CC85: =INDEX($BF$29:$BF$2656,BP85,1) -> 0 | CD85: =INDEX($BJ$29:$BJ$2656,BP85,1) -> 0 | CE85: 0 | CG85: =MIN(MAX(SUMIF($BC$29:$BC$2656,"<"&BQ85,$BJ$29:$BJ$2656)-SUM(BX$27:BX84),0),'Input og resultater'!$I$13) -> 188
A86: 86 | B86: 85 | D86: 0 | E86: 3.936833022 | F86: 3.936833022 | H86: 110.0068144 | I86: =MIN(D86,'Input og resultater'!$I$12,'Input og resultater'!$I$13-H86) -> 0 | J86: =MIN(E86,'Input og resultater'!$I$12,H86) -> 3.936833022 | K86: 0 | L86: 0 | N86: 0 | Q86: 110.0068144 | R86: =MIN(D86,'Input og resultater'!$I$12,'Input og resultater'!$I$13-Q86) -> 0 | S86: =MIN(F86,'Input og resultater'!$I$12,Q86) -> 3.936833022 | U86: =IF(B86>$O$2,'438 timer'!$BC86,0) -> 0 | W86: =MIN($U86-SUM(V86:$V86),'438 timer'!AK86) -> 0 | X86: =MIN($U86-SUM($V86:W86),'438 timer'!AL86) -> 0 | Y86: =MIN($U86-SUM($V86:X86),'438 timer'!AM86) -> 0 | Z86: =MIN($U86-SUM($V86:Y86),'438 timer'!AN86) -> 0 | AA86: =MIN($U86-SUM($V86:Z86),'438 timer'!AO86) -> 0 | AB86: =MIN($U86-SUM($V86:AA86),'438 timer'!AP86) -> 0 | AE86: 0 | AF86: 0 | AG86: 0 | AH86: 0 | AI86: 0 | AJ86: 0 | AT86: 0 | AU86: 58 | AV86: =SMALL('438 timer'!$AD$2:$AI$439,$AU86) -> 2.96e-05 | AW86: =IFERROR(MATCH($AV86,'438 timer'!AD$2:AD$439,0),0) -> 0 | AX86: =IFERROR(MATCH($AV86,'438 timer'!AE$2:AE$439,0),0) -> 29 | AY86: =IFERROR(MATCH($AV86,'438 timer'!AF$2:AF$439,0),0) -> 0 | AZ86: =IFERROR(MATCH($AV86,'438 timer'!AG$2:AG$439,0),0) -> 0 | BA86: =IFERROR(MATCH($AV86,'438 timer'!AH$2:AH$439,0),0) -> 0 | BB86: =IFERROR(MATCH($AV86,'438 timer'!AI$2:AI$439,0),0) -> 0 | BC86: 29 | BD86: 2 | BE86: =INDEX('438 timer'!$AK$2:$AQ$439,BC86,BD86) -> 0 | BF86: =MAX(INDEX('438 timer'!$BC$2:$BC$439,BC86,)-SUMIF(BC$27:BC85,"="&BC86,BI$27:BI85),0) -> 22.02230103 | BG86: =MAX(INDEX('438 timer'!$BD$2:$BD$439,BC86,1)-SUM(BI$26:BI85),0) -> 6773.222082 | BH86: ='Input og resultater'!$I$12-SUMIF(BC$27:BC85,"="&BC86,BJ$27:BJ85) -> 10 | BI86: 0 | BJ86: 0 | BK86: =SUMIF(BC$27:BC85,"<="&BC86,BJ$27:BJ85)+'438 timer'!$AS$2 -> 119.9685126 | BL86: =INDEX($BV$29:$BV$2656,BP86,1) -> 0 | BM86: =INDEX('438 timer'!$BC$2:$BC$439,BC86,) -> 22.02230103 | BN86: =MAX('438 timer'!$BD$2-SUM(BI$26:BI85)-AT86,0) -> 7327.45026 | BO86: =LARGE('438 timer'!$AD$2:$AI$439,$AU86) -> 1535.684787 | BP86: 2571 | BQ86: 83 | BR86: 6 | BS86: =SUMIFS($BJ$29:$BJ$2656,$BC$29:$BC$2656,"<"&BQ86,$AV$29:$AV$2656,"<="&BO86)-SUMIF(BQ$27:BQ85,">"&BQ86,BV$27:BV85)+SUMIFS(BV$27:BV85,BQ$27:BQ85,">"&BQ86,$BO$27:BO85,"<="&BO86) -> 408.4263045 | BT86: ='Input og resultater'!$I$12-SUMIF(BQ$27:BQ85,"="&BQ86,BX$27:BX85) -> 10 | BU86: =INDEX($BI$29:$BI$2656,BP86,1) -> 0 | BV86: 0 | BW86: =MAX(LARGE($BZ$29:$BZ$2656,1)-SUM(BX$27:BX85),0) -> 1045.845736 | BX86: =MIN(MAX(MIN(CE86,'Input og resultater'!$I$12,BW86),0),BT86) -> 0 | BZ86: =-INDEX($BF$29:$BF$2656,BP86,1)+INDEX($BK$29:$BK$2656,BP86,1) -> 528.3948171 | CA86: =INDEX($BJ$29:$BJ$2656,BP86,1) -> 0 | CB86: =SUMIF($BC$29:$BC$2656,"<"&BQ86,$BJ$29:$BJ$2656)-SUM(BX$27:BX85) -> 408.4263045 | CC86: =INDEX($BF$29:$BF$2656,BP86,1) -> 0 | CD86: =INDEX($BJ$29:$BJ$2656,BP86,1) -> 0 | CE86: 0 | CG86: =MIN(MAX(SUMIF($BC$29:$BC$2656,"<"&BQ86,$BJ$29:$BJ$2656)-SUM(BX$27:BX85),0),'Input og resultater'!$I$13) -> 188
A87: 87 | B87: 86 | D87: 0 | E87: 4.085395022 | F87: 4.085395022 | H87: 106.0699814 | I87: =MIN(D87,'Input og resultater'!$I$12,'Input og resultater'!$I$13-H87) -> 0 | J87: =MIN(E87,'Input og resultater'!$I$12,H87) -> 4.085395022 | K87: 0 | L87: 0 | N87: 0 | Q87: 106.0699814 | R87: =MIN(D87,'Input og resultater'!$I$12,'Input og resultater'!$I$13-Q87) -> 0 | S87: =MIN(F87,'Input og resultater'!$I$12,Q87) -> 4.085395022 | U87: =IF(B87>$O$2,'438 timer'!$BC87,0) -> 0 | W87: =MIN($U87-SUM(V87:$V87),'438 timer'!AK87) -> 0 | X87: =MIN($U87-SUM($V87:W87),'438 timer'!AL87) -> 0 | Y87: =MIN($U87-SUM($V87:X87),'438 timer'!AM87) -> 0 | Z87: =MIN($U87-SUM($V87:Y87),'438 timer'!AN87) -> 0 | AA87: =MIN($U87-SUM($V87:Z87),'438 timer'!AO87) -> 0 | AB87: =MIN($U87-SUM($V87:AA87),'438 timer'!AP87) -> 0 | AE87: 0 | AF87: 0 | AG87: 0 | AH87: 0 | AI87: 0 | AJ87: 0 | AT87: 0 | AU87: 59 | AV87: =SMALL('438 timer'!$AD$2:$AI$439,$AU87) -> 3.05e-05 | AW87: =IFERROR(MATCH($AV87,'438 timer'!AD$2:AD$439,0),0) -> 30 | AX87: =IFERROR(MATCH($AV87,'438 timer'!AE$2:AE$439,0),0) -> 0 | AY87: =IFERROR(MATCH($AV87,'438 timer'!AF$2:AF$439,0),0) -> 0 | AZ87: =IFERROR(MATCH($AV87,'438 timer'!AG$2:AG$439,0),0) -> 0 | BA87: =IFERROR(MATCH($AV87,'438 timer'!AH$2:AH$439,0),0) -> 0 | BB87: =IFERROR(MATCH($AV87,'438 timer'!AI$2:AI$439,0),0) -> 0 | BC87: 30 | BD87: 1 | BE87: =INDEX('438 timer'!$AK$2:$AQ$439,BC87,BD87) -> 0 | BF87: =MAX(INDEX('438 timer'!$BC$2:$BC$439,BC87,)-SUMIF(BC$27:BC86,"="&BC87,BI$27:BI86),0) -> 21.35376903 | BG87: =MAX(INDEX('438 timer'!$BD$2:$BD$439,BC87,1)-SUM(BI$26:BI86),0) -> 6751.199781 | BH87: ='Input og resultater'!$I$12-SUMIF(BC$27:BC86,"="&BC87,BJ$27:BJ86) -> 10 | BI87: 0 | BJ87: 0 | BK87: =SUMIF(BC$27:BC86,"<="&BC87,BJ$27:BJ86)+'438 timer'!$AS$2 -> 119.9685126 | BL87: =INDEX($BV$29:$BV$2656,BP87,1) -> 0 | BM87: =INDEX('438 timer'!$BC$2:$BC$439,BC87,) -> 21.35376903 | BN87: =MAX('438 timer'!$BD$2-SUM(BI$26:BI86)-AT87,0) -> 7327.45026 | BO87: =LARGE('438 timer'!$AD$2:$AI$439,$AU87) -> 1530.474834 | BP87: 2570 | BQ87: 82 | BR87: 6 | BS87: =SUMIFS($BJ$29:$BJ$2656,$BC$29:$BC$2656,"<"&BQ87,$AV$29:$AV$2656,"<="&BO87)-SUMIF(BQ$27:BQ86,">"&BQ87,BV$27:BV86)+SUMIFS(BV$27:BV86,BQ$27:BQ86,">"&BQ87,$BO$27:BO86,"<="&BO87) -> 408.4263045 | BT87: ='Input og resultater'!$I$12-SUMIF(BQ$27:BQ86,"="&BQ87,BX$27:BX86) -> 10 | BU87: =INDEX($BI$29:$BI$2656,BP87,1) -> 0 | BV87: 0 | BW87: =MAX(LARGE($BZ$29:$BZ$2656,1)-SUM(BX$27:BX86),0) -> 1045.845736 | BX87: =MIN(MAX(MIN(CE87,'Input og resultater'!$I$12,BW87),0),BT87) -> 0 | BZ87: =-INDEX($BF$29:$BF$2656,BP87,1)+INDEX($BK$29:$BK$2656,BP87,1) -> 528.3948171 | CA87: =INDEX($BJ$29:$BJ$2656,BP87,1) -> 0 | CB87: =SUMIF($BC$29:$BC$2656,"<"&BQ87,$BJ$29:$BJ$2656)-SUM(BX$27:BX86) -> 408.4263045 | CC87: =INDEX($BF$29:$BF$2656,BP87,1) -> 0 | CD87: =INDEX($BJ$29:$BJ$2656,BP87,1) -> 0 | CE87: 0 | CG87: =MIN(MAX(SUMIF($BC$29:$BC$2656,"<"&BQ87,$BJ$29:$BJ$2656)-SUM(BX$27:BX86),0),'Input og resultater'!$I$13) -> 188
A88: 88 | B88: 87 | D88: 0 | E88: 4.382520023 | F88: 4.382520023 | H88: 101.9845864 | I88: =MIN(D88,'Input og resultater'!$I$12,'Input og resultater'!$I$13-H88) -> 0 | J88: =MIN(E88,'Input og resultater'!$I$12,H88) -> 4.382520023 | K88: 0 | L88: 0 | N88: 0 | Q88: 101.9845864 | R88: =MIN(D88,'Input og resultater'!$I$12,'Input og resultater'!$I$13-Q88) -> 0 | S88: =MIN(F88,'Input og resultater'!$I$12,Q88) -> 4.382520023 | U88: =IF(B88>$O$2,'438 timer'!$BC88,0) -> 0 | W88: =MIN($U88-SUM(V88:$V88),'438 timer'!AK88) -> 0 | X88: =MIN($U88-SUM($V88:W88),'438 timer'!AL88) -> 0 | Y88: =MIN($U88-SUM($V88:X88),'438 timer'!AM88) -> 0 | Z88: =MIN($U88-SUM($V88:Y88),'438 timer'!AN88) -> 0 | AA88: =MIN($U88-SUM($V88:Z88),'438 timer'!AO88) -> 0 | AB88: =MIN($U88-SUM($V88:AA88),'438 timer'!AP88) -> 0 | AE88: 0 | AF88: 0 | AG88: 0 | AH88: 0 | AI88: 0 | AJ88: 0 | AT88: 0 | AU88: 60 | AV88: =SMALL('438 timer'!$AD$2:$AI$439,$AU88) -> 3.06e-05 | AW88: =IFERROR(MATCH($AV88,'438 timer'!AD$2:AD$439,0),0) -> 0 | AX88: =IFERROR(MATCH($AV88,'438 timer'!AE$2:AE$439,0),0) -> 30 | AY88: =IFERROR(MATCH($AV88,'438 timer'!AF$2:AF$439,0),0) -> 0 | AZ88: =IFERROR(MATCH($AV88,'438 timer'!AG$2:AG$439,0),0) -> 0 | BA88: =IFERROR(MATCH($AV88,'438 timer'!AH$2:AH$439,0),0) -> 0 | BB88: =IFERROR(MATCH($AV88,'438 timer'!AI$2:AI$439,0),0) -> 0 | BC88: 30 | BD88: 2 | BE88: =INDEX('438 timer'!$AK$2:$AQ$439,BC88,BD88) -> 0 | BF88: =MAX(INDEX('438 timer'!$BC$2:$BC$439,BC88,)-SUMIF(BC$27:BC87,"="&BC88,BI$27:BI87),0) -> 21.35376903 | BG88: =MAX(INDEX('438 timer'!$BD$2:$BD$439,BC88,1)-SUM(BI$26:BI87),0) -> 6751.199781 | BH88: ='Input og resultater'!$I$12-SUMIF(BC$27:BC87,"="&BC88,BJ$27:BJ87) -> 10 | BI88: 0 | BJ88: 0 | BK88: =SUMIF(BC$27:BC87,"<="&BC88,BJ$27:BJ87)+'438 timer'!$AS$2 -> 119.9685126 | BL88: =INDEX($BV$29:$BV$2656,BP88,1) -> 0 | BM88: =INDEX('438 timer'!$BC$2:$BC$439,BC88,) -> 21.35376903 | BN88: =MAX('438 timer'!$BD$2-SUM(BI$26:BI87)-AT88,0) -> 7327.45026 | BO88: =LARGE('438 timer'!$AD$2:$AI$439,$AU88) -> 1523.302008 | BP88: 2569 | BQ88: 187 | BR88: 6 | BS88: =SUMIFS($BJ$29:$BJ$2656,$BC$29:$BC$2656,"<"&BQ88,$AV$29:$AV$2656,"<="&BO88)-SUMIF(BQ$27:BQ87,">"&BQ88,BV$27:BV87)+SUMIFS(BV$27:BV87,BQ$27:BQ87,">"&BQ88,$BO$27:BO87,"<="&BO88) -> 432.2519263 | BT88: ='Input og resultater'!$I$12-SUMIF(BQ$27:BQ87,"="&BQ88,BX$27:BX87) -> 10 | BU88: =INDEX($BI$29:$BI$2656,BP88,1) -> 0 | BV88: 0 | BW88: =MAX(LARGE($BZ$29:$BZ$2656,1)-SUM(BX$27:BX87),0) -> 1045.845736 | BX88: =MIN(MAX(MIN(CE88,'Input og resultater'!$I$12,BW88),0),BT88) -> 0 | BZ88: =-INDEX($BF$29:$BF$2656,BP88,1)+INDEX($BK$29:$BK$2656,BP88,1) -> 552.5919179 | CA88: =INDEX($BJ$29:$BJ$2656,BP88,1) -> 0 | CB88: =SUMIF($BC$29:$BC$2656,"<"&BQ88,$BJ$29:$BJ$2656)-SUM(BX$27:BX87) -> 432.2519263 | CC88: =INDEX($BF$29:$BF$2656,BP88,1) -> 0 | CD88: =INDEX($BJ$29:$BJ$2656,BP88,1) -> 0 | CE88: 0 | CG88: =MIN(MAX(SUMIF($BC$29:$BC$2656,"<"&BQ88,$BJ$29:$BJ$2656)-SUM(BX$27:BX87),0),'Input og resultater'!$I$13) -> 188
A89: 89 | B89: 88 | D89: 0 | E89: 4.605364023 | F89: 4.605364023 | H89: 97.60206633 | I89: =MIN(D89,'Input og resultater'!$I$12,'Input og resultater'!$I$13-H89) -> 0 | J89: =MIN(E89,'Input og resultater'!$I$12,H89) -> 4.605364023 | K89: 0 | L89: 0 | N89: 0 | Q89: 97.60206633 | R89: =MIN(D89,'Input og resultater'!$I$12,'Input og resultater'!$I$13-Q89) -> 0 | S89: =MIN(F89,'Input og resultater'!$I$12,Q89) -> 4.605364023 | U89: =IF(B89>$O$2,'438 timer'!$BC89,0) -> 0 | W89: =MIN($U89-SUM(V89:$V89),'438 timer'!AK89) -> 0 | X89: =MIN($U89-SUM($V89:W89),'438 timer'!AL89) -> 0 | Y89: =MIN($U89-SUM($V89:X89),'438 timer'!AM89) -> 0 | Z89: =MIN($U89-SUM($V89:Y89),'438 timer'!AN89) -> 0 | AA89: =MIN($U89-SUM($V89:Z89),'438 timer'!AO89) -> 0 | AB89: =MIN($U89-SUM($V89:AA89),'438 timer'!AP89) -> 0 | AE89: 0 | AF89: 0 | AG89: 0 | AH89: 0 | AI89: 0 | AJ89: 0 | AT89: 0 | AU89: 61 | AV89: =SMALL('438 timer'!$AD$2:$AI$439,$AU89) -> 3.15e-05 | AW89: =IFERROR(MATCH($AV89,'438 timer'!AD$2:AD$439,0),0) -> 31 | AX89: =IFERROR(MATCH($AV89,'438 timer'!AE$2:AE$439,0),0) -> 0 | AY89: =IFERROR(MATCH($AV89,'438 timer'!AF$2:AF$439,0),0) -> 0 | AZ89: =IFERROR(MATCH($AV89,'438 timer'!AG$2:AG$439,0),0) -> 0 | BA89: =IFERROR(MATCH($AV89,'438 timer'!AH$2:AH$439,0),0) -> 0 | BB89: =IFERROR(MATCH($AV89,'438 timer'!AI$2:AI$439,0),0) -> 0 | BC89: 31 | BD89: 1 | BE89: =INDEX('438 timer'!$AK$2:$AQ$439,BC89,BD89) -> 0 | BF89: =MAX(INDEX('438 timer'!$BC$2:$BC$439,BC89,)-SUMIF(BC$27:BC88,"="&BC89,BI$27:BI88),0) -> 21.05664403 | BG89: =MAX(INDEX('438 timer'!$BD$2:$BD$439,BC89,1)-SUM(BI$26:BI88),0) -> 6729.846012 | BH89: ='Input og resultater'!$I$12-SUMIF(BC$27:BC88,"="&BC89,BJ$27:BJ88) -> 10 | BI89: 0 | BJ89: 0 | BK89: =SUMIF(BC$27:BC88,"<="&BC89,BJ$27:BJ88)+'438 timer'!$AS$2 -> 119.9685126 | BL89: =INDEX($BV$29:$BV$2656,BP89,1) -> 0 | BM89: =INDEX('438 timer'!$BC$2:$BC$439,BC89,) -> 21.05664403 | BN89: =MAX('438 timer'!$BD$2-SUM(BI$26:BI88)-AT89,0) -> 7327.45026 | BO89: =LARGE('438 timer'!$AD$2:$AI$439,$AU89) -> 1505.454885 | BP89: 2568 | BQ89: 420 | BR89: 6 | BS89: =SUMIFS($BJ$29:$BJ$2656,$BC$29:$BC$2656,"<"&BQ89,$AV$29:$AV$2656,"<="&BO89)-SUMIF(BQ$27:BQ88,">"&BQ89,BV$27:BV88)+SUMIFS(BV$27:BV88,BQ$27:BQ88,">"&BQ89,$BO$27:BO88,"<="&BO89) -> 925.8772234 | BT89: ='Input og resultater'!$I$12-SUMIF(BQ$27:BQ88,"="&BQ89,BX$27:BX88) -> 10 | BU89: =INDEX($BI$29:$BI$2656,BP89,1) -> 0 | BV89: 0 | BW89: =MAX(LARGE($BZ$29:$BZ$2656,1)-SUM(BX$27:BX88),0) -> 1045.845736 | BX89: =MIN(MAX(MIN(CE89,'Input og resultater'!$I$12,BW89),0),BT89) -> 0 | BZ89: =-INDEX($BF$29:$BF$2656,BP89,1)+INDEX($BK$29:$BK$2656,BP89,1) -> 1045.845736 | CA89: =INDEX($BJ$29:$BJ$2656,BP89,1) -> 0 | CB89: =SUMIF($BC$29:$BC$2656,"<"&BQ89,$BJ$29:$BJ$2656)-SUM(BX$27:BX88) -> 925.8772234 | CC89: =INDEX($BF$29:$BF$2656,BP89,1) -> 0 | CD89: =INDEX($BJ$29:$BJ$2656,BP89,1) -> 0 | CE89: 0 | CG89: =MIN(MAX(SUMIF($BC$29:$BC$2656,"<"&BQ89,$BJ$29:$BJ$2656)-SUM(BX$27:BX88),0),'Input og resultater'!$I$13) -> 188
A90: 90 | B90: 89 | D90: 0 | E90: 4.902489023 | F90: 4.902489023 | H90: 92.99670231 | I90: =MIN(D90,'Input og resultater'!$I$12,'Input og resultater'!$I$13-H90) -> 0 | J90: =MIN(E90,'Input og resultater'!$I$12,H90) -> 4.902489023 | K90: 0 | L90: 0 | N90: 0 | Q90: 92.99670231 | R90: =MIN(D90,'Input og resultater'!$I$12,'Input og resultater'!$I$13-Q90) -> 0 | S90: =MIN(F90,'Input og resultater'!$I$12,Q90) -> 4.902489023 | U90: =IF(B90>$O$2,'438 timer'!$BC90,0) -> 0 | W90: =MIN($U90-SUM(V90:$V90),'438 timer'!AK90) -> 0 | X90: =MIN($U90-SUM($V90:W90),'438 timer'!AL90) -> 0 | Y90: =MIN($U90-SUM($V90:X90),'438 timer'!AM90) -> 0 | Z90: =MIN($U90-SUM($V90:Y90),'438 timer'!AN90) -> 0 | AA90: =MIN($U90-SUM($V90:Z90),'438 timer'!AO90) -> 0 | AB90: =MIN($U90-SUM($V90:AA90),'438 timer'!AP90) -> 0 | AE90: 0 | AF90: 0 | AG90: 0 | AH90: 0 | AI90: 0 | AJ90: 0 | AT90: 0 | AU90: 62 | AV90: =SMALL('438 timer'!$AD$2:$AI$439,$AU90) -> 3.16e-05 | AW90: =IFERROR(MATCH($AV90,'438 timer'!AD$2:AD$439,0),0) -> 0 | AX90: =IFERROR(MATCH($AV90,'438 timer'!AE$2:AE$439,0),0) -> 31 | AY90: =IFERROR(MATCH($AV90,'438 timer'!AF$2:AF$439,0),0) -> 0 | AZ90: =IFERROR(MATCH($AV90,'438 timer'!AG$2:AG$439,0),0) -> 0 | BA90: =IFERROR(MATCH($AV90,'438 timer'!AH$2:AH$439,0),0) -> 0 | BB90: =IFERROR(MATCH($AV90,'438 timer'!AI$2:AI$439,0),0) -> 0 | BC90: 31 | BD90: 2 | BE90: =INDEX('438 timer'!$AK$2:$AQ$439,BC90,BD90) -> 0 | BF90: =MAX(INDEX('438 timer'!$BC$2:$BC$439,BC90,)-SUMIF(BC$27:BC89,"="&BC90,BI$27:BI89),0) -> 21.05664403 | BG90: =MAX(INDEX('438 timer'!$BD$2:$BD$439,BC90,1)-SUM(BI$26:BI89),0) -> 6729.846012 | BH90: ='Input og resultater'!$I$12-SUMIF(BC$27:BC89,"="&BC90,BJ$27:BJ89) -> 10 | BI90: 0 | BJ90: 0 | BK90: =SUMIF(BC$27:BC89,"<="&BC90,BJ$27:BJ89)+'438 timer'!$AS$2 -> 119.9685126 | BL90: =INDEX($BV$29:$BV$2656,BP90,1) -> 0 | BM90: =INDEX('438 timer'!$BC$2:$BC$439,BC90,) -> 21.05664403 | BN90: =MAX('438 timer'!$BD$2-SUM(BI$26:BI89)-AT90,0) -> 7327.45026 | BO90: =LARGE('438 timer'!$AD$2:$AI$439,$AU90) -> 1502.069802 | BP90: 2567 | BQ90: 259 | BR90: 6 | BS90: =SUMIFS($BJ$29:$BJ$2656,$BC$29:$BC$2656,"<"&BQ90,$AV$29:$AV$2656,"<="&BO90)-SUMIF(BQ$27:BQ89,">"&BQ90,BV$27:BV89)+SUMIFS(BV$27:BV89,BQ$27:BQ89,">"&BQ90,$BO$27:BO89,"<="&BO90) -> 470.6476019 | BT90: ='Input og resultater'!$I$12-SUMIF(BQ$27:BQ89,"="&BQ90,BX$27:BX89) -> 10 | BU90: =INDEX($BI$29:$BI$2656,BP90,1) -> 0 | BV90: 0 | BW90: =MAX(LARGE($BZ$29:$BZ$2656,1)-SUM(BX$27:BX89),0) -> 1045.845736 | BX90: =MIN(MAX(MIN(CE90,'Input og resultater'!$I$12,BW90),0),BT90) -> 0 | BZ90: =-INDEX($BF$29:$BF$2656,BP90,1)+INDEX($BK$29:$BK$2656,BP90,1) -> 592.1018124 | CA90: =INDEX($BJ$29:$BJ$2656,BP90,1) -> 0 | CB90: =SUMIF($BC$29:$BC$2656,"<"&BQ90,$BJ$29:$BJ$2656)-SUM(BX$27:BX89) -> 470.6476019 | CC90: =INDEX($BF$29:$BF$2656,BP90,1) -> 0 | CD90: =INDEX($BJ$29:$BJ$2656,BP90,1) -> 0 | CE90: 0 | CG90: =MIN(MAX(SUMIF($BC$29:$BC$2656,"<"&BQ90,$BJ$29:$BJ$2656)-SUM(BX$27:BX89),0),'Input og resultater'!$I$13) -> 188
A91: 91 | B91: 90 | D91: 0 | E91: 5.422457024 | F91: 5.422457024 | H91: 88.09421328 | I91: =MIN(D91,'Input og resultater'!$I$12,'Input og resultater'!$I$13-H91) -> 0 | J91: =MIN(E91,'Input og resultater'!$I$12,H91) -> 5.422457024 | K91: 0 | L91: 0 | N91: 0 | Q91: 88.09421328 | R91: =MIN(D91,'Input og resultater'!$I$12,'Input og resultater'!$I$13-Q91) -> 0 | S91: =MIN(F91,'Input og resultater'!$I$12,Q91) -> 5.422457024 | U91: =IF(B91>$O$2,'438 timer'!$BC91,0) -> 0 | W91: =MIN($U91-SUM(V91:$V91),'438 timer'!AK91) -> 0 | X91: =MIN($U91-SUM($V91:W91),'438 timer'!AL91) -> 0 | Y91: =MIN($U91-SUM($V91:X91),'438 timer'!AM91) -> 0 | Z91: =MIN($U91-SUM($V91:Y91),'438 timer'!AN91) -> 0 | AA91: =MIN($U91-SUM($V91:Z91),'438 timer'!AO91) -> 0 | AB91: =MIN($U91-SUM($V91:AA91),'438 timer'!AP91) -> 0 | AE91: 0 | AF91: 0 | AG91: 0 | AH91: 0 | AI91: 0 | AJ91: 0 | AT91: 0 | AU91: 63 | AV91: =SMALL('438 timer'!$AD$2:$AI$439,$AU91) -> 3.25e-05 | AW91: =IFERROR(MATCH($AV91,'438 timer'!AD$2:AD$439,0),0) -> 32 | AX91: =IFERROR(MATCH($AV91,'438 timer'!AE$2:AE$439,0),0) -> 0 | AY91: =IFERROR(MATCH($AV91,'438 timer'!AF$2:AF$439,0),0) -> 0 | AZ91: =IFERROR(MATCH($AV91,'438 timer'!AG$2:AG$439,0),0) -> 0 | BA91: =IFERROR(MATCH($AV91,'438 timer'!AH$2:AH$439,0),0) -> 0 | BB91: =IFERROR(MATCH($AV91,'438 timer'!AI$2:AI$439,0),0) -> 0 | BC91: 32 | BD91: 1 | BE91: =INDEX('438 timer'!$AK$2:$AQ$439,BC91,BD91) -> 0 | BF91: =MAX(INDEX('438 timer'!$BC$2:$BC$439,BC91,)-SUMIF(BC$27:BC90,"="&BC91,BI$27:BI90),0) -> 20.61095703 | BG91: =MAX(INDEX('438 timer'!$BD$2:$BD$439,BC91,1)-SUM(BI$26:BI90),0) -> 6708.789368 | BH91: ='Input og resultater'!$I$12-SUMIF(BC$27:BC90,"="&BC91,BJ$27:BJ90) -> 10 | BI91: 0 | BJ91: 0 | BK91: =SUMIF(BC$27:BC90,"<="&BC91,BJ$27:BJ90)+'438 timer'!$AS$2 -> 119.9685126 | BL91: =INDEX($BV$29:$BV$2656,BP91,1) -> 0 | BM91: =INDEX('438 timer'!$BC$2:$BC$439,BC91,) -> 20.61095703 | BN91: =MAX('438 timer'!$BD$2-SUM(BI$26:BI90)-AT91,0) -> 7327.45026 | BO91: =LARGE('438 timer'!$AD$2:$AI$439,$AU91) -> 1499.936847 | BP91: 2566 | BQ91: 90 | BR91: 6 | BS91: =SUMIFS($BJ$29:$BJ$2656,$BC$29:$BC$2656,"<"&BQ91,$AV$29:$AV$2656,"<="&BO91)-SUMIF(BQ$27:BQ90,">"&BQ91,BV$27:BV90)+SUMIFS(BV$27:BV90,BQ$27:BQ90,">"&BQ91,$BO$27:BO90,"<="&BO91) -> 408.4263045 | BT91: ='Input og resultater'!$I$12-SUMIF(BQ$27:BQ90,"="&BQ91,BX$27:BX90) -> 10 | BU91: =INDEX($BI$29:$BI$2656,BP91,1) -> 0 | BV91: 0 | BW91: =MAX(LARGE($BZ$29:$BZ$2656,1)-SUM(BX$27:BX90),0) -> 1045.845736 | BX91: =MIN(MAX(MIN(CE91,'Input og resultater'!$I$12,BW91),0),BT91) -> 0 | BZ91: =-INDEX($BF$29:$BF$2656,BP91,1)+INDEX($BK$29:$BK$2656,BP91,1) -> 528.3948171 | CA91: =INDEX($BJ$29:$BJ$2656,BP91,1) -> 0 | CB91: =SUMIF($BC$29:$BC$2656,"<"&BQ91,$BJ$29:$BJ$2656)-SUM(BX$27:BX90) -> 408.4263045 | CC91: =INDEX($BF$29:$BF$2656,BP91,1) -> 0 | CD91: =INDEX($BJ$29:$BJ$2656,BP91,1) -> 0 | CE91: 0 | CG91: =MIN(MAX(SUMIF($BC$29:$BC$2656,"<"&BQ91,$BJ$29:$BJ$2656)-SUM(BX$27:BX90),0),'Input og resultater'!$I$13) -> 188
A92: 92 | B92: 91 | D92: 0 | E92: 6.165270025 | F92: 6.165270025 | H92: 82.67175626 | I92: =MIN(D92,'Input og resultater'!$I$12,'Input og resultater'!$I$13-H92) -> 0 | J92: =MIN(E92,'Input og resultater'!$I$12,H92) -> 6.165270025 | K92: 0 | L92: 0 | N92: 0 | Q92: 82.67175626 | R92: =MIN(D92,'Input og resultater'!$I$12,'Input og resultater'!$I$13-Q92) -> 0 | S92: =MIN(F92,'Input og resultater'!$I$12,Q92) -> 6.165270025 | U92: =IF(B92>$O$2,'438 timer'!$BC92,0) -> 0 | W92: =MIN($U92-SUM(V92:$V92),'438 timer'!AK92) -> 0 | X92: =MIN($U92-SUM($V92:W92),'438 timer'!AL92) -> 0 | Y92: =MIN($U92-SUM($V92:X92),'438 timer'!AM92) -> 0 | Z92: =MIN($U92-SUM($V92:Y92),'438 timer'!AN92) -> 0 | AA92: =MIN($U92-SUM($V92:Z92),'438 timer'!AO92) -> 0 | AB92: =MIN($U92-SUM($V92:AA92),'438 timer'!AP92) -> 0 | AE92: 0 | AF92: 0 | AG92: 0 | AH92: 0 | AI92: 0 | AJ92: 0 | AT92: 0 | AU92: 64 | AV92: =SMALL('438 timer'!$AD$2:$AI$439,$AU92) -> 3.26e-05 | AW92: =IFERROR(MATCH($AV92,'438 timer'!AD$2:AD$439,0),0) -> 0 | AX92: =IFERROR(MATCH($AV92,'438 timer'!AE$2:AE$439,0),0) -> 32 | AY92: =IFERROR(MATCH($AV92,'438 timer'!AF$2:AF$439,0),0) -> 0 | AZ92: =IFERROR(MATCH($AV92,'438 timer'!AG$2:AG$439,0),0) -> 0 | BA92: =IFERROR(MATCH($AV92,'438 timer'!AH$2:AH$439,0),0) -> 0 | BB92: =IFERROR(MATCH($AV92,'438 timer'!AI$2:AI$439,0),0) -> 0 | BC92: 32 | BD92: 2 | BE92: =INDEX('438 timer'!$AK$2:$AQ$439,BC92,BD92) -> 0 | BF92: =MAX(INDEX('438 timer'!$BC$2:$BC$439,BC92,)-SUMIF(BC$27:BC91,"="&BC92,BI$27:BI91),0) -> 20.61095703 | BG92: =MAX(INDEX('438 timer'!$BD$2:$BD$439,BC92,1)-SUM(BI$26:BI91),0) -> 6708.789368 | BH92: ='Input og resultater'!$I$12-SUMIF(BC$27:BC91,"="&BC92,BJ$27:BJ91) -> 10 | BI92: 0 | BJ92: 0 | BK92: =SUMIF(BC$27:BC91,"<="&BC92,BJ$27:BJ91)+'438 timer'!$AS$2 -> 119.9685126 | BL92: =INDEX($BV$29:$BV$2656,BP92,1) -> 0 | BM92: =INDEX('438 timer'!$BC$2:$BC$439,BC92,) -> 20.61095703 | BN92: =MAX('438 timer'!$BD$2-SUM(BI$26:BI91)-AT92,0) -> 7327.45026 | BO92: =LARGE('438 timer'!$AD$2:$AI$439,$AU92) -> 1492.711019 | BP92: 2565 | BQ92: 143 | BR92: 6 | BS92: =SUMIFS($BJ$29:$BJ$2656,$BC$29:$BC$2656,"<"&BQ92,$AV$29:$AV$2656,"<="&BO92)-SUMIF(BQ$27:BQ91,">"&BQ92,BV$27:BV91)+SUMIFS(BV$27:BV91,BQ$27:BQ91,">"&BQ92,$BO$27:BO91,"<="&BO92) -> 431.5831034 | BT92: ='Input og resultater'!$I$12-SUMIF(BQ$27:BQ91,"="&BQ92,BX$27:BX91) -> 10 | BU92: =INDEX($BI$29:$BI$2656,BP92,1) -> 0 | BV92: 0 | BW92: =MAX(LARGE($BZ$29:$BZ$2656,1)-SUM(BX$27:BX91),0) -> 1045.845736 | BX92: =MIN(MAX(MIN(CE92,'Input og resultater'!$I$12,BW92),0),BT92) -> 0 | BZ92: =-INDEX($BF$29:$BF$2656,BP92,1)+INDEX($BK$29:$BK$2656,BP92,1) -> 551.5516159 | CA92: =INDEX($BJ$29:$BJ$2656,BP92,1) -> 0 | CB92: =SUMIF($BC$29:$BC$2656,"<"&BQ92,$BJ$29:$BJ$2656)-SUM(BX$27:BX91) -> 431.5831034 | CC92: =INDEX($BF$29:$BF$2656,BP92,1) -> 0 | CD92: =INDEX($BJ$29:$BJ$2656,BP92,1) -> 0 | CE92: 0 | CG92: =MIN(MAX(SUMIF($BC$29:$BC$2656,"<"&BQ92,$BJ$29:$BJ$2656)-SUM(BX$27:BX91),0),'Input og resultater'!$I$13) -> 188
A93: 93 | B93: 92 | D93: 0 | E93: 7.056644026 | F93: 7.056644026 | H93: 76.50648624 | I93: =MIN(D93,'Input og resultater'!$I$12,'Input og resultater'!$I$13-H93) -> 0 | J93: =MIN(E93,'Input og resultater'!$I$12,H93) -> 7.056644026 | K93: 0 | L93: 0 | N93: 0 | Q93: 76.50648624 | R93: =MIN(D93,'Input og resultater'!$I$12,'Input og resultater'!$I$13-Q93) -> 0 | S93: =MIN(F93,'Input og resultater'!$I$12,Q93) -> 7.056644026 | U93: =IF(B93>$O$2,'438 timer'!$BC93,0) -> 0 | W93: =MIN($U93-SUM(V93:$V93),'438 timer'!AK93) -> 0 | X93: =MIN($U93-SUM($V93:W93),'438 timer'!AL93) -> 0 | Y93: =MIN($U93-SUM($V93:X93),'438 timer'!AM93) -> 0 | Z93: =MIN($U93-SUM($V93:Y93),'438 timer'!AN93) -> 0 | AA93: =MIN($U93-SUM($V93:Z93),'438 timer'!AO93) -> 0 | AB93: =MIN($U93-SUM($V93:AA93),'438 timer'!AP93) -> 0 | AE93: 0 | AF93: 0 | AG93: 0 | AH93: 0 | AI93: 0 | AJ93: 0 | AT93: 0 | AU93: 65 | AV93: =SMALL('438 timer'!$AD$2:$AI$439,$AU93) -> 3.35e-05 | AW93: =IFERROR(MATCH($AV93,'438 timer'!AD$2:AD$439,0),0) -> 33 | AX93: =IFERROR(MATCH($AV93,'438 timer'!AE$2:AE$439,0),0) -> 0 | AY93: =IFERROR(MATCH($AV93,'438 timer'!AF$2:AF$439,0),0) -> 0 | AZ93: =IFERROR(MATCH($AV93,'438 timer'!AG$2:AG$439,0),0) -> 0 | BA93: =IFERROR(MATCH($AV93,'438 timer'!AH$2:AH$439,0),0) -> 0 | BB93: =IFERROR(MATCH($AV93,'438 timer'!AI$2:AI$439,0),0) -> 0 | BC93: 33 | BD93: 1 | BE93: =INDEX('438 timer'!$AK$2:$AQ$439,BC93,BD93) -> 0 | BF93: =MAX(INDEX('438 timer'!$BC$2:$BC$439,BC93,)-SUMIF(BC$27:BC92,"="&BC93,BI$27:BI92),0) -> 20.23955103 | BG93: =MAX(INDEX('438 timer'!$BD$2:$BD$439,BC93,1)-SUM(BI$26:BI92),0) -> 6688.178411 | BH93: ='Input og resultater'!$I$12-SUMIF(BC$27:BC92,"="&BC93,BJ$27:BJ92) -> 10 | BI93: 0 | BJ93: 0 | BK93: =SUMIF(BC$27:BC92,"<="&BC93,BJ$27:BJ92)+'438 timer'!$AS$2 -> 119.9685126 | BL93: =INDEX($BV$29:$BV$2656,BP93,1) -> 0 | BM93: =INDEX('438 timer'!$BC$2:$BC$439,BC93,) -> 20.23955103 | BN93: =MAX('438 timer'!$BD$2-SUM(BI$26:BI92)-AT93,0) -> 7327.45026 | BO93: =LARGE('438 timer'!$AD$2:$AI$439,$AU93) -> 1485.071391 | BP93: 2564 | BQ93: 415 | BR93: 6 | BS93: =SUMIFS($BJ$29:$BJ$2656,$BC$29:$BC$2656,"<"&BQ93,$AV$29:$AV$2656,"<="&BO93)-SUMIF(BQ$27:BQ92,">"&BQ93,BV$27:BV92)+SUMIFS(BV$27:BV92,BQ$27:BQ92,">"&BQ93,$BO$27:BO92,"<="&BO93) -> 925.8772234 | BT93: ='Input og resultater'!$I$12-SUMIF(BQ$27:BQ92,"="&BQ93,BX$27:BX92) -> 10 | BU93: =INDEX($BI$29:$BI$2656,BP93,1) -> 0 | BV93: 0 | BW93: =MAX(LARGE($BZ$29:$BZ$2656,1)-SUM(BX$27:BX92),0) -> 1045.845736 | BX93: =MIN(MAX(MIN(CE93,'Input og resultater'!$I$12,BW93),0),BT93) -> 0 | BZ93: =-INDEX($BF$29:$BF$2656,BP93,1)+INDEX($BK$29:$BK$2656,BP93,1) -> 1045.845736 | CA93: =INDEX($BJ$29:$BJ$2656,BP93,1) -> 0 | CB93: =SUMIF($BC$29:$BC$2656,"<"&BQ93,$BJ$29:$BJ$2656)-SUM(BX$27:BX92) -> 925.8772234 | CC93: =INDEX($BF$29:$BF$2656,BP93,1) -> 0 | CD93: =INDEX($BJ$29:$BJ$2656,BP93,1) -> 0 | CE93: 0 | CG93: =MIN(MAX(SUMIF($BC$29:$BC$2656,"<"&BQ93,$BJ$29:$BJ$2656)-SUM(BX$27:BX92),0),'Input og resultater'!$I$13) -> 188
A94: 94 | B94: 93 | D94: 0 | E94: 7.948019027 | F94: 7.948019027 | H94: 69.44984221 | I94: =MIN(D94,'Input og resultater'!$I$12,'Input og resultater'!$I$13-H94) -> 0 | J94: =MIN(E94,'Input og resultater'!$I$12,H94) -> 7.948019027 | K94: 0 | L94: 0 | N94: 0 | Q94: 69.44984221 | R94: =MIN(D94,'Input og resultater'!$I$12,'Input og resultater'!$I$13-Q94) -> 0 | S94: =MIN(F94,'Input og resultater'!$I$12,Q94) -> 7.948019027 | U94: =IF(B94>$O$2,'438 timer'!$BC94,0) -> 0 | W94: =MIN($U94-SUM(V94:$V94),'438 timer'!AK94) -> 0 | X94: =MIN($U94-SUM($V94:W94),'438 timer'!AL94) -> 0 | Y94: =MIN($U94-SUM($V94:X94),'438 timer'!AM94) -> 0 | Z94: =MIN($U94-SUM($V94:Y94),'438 timer'!AN94) -> 0 | AA94: =MIN($U94-SUM($V94:Z94),'438 timer'!AO94) -> 0 | AB94: =MIN($U94-SUM($V94:AA94),'438 timer'!AP94) -> 0 | AE94: 0 | AF94: 0 | AG94: 0 | AH94: 0 | AI94: 0 | AJ94: 0 | AT94: 0 | AU94: 66 | AV94: =SMALL('438 timer'!$AD$2:$AI$439,$AU94) -> 3.36e-05 | AW94: =IFERROR(MATCH($AV94,'438 timer'!AD$2:AD$439,0),0) -> 0 | AX94: =IFERROR(MATCH($AV94,'438 timer'!AE$2:AE$439,0),0) -> 33 | AY94: =IFERROR(MATCH($AV94,'438 timer'!AF$2:AF$439,0),0) -> 0 | AZ94: =IFERROR(MATCH($AV94,'438 timer'!AG$2:AG$439,0),0) -> 0 | BA94: =IFERROR(MATCH($AV94,'438 timer'!AH$2:AH$439,0),0) -> 0 | BB94: =IFERROR(MATCH($AV94,'438 timer'!AI$2:AI$439,0),0) -> 0 | BC94: =SUM(AW94:BB94,0) -> 33 | BD94: =MATCH(BC94,AW94:BB94,0) -> 2 | BE94: =INDEX('438 timer'!$AK$2:$AQ$439,BC94,BD94) -> 0 | BF94: =MAX(INDEX('438 timer'!$BC$2:$BC$439,BC94,)-SUMIF(BC$27:BC93,"="&BC94,BI$27:BI93),0) -> 20.23955103 | BG94: =MAX(INDEX('438 timer'!$BD$2:$BD$439,BC94,1)-SUM(BI$26:BI93),0) -> 6688.178411 | BH94: ='Input og resultater'!$I$12-SUMIF(BC$27:BC93,"="&BC94,BJ$27:BJ93) -> 10 | BI94: =MIN(MAX(MIN(BF94,BE94),MIN(BE94,BN94)),BF94+BH94) -> 0 | BJ94: =MAX(BI94-BF94,0) -> 0 | BK94: =SUMIF(BC$27:BC93,"<="&BC94,BJ$27:BJ93)+'438 timer'!$AS$2 -> 119.9685126 | BL94: =INDEX($BV$29:$BV$2656,BP94,1) -> 0 | BM94: =INDEX('438 timer'!$BC$2:$BC$439,BC94,) -> 20.23955103 | BN94: =MAX('438 timer'!$BD$2-SUM(BI$26:BI93)-AT94,0) -> 7327.45026 | BO94: =LARGE('438 timer'!$AD$2:$AI$439,$AU94) -> 1475.149961 | BP94: =MATCH(BO94,$AV$29:$AV$2656,0) -> 2563 | BQ94: =INDEX($BC$29:$BC$2656,MATCH(BO94,$AV$29:$AV$2656,0),1) -> 84 | BR94: =INDEX($BD$29:$BD$2656,MATCH(BO94,$AV$29:$AV$2656,0),1) -> 6 | BS94: =SUMIFS($BJ$29:$BJ$2656,$BC$29:$BC$2656,"<"&BQ94,$AV$29:$AV$2656,"<="&BO94)-SUMIF(BQ$27:BQ93,">"&BQ94,BV$27:BV93)+SUMIFS(BV$27:BV93,BQ$27:BQ93,">"&BQ94,$BO$27:BO93,"<="&BO94) -> 408.4263045 | BT94: ='Input og resultater'!$I$12-SUMIF(BQ$27:BQ93,"="&BQ94,BX$27:BX93) -> 10 | BU94: =INDEX($BI$29:$BI$2656,BP94,1) -> 0 | BV94: =BX94 -> 0 | BW94: =MAX(LARGE($BZ$29:$BZ$2656,1)-SUM(BX$27:BX93),0) -> 1045.845736 | BX94: =MIN(MAX(MIN(CE94,'Input og resultater'!$I$12,BW94),0),BT94) -> 0 | BZ94: =-INDEX($BF$29:$BF$2656,BP94,1)+INDEX($BK$29:$BK$2656,BP94,1) -> 528.3948171 | CA94: =INDEX($BJ$29:$BJ$2656,BP94,1) -> 0 | CB94: =SUMIF($BC$29:$BC$2656,"<"&BQ94,$BJ$29:$BJ$2656)-SUM(BX$27:BX93) -> 408.4263045 | CC94: =INDEX($BF$29:$BF$2656,BP94,1) -> 0 | CD94: =INDEX($BJ$29:$BJ$2656,BP94,1) -> 0 | CE94: =IF(CD94>0,0,BU94) -> 0 | CG94: =MIN(MAX(SUMIF($BC$29:$BC$2656,"<"&BQ94,$BJ$29:$BJ$2656)-SUM(BX$27:BX93),0),'Input og resultater'!$I$13) -> 188
A95: 95 | B95: 94 | D95: 0 | E95: 8.913675028 | F95: 8.913675028 | H95: 61.50182318 | I95: =MIN(D95,'Input og resultater'!$I$12,'Input og resultater'!$I$13-H95) -> 0 | J95: =MIN(E95,'Input og resultater'!$I$12,H95) -> 8.913675028 | K95: 0 | L95: 0 | N95: 0 | Q95: 61.50182318 | R95: =MIN(D95,'Input og resultater'!$I$12,'Input og resultater'!$I$13-Q95) -> 0 | S95: =MIN(F95,'Input og resultater'!$I$12,Q95) -> 8.913675028 | U95: =IF(B95>$O$2,'438 timer'!$BC95,0) -> 0 | W95: =MIN($U95-SUM(V95:$V95),'438 timer'!AK95) -> 0 | X95: =MIN($U95-SUM($V95:W95),'438 timer'!AL95) -> 0 | Y95: =MIN($U95-SUM($V95:X95),'438 timer'!AM95) -> 0 | Z95: =MIN($U95-SUM($V95:Y95),'438 timer'!AN95) -> 0 | AA95: =MIN($U95-SUM($V95:Z95),'438 timer'!AO95) -> 0 | AB95: =MIN($U95-SUM($V95:AA95),'438 timer'!AP95) -> 0 | AE95: 0 | AF95: 0 | AG95: 0 | AH95: 0 | AI95: 0 | AJ95: 0 | AT95: 0 | AU95: 67 | AV95: =SMALL('438 timer'!$AD$2:$AI$439,$AU95) -> 3.45e-05 | AW95: =IFERROR(MATCH($AV95,'438 timer'!AD$2:AD$439,0),0) -> 34 | AX95: =IFERROR(MATCH($AV95,'438 timer'!AE$2:AE$439,0),0) -> 0 | AY95: =IFERROR(MATCH($AV95,'438 timer'!AF$2:AF$439,0),0) -> 0 | AZ95: =IFERROR(MATCH($AV95,'438 timer'!AG$2:AG$439,0),0) -> 0 | BA95: =IFERROR(MATCH($AV95,'438 timer'!AH$2:AH$439,0),0) -> 0 | BB95: =IFERROR(MATCH($AV95,'438 timer'!AI$2:AI$439,0),0) -> 0 | BC95: 34 | BD95: 1 | BE95: =INDEX('438 timer'!$AK$2:$AQ$439,BC95,BD95) -> 0 | BF95: =MAX(INDEX('438 timer'!$BC$2:$BC$439,BC95,)-SUMIF(BC$27:BC94,"="&BC95,BI$27:BI94),0) -> 19.94242602 | BG95: =MAX(INDEX('438 timer'!$BD$2:$BD$439,BC95,1)-SUM(BI$26:BI94),0) -> 6667.93886 | BH95: ='Input og resultater'!$I$12-SUMIF(BC$27:BC94,"="&BC95,BJ$27:BJ94) -> 10 | BI95: 0 | BJ95: 0 | BK95: =SUMIF(BC$27:BC94,"<="&BC95,BJ$27:BJ94)+'438 timer'!$AS$2 -> 119.9685126 | BL95: =INDEX($BV$29:$BV$2656,BP95,1) -> 0 | BM95: =INDEX('438 timer'!$BC$2:$BC$439,BC95,) -> 19.94242602 | BN95: =MAX('438 timer'!$BD$2-SUM(BI$26:BI94)-AT95,0) -> 7327.45026 | BO95: =LARGE('438 timer'!$AD$2:$AI$439,$AU95) -> 1473.887342 | BP95: 2562 | BQ95: 91 | BR95: 6 | BS95: =SUMIFS($BJ$29:$BJ$2656,$BC$29:$BC$2656,"<"&BQ95,$AV$29:$AV$2656,"<="&BO95)-SUMIF(BQ$27:BQ94,">"&BQ95,BV$27:BV94)+SUMIFS(BV$27:BV94,BQ$27:BQ94,">"&BQ95,$BO$27:BO94,"<="&BO95) -> 408.4263045 | BT95: ='Input og resultater'!$I$12-SUMIF(BQ$27:BQ94,"="&BQ95,BX$27:BX94) -> 10 | BU95: =INDEX($BI$29:$BI$2656,BP95,1) -> 0 | BV95: 0 | BW95: =MAX(LARGE($BZ$29:$BZ$2656,1)-SUM(BX$27:BX94),0) -> 1045.845736 | BX95: =MIN(MAX(MIN(CE95,'Input og resultater'!$I$12,BW95),0),BT95) -> 0 | BZ95: =-INDEX($BF$29:$BF$2656,BP95,1)+INDEX($BK$29:$BK$2656,BP95,1) -> 528.3948171 | CA95: =INDEX($BJ$29:$BJ$2656,BP95,1) -> 0 | CB95: =SUMIF($BC$29:$BC$2656,"<"&BQ95,$BJ$29:$BJ$2656)-SUM(BX$27:BX94) -> 408.4263045 | CC95: =INDEX($BF$29:$BF$2656,BP95,1) -> 0 | CD95: =INDEX($BJ$29:$BJ$2656,BP95,1) -> 0 | CE95: 0 | CG95: =MIN(MAX(SUMIF($BC$29:$BC$2656,"<"&BQ95,$BJ$29:$BJ$2656)-SUM(BX$27:BX94),0),'Input og resultater'!$I$13) -> 188
A96: 96 | B96: 95 | D96: 0 | E96: 9.359363029 | F96: 9.359363029 | H96: 52.58814815 | I96: =MIN(D96,'Input og resultater'!$I$12,'Input og resultater'!$I$13-H96) -> 0 | J96: =MIN(E96,'Input og resultater'!$I$12,H96) -> 9.359363029 | K96: 0 | L96: 0 | N96: 0 | Q96: 52.58814815 | R96: =MIN(D96,'Input og resultater'!$I$12,'Input og resultater'!$I$13-Q96) -> 0 | S96: =MIN(F96,'Input og resultater'!$I$12,Q96) -> 9.359363029 | U96: =IF(B96>$O$2,'438 timer'!$BC96,0) -> 0 | W96: =MIN($U96-SUM(V96:$V96),'438 timer'!AK96) -> 0 | X96: =MIN($U96-SUM($V96:W96),'438 timer'!AL96) -> 0 | Y96: =MIN($U96-SUM($V96:X96),'438 timer'!AM96) -> 0 | Z96: =MIN($U96-SUM($V96:Y96),'438 timer'!AN96) -> 0 | AA96: =MIN($U96-SUM($V96:Z96),'438 timer'!AO96) -> 0 | AB96: =MIN($U96-SUM($V96:AA96),'438 timer'!AP96) -> 0 | AE96: 0 | AF96: 0 | AG96: 0 | AH96: 0 | AI96: 0 | AJ96: 0 | AT96: 0 | AU96: 68 | AV96: =SMALL('438 timer'!$AD$2:$AI$439,$AU96) -> 3.46e-05 | AW96: =IFERROR(MATCH($AV96,'438 timer'!AD$2:AD$439,0),0) -> 0 | AX96: =IFERROR(MATCH($AV96,'438 timer'!AE$2:AE$439,0),0) -> 34 | AY96: =IFERROR(MATCH($AV96,'438 timer'!AF$2:AF$439,0),0) -> 0 | AZ96: =IFERROR(MATCH($AV96,'438 timer'!AG$2:AG$439,0),0) -> 0 | BA96: =IFERROR(MATCH($AV96,'438 timer'!AH$2:AH$439,0),0) -> 0 | BB96: =IFERROR(MATCH($AV96,'438 timer'!AI$2:AI$439,0),0) -> 0 | BC96: 34 | BD96: 2 | BE96: =INDEX('438 timer'!$AK$2:$AQ$439,BC96,BD96) -> 0 | BF96: =MAX(INDEX('438 timer'!$BC$2:$BC$439,BC96,)-SUMIF(BC$27:BC95,"="&BC96,BI$27:BI95),0) -> 19.94242602 | BG96: =MAX(INDEX('438 timer'!$BD$2:$BD$439,BC96,1)-SUM(BI$26:BI95),0) -> 6667.93886 | BH96: ='Input og resultater'!$I$12-SUMIF(BC$27:BC95,"="&BC96,BJ$27:BJ95) -> 10 | BI96: 0 | BJ96: 0 | BK96: =SUMIF(BC$27:BC95,"<="&BC96,BJ$27:BJ95)+'438 timer'!$AS$2 -> 119.9685126 | BL96: =INDEX($BV$29:$BV$2656,BP96,1) -> 0 | BM96: =INDEX('438 timer'!$BC$2:$BC$439,BC96,) -> 19.94242602 | BN96: =MAX('438 timer'!$BD$2-SUM(BI$26:BI95)-AT96,0) -> 7327.45026 | BO96: =LARGE('438 timer'!$AD$2:$AI$439,$AU96) -> 1460.019175 | BP96: 2561 | BQ96: 349 | BR96: 6 | BS96: =SUMIFS($BJ$29:$BJ$2656,$BC$29:$BC$2656,"<"&BQ96,$AV$29:$AV$2656,"<="&BO96)-SUMIF(BQ$27:BQ95,">"&BQ96,BV$27:BV95)+SUMIFS(BV$27:BV95,BQ$27:BQ95,">"&BQ96,$BO$27:BO95,"<="&BO96) -> 815.8772234 | BT96: ='Input og resultater'!$I$12-SUMIF(BQ$27:BQ95,"="&BQ96,BX$27:BX95) -> 10 | BU96: =INDEX($BI$29:$BI$2656,BP96,1) -> 0 | BV96: 0 | BW96: =MAX(LARGE($BZ$29:$BZ$2656,1)-SUM(BX$27:BX95),0) -> 1045.845736 | BX96: =MIN(MAX(MIN(CE96,'Input og resultater'!$I$12,BW96),0),BT96) -> 0 | BZ96: =-INDEX($BF$29:$BF$2656,BP96,1)+INDEX($BK$29:$BK$2656,BP96,1) -> 935.845736 | CA96: =INDEX($BJ$29:$BJ$2656,BP96,1) -> 0 | CB96: =SUMIF($BC$29:$BC$2656,"<"&BQ96,$BJ$29:$BJ$2656)-SUM(BX$27:BX95) -> 815.8772234 | CC96: =INDEX($BF$29:$BF$2656,BP96,1) -> 0 | CD96: =INDEX($BJ$29:$BJ$2656,BP96,1) -> 0 | CE96: 0 | CG96: =MIN(MAX(SUMIF($BC$29:$BC$2656,"<"&BQ96,$BJ$29:$BJ$2656)-SUM(BX$27:BX95),0),'Input og resultater'!$I$13) -> 188
A97: 97 | B97: 96 | D97: 0 | E97: 9.359363029 | F97: 9.359363029 | H97: 43.22878512 | I97: =MIN(D97,'Input og resultater'!$I$12,'Input og resultater'!$I$13-H97) -> 0 | J97: =MIN(E97,'Input og resultater'!$I$12,H97) -> 9.359363029 | K97: 0 | L97: 0 | N97: 0 | Q97: 43.22878512 | R97: =MIN(D97,'Input og resultater'!$I$12,'Input og resultater'!$I$13-Q97) -> 0 | S97: =MIN(F97,'Input og resultater'!$I$12,Q97) -> 9.359363029 | U97: =IF(B97>$O$2,'438 timer'!$BC97,0) -> 0 | W97: =MIN($U97-SUM(V97:$V97),'438 timer'!AK97) -> 0 | X97: =MIN($U97-SUM($V97:W97),'438 timer'!AL97) -> 0 | Y97: =MIN($U97-SUM($V97:X97),'438 timer'!AM97) -> 0 | Z97: =MIN($U97-SUM($V97:Y97),'438 timer'!AN97) -> 0 | AA97: =MIN($U97-SUM($V97:Z97),'438 timer'!AO97) -> 0 | AB97: =MIN($U97-SUM($V97:AA97),'438 timer'!AP97) -> 0 | AE97: 0 | AF97: 0 | AG97: 0 | AH97: 0 | AI97: 0 | AJ97: 0 | AT97: 0 | AU97: 69 | AV97: =SMALL('438 timer'!$AD$2:$AI$439,$AU97) -> 3.55e-05 | AW97: =IFERROR(MATCH($AV97,'438 timer'!AD$2:AD$439,0),0) -> 35 | AX97: =IFERROR(MATCH($AV97,'438 timer'!AE$2:AE$439,0),0) -> 0 | AY97: =IFERROR(MATCH($AV97,'438 timer'!AF$2:AF$439,0),0) -> 0 | AZ97: =IFERROR(MATCH($AV97,'438 timer'!AG$2:AG$439,0),0) -> 0 | BA97: =IFERROR(MATCH($AV97,'438 timer'!AH$2:AH$439,0),0) -> 0 | BB97: =IFERROR(MATCH($AV97,'438 timer'!AI$2:AI$439,0),0) -> 0 | BC97: 35 | BD97: 1 | BE97: =INDEX('438 timer'!$AK$2:$AQ$439,BC97,BD97) -> 0 | BF97: =MAX(INDEX('438 timer'!$BC$2:$BC$439,BC97,)-SUMIF(BC$27:BC96,"="&BC97,BI$27:BI96),0) -> 20.09098802 | BG97: =MAX(INDEX('438 timer'!$BD$2:$BD$439,BC97,1)-SUM(BI$26:BI96),0) -> 6647.996434 | BH97: ='Input og resultater'!$I$12-SUMIF(BC$27:BC96,"="&BC97,BJ$27:BJ96) -> 10 | BI97: 0 | BJ97: 0 | BK97: =SUMIF(BC$27:BC96,"<="&BC97,BJ$27:BJ96)+'438 timer'!$AS$2 -> 119.9685126 | BL97: =INDEX($BV$29:$BV$2656,BP97,1) -> 0 | BM97: =INDEX('438 timer'!$BC$2:$BC$439,BC97,) -> 20.09098802 | BN97: =MAX('438 timer'!$BD$2-SUM(BI$26:BI96)-AT97,0) -> 7327.45026 | BO97: =LARGE('438 timer'!$AD$2:$AI$439,$AU97) -> 1455.127433 | BP97: 2560 | BQ97: 157 | BR97: 6 | BS97: =SUMIFS($BJ$29:$BJ$2656,$BC$29:$BC$2656,"<"&BQ97,$AV$29:$AV$2656,"<="&BO97)-SUMIF(BQ$27:BQ96,">"&BQ97,BV$27:BV96)+SUMIFS(BV$27:BV96,BQ$27:BQ96,">"&BQ97,$BO$27:BO96,"<="&BO97) -> 431.5831034 | BT97: ='Input og resultater'!$I$12-SUMIF(BQ$27:BQ96,"="&BQ97,BX$27:BX96) -> 10 | BU97: =INDEX($BI$29:$BI$2656,BP97,1) -> 0 | BV97: 0 | BW97: =MAX(LARGE($BZ$29:$BZ$2656,1)-SUM(BX$27:BX96),0) -> 1045.845736 | BX97: =MIN(MAX(MIN(CE97,'Input og resultater'!$I$12,BW97),0),BT97) -> 0 | BZ97: =-INDEX($BF$29:$BF$2656,BP97,1)+INDEX($BK$29:$BK$2656,BP97,1) -> 551.5516159 | CA97: =INDEX($BJ$29:$BJ$2656,BP97,1) -> 0 | CB97: =SUMIF($BC$29:$BC$2656,"<"&BQ97,$BJ$29:$BJ$2656)-SUM(BX$27:BX96) -> 431.5831034 | CC97: =INDEX($BF$29:$BF$2656,BP97,1) -> 0 | CD97: =INDEX($BJ$29:$BJ$2656,BP97,1) -> 0 | CE97: 0 | CG97: =MIN(MAX(SUMIF($BC$29:$BC$2656,"<"&BQ97,$BJ$29:$BJ$2656)-SUM(BX$27:BX96),0),'Input og resultater'!$I$13) -> 188
A98: 98 | B98: 97 | D98: 0 | E98: 8.987957029 | F98: 8.987957029 | H98: 33.8694221 | I98: =MIN(D98,'Input og resultater'!$I$12,'Input og resultater'!$I$13-H98) -> 0 | J98: =MIN(E98,'Input og resultater'!$I$12,H98) -> 8.987957029 | K98: 0 | L98: 0 | N98: 0 | Q98: 33.8694221 | R98: =MIN(D98,'Input og resultater'!$I$12,'Input og resultater'!$I$13-Q98) -> 0 | S98: =MIN(F98,'Input og resultater'!$I$12,Q98) -> 8.987957029 | U98: =IF(B98>$O$2,'438 timer'!$BC98,0) -> 0 | W98: =MIN($U98-SUM(V98:$V98),'438 timer'!AK98) -> 0 | X98: =MIN($U98-SUM($V98:W98),'438 timer'!AL98) -> 0 | Y98: =MIN($U98-SUM($V98:X98),'438 timer'!AM98) -> 0 | Z98: =MIN($U98-SUM($V98:Y98),'438 timer'!AN98) -> 0 | AA98: =MIN($U98-SUM($V98:Z98),'438 timer'!AO98) -> 0 | AB98: =MIN($U98-SUM($V98:AA98),'438 timer'!AP98) -> 0 | AE98: 0 | AF98: 0 | AG98: 0 | AH98: 0 | AI98: 0 | AJ98: 0 | AT98: 0 | AU98: 70 | AV98: =SMALL('438 timer'!$AD$2:$AI$439,$AU98) -> 3.56e-05 | AW98: =IFERROR(MATCH($AV98,'438 timer'!AD$2:AD$439,0),0) -> 0 | AX98: =IFERROR(MATCH($AV98,'438 timer'!AE$2:AE$439,0),0) -> 35 | AY98: =IFERROR(MATCH($AV98,'438 timer'!AF$2:AF$439,0),0) -> 0 | AZ98: =IFERROR(MATCH($AV98,'438 timer'!AG$2:AG$439,0),0) -> 0 | BA98: =IFERROR(MATCH($AV98,'438 timer'!AH$2:AH$439,0),0) -> 0 | BB98: =IFERROR(MATCH($AV98,'438 timer'!AI$2:AI$439,0),0) -> 0 | BC98: 35 | BD98: 2 | BE98: =INDEX('438 timer'!$AK$2:$AQ$439,BC98,BD98) -> 0 | BF98: =MAX(INDEX('438 timer'!$BC$2:$BC$439,BC98,)-SUMIF(BC$27:BC97,"="&BC98,BI$27:BI97),0) -> 20.09098802 | BG98: =MAX(INDEX('438 timer'!$BD$2:$BD$439,BC98,1)-SUM(BI$26:BI97),0) -> 6647.996434 | BH98: ='Input og resultater'!$I$12-SUMIF(BC$27:BC97,"="&BC98,BJ$27:BJ97) -> 10 | BI98: 0 | BJ98: 0 | BK98: =SUMIF(BC$27:BC97,"<="&BC98,BJ$27:BJ97)+'438 timer'!$AS$2 -> 119.9685126 | BL98: =INDEX($BV$29:$BV$2656,BP98,1) -> 0 | BM98: =INDEX('438 timer'!$BC$2:$BC$439,BC98,) -> 20.09098802 | BN98: =MAX('438 timer'!$BD$2-SUM(BI$26:BI97)-AT98,0) -> 7327.45026 | BO98: =LARGE('438 timer'!$AD$2:$AI$439,$AU98) -> 1451.339293 | BP98: 2559 | BQ98: 156 | BR98: 6 | BS98: =SUMIFS($BJ$29:$BJ$2656,$BC$29:$BC$2656,"<"&BQ98,$AV$29:$AV$2656,"<="&BO98)-SUMIF(BQ$27:BQ97,">"&BQ98,BV$27:BV97)+SUMIFS(BV$27:BV97,BQ$27:BQ97,">"&BQ98,$BO$27:BO97,"<="&BO98) -> 431.5831034 | BT98: ='Input og resultater'!$I$12-SUMIF(BQ$27:BQ97,"="&BQ98,BX$27:BX97) -> 10 | BU98: =INDEX($BI$29:$BI$2656,BP98,1) -> 0 | BV98: 0 | BW98: =MAX(LARGE($BZ$29:$BZ$2656,1)-SUM(BX$27:BX97),0) -> 1045.845736 | BX98: =MIN(MAX(MIN(CE98,'Input og resultater'!$I$12,BW98),0),BT98) -> 0 | BZ98: =-INDEX($BF$29:$BF$2656,BP98,1)+INDEX($BK$29:$BK$2656,BP98,1) -> 551.5516159 | CA98: =INDEX($BJ$29:$BJ$2656,BP98,1) -> 0 | CB98: =SUMIF($BC$29:$BC$2656,"<"&BQ98,$BJ$29:$BJ$2656)-SUM(BX$27:BX97) -> 431.5831034 | CC98: =INDEX($BF$29:$BF$2656,BP98,1) -> 0 | CD98: =INDEX($BJ$29:$BJ$2656,BP98,1) -> 0 | CE98: 0 | CG98: =MIN(MAX(SUMIF($BC$29:$BC$2656,"<"&BQ98,$BJ$29:$BJ$2656)-SUM(BX$27:BX97),0),'Input og resultater'!$I$13) -> 188
A99: 99 | B99: 98 | D99: 6.086324972 | E99: 0 | F99: 0 | H99: 24.88146507 | I99: =MIN(D99,'Input og resultater'!$I$12,'Input og resultater'!$I$13-H99) -> 6.086324972 | J99: =MIN(E99,'Input og resultater'!$I$12,H99) -> 0 | K99: 0 | L99: 0 | N99: 1.000891 | Q99: 24.88146507 | R99: =MIN(D99,'Input og resultater'!$I$12,'Input og resultater'!$I$13-Q99) -> 6.086324972 | S99: =MIN(F99,'Input og resultater'!$I$12,Q99) -> 0 | U99: =IF(B99>$O$2,'438 timer'!$BC99,0) -> 0 | W99: =MIN($U99-SUM(V99:$V99),'438 timer'!AK99) -> 0 | X99: =MIN($U99-SUM($V99:W99),'438 timer'!AL99) -> 0 | Y99: =MIN($U99-SUM($V99:X99),'438 timer'!AM99) -> 0 | Z99: =MIN($U99-SUM($V99:Y99),'438 timer'!AN99) -> 0 | AA99: =MIN($U99-SUM($V99:Z99),'438 timer'!AO99) -> 0 | AB99: =MIN($U99-SUM($V99:AA99),'438 timer'!AP99) -> 0 | AE99: 0 | AF99: 0 | AG99: 0 | AH99: 0 | AI99: 0 | AJ99: 0 | AT99: 0 | AU99: 71 | AV99: =SMALL('438 timer'!$AD$2:$AI$439,$AU99) -> 3.65e-05 | AW99: =IFERROR(MATCH($AV99,'438 timer'!AD$2:AD$439,0),0) -> 36 | AX99: =IFERROR(MATCH($AV99,'438 timer'!AE$2:AE$439,0),0) -> 0 | AY99: =IFERROR(MATCH($AV99,'438 timer'!AF$2:AF$439,0),0) -> 0 | AZ99: =IFERROR(MATCH($AV99,'438 timer'!AG$2:AG$439,0),0) -> 0 | BA99: =IFERROR(MATCH($AV99,'438 timer'!AH$2:AH$439,0),0) -> 0 | BB99: =IFERROR(MATCH($AV99,'438 timer'!AI$2:AI$439,0),0) -> 0 | BC99: 36 | BD99: 1 | BE99: =INDEX('438 timer'!$AK$2:$AQ$439,BC99,BD99) -> 0 | BF99: =MAX(INDEX('438 timer'!$BC$2:$BC$439,BC99,)-SUMIF(BC$27:BC98,"="&BC99,BI$27:BI98),0) -> 19.64530102 | BG99: =MAX(INDEX('438 timer'!$BD$2:$BD$439,BC99,1)-SUM(BI$26:BI98),0) -> 6627.905446 | BH99: ='Input og resultater'!$I$12-SUMIF(BC$27:BC98,"="&BC99,BJ$27:BJ98) -> 10 | BI99: 0 | BJ99: 0 | BK99: =SUMIF(BC$27:BC98,"<="&BC99,BJ$27:BJ98)+'438 timer'!$AS$2 -> 119.9685126 | BL99: =INDEX($BV$29:$BV$2656,BP99,1) -> 0 | BM99: =INDEX('438 timer'!$BC$2:$BC$439,BC99,) -> 19.64530102 | BN99: =MAX('438 timer'!$BD$2-SUM(BI$26:BI98)-AT99,0) -> 7327.45026 | BO99: =LARGE('438 timer'!$AD$2:$AI$439,$AU99) -> 1450.628452 | BP99: 2558 | BQ99: 158 | BR99: 6 | BS99: =SUMIFS($BJ$29:$BJ$2656,$BC$29:$BC$2656,"<"&BQ99,$AV$29:$AV$2656,"<="&BO99)-SUMIF(BQ$27:BQ98,">"&BQ99,BV$27:BV98)+SUMIFS(BV$27:BV98,BQ$27:BQ98,">"&BQ99,$BO$27:BO98,"<="&BO99) -> 431.5831034 | BT99: ='Input og resultater'!$I$12-SUMIF(BQ$27:BQ98,"="&BQ99,BX$27:BX98) -> 10 | BU99: =INDEX($BI$29:$BI$2656,BP99,1) -> 0 | BV99: 0 | BW99: =MAX(LARGE($BZ$29:$BZ$2656,1)-SUM(BX$27:BX98),0) -> 1045.845736 | BX99: =MIN(MAX(MIN(CE99,'Input og resultater'!$I$12,BW99),0),BT99) -> 0 | BZ99: =-INDEX($BF$29:$BF$2656,BP99,1)+INDEX($BK$29:$BK$2656,BP99,1) -> 551.5516159 | CA99: =INDEX($BJ$29:$BJ$2656,BP99,1) -> 0 | CB99: =SUMIF($BC$29:$BC$2656,"<"&BQ99,$BJ$29:$BJ$2656)-SUM(BX$27:BX98) -> 431.5831034 | CC99: =INDEX($BF$29:$BF$2656,BP99,1) -> 0 | CD99: =INDEX($BJ$29:$BJ$2656,BP99,1) -> 0 | CE99: 0 | CG99: =MIN(MAX(SUMIF($BC$29:$BC$2656,"<"&BQ99,$BJ$29:$BJ$2656)-SUM(BX$27:BX98),0),'Input og resultater'!$I$13) -> 188
A100: 100 | B100: 99 | D100: 6.309167972 | E100: 0 | F100: 0 | H100: 30.96779004 | I100: =MIN(D100,'Input og resultater'!$I$12,'Input og resultater'!$I$13-H100) -> 6.309167972 | J100: =MIN(E100,'Input og resultater'!$I$12,H100) -> 0 | K100: 0 | L100: 0 | N100: 1.0009 | Q100: 30.96779004 | R100: =MIN(D100,'Input og resultater'!$I$12,'Input og resultater'!$I$13-Q100) -> 6.309167972 | S100: =MIN(F100,'Input og resultater'!$I$12,Q100) -> 0 | U100: =IF(B100>$O$2,'438 timer'!$BC100,0) -> 0 | W100: =MIN($U100-SUM(V100:$V100),'438 timer'!AK100) -> 0 | X100: =MIN($U100-SUM($V100:W100),'438 timer'!AL100) -> 0 | Y100: =MIN($U100-SUM($V100:X100),'438 timer'!AM100) -> 0 | Z100: =MIN($U100-SUM($V100:Y100),'438 timer'!AN100) -> 0 | AA100: =MIN($U100-SUM($V100:Z100),'438 timer'!AO100) -> 0 | AB100: =MIN($U100-SUM($V100:AA100),'438 timer'!AP100) -> 0 | AE100: 0 | AF100: 0 | AG100: 0 | AH100: 0 | AI100: 0 | AJ100: 0 | AT100: 0 | AU100: 72 | AV100: =SMALL('438 timer'!$AD$2:$AI$439,$AU100) -> 3.66e-05 | AW100: =IFERROR(MATCH($AV100,'438 timer'!AD$2:AD$439,0),0) -> 0 | AX100: =IFERROR(MATCH($AV100,'438 timer'!AE$2:AE$439,0),0) -> 36 | AY100: =IFERROR(MATCH($AV100,'438 timer'!AF$2:AF$439,0),0) -> 0 | AZ100: =IFERROR(MATCH($AV100,'438 timer'!AG$2:AG$439,0),0) -> 0 | BA100: =IFERROR(MATCH($AV100,'438 timer'!AH$2:AH$439,0),0) -> 0 | BB100: =IFERROR(MATCH($AV100,'438 timer'!AI$2:AI$439,0),0) -> 0 | BC100: 36 | BD100: 2 | BE100: =INDEX('438 timer'!$AK$2:$AQ$439,BC100,BD100) -> 0 | BF100: =MAX(INDEX('438 timer'!$BC$2:$BC$439,BC100,)-SUMIF(BC$27:BC99,"="&BC100,BI$27:BI99),0) -> 19.64530102 | BG100: =MAX(INDEX('438 timer'!$BD$2:$BD$439,BC100,1)-SUM(BI$26:BI99),0) -> 6627.905446 | BH100: ='Input og resultater'!$I$12-SUMIF(BC$27:BC99,"="&BC100,BJ$27:BJ99) -> 10 | BI100: 0 | BJ100: 0 | BK100: =SUMIF(BC$27:BC99,"<="&BC100,BJ$27:BJ99)+'438 timer'!$AS$2 -> 119.9685126 | BL100: =INDEX($BV$29:$BV$2656,BP100,1) -> 0 | BM100: =INDEX('438 timer'!$BC$2:$BC$439,BC100,) -> 19.64530102 | BN100: =MAX('438 timer'!$BD$2-SUM(BI$26:BI99)-AT100,0) -> 7327.45026 | BO100: =LARGE('438 timer'!$AD$2:$AI$439,$AU100) -> 1449.344489 | BP100: 2557 | BQ100: 89 | BR100: 6 | BS100: =SUMIFS($BJ$29:$BJ$2656,$BC$29:$BC$2656,"<"&BQ100,$AV$29:$AV$2656,"<="&BO100)-SUMIF(BQ$27:BQ99,">"&BQ100,BV$27:BV99)+SUMIFS(BV$27:BV99,BQ$27:BQ99,">"&BQ100,$BO$27:BO99,"<="&BO100) -> 408.4263045 | BT100: ='Input og resultater'!$I$12-SUMIF(BQ$27:BQ99,"="&BQ100,BX$27:BX99) -> 10 | BU100: =INDEX($BI$29:$BI$2656,BP100,1) -> 0 | BV100: 0 | BW100: =MAX(LARGE($BZ$29:$BZ$2656,1)-SUM(BX$27:BX99),0) -> 1045.845736 | BX100: =MIN(MAX(MIN(CE100,'Input og resultater'!$I$12,BW100),0),BT100) -> 0 | BZ100: =-INDEX($BF$29:$BF$2656,BP100,1)+INDEX($BK$29:$BK$2656,BP100,1) -> 528.3948171 | CA100: =INDEX($BJ$29:$BJ$2656,BP100,1) -> 0 | CB100: =SUMIF($BC$29:$BC$2656,"<"&BQ100,$BJ$29:$BJ$2656)-SUM(BX$27:BX99) -> 408.4263045 | CC100: =INDEX($BF$29:$BF$2656,BP100,1) -> 0 | CD100: =INDEX($BJ$29:$BJ$2656,BP100,1) -> 0 | CE100: 0 | CG100: =MIN(MAX(SUMIF($BC$29:$BC$2656,"<"&BQ100,$BJ$29:$BJ$2656)-SUM(BX$27:BX99),0),'Input og resultater'!$I$13) -> 188
A101: 101 | B101: 100 | D101: 5.640636971 | E101: 0 | F101: 0 | H101: 37.27695801 | I101: =MIN(D101,'Input og resultater'!$I$12,'Input og resultater'!$I$13-H101) -> 5.640636971 | J101: =MIN(E101,'Input og resultater'!$I$12,H101) -> 0 | K101: 0 | L101: 0 | N101: 1.000909 | Q101: 37.27695801 | R101: =MIN(D101,'Input og resultater'!$I$12,'Input og resultater'!$I$13-Q101) -> 5.640636971 | S101: =MIN(F101,'Input og resultater'!$I$12,Q101) -> 0 | U101: =IF(B101>$O$2,'438 timer'!$BC101,0) -> 0 | W101: =MIN($U101-SUM(V101:$V101),'438 timer'!AK101) -> 0 | X101: =MIN($U101-SUM($V101:W101),'438 timer'!AL101) -> 0 | Y101: =MIN($U101-SUM($V101:X101),'438 timer'!AM101) -> 0 | Z101: =MIN($U101-SUM($V101:Y101),'438 timer'!AN101) -> 0 | AA101: =MIN($U101-SUM($V101:Z101),'438 timer'!AO101) -> 0 | AB101: =MIN($U101-SUM($V101:AA101),'438 timer'!AP101) -> 0 | AE101: 0 | AF101: 0 | AG101: 0 | AH101: 0 | AI101: 0 | AJ101: 0 | AT101: 0 | AU101: 73 | AV101: =SMALL('438 timer'!$AD$2:$AI$439,$AU101) -> 3.75e-05 | AW101: =IFERROR(MATCH($AV101,'438 timer'!AD$2:AD$439,0),0) -> 37 | AX101: =IFERROR(MATCH($AV101,'438 timer'!AE$2:AE$439,0),0) -> 0 | AY101: =IFERROR(MATCH($AV101,'438 timer'!AF$2:AF$439,0),0) -> 0 | AZ101: =IFERROR(MATCH($AV101,'438 timer'!AG$2:AG$439,0),0) -> 0 | BA101: =IFERROR(MATCH($AV101,'438 timer'!AH$2:AH$439,0),0) -> 0 | BB101: =IFERROR(MATCH($AV101,'438 timer'!AI$2:AI$439,0),0) -> 0 | BC101: 37 | BD101: 1 | BE101: =INDEX('438 timer'!$AK$2:$AQ$439,BC101,BD101) -> 0 | BF101: =MAX(INDEX('438 timer'!$BC$2:$BC$439,BC101,)-SUMIF(BC$27:BC100,"="&BC101,BI$27:BI100),0) -> 18.82820702 | BG101: =MAX(INDEX('438 timer'!$BD$2:$BD$439,BC101,1)-SUM(BI$26:BI100),0) -> 6608.260145 | BH101: ='Input og resultater'!$I$12-SUMIF(BC$27:BC100,"="&BC101,BJ$27:BJ100) -> 10 | BI101: 0 | BJ101: 0 | BK101: =SUMIF(BC$27:BC100,"<="&BC101,BJ$27:BJ100)+'438 timer'!$AS$2 -> 119.9685126 | BL101: =INDEX($BV$29:$BV$2656,BP101,1) -> 0 | BM101: =INDEX('438 timer'!$BC$2:$BC$439,BC101,) -> 18.82820702 | BN101: =MAX('438 timer'!$BD$2-SUM(BI$26:BI100)-AT101,0) -> 7327.45026 | BO101: =LARGE('438 timer'!$AD$2:$AI$439,$AU101) -> 1449.2703 | BP101: 2556 | BQ101: 248 | BR101: 6 | BS101: =SUMIFS($BJ$29:$BJ$2656,$BC$29:$BC$2656,"<"&BQ101,$AV$29:$AV$2656,"<="&BO101)-SUMIF(BQ$27:BQ100,">"&BQ101,BV$27:BV100)+SUMIFS(BV$27:BV100,BQ$27:BQ100,">"&BQ101,$BO$27:BO100,"<="&BO101) -> 469.1617579 | BT101: ='Input og resultater'!$I$12-SUMIF(BQ$27:BQ100,"="&BQ101,BX$27:BX100) -> 10 | BU101: =INDEX($BI$29:$BI$2656,BP101,1) -> 0 | BV101: 0 | BW101: =MAX(LARGE($BZ$29:$BZ$2656,1)-SUM(BX$27:BX100),0) -> 1045.845736 | BX101: =MIN(MAX(MIN(CE101,'Input og resultater'!$I$12,BW101),0),BT101) -> 0 | BZ101: =-INDEX($BF$29:$BF$2656,BP101,1)+INDEX($BK$29:$BK$2656,BP101,1) -> 589.1302705 | CA101: =INDEX($BJ$29:$BJ$2656,BP101,1) -> 0 | CB101: =SUMIF($BC$29:$BC$2656,"<"&BQ101,$BJ$29:$BJ$2656)-SUM(BX$27:BX100) -> 469.1617579 | CC101: =INDEX($BF$29:$BF$2656,BP101,1) -> 0 | CD101: =INDEX($BJ$29:$BJ$2656,BP101,1) -> 0 | CE101: 0 | CG101: =MIN(MAX(SUMIF($BC$29:$BC$2656,"<"&BQ101,$BJ$29:$BJ$2656)-SUM(BX$27:BX100),0),'Input og resultater'!$I$13) -> 188
A102: 102 | B102: 101 | D102: 5.12066897 | E102: 0 | F102: 0 | H102: 42.91759498 | I102: =MIN(D102,'Input og resultater'!$I$12,'Input og resultater'!$I$13-H102) -> 5.12066897 | J102: =MIN(E102,'Input og resultater'!$I$12,H102) -> 0 | K102: 0 | L102: 0 | N102: 1.000918 | Q102: 42.91759498 | R102: =MIN(D102,'Input og resultater'!$I$12,'Input og resultater'!$I$13-Q102) -> 5.12066897 | S102: =MIN(F102,'Input og resultater'!$I$12,Q102) -> 0 | U102: =IF(B102>$O$2,'438 timer'!$BC102,0) -> 0 | W102: =MIN($U102-SUM(V102:$V102),'438 timer'!AK102) -> 0 | X102: =MIN($U102-SUM($V102:W102),'438 timer'!AL102) -> 0 | Y102: =MIN($U102-SUM($V102:X102),'438 timer'!AM102) -> 0 | Z102: =MIN($U102-SUM($V102:Y102),'438 timer'!AN102) -> 0 | AA102: =MIN($U102-SUM($V102:Z102),'438 timer'!AO102) -> 0 | AB102: =MIN($U102-SUM($V102:AA102),'438 timer'!AP102) -> 0 | AE102: 0 | AF102: 0 | AG102: 0 | AH102: 0 | AI102: 0 | AJ102: 0 | AT102: 0 | AU102: 74 | AV102: =SMALL('438 timer'!$AD$2:$AI$439,$AU102) -> 3.76e-05 | AW102: =IFERROR(MATCH($AV102,'438 timer'!AD$2:AD$439,0),0) -> 0 | AX102: =IFERROR(MATCH($AV102,'438 timer'!AE$2:AE$439,0),0) -> 37 | AY102: =IFERROR(MATCH($AV102,'438 timer'!AF$2:AF$439,0),0) -> 0 | AZ102: =IFERROR(MATCH($AV102,'438 timer'!AG$2:AG$439,0),0) -> 0 | BA102: =IFERROR(MATCH($AV102,'438 timer'!AH$2:AH$439,0),0) -> 0 | BB102: =IFERROR(MATCH($AV102,'438 timer'!AI$2:AI$439,0),0) -> 0 | BC102: 37 | BD102: 2 | BE102: =INDEX('438 timer'!$AK$2:$AQ$439,BC102,BD102) -> 0 | BF102: =MAX(INDEX('438 timer'!$BC$2:$BC$439,BC102,)-SUMIF(BC$27:BC101,"="&BC102,BI$27:BI101),0) -> 18.82820702 | BG102: =MAX(INDEX('438 timer'!$BD$2:$BD$439,BC102,1)-SUM(BI$26:BI101),0) -> 6608.260145 | BH102: ='Input og resultater'!$I$12-SUMIF(BC$27:BC101,"="&BC102,BJ$27:BJ101) -> 10 | BI102: 0 | BJ102: 0 | BK102: =SUMIF(BC$27:BC101,"<="&BC102,BJ$27:BJ101)+'438 timer'!$AS$2 -> 119.9685126 | BL102: =INDEX($BV$29:$BV$2656,BP102,1) -> 0 | BM102: =INDEX('438 timer'!$BC$2:$BC$439,BC102,) -> 18.82820702 | BN102: =MAX('438 timer'!$BD$2-SUM(BI$26:BI101)-AT102,0) -> 7327.45026 | BO102: =LARGE('438 timer'!$AD$2:$AI$439,$AU102) -> 1447.540739 | BP102: 2555 | BQ102: 257 | BR102: 6 | BS102: =SUMIFS($BJ$29:$BJ$2656,$BC$29:$BC$2656,"<"&BQ102,$AV$29:$AV$2656,"<="&BO102)-SUMIF(BQ$27:BQ101,">"&BQ102,BV$27:BV101)+SUMIFS(BV$27:BV101,BQ$27:BQ101,">"&BQ102,$BO$27:BO101,"<="&BO102) -> 469.1618309 | BT102: ='Input og resultater'!$I$12-SUMIF(BQ$27:BQ101,"="&BQ102,BX$27:BX101) -> 10 | BU102: =INDEX($BI$29:$BI$2656,BP102,1) -> 0 | BV102: 0 | BW102: =MAX(LARGE($BZ$29:$BZ$2656,1)-SUM(BX$27:BX101),0) -> 1045.845736 | BX102: =MIN(MAX(MIN(CE102,'Input og resultater'!$I$12,BW102),0),BT102) -> 0 | BZ102: =-INDEX($BF$29:$BF$2656,BP102,1)+INDEX($BK$29:$BK$2656,BP102,1) -> 589.6503855 | CA102: =INDEX($BJ$29:$BJ$2656,BP102,1) -> 0 | CB102: =SUMIF($BC$29:$BC$2656,"<"&BQ102,$BJ$29:$BJ$2656)-SUM(BX$27:BX101) -> 469.1618309 | CC102: =INDEX($BF$29:$BF$2656,BP102,1) -> 0 | CD102: =INDEX($BJ$29:$BJ$2656,BP102,1) -> 0 | CE102: 0 | CG102: =MIN(MAX(SUMIF($BC$29:$BC$2656,"<"&BQ102,$BJ$29:$BJ$2656)-SUM(BX$27:BX101),0),'Input og resultater'!$I$13) -> 188
A103: 103 | B103: 102 | D103: 0 | E103: 10 | F103: 10 | H103: 48.03826395 | I103: =MIN(D103,'Input og resultater'!$I$12,'Input og resultater'!$I$13-H103) -> 0 | J103: =MIN(E103,'Input og resultater'!$I$12,H103) -> 10 | K103: 0 | L103: 0 | N103: 0 | Q103: 48.03826395 | R103: =MIN(D103,'Input og resultater'!$I$12,'Input og resultater'!$I$13-Q103) -> 0 | S103: =MIN(F103,'Input og resultater'!$I$12,Q103) -> 10 | U103: =IF(B103>$O$2,'438 timer'!$BC103,0) -> 0 | W103: =MIN($U103-SUM(V103:$V103),'438 timer'!AK103) -> 0 | X103: =MIN($U103-SUM($V103:W103),'438 timer'!AL103) -> 0 | Y103: =MIN($U103-SUM($V103:X103),'438 timer'!AM103) -> 0 | Z103: =MIN($U103-SUM($V103:Y103),'438 timer'!AN103) -> 0 | AA103: =MIN($U103-SUM($V103:Z103),'438 timer'!AO103) -> 0 | AB103: =MIN($U103-SUM($V103:AA103),'438 timer'!AP103) -> 0 | AE103: 0 | AF103: 0 | AG103: 0 | AH103: 0 | AI103: 0 | AJ103: 0 | AT103: 0 | AU103: 75 | AV103: =SMALL('438 timer'!$AD$2:$AI$439,$AU103) -> 3.85e-05 | AW103: =IFERROR(MATCH($AV103,'438 timer'!AD$2:AD$439,0),0) -> 38 | AX103: =IFERROR(MATCH($AV103,'438 timer'!AE$2:AE$439,0),0) -> 0 | AY103: =IFERROR(MATCH($AV103,'438 timer'!AF$2:AF$439,0),0) -> 0 | AZ103: =IFERROR(MATCH($AV103,'438 timer'!AG$2:AG$439,0),0) -> 0 | BA103: =IFERROR(MATCH($AV103,'438 timer'!AH$2:AH$439,0),0) -> 0 | BB103: =IFERROR(MATCH($AV103,'438 timer'!AI$2:AI$439,0),0) -> 0 | BC103: 38 | BD103: 1 | BE103: =INDEX('438 timer'!$AK$2:$AQ$439,BC103,BD103) -> 0 | BF103: =MAX(INDEX('438 timer'!$BC$2:$BC$439,BC103,)-SUMIF(BC$27:BC102,"="&BC103,BI$27:BI102),0) -> 18.53108202 | BG103: =MAX(INDEX('438 timer'!$BD$2:$BD$439,BC103,1)-SUM(BI$26:BI102),0) -> 6589.431938 | BH103: ='Input og resultater'!$I$12-SUMIF(BC$27:BC102,"="&BC103,BJ$27:BJ102) -> 10 | BI103: 0 | BJ103: 0 | BK103: =SUMIF(BC$27:BC102,"<="&BC103,BJ$27:BJ102)+'438 timer'!$AS$2 -> 119.9685126 | BL103: =INDEX($BV$29:$BV$2656,BP103,1) -> 0 | BM103: =INDEX('438 timer'!$BC$2:$BC$439,BC103,) -> 18.53108202 | BN103: =MAX('438 timer'!$BD$2-SUM(BI$26:BI102)-AT103,0) -> 7327.45026 | BO103: =LARGE('438 timer'!$AD$2:$AI$439,$AU103) -> 1446.670636 | BP103: 2554 | BQ103: 185 | BR103: 6 | BS103: =SUMIFS($BJ$29:$BJ$2656,$BC$29:$BC$2656,"<"&BQ103,$AV$29:$AV$2656,"<="&BO103)-SUMIF(BQ$27:BQ102,">"&BQ103,BV$27:BV102)+SUMIFS(BV$27:BV102,BQ$27:BQ102,">"&BQ103,$BO$27:BO102,"<="&BO103) -> 431.6575303 | BT103: ='Input og resultater'!$I$12-SUMIF(BQ$27:BQ102,"="&BQ103,BX$27:BX102) -> 10 | BU103: =INDEX($BI$29:$BI$2656,BP103,1) -> 0 | BV103: 0 | BW103: =MAX(LARGE($BZ$29:$BZ$2656,1)-SUM(BX$27:BX102),0) -> 1045.845736 | BX103: =MIN(MAX(MIN(CE103,'Input og resultater'!$I$12,BW103),0),BT103) -> 0 | BZ103: =-INDEX($BF$29:$BF$2656,BP103,1)+INDEX($BK$29:$BK$2656,BP103,1) -> 551.9232409 | CA103: =INDEX($BJ$29:$BJ$2656,BP103,1) -> 0 | CB103: =SUMIF($BC$29:$BC$2656,"<"&BQ103,$BJ$29:$BJ$2656)-SUM(BX$27:BX102) -> 431.6575303 | CC103: =INDEX($BF$29:$BF$2656,BP103,1) -> 0 | CD103: =INDEX($BJ$29:$BJ$2656,BP103,1) -> 0 | CE103: 0 | CG103: =MIN(MAX(SUMIF($BC$29:$BC$2656,"<"&BQ103,$BJ$29:$BJ$2656)-SUM(BX$27:BX102),0),'Input og resultater'!$I$13) -> 188
A104: 104 | B104: 103 | D104: 0 | E104: 10 | F104: 10 | H104: 38.03826395 | I104: =MIN(D104,'Input og resultater'!$I$12,'Input og resultater'!$I$13-H104) -> 0 | J104: =MIN(E104,'Input og resultater'!$I$12,H104) -> 10 | K104: 0 | L104: 0 | N104: 0 | Q104: 38.03826395 | R104: =MIN(D104,'Input og resultater'!$I$12,'Input og resultater'!$I$13-Q104) -> 0 | S104: =MIN(F104,'Input og resultater'!$I$12,Q104) -> 10 | U104: =IF(B104>$O$2,'438 timer'!$BC104,0) -> 0 | W104: =MIN($U104-SUM(V104:$V104),'438 timer'!AK104) -> 0 | X104: =MIN($U104-SUM($V104:W104),'438 timer'!AL104) -> 0 | Y104: =MIN($U104-SUM($V104:X104),'438 timer'!AM104) -> 0 | Z104: =MIN($U104-SUM($V104:Y104),'438 timer'!AN104) -> 0 | AA104: =MIN($U104-SUM($V104:Z104),'438 timer'!AO104) -> 0 | AB104: =MIN($U104-SUM($V104:AA104),'438 timer'!AP104) -> 0 | AE104: 0 | AF104: 0 | AG104: 0 | AH104: 0 | AI104: 0 | AJ104: 0 | AT104: 0 | AU104: 76 | AV104: =SMALL('438 timer'!$AD$2:$AI$439,$AU104) -> 3.86e-05 | AW104: =IFERROR(MATCH($AV104,'438 timer'!AD$2:AD$439,0),0) -> 0 | AX104: =IFERROR(MATCH($AV104,'438 timer'!AE$2:AE$439,0),0) -> 38 | AY104: =IFERROR(MATCH($AV104,'438 timer'!AF$2:AF$439,0),0) -> 0 | AZ104: =IFERROR(MATCH($AV104,'438 timer'!AG$2:AG$439,0),0) -> 0 | BA104: =IFERROR(MATCH($AV104,'438 timer'!AH$2:AH$439,0),0) -> 0 | BB104: =IFERROR(MATCH($AV104,'438 timer'!AI$2:AI$439,0),0) -> 0 | BC104: 38 | BD104: 2 | BE104: =INDEX('438 timer'!$AK$2:$AQ$439,BC104,BD104) -> 0 | BF104: =MAX(INDEX('438 timer'!$BC$2:$BC$439,BC104,)-SUMIF(BC$27:BC103,"="&BC104,BI$27:BI103),0) -> 18.53108202 | BG104: =MAX(INDEX('438 timer'!$BD$2:$BD$439,BC104,1)-SUM(BI$26:BI103),0) -> 6589.431938 | BH104: ='Input og resultater'!$I$12-SUMIF(BC$27:BC103,"="&BC104,BJ$27:BJ103) -> 10 | BI104: 0 | BJ104: 0 | BK104: =SUMIF(BC$27:BC103,"<="&BC104,BJ$27:BJ103)+'438 timer'!$AS$2 -> 119.9685126 | BL104: =INDEX($BV$29:$BV$2656,BP104,1) -> 0 | BM104: =INDEX('438 timer'!$BC$2:$BC$439,BC104,) -> 18.53108202 | BN104: =MAX('438 timer'!$BD$2-SUM(BI$26:BI103)-AT104,0) -> 7327.45026 | BO104: =LARGE('438 timer'!$AD$2:$AI$439,$AU104) -> 1445.811096 | BP104: 2553 | BQ104: 159 | BR104: 6 | BS104: =SUMIFS($BJ$29:$BJ$2656,$BC$29:$BC$2656,"<"&BQ104,$AV$29:$AV$2656,"<="&BO104)-SUMIF(BQ$27:BQ103,">"&BQ104,BV$27:BV103)+SUMIFS(BV$27:BV103,BQ$27:BQ103,">"&BQ104,$BO$27:BO103,"<="&BO104) -> 431.5831034 | BT104: ='Input og resultater'!$I$12-SUMIF(BQ$27:BQ103,"="&BQ104,BX$27:BX103) -> 10 | BU104: =INDEX($BI$29:$BI$2656,BP104,1) -> 0 | BV104: 0 | BW104: =MAX(LARGE($BZ$29:$BZ$2656,1)-SUM(BX$27:BX103),0) -> 1045.845736 | BX104: =MIN(MAX(MIN(CE104,'Input og resultater'!$I$12,BW104),0),BT104) -> 0 | BZ104: =-INDEX($BF$29:$BF$2656,BP104,1)+INDEX($BK$29:$BK$2656,BP104,1) -> 551.5516159 | CA104: =INDEX($BJ$29:$BJ$2656,BP104,1) -> 0 | CB104: =SUMIF($BC$29:$BC$2656,"<"&BQ104,$BJ$29:$BJ$2656)-SUM(BX$27:BX103) -> 431.5831034 | CC104: =INDEX($BF$29:$BF$2656,BP104,1) -> 0 | CD104: =INDEX($BJ$29:$BJ$2656,BP104,1) -> 0 | CE104: 0 | CG104: =MIN(MAX(SUMIF($BC$29:$BC$2656,"<"&BQ104,$BJ$29:$BJ$2656)-SUM(BX$27:BX103),0),'Input og resultater'!$I$13) -> 188
A105: 105 | B105: 104 | D105: 0 | E105: 10 | F105: 10 | H105: 28.03826395 | I105: =MIN(D105,'Input og resultater'!$I$12,'Input og resultater'!$I$13-H105) -> 0 | J105: =MIN(E105,'Input og resultater'!$I$12,H105) -> 10 | K105: 0 | L105: 0 | N105: 0 | Q105: 28.03826395 | R105: =MIN(D105,'Input og resultater'!$I$12,'Input og resultater'!$I$13-Q105) -> 0 | S105: =MIN(F105,'Input og resultater'!$I$12,Q105) -> 10 | U105: =IF(B105>$O$2,'438 timer'!$BC105,0) -> 0 | W105: =MIN($U105-SUM(V105:$V105),'438 timer'!AK105) -> 0 | X105: =MIN($U105-SUM($V105:W105),'438 timer'!AL105) -> 0 | Y105: =MIN($U105-SUM($V105:X105),'438 timer'!AM105) -> 0 | Z105: =MIN($U105-SUM($V105:Y105),'438 timer'!AN105) -> 0 | AA105: =MIN($U105-SUM($V105:Z105),'438 timer'!AO105) -> 0 | AB105: =MIN($U105-SUM($V105:AA105),'438 timer'!AP105) -> 0 | AE105: 0 | AF105: 0 | AG105: 0 | AH105: 0 | AI105: 0 | AJ105: 0 | AT105: 0 | AU105: 77 | AV105: =SMALL('438 timer'!$AD$2:$AI$439,$AU105) -> 3.95e-05 | AW105: =IFERROR(MATCH($AV105,'438 timer'!AD$2:AD$439,0),0) -> 39 | AX105: =IFERROR(MATCH($AV105,'438 timer'!AE$2:AE$439,0),0) -> 0 | AY105: =IFERROR(MATCH($AV105,'438 timer'!AF$2:AF$439,0),0) -> 0 | AZ105: =IFERROR(MATCH($AV105,'438 timer'!AG$2:AG$439,0),0) -> 0 | BA105: =IFERROR(MATCH($AV105,'438 timer'!AH$2:AH$439,0),0) -> 0 | BB105: =IFERROR(MATCH($AV105,'438 timer'!AI$2:AI$439,0),0) -> 0 | BC105: 39 | BD105: 1 | BE105: =INDEX('438 timer'!$AK$2:$AQ$439,BC105,BD105) -> 0 | BF105: =MAX(INDEX('438 timer'!$BC$2:$BC$439,BC105,)-SUMIF(BC$27:BC104,"="&BC105,BI$27:BI104),0) -> 19.05105102 | BG105: =MAX(INDEX('438 timer'!$BD$2:$BD$439,BC105,1)-SUM(BI$26:BI104),0) -> 6570.900856 | BH105: ='Input og resultater'!$I$12-SUMIF(BC$27:BC104,"="&BC105,BJ$27:BJ104) -> 10 | BI105: 0 | BJ105: 0 | BK105: =SUMIF(BC$27:BC104,"<="&BC105,BJ$27:BJ104)+'438 timer'!$AS$2 -> 119.9685126 | BL105: =INDEX($BV$29:$BV$2656,BP105,1) -> 0 | BM105: =INDEX('438 timer'!$BC$2:$BC$439,BC105,) -> 19.05105102 | BN105: =MAX('438 timer'!$BD$2-SUM(BI$26:BI104)-AT105,0) -> 7327.45026 | BO105: =LARGE('438 timer'!$AD$2:$AI$439,$AU105) -> 1445.323107 | BP105: 2552 | BQ105: 252 | BR105: 6 | BS105: =SUMIFS($BJ$29:$BJ$2656,$BC$29:$BC$2656,"<"&BQ105,$AV$29:$AV$2656,"<="&BO105)-SUMIF(BQ$27:BQ104,">"&BQ105,BV$27:BV104)+SUMIFS(BV$27:BV104,BQ$27:BQ104,">"&BQ105,$BO$27:BO104,"<="&BO105) -> 469.1617579 | BT105: ='Input og resultater'!$I$12-SUMIF(BQ$27:BQ104,"="&BQ105,BX$27:BX104) -> 10 | BU105: =INDEX($BI$29:$BI$2656,BP105,1) -> 0 | BV105: 0 | BW105: =MAX(LARGE($BZ$29:$BZ$2656,1)-SUM(BX$27:BX104),0) -> 1045.845736 | BX105: =MIN(MAX(MIN(CE105,'Input og resultater'!$I$12,BW105),0),BT105) -> 0 | BZ105: =-INDEX($BF$29:$BF$2656,BP105,1)+INDEX($BK$29:$BK$2656,BP105,1) -> 589.1302705 | CA105: =INDEX($BJ$29:$BJ$2656,BP105,1) -> 0 | CB105: =SUMIF($BC$29:$BC$2656,"<"&BQ105,$BJ$29:$BJ$2656)-SUM(BX$27:BX104) -> 469.1617579 | CC105: =INDEX($BF$29:$BF$2656,BP105,1) -> 0 | CD105: =INDEX($BJ$29:$BJ$2656,BP105,1) -> 0 | CE105: 0 | CG105: =MIN(MAX(SUMIF($BC$29:$BC$2656,"<"&BQ105,$BJ$29:$BJ$2656)-SUM(BX$27:BX104),0),'Input og resultater'!$I$13) -> 188
A106: 106 | B106: 105 | D106: 0 | E106: 10 | F106: 10 | H106: 18.03826395 | I106: =MIN(D106,'Input og resultater'!$I$12,'Input og resultater'!$I$13-H106) -> 0 | J106: =MIN(E106,'Input og resultater'!$I$12,H106) -> 10 | K106: 0 | L106: 0 | N106: 0 | Q106: 18.03826395 | R106: =MIN(D106,'Input og resultater'!$I$12,'Input og resultater'!$I$13-Q106) -> 0 | S106: =MIN(F106,'Input og resultater'!$I$12,Q106) -> 10 | U106: =IF(B106>$O$2,'438 timer'!$BC106,0) -> 0 | W106: =MIN($U106-SUM(V106:$V106),'438 timer'!AK106) -> 0 | X106: =MIN($U106-SUM($V106:W106),'438 timer'!AL106) -> 0 | Y106: =MIN($U106-SUM($V106:X106),'438 timer'!AM106) -> 0 | Z106: =MIN($U106-SUM($V106:Y106),'438 timer'!AN106) -> 0 | AA106: =MIN($U106-SUM($V106:Z106),'438 timer'!AO106) -> 0 | AB106: =MIN($U106-SUM($V106:AA106),'438 timer'!AP106) -> 0 | AE106: 0 | AF106: 0 | AG106: 0 | AH106: 0 | AI106: 0 | AJ106: 0 | AT106: 0 | AU106: 78 | AV106: =SMALL('438 timer'!$AD$2:$AI$439,$AU106) -> 3.96e-05 | AW106: =IFERROR(MATCH($AV106,'438 timer'!AD$2:AD$439,0),0) -> 0 | AX106: =IFERROR(MATCH($AV106,'438 timer'!AE$2:AE$439,0),0) -> 39 | AY106: =IFERROR(MATCH($AV106,'438 timer'!AF$2:AF$439,0),0) -> 0 | AZ106: =IFERROR(MATCH($AV106,'438 timer'!AG$2:AG$439,0),0) -> 0 | BA106: =IFERROR(MATCH($AV106,'438 timer'!AH$2:AH$439,0),0) -> 0 | BB106: =IFERROR(MATCH($AV106,'438 timer'!AI$2:AI$439,0),0) -> 0 | BC106: 39 | BD106: 2 | BE106: =INDEX('438 timer'!$AK$2:$AQ$439,BC106,BD106) -> 0 | BF106: =MAX(INDEX('438 timer'!$BC$2:$BC$439,BC106,)-SUMIF(BC$27:BC105,"="&BC106,BI$27:BI105),0) -> 19.05105102 | BG106: =MAX(INDEX('438 timer'!$BD$2:$BD$439,BC106,1)-SUM(BI$26:BI105),0) -> 6570.900856 | BH106: ='Input og resultater'!$I$12-SUMIF(BC$27:BC105,"="&BC106,BJ$27:BJ105) -> 10 | BI106: 0 | BJ106: 0 | BK106: =SUMIF(BC$27:BC105,"<="&BC106,BJ$27:BJ105)+'438 timer'!$AS$2 -> 119.9685126 | BL106: =INDEX($BV$29:$BV$2656,BP106,1) -> 0 | BM106: =INDEX('438 timer'!$BC$2:$BC$439,BC106,) -> 19.05105102 | BN106: =MAX('438 timer'!$BD$2-SUM(BI$26:BI105)-AT106,0) -> 7327.45026 | BO106: =LARGE('438 timer'!$AD$2:$AI$439,$AU106) -> 1438.531984 | BP106: 2551 | BQ106: 85 | BR106: 6 | BS106: =SUMIFS($BJ$29:$BJ$2656,$BC$29:$BC$2656,"<"&BQ106,$AV$29:$AV$2656,"<="&BO106)-SUMIF(BQ$27:BQ105,">"&BQ106,BV$27:BV105)+SUMIFS(BV$27:BV105,BQ$27:BQ105,">"&BQ106,$BO$27:BO105,"<="&BO106) -> 408.4263045 | BT106: ='Input og resultater'!$I$12-SUMIF(BQ$27:BQ105,"="&BQ106,BX$27:BX105) -> 10 | BU106: =INDEX($BI$29:$BI$2656,BP106,1) -> 0 | BV106: 0 | BW106: =MAX(LARGE($BZ$29:$BZ$2656,1)-SUM(BX$27:BX105),0) -> 1045.845736 | BX106: =MIN(MAX(MIN(CE106,'Input og resultater'!$I$12,BW106),0),BT106) -> 0 | BZ106: =-INDEX($BF$29:$BF$2656,BP106,1)+INDEX($BK$29:$BK$2656,BP106,1) -> 528.3948171 | CA106: =INDEX($BJ$29:$BJ$2656,BP106,1) -> 0 | CB106: =SUMIF($BC$29:$BC$2656,"<"&BQ106,$BJ$29:$BJ$2656)-SUM(BX$27:BX105) -> 408.4263045 | CC106: =INDEX($BF$29:$BF$2656,BP106,1) -> 0 | CD106: =INDEX($BJ$29:$BJ$2656,BP106,1) -> 0 | CE106: 0 | CG106: =MIN(MAX(SUMIF($BC$29:$BC$2656,"<"&BQ106,$BJ$29:$BJ$2656)-SUM(BX$27:BX105),0),'Input og resultater'!$I$13) -> 188
A107: 107 | B107: 106 | D107: 0 | E107: 10 | F107: 10 | H107: 8.038263952 | I107: =MIN(D107,'Input og resultater'!$I$12,'Input og resultater'!$I$13-H107) -> 0 | J107: =MIN(E107,'Input og resultater'!$I$12,H107) -> 8.038263952 | K107: 1.961736048 | L107: 0 | N107: 0 | Q107: 8.038263952 | R107: =MIN(D107,'Input og resultater'!$I$12,'Input og resultater'!$I$13-Q107) -> 0 | S107: =MIN(F107,'Input og resultater'!$I$12,Q107) -> 8.038263952 | U107: =IF(B107>$O$2,'438 timer'!$BC107,0) -> 0 | W107: =MIN($U107-SUM(V107:$V107),'438 timer'!AK107) -> 0 | X107: =MIN($U107-SUM($V107:W107),'438 timer'!AL107) -> 0 | Y107: =MIN($U107-SUM($V107:X107),'438 timer'!AM107) -> 0 | Z107: =MIN($U107-SUM($V107:Y107),'438 timer'!AN107) -> 0 | AA107: =MIN($U107-SUM($V107:Z107),'438 timer'!AO107) -> 0 | AB107: =MIN($U107-SUM($V107:AA107),'438 timer'!AP107) -> 0 | AE107: 0 | AF107: 0 | AG107: 0 | AH107: 0 | AI107: 0 | AJ107: 0 | AT107: 0 | AU107: 79 | AV107: =SMALL('438 timer'!$AD$2:$AI$439,$AU107) -> 4.05e-05 | AW107: =IFERROR(MATCH($AV107,'438 timer'!AD$2:AD$439,0),0) -> 40 | AX107: =IFERROR(MATCH($AV107,'438 timer'!AE$2:AE$439,0),0) -> 0 | AY107: =IFERROR(MATCH($AV107,'438 timer'!AF$2:AF$439,0),0) -> 0 | AZ107: =IFERROR(MATCH($AV107,'438 timer'!AG$2:AG$439,0),0) -> 0 | BA107: =IFERROR(MATCH($AV107,'438 timer'!AH$2:AH$439,0),0) -> 0 | BB107: =IFERROR(MATCH($AV107,'438 timer'!AI$2:AI$439,0),0) -> 0 | BC107: 40 | BD107: 1 | BE107: =INDEX('438 timer'!$AK$2:$AQ$439,BC107,BD107) -> 0 | BF107: =MAX(INDEX('438 timer'!$BC$2:$BC$439,BC107,)-SUMIF(BC$27:BC106,"="&BC107,BI$27:BI106),0) -> 19.57102002 | BG107: =MAX(INDEX('438 timer'!$BD$2:$BD$439,BC107,1)-SUM(BI$26:BI106),0) -> 6551.849805 | BH107: ='Input og resultater'!$I$12-SUMIF(BC$27:BC106,"="&BC107,BJ$27:BJ106) -> 10 | BI107: 0 | BJ107: 0 | BK107: =SUMIF(BC$27:BC106,"<="&BC107,BJ$27:BJ106)+'438 timer'!$AS$2 -> 119.9685126 | BL107: =INDEX($BV$29:$BV$2656,BP107,1) -> 0 | BM107: =INDEX('438 timer'!$BC$2:$BC$439,BC107,) -> 19.57102002 | BN107: =MAX('438 timer'!$BD$2-SUM(BI$26:BI106)-AT107,0) -> 7327.45026 | BO107: =LARGE('438 timer'!$AD$2:$AI$439,$AU107) -> 1431.518335 | BP107: 2550 | BQ107: 179 | BR107: 6 | BS107: =SUMIFS($BJ$29:$BJ$2656,$BC$29:$BC$2656,"<"&BQ107,$AV$29:$AV$2656,"<="&BO107)-SUMIF(BQ$27:BQ106,">"&BQ107,BV$27:BV106)+SUMIFS(BV$27:BV106,BQ$27:BQ106,">"&BQ107,$BO$27:BO106,"<="&BO107) -> 431.5831034 | BT107: ='Input og resultater'!$I$12-SUMIF(BQ$27:BQ106,"="&BQ107,BX$27:BX106) -> 10 | BU107: =INDEX($BI$29:$BI$2656,BP107,1) -> 0 | BV107: 0 | BW107: =MAX(LARGE($BZ$29:$BZ$2656,1)-SUM(BX$27:BX106),0) -> 1045.845736 | BX107: =MIN(MAX(MIN(CE107,'Input og resultater'!$I$12,BW107),0),BT107) -> 0 | BZ107: =-INDEX($BF$29:$BF$2656,BP107,1)+INDEX($BK$29:$BK$2656,BP107,1) -> 551.5516159 | CA107: =INDEX($BJ$29:$BJ$2656,BP107,1) -> 0 | CB107: =SUMIF($BC$29:$BC$2656,"<"&BQ107,$BJ$29:$BJ$2656)-SUM(BX$27:BX106) -> 431.5831034 | CC107: =INDEX($BF$29:$BF$2656,BP107,1) -> 0 | CD107: =INDEX($BJ$29:$BJ$2656,BP107,1) -> 0 | CE107: 0 | CG107: =MIN(MAX(SUMIF($BC$29:$BC$2656,"<"&BQ107,$BJ$29:$BJ$2656)-SUM(BX$27:BX106),0),'Input og resultater'!$I$13) -> 188
A108: 108 | B108: 107 | D108: 0 | E108: 10 | F108: 10 | H108: 0 | I108: =MIN(D108,'Input og resultater'!$I$12,'Input og resultater'!$I$13-H108) -> 0 | J108: =MIN(E108,'Input og resultater'!$I$12,H108) -> 0 | K108: 10 | L108: 0 | N108: 0 | Q108: 0 | R108: =MIN(D108,'Input og resultater'!$I$12,'Input og resultater'!$I$13-Q108) -> 0 | S108: =MIN(F108,'Input og resultater'!$I$12,Q108) -> 0 | U108: =IF(B108>$O$2,'438 timer'!$BC108,0) -> 0 | W108: =MIN($U108-SUM(V108:$V108),'438 timer'!AK108) -> 0 | X108: =MIN($U108-SUM($V108:W108),'438 timer'!AL108) -> 0 | Y108: =MIN($U108-SUM($V108:X108),'438 timer'!AM108) -> 0 | Z108: =MIN($U108-SUM($V108:Y108),'438 timer'!AN108) -> 0 | AA108: =MIN($U108-SUM($V108:Z108),'438 timer'!AO108) -> 0 | AB108: =MIN($U108-SUM($V108:AA108),'438 timer'!AP108) -> 0 | AE108: 0 | AF108: 0 | AG108: 0 | AH108: 0 | AI108: 0 | AJ108: 0 | AT108: 0 | AU108: 80 | AV108: =SMALL('438 timer'!$AD$2:$AI$439,$AU108) -> 4.06e-05 | AW108: =IFERROR(MATCH($AV108,'438 timer'!AD$2:AD$439,0),0) -> 0 | AX108: =IFERROR(MATCH($AV108,'438 timer'!AE$2:AE$439,0),0) -> 40 | AY108: =IFERROR(MATCH($AV108,'438 timer'!AF$2:AF$439,0),0) -> 0 | AZ108: =IFERROR(MATCH($AV108,'438 timer'!AG$2:AG$439,0),0) -> 0 | BA108: =IFERROR(MATCH($AV108,'438 timer'!AH$2:AH$439,0),0) -> 0 | BB108: =IFERROR(MATCH($AV108,'438 timer'!AI$2:AI$439,0),0) -> 0 | BC108: 40 | BD108: 2 | BE108: =INDEX('438 timer'!$AK$2:$AQ$439,BC108,BD108) -> 0 | BF108: =MAX(INDEX('438 timer'!$BC$2:$BC$439,BC108,)-SUMIF(BC$27:BC107,"="&BC108,BI$27:BI107),0) -> 19.57102002 | BG108: =MAX(INDEX('438 timer'!$BD$2:$BD$439,BC108,1)-SUM(BI$26:BI107),0) -> 6551.849805 | BH108: ='Input og resultater'!$I$12-SUMIF(BC$27:BC107,"="&BC108,BJ$27:BJ107) -> 10 | BI108: 0 | BJ108: 0 | BK108: =SUMIF(BC$27:BC107,"<="&BC108,BJ$27:BJ107)+'438 timer'!$AS$2 -> 119.9685126 | BL108: =INDEX($BV$29:$BV$2656,BP108,1) -> 0 | BM108: =INDEX('438 timer'!$BC$2:$BC$439,BC108,) -> 19.57102002 | BN108: =MAX('438 timer'!$BD$2-SUM(BI$26:BI107)-AT108,0) -> 7327.45026 | BO108: =LARGE('438 timer'!$AD$2:$AI$439,$AU108) -> 1430.011556 | BP108: 2549 | BQ108: 184 | BR108: 6 | BS108: =SUMIFS($BJ$29:$BJ$2656,$BC$29:$BC$2656,"<"&BQ108,$AV$29:$AV$2656,"<="&BO108)-SUMIF(BQ$27:BQ107,">"&BQ108,BV$27:BV107)+SUMIFS(BV$27:BV107,BQ$27:BQ107,">"&BQ108,$BO$27:BO107,"<="&BO108) -> 431.5831763 | BT108: ='Input og resultater'!$I$12-SUMIF(BQ$27:BQ107,"="&BQ108,BX$27:BX107) -> 10 | BU108: =INDEX($BI$29:$BI$2656,BP108,1) -> 0 | BV108: 0 | BW108: =MAX(LARGE($BZ$29:$BZ$2656,1)-SUM(BX$27:BX107),0) -> 1045.845736 | BX108: =MIN(MAX(MIN(CE108,'Input og resultater'!$I$12,BW108),0),BT108) -> 0 | BZ108: =-INDEX($BF$29:$BF$2656,BP108,1)+INDEX($BK$29:$BK$2656,BP108,1) -> 551.6260429 | CA108: =INDEX($BJ$29:$BJ$2656,BP108,1) -> 0 | CB108: =SUMIF($BC$29:$BC$2656,"<"&BQ108,$BJ$29:$BJ$2656)-SUM(BX$27:BX107) -> 431.5831763 | CC108: =INDEX($BF$29:$BF$2656,BP108,1) -> 0 | CD108: =INDEX($BJ$29:$BJ$2656,BP108,1) -> 0 | CE108: 0 | CG108: =MIN(MAX(SUMIF($BC$29:$BC$2656,"<"&BQ108,$BJ$29:$BJ$2656)-SUM(BX$27:BX107),0),'Input og resultater'!$I$13) -> 188
A109: 109 | B109: 108 | D109: 0 | E109: 8.022301027 | F109: 8.022301027 | H109: 0 | I109: =MIN(D109,'Input og resultater'!$I$12,'Input og resultater'!$I$13-H109) -> 0 | J109: =MIN(E109,'Input og resultater'!$I$12,H109) -> 0 | K109: 8.022301027 | L109: 0 | N109: 0 | Q109: 0 | R109: =MIN(D109,'Input og resultater'!$I$12,'Input og resultater'!$I$13-Q109) -> 0 | S109: =MIN(F109,'Input og resultater'!$I$12,Q109) -> 0 | U109: =IF(B109>$O$2,'438 timer'!$BC109,0) -> 0 | W109: =MIN($U109-SUM(V109:$V109),'438 timer'!AK109) -> 0 | X109: =MIN($U109-SUM($V109:W109),'438 timer'!AL109) -> 0 | Y109: =MIN($U109-SUM($V109:X109),'438 timer'!AM109) -> 0 | Z109: =MIN($U109-SUM($V109:Y109),'438 timer'!AN109) -> 0 | AA109: =MIN($U109-SUM($V109:Z109),'438 timer'!AO109) -> 0 | AB109: =MIN($U109-SUM($V109:AA109),'438 timer'!AP109) -> 0 | AE109: 0 | AF109: 0 | AG109: 0 | AH109: 0 | AI109: 0 | AJ109: 0 | AT109: 0 | AU109: 81 | AV109: =SMALL('438 timer'!$AD$2:$AI$439,$AU109) -> 4.15e-05 | AW109: =IFERROR(MATCH($AV109,'438 timer'!AD$2:AD$439,0),0) -> 41 | AX109: =IFERROR(MATCH($AV109,'438 timer'!AE$2:AE$439,0),0) -> 0 | AY109: =IFERROR(MATCH($AV109,'438 timer'!AF$2:AF$439,0),0) -> 0 | AZ109: =IFERROR(MATCH($AV109,'438 timer'!AG$2:AG$439,0),0) -> 0 | BA109: =IFERROR(MATCH($AV109,'438 timer'!AH$2:AH$439,0),0) -> 0 | BB109: =IFERROR(MATCH($AV109,'438 timer'!AI$2:AI$439,0),0) -> 0 | BC109: 41 | BD109: 1 | BE109: =INDEX('438 timer'!$AK$2:$AQ$439,BC109,BD109) -> 0 | BF109: =MAX(INDEX('438 timer'!$BC$2:$BC$439,BC109,)-SUMIF(BC$27:BC108,"="&BC109,BI$27:BI108),0) -> 20.09098802 | BG109: =MAX(INDEX('438 timer'!$BD$2:$BD$439,BC109,1)-SUM(BI$26:BI108),0) -> 6532.278785 | BH109: ='Input og resultater'!$I$12-SUMIF(BC$27:BC108,"="&BC109,BJ$27:BJ108) -> 10 | BI109: 0 | BJ109: 0 | BK109: =SUMIF(BC$27:BC108,"<="&BC109,BJ$27:BJ108)+'438 timer'!$AS$2 -> 119.9685126 | BL109: =INDEX($BV$29:$BV$2656,BP109,1) -> 0 | BM109: =INDEX('438 timer'!$BC$2:$BC$439,BC109,) -> 20.09098802 | BN109: =MAX('438 timer'!$BD$2-SUM(BI$26:BI108)-AT109,0) -> 7327.45026 | BO109: =LARGE('438 timer'!$AD$2:$AI$439,$AU109) -> 1429.226362 | BP109: 2548 | BQ109: 181 | BR109: 6 | BS109: =SUMIFS($BJ$29:$BJ$2656,$BC$29:$BC$2656,"<"&BQ109,$AV$29:$AV$2656,"<="&BO109)-SUMIF(BQ$27:BQ108,">"&BQ109,BV$27:BV108)+SUMIFS(BV$27:BV108,BQ$27:BQ108,">"&BQ109,$BO$27:BO108,"<="&BO109) -> 431.5831034 | BT109: ='Input og resultater'!$I$12-SUMIF(BQ$27:BQ108,"="&BQ109,BX$27:BX108) -> 10 | BU109: =INDEX($BI$29:$BI$2656,BP109,1) -> 0 | BV109: 0 | BW109: =MAX(LARGE($BZ$29:$BZ$2656,1)-SUM(BX$27:BX108),0) -> 1045.845736 | BX109: =MIN(MAX(MIN(CE109,'Input og resultater'!$I$12,BW109),0),BT109) -> 0 | BZ109: =-INDEX($BF$29:$BF$2656,BP109,1)+INDEX($BK$29:$BK$2656,BP109,1) -> 551.5516159 | CA109: =INDEX($BJ$29:$BJ$2656,BP109,1) -> 0 | CB109: =SUMIF($BC$29:$BC$2656,"<"&BQ109,$BJ$29:$BJ$2656)-SUM(BX$27:BX108) -> 431.5831034 | CC109: =INDEX($BF$29:$BF$2656,BP109,1) -> 0 | CD109: =INDEX($BJ$29:$BJ$2656,BP109,1) -> 0 | CE109: 0 | CG109: =MIN(MAX(SUMIF($BC$29:$BC$2656,"<"&BQ109,$BJ$29:$BJ$2656)-SUM(BX$27:BX108),0),'Input og resultater'!$I$13) -> 188
A110: 110 | B110: 109 | D110: 0 | E110: 6.388113025 | F110: 6.388113025 | H110: 0 | I110: =MIN(D110,'Input og resultater'!$I$12,'Input og resultater'!$I$13-H110) -> 0 | J110: =MIN(E110,'Input og resultater'!$I$12,H110) -> 0 | K110: 6.388113025 | L110: 0 | N110: 0 | Q110: 0 | R110: =MIN(D110,'Input og resultater'!$I$12,'Input og resultater'!$I$13-Q110) -> 0 | S110: =MIN(F110,'Input og resultater'!$I$12,Q110) -> 0 | U110: =IF(B110>$O$2,'438 timer'!$BC110,0) -> 0 | W110: =MIN($U110-SUM(V110:$V110),'438 timer'!AK110) -> 0 | X110: =MIN($U110-SUM($V110:W110),'438 timer'!AL110) -> 0 | Y110: =MIN($U110-SUM($V110:X110),'438 timer'!AM110) -> 0 | Z110: =MIN($U110-SUM($V110:Y110),'438 timer'!AN110) -> 0 | AA110: =MIN($U110-SUM($V110:Z110),'438 timer'!AO110) -> 0 | AB110: =MIN($U110-SUM($V110:AA110),'438 timer'!AP110) -> 0 | AE110: 0 | AF110: 0 | AG110: 0 | AH110: 0 | AI110: 0 | AJ110: 0 | AT110: 0 | AU110: 82 | AV110: =SMALL('438 timer'!$AD$2:$AI$439,$AU110) -> 4.16e-05 | AW110: =IFERROR(MATCH($AV110,'438 timer'!AD$2:AD$439,0),0) -> 0 | AX110: =IFERROR(MATCH($AV110,'438 timer'!AE$2:AE$439,0),0) -> 41 | AY110: =IFERROR(MATCH($AV110,'438 timer'!AF$2:AF$439,0),0) -> 0 | AZ110: =IFERROR(MATCH($AV110,'438 timer'!AG$2:AG$439,0),0) -> 0 | BA110: =IFERROR(MATCH($AV110,'438 timer'!AH$2:AH$439,0),0) -> 0 | BB110: =IFERROR(MATCH($AV110,'438 timer'!AI$2:AI$439,0),0) -> 0 | BC110: 41 | BD110: 2 | BE110: =INDEX('438 timer'!$AK$2:$AQ$439,BC110,BD110) -> 0 | BF110: =MAX(INDEX('438 timer'!$BC$2:$BC$439,BC110,)-SUMIF(BC$27:BC109,"="&BC110,BI$27:BI109),0) -> 20.09098802 | BG110: =MAX(INDEX('438 timer'!$BD$2:$BD$439,BC110,1)-SUM(BI$26:BI109),0) -> 6532.278785 | BH110: ='Input og resultater'!$I$12-SUMIF(BC$27:BC109,"="&BC110,BJ$27:BJ109) -> 10 | BI110: 0 | BJ110: 0 | BK110: =SUMIF(BC$27:BC109,"<="&BC110,BJ$27:BJ109)+'438 timer'!$AS$2 -> 119.9685126 | BL110: =INDEX($BV$29:$BV$2656,BP110,1) -> 0 | BM110: =INDEX('438 timer'!$BC$2:$BC$439,BC110,) -> 20.09098802 | BN110: =MAX('438 timer'!$BD$2-SUM(BI$26:BI109)-AT110,0) -> 7327.45026 | BO110: =LARGE('438 timer'!$AD$2:$AI$439,$AU110) -> 1427.412027 | BP110: 2547 | BQ110: 256 | BR110: 6 | BS110: =SUMIFS($BJ$29:$BJ$2656,$BC$29:$BC$2656,"<"&BQ110,$AV$29:$AV$2656,"<="&BO110)-SUMIF(BQ$27:BQ109,">"&BQ110,BV$27:BV109)+SUMIFS(BV$27:BV109,BQ$27:BQ109,">"&BQ110,$BO$27:BO109,"<="&BO110) -> 469.1618309 | BT110: ='Input og resultater'!$I$12-SUMIF(BQ$27:BQ109,"="&BQ110,BX$27:BX109) -> 10 | BU110: =INDEX($BI$29:$BI$2656,BP110,1) -> 0 | BV110: 0 | BW110: =MAX(LARGE($BZ$29:$BZ$2656,1)-SUM(BX$27:BX109),0) -> 1045.845736 | BX110: =MIN(MAX(MIN(CE110,'Input og resultater'!$I$12,BW110),0),BT110) -> 0 | BZ110: =-INDEX($BF$29:$BF$2656,BP110,1)+INDEX($BK$29:$BK$2656,BP110,1) -> 589.1303435 | CA110: =INDEX($BJ$29:$BJ$2656,BP110,1) -> 0 | CB110: =SUMIF($BC$29:$BC$2656,"<"&BQ110,$BJ$29:$BJ$2656)-SUM(BX$27:BX109) -> 469.1618309 | CC110: =INDEX($BF$29:$BF$2656,BP110,1) -> 0 | CD110: =INDEX($BJ$29:$BJ$2656,BP110,1) -> 0 | CE110: 0 | CG110: =MIN(MAX(SUMIF($BC$29:$BC$2656,"<"&BQ110,$BJ$29:$BJ$2656)-SUM(BX$27:BX109),0),'Input og resultater'!$I$13) -> 188
A111: 111 | B111: 110 | D111: 0 | E111: 5.719582024 | F111: 5.719582024 | H111: 0 | I111: =MIN(D111,'Input og resultater'!$I$12,'Input og resultater'!$I$13-H111) -> 0 | J111: =MIN(E111,'Input og resultater'!$I$12,H111) -> 0 | K111: 5.719582024 | L111: 0 | N111: 0 | Q111: 0 | R111: =MIN(D111,'Input og resultater'!$I$12,'Input og resultater'!$I$13-Q111) -> 0 | S111: =MIN(F111,'Input og resultater'!$I$12,Q111) -> 0 | U111: =IF(B111>$O$2,'438 timer'!$BC111,0) -> 0 | W111: =MIN($U111-SUM(V111:$V111),'438 timer'!AK111) -> 0 | X111: =MIN($U111-SUM($V111:W111),'438 timer'!AL111) -> 0 | Y111: =MIN($U111-SUM($V111:X111),'438 timer'!AM111) -> 0 | Z111: =MIN($U111-SUM($V111:Y111),'438 timer'!AN111) -> 0 | AA111: =MIN($U111-SUM($V111:Z111),'438 timer'!AO111) -> 0 | AB111: =MIN($U111-SUM($V111:AA111),'438 timer'!AP111) -> 0 | AE111: 0 | AF111: 0 | AG111: 0 | AH111: 0 | AI111: 0 | AJ111: 0 | AT111: 0 | AU111: 83 | AV111: =SMALL('438 timer'!$AD$2:$AI$439,$AU111) -> 4.25e-05 | AW111: =IFERROR(MATCH($AV111,'438 timer'!AD$2:AD$439,0),0) -> 42 | AX111: =IFERROR(MATCH($AV111,'438 timer'!AE$2:AE$439,0),0) -> 0 | AY111: =IFERROR(MATCH($AV111,'438 timer'!AF$2:AF$439,0),0) -> 0 | AZ111: =IFERROR(MATCH($AV111,'438 timer'!AG$2:AG$439,0),0) -> 0 | BA111: =IFERROR(MATCH($AV111,'438 timer'!AH$2:AH$439,0),0) -> 0 | BB111: =IFERROR(MATCH($AV111,'438 timer'!AI$2:AI$439,0),0) -> 0 | BC111: 42 | BD111: 1 | BE111: =INDEX('438 timer'!$AK$2:$AQ$439,BC111,BD111) -> 0 | BF111: =MAX(INDEX('438 timer'!$BC$2:$BC$439,BC111,)-SUMIF(BC$27:BC110,"="&BC111,BI$27:BI110),0) -> 20.90808203 | BG111: =MAX(INDEX('438 timer'!$BD$2:$BD$439,BC111,1)-SUM(BI$26:BI110),0) -> 6512.187797 | BH111: ='Input og resultater'!$I$12-SUMIF(BC$27:BC110,"="&BC111,BJ$27:BJ110) -> 10 | BI111: 0 | BJ111: 0 | BK111: =SUMIF(BC$27:BC110,"<="&BC111,BJ$27:BJ110)+'438 timer'!$AS$2 -> 119.9685126 | BL111: =INDEX($BV$29:$BV$2656,BP111,1) -> 0 | BM111: =INDEX('438 timer'!$BC$2:$BC$439,BC111,) -> 20.90808203 | BN111: =MAX('438 timer'!$BD$2-SUM(BI$26:BI110)-AT111,0) -> 7327.45026 | BO111: =LARGE('438 timer'!$AD$2:$AI$439,$AU111) -> 1426.934516 | BP111: 2546 | BQ111: 180 | BR111: 6 | BS111: =SUMIFS($BJ$29:$BJ$2656,$BC$29:$BC$2656,"<"&BQ111,$AV$29:$AV$2656,"<="&BO111)-SUMIF(BQ$27:BQ110,">"&BQ111,BV$27:BV110)+SUMIFS(BV$27:BV110,BQ$27:BQ110,">"&BQ111,$BO$27:BO110,"<="&BO111) -> 431.5831034 | BT111: ='Input og resultater'!$I$12-SUMIF(BQ$27:BQ110,"="&BQ111,BX$27:BX110) -> 10 | BU111: =INDEX($BI$29:$BI$2656,BP111,1) -> 0 | BV111: 0 | BW111: =MAX(LARGE($BZ$29:$BZ$2656,1)-SUM(BX$27:BX110),0) -> 1045.845736 | BX111: =MIN(MAX(MIN(CE111,'Input og resultater'!$I$12,BW111),0),BT111) -> 0 | BZ111: =-INDEX($BF$29:$BF$2656,BP111,1)+INDEX($BK$29:$BK$2656,BP111,1) -> 551.5516159 | CA111: =INDEX($BJ$29:$BJ$2656,BP111,1) -> 0 | CB111: =SUMIF($BC$29:$BC$2656,"<"&BQ111,$BJ$29:$BJ$2656)-SUM(BX$27:BX110) -> 431.5831034 | CC111: =INDEX($BF$29:$BF$2656,BP111,1) -> 0 | CD111: =INDEX($BJ$29:$BJ$2656,BP111,1) -> 0 | CE111: 0 | CG111: =MIN(MAX(SUMIF($BC$29:$BC$2656,"<"&BQ111,$BJ$29:$BJ$2656)-SUM(BX$27:BX110),0),'Input og resultater'!$I$13) -> 188
A112: 112 | B112: 111 | D112: 0 | E112: 5.719582024 | F112: 5.719582024 | H112: 0 | I112: =MIN(D112,'Input og resultater'!$I$12,'Input og resultater'!$I$13-H112) -> 0 | J112: =MIN(E112,'Input og resultater'!$I$12,H112) -> 0 | K112: 5.719582024 | L112: 0 | N112: 0 | Q112: 0 | R112: =MIN(D112,'Input og resultater'!$I$12,'Input og resultater'!$I$13-Q112) -> 0 | S112: =MIN(F112,'Input og resultater'!$I$12,Q112) -> 0 | U112: =IF(B112>$O$2,'438 timer'!$BC112,0) -> 0 | W112: =MIN($U112-SUM(V112:$V112),'438 timer'!AK112) -> 0 | X112: =MIN($U112-SUM($V112:W112),'438 timer'!AL112) -> 0 | Y112: =MIN($U112-SUM($V112:X112),'438 timer'!AM112) -> 0 | Z112: =MIN($U112-SUM($V112:Y112),'438 timer'!AN112) -> 0 | AA112: =MIN($U112-SUM($V112:Z112),'438 timer'!AO112) -> 0 | AB112: =MIN($U112-SUM($V112:AA112),'438 timer'!AP112) -> 0 | AE112: 0 | AF112: 0 | AG112: 0 | AH112: 0 | AI112: 0 | AJ112: 0 | AT112: 0 | AU112: 84 | AV112: =SMALL('438 timer'!$AD$2:$AI$439,$AU112) -> 4.26e-05 | AW112: =IFERROR(MATCH($AV112,'438 timer'!AD$2:AD$439,0),0) -> 0 | AX112: =IFERROR(MATCH($AV112,'438 timer'!AE$2:AE$439,0),0) -> 42 | AY112: =IFERROR(MATCH($AV112,'438 timer'!AF$2:AF$439,0),0) -> 0 | AZ112: =IFERROR(MATCH($AV112,'438 timer'!AG$2:AG$439,0),0) -> 0 | BA112: =IFERROR(MATCH($AV112,'438 timer'!AH$2:AH$439,0),0) -> 0 | BB112: =IFERROR(MATCH($AV112,'438 timer'!AI$2:AI$439,0),0) -> 0 | BC112: 42 | BD112: 2 | BE112: =INDEX('438 timer'!$AK$2:$AQ$439,BC112,BD112) -> 0 | BF112: =MAX(INDEX('438 timer'!$BC$2:$BC$439,BC112,)-SUMIF(BC$27:BC111,"="&BC112,BI$27:BI111),0) -> 20.90808203 | BG112: =MAX(INDEX('438 timer'!$BD$2:$BD$439,BC112,1)-SUM(BI$26:BI111),0) -> 6512.187797 | BH112: ='Input og resultater'!$I$12-SUMIF(BC$27:BC111,"="&BC112,BJ$27:BJ111) -> 10 | BI112: 0 | BJ112: 0 | BK112: =SUMIF(BC$27:BC111,"<="&BC112,BJ$27:BJ111)+'438 timer'!$AS$2 -> 119.9685126 | BL112: =INDEX($BV$29:$BV$2656,BP112,1) -> 0 | BM112: =INDEX('438 timer'!$BC$2:$BC$439,BC112,) -> 20.90808203 | BN112: =MAX('438 timer'!$BD$2-SUM(BI$26:BI111)-AT112,0) -> 7327.45026 | BO112: =LARGE('438 timer'!$AD$2:$AI$439,$AU112) -> 1426.456859 | BP112: 2545 | BQ112: 88 | BR112: 6 | BS112: =SUMIFS($BJ$29:$BJ$2656,$BC$29:$BC$2656,"<"&BQ112,$AV$29:$AV$2656,"<="&BO112)-SUMIF(BQ$27:BQ111,">"&BQ112,BV$27:BV111)+SUMIFS(BV$27:BV111,BQ$27:BQ111,">"&BQ112,$BO$27:BO111,"<="&BO112) -> 408.4263045 | BT112: ='Input og resultater'!$I$12-SUMIF(BQ$27:BQ111,"="&BQ112,BX$27:BX111) -> 10 | BU112: =INDEX($BI$29:$BI$2656,BP112,1) -> 0 | BV112: 0 | BW112: =MAX(LARGE($BZ$29:$BZ$2656,1)-SUM(BX$27:BX111),0) -> 1045.845736 | BX112: =MIN(MAX(MIN(CE112,'Input og resultater'!$I$12,BW112),0),BT112) -> 0 | BZ112: =-INDEX($BF$29:$BF$2656,BP112,1)+INDEX($BK$29:$BK$2656,BP112,1) -> 528.3948171 | CA112: =INDEX($BJ$29:$BJ$2656,BP112,1) -> 0 | CB112: =SUMIF($BC$29:$BC$2656,"<"&BQ112,$BJ$29:$BJ$2656)-SUM(BX$27:BX111) -> 408.4263045 | CC112: =INDEX($BF$29:$BF$2656,BP112,1) -> 0 | CD112: =INDEX($BJ$29:$BJ$2656,BP112,1) -> 0 | CE112: 0 | CG112: =MIN(MAX(SUMIF($BC$29:$BC$2656,"<"&BQ112,$BJ$29:$BJ$2656)-SUM(BX$27:BX111),0),'Input og resultater'!$I$13) -> 188
A113: 113 | B113: 112 | D113: 0 | E113: 6.313832025 | F113: 6.313832025 | H113: 0 | I113: =MIN(D113,'Input og resultater'!$I$12,'Input og resultater'!$I$13-H113) -> 0 | J113: =MIN(E113,'Input og resultater'!$I$12,H113) -> 0 | K113: 6.313832025 | L113: 0 | N113: 0 | Q113: 0 | R113: =MIN(D113,'Input og resultater'!$I$12,'Input og resultater'!$I$13-Q113) -> 0 | S113: =MIN(F113,'Input og resultater'!$I$12,Q113) -> 0 | U113: =IF(B113>$O$2,'438 timer'!$BC113,0) -> 0 | W113: =MIN($U113-SUM(V113:$V113),'438 timer'!AK113) -> 0 | X113: =MIN($U113-SUM($V113:W113),'438 timer'!AL113) -> 0 | Y113: =MIN($U113-SUM($V113:X113),'438 timer'!AM113) -> 0 | Z113: =MIN($U113-SUM($V113:Y113),'438 timer'!AN113) -> 0 | AA113: =MIN($U113-SUM($V113:Z113),'438 timer'!AO113) -> 0 | AB113: =MIN($U113-SUM($V113:AA113),'438 timer'!AP113) -> 0 | AE113: 0 | AF113: 0 | AG113: 0 | AH113: 0 | AI113: 0 | AJ113: 0 | AT113: 0 | AU113: 85 | AV113: =SMALL('438 timer'!$AD$2:$AI$439,$AU113) -> 4.35e-05 | AW113: =IFERROR(MATCH($AV113,'438 timer'!AD$2:AD$439,0),0) -> 43 | AX113: =IFERROR(MATCH($AV113,'438 timer'!AE$2:AE$439,0),0) -> 0 | AY113: =IFERROR(MATCH($AV113,'438 timer'!AF$2:AF$439,0),0) -> 0 | AZ113: =IFERROR(MATCH($AV113,'438 timer'!AG$2:AG$439,0),0) -> 0 | BA113: =IFERROR(MATCH($AV113,'438 timer'!AH$2:AH$439,0),0) -> 0 | BB113: =IFERROR(MATCH($AV113,'438 timer'!AI$2:AI$439,0),0) -> 0 | BC113: 43 | BD113: 1 | BE113: =INDEX('438 timer'!$AK$2:$AQ$439,BC113,BD113) -> 0 | BF113: =MAX(INDEX('438 timer'!$BC$2:$BC$439,BC113,)-SUMIF(BC$27:BC112,"="&BC113,BI$27:BI112),0) -> 20.75952003 | BG113: =MAX(INDEX('438 timer'!$BD$2:$BD$439,BC113,1)-SUM(BI$26:BI112),0) -> 6491.279715 | BH113: ='Input og resultater'!$I$12-SUMIF(BC$27:BC112,"="&BC113,BJ$27:BJ112) -> 10 | BI113: 0 | BJ113: 0 | BK113: =SUMIF(BC$27:BC112,"<="&BC113,BJ$27:BJ112)+'438 timer'!$AS$2 -> 119.9685126 | BL113: =INDEX($BV$29:$BV$2656,BP113,1) -> 0 | BM113: =INDEX('438 timer'!$BC$2:$BC$439,BC113,) -> 20.75952003 | BN113: =MAX('438 timer'!$BD$2-SUM(BI$26:BI112)-AT113,0) -> 7327.45026 | BO113: =LARGE('438 timer'!$AD$2:$AI$439,$AU113) -> 1425.926438 | BP113: 2544 | BQ113: 208 | BR113: 6 | BS113: =SUMIFS($BJ$29:$BJ$2656,$BC$29:$BC$2656,"<"&BQ113,$AV$29:$AV$2656,"<="&BO113)-SUMIF(BQ$27:BQ112,">"&BQ113,BV$27:BV112)+SUMIFS(BV$27:BV112,BQ$27:BQ112,">"&BQ113,$BO$27:BO112,"<="&BO113) -> 467.4525611 | BT113: ='Input og resultater'!$I$12-SUMIF(BQ$27:BQ112,"="&BQ113,BX$27:BX112) -> 10 | BU113: =INDEX($BI$29:$BI$2656,BP113,1) -> 0 | BV113: 0 | BW113: =MAX(LARGE($BZ$29:$BZ$2656,1)-SUM(BX$27:BX112),0) -> 1045.845736 | BX113: =MIN(MAX(MIN(CE113,'Input og resultater'!$I$12,BW113),0),BT113) -> 0 | BZ113: =-INDEX($BF$29:$BF$2656,BP113,1)+INDEX($BK$29:$BK$2656,BP113,1) -> 587.8668336 | CA113: =INDEX($BJ$29:$BJ$2656,BP113,1) -> 0 | CB113: =SUMIF($BC$29:$BC$2656,"<"&BQ113,$BJ$29:$BJ$2656)-SUM(BX$27:BX112) -> 467.4525611 | CC113: =INDEX($BF$29:$BF$2656,BP113,1) -> 0 | CD113: =INDEX($BJ$29:$BJ$2656,BP113,1) -> 0 | CE113: 0 | CG113: =MIN(MAX(SUMIF($BC$29:$BC$2656,"<"&BQ113,$BJ$29:$BJ$2656)-SUM(BX$27:BX112),0),'Input og resultater'!$I$13) -> 188
A114: 114 | B114: 113 | D114: 0 | E114: 7.130926026 | F114: 7.130926026 | H114: 0 | I114: =MIN(D114,'Input og resultater'!$I$12,'Input og resultater'!$I$13-H114) -> 0 | J114: =MIN(E114,'Input og resultater'!$I$12,H114) -> 0 | K114: 7.130926026 | L114: 0 | N114: 0 | Q114: 0 | R114: =MIN(D114,'Input og resultater'!$I$12,'Input og resultater'!$I$13-Q114) -> 0 | S114: =MIN(F114,'Input og resultater'!$I$12,Q114) -> 0 | U114: =IF(B114>$O$2,'438 timer'!$BC114,0) -> 0 | W114: =MIN($U114-SUM(V114:$V114),'438 timer'!AK114) -> 0 | X114: =MIN($U114-SUM($V114:W114),'438 timer'!AL114) -> 0 | Y114: =MIN($U114-SUM($V114:X114),'438 timer'!AM114) -> 0 | Z114: =MIN($U114-SUM($V114:Y114),'438 timer'!AN114) -> 0 | AA114: =MIN($U114-SUM($V114:Z114),'438 timer'!AO114) -> 0 | AB114: =MIN($U114-SUM($V114:AA114),'438 timer'!AP114) -> 0 | AE114: 0 | AF114: 0 | AG114: 0 | AH114: 0 | AI114: 0 | AJ114: 0 | AT114: 0 | AU114: 86 | AV114: =SMALL('438 timer'!$AD$2:$AI$439,$AU114) -> 4.36e-05 | AW114: =IFERROR(MATCH($AV114,'438 timer'!AD$2:AD$439,0),0) -> 0 | AX114: =IFERROR(MATCH($AV114,'438 timer'!AE$2:AE$439,0),0) -> 43 | AY114: =IFERROR(MATCH($AV114,'438 timer'!AF$2:AF$439,0),0) -> 0 | AZ114: =IFERROR(MATCH($AV114,'438 timer'!AG$2:AG$439,0),0) -> 0 | BA114: =IFERROR(MATCH($AV114,'438 timer'!AH$2:AH$439,0),0) -> 0 | BB114: =IFERROR(MATCH($AV114,'438 timer'!AI$2:AI$439,0),0) -> 0 | BC114: 43 | BD114: 2 | BE114: =INDEX('438 timer'!$AK$2:$AQ$439,BC114,BD114) -> 0 | BF114: =MAX(INDEX('438 timer'!$BC$2:$BC$439,BC114,)-SUMIF(BC$27:BC113,"="&BC114,BI$27:BI113),0) -> 20.75952003 | BG114: =MAX(INDEX('438 timer'!$BD$2:$BD$439,BC114,1)-SUM(BI$26:BI113),0) -> 6491.279715 | BH114: ='Input og resultater'!$I$12-SUMIF(BC$27:BC113,"="&BC114,BJ$27:BJ113) -> 10 | BI114: 0 | BJ114: 0 | BK114: =SUMIF(BC$27:BC113,"<="&BC114,BJ$27:BJ113)+'438 timer'!$AS$2 -> 119.9685126 | BL114: =INDEX($BV$29:$BV$2656,BP114,1) -> 0 | BM114: =INDEX('438 timer'!$BC$2:$BC$439,BC114,) -> 20.75952003 | BN114: =MAX('438 timer'!$BD$2-SUM(BI$26:BI113)-AT114,0) -> 7327.45026 | BO114: =LARGE('438 timer'!$AD$2:$AI$439,$AU114) -> 1425.831021 | BP114: 2543 | BQ114: 253 | BR114: 6 | BS114: =SUMIFS($BJ$29:$BJ$2656,$BC$29:$BC$2656,"<"&BQ114,$AV$29:$AV$2656,"<="&BO114)-SUMIF(BQ$27:BQ113,">"&BQ114,BV$27:BV113)+SUMIFS(BV$27:BV113,BQ$27:BQ113,">"&BQ114,$BO$27:BO113,"<="&BO114) -> 469.1617579 | BT114: ='Input og resultater'!$I$12-SUMIF(BQ$27:BQ113,"="&BQ114,BX$27:BX113) -> 10 | BU114: =INDEX($BI$29:$BI$2656,BP114,1) -> 0 | BV114: 0 | BW114: =MAX(LARGE($BZ$29:$BZ$2656,1)-SUM(BX$27:BX113),0) -> 1045.845736 | BX114: =MIN(MAX(MIN(CE114,'Input og resultater'!$I$12,BW114),0),BT114) -> 0 | BZ114: =-INDEX($BF$29:$BF$2656,BP114,1)+INDEX($BK$29:$BK$2656,BP114,1) -> 589.1303435 | CA114: =INDEX($BJ$29:$BJ$2656,BP114,1) -> 0 | CB114: =SUMIF($BC$29:$BC$2656,"<"&BQ114,$BJ$29:$BJ$2656)-SUM(BX$27:BX113) -> 469.1617579 | CC114: =INDEX($BF$29:$BF$2656,BP114,1) -> 0 | CD114: =INDEX($BJ$29:$BJ$2656,BP114,1) -> 0 | CE114: 0 | CG114: =MIN(MAX(SUMIF($BC$29:$BC$2656,"<"&BQ114,$BJ$29:$BJ$2656)-SUM(BX$27:BX113),0),'Input og resultater'!$I$13) -> 188
A115: 115 | B115: 114 | D115: 0 | E115: 8.096582027 | F115: 8.096582027 | H115: 0 | I115: =MIN(D115,'Input og resultater'!$I$12,'Input og resultater'!$I$13-H115) -> 0 | J115: =MIN(E115,'Input og resultater'!$I$12,H115) -> 0 | K115: 8.096582027 | L115: 0 | N115: 0 | Q115: 0 | R115: =MIN(D115,'Input og resultater'!$I$12,'Input og resultater'!$I$13-Q115) -> 0 | S115: =MIN(F115,'Input og resultater'!$I$12,Q115) -> 0 | U115: =IF(B115>$O$2,'438 timer'!$BC115,0) -> 0 | W115: =MIN($U115-SUM(V115:$V115),'438 timer'!AK115) -> 0 | X115: =MIN($U115-SUM($V115:W115),'438 timer'!AL115) -> 0 | Y115: =MIN($U115-SUM($V115:X115),'438 timer'!AM115) -> 0 | Z115: =MIN($U115-SUM($V115:Y115),'438 timer'!AN115) -> 0 | AA115: =MIN($U115-SUM($V115:Z115),'438 timer'!AO115) -> 0 | AB115: =MIN($U115-SUM($V115:AA115),'438 timer'!AP115) -> 0 | AE115: 0 | AF115: 0 | AG115: 0 | AH115: 0 | AI115: 0 | AJ115: 0 | AT115: 0 | AU115: 87 | AV115: =SMALL('438 timer'!$AD$2:$AI$439,$AU115) -> 4.45e-05 | AW115: =IFERROR(MATCH($AV115,'438 timer'!AD$2:AD$439,0),0) -> 44 | AX115: =IFERROR(MATCH($AV115,'438 timer'!AE$2:AE$439,0),0) -> 0 | AY115: =IFERROR(MATCH($AV115,'438 timer'!AF$2:AF$439,0),0) -> 0 | AZ115: =IFERROR(MATCH($AV115,'438 timer'!AG$2:AG$439,0),0) -> 0 | BA115: =IFERROR(MATCH($AV115,'438 timer'!AH$2:AH$439,0),0) -> 0 | BB115: =IFERROR(MATCH($AV115,'438 timer'!AI$2:AI$439,0),0) -> 0 | BC115: =SUM(AW115:BB115,0) -> 44 | BD115: 1 | BE115: =INDEX('438 timer'!$AK$2:$AQ$439,BC115,BD115) -> 0 | BF115: =MAX(INDEX('438 timer'!$BC$2:$BC$439,BC115,)-SUMIF(BC$27:BC114,"="&BC115,BI$27:BI114),0) -> 21.13092603 | BG115: =MAX(INDEX('438 timer'!$BD$2:$BD$439,BC115,1)-SUM(BI$26:BI114),0) -> 6470.520195 | BH115: ='Input og resultater'!$I$12-SUMIF(BC$27:BC114,"="&BC115,BJ$27:BJ114) -> 10 | BI115: 0 | BJ115: 0 | BK115: =SUMIF(BC$27:BC114,"<="&BC115,BJ$27:BJ114)+'438 timer'!$AS$2 -> 119.9685126 | BL115: =INDEX($BV$29:$BV$2656,BP115,1) -> 0 | BM115: =INDEX('438 timer'!$BC$2:$BC$439,BC115,) -> 21.13092603 | BN115: =MAX('438 timer'!$BD$2-SUM(BI$26:BI114)-AT115,0) -> 7327.45026 | BO115: =LARGE('438 timer'!$AD$2:$AI$439,$AU115) -> 1425.756799 | BP115: 2542 | BQ115: 249 | BR115: 6 | BS115: =SUMIFS($BJ$29:$BJ$2656,$BC$29:$BC$2656,"<"&BQ115,$AV$29:$AV$2656,"<="&BO115)-SUMIF(BQ$27:BQ114,">"&BQ115,BV$27:BV114)+SUMIFS(BV$27:BV114,BQ$27:BQ114,">"&BQ115,$BO$27:BO114,"<="&BO115) -> 469.1617579 | BT115: ='Input og resultater'!$I$12-SUMIF(BQ$27:BQ114,"="&BQ115,BX$27:BX114) -> 10 | BU115: =INDEX($BI$29:$BI$2656,BP115,1) -> 0 | BV115: 0 | BW115: =MAX(LARGE($BZ$29:$BZ$2656,1)-SUM(BX$27:BX114),0) -> 1045.845736 | BX115: =MIN(MAX(MIN(CE115,'Input og resultater'!$I$12,BW115),0),BT115) -> 0 | BZ115: =-INDEX($BF$29:$BF$2656,BP115,1)+INDEX($BK$29:$BK$2656,BP115,1) -> 589.1302705 | CA115: =INDEX($BJ$29:$BJ$2656,BP115,1) -> 0 | CB115: =SUMIF($BC$29:$BC$2656,"<"&BQ115,$BJ$29:$BJ$2656)-SUM(BX$27:BX114) -> 469.1617579 | CC115: =INDEX($BF$29:$BF$2656,BP115,1) -> 0 | CD115: =INDEX($BJ$29:$BJ$2656,BP115,1) -> 0 | CE115: 0 | CG115: =MIN(MAX(SUMIF($BC$29:$BC$2656,"<"&BQ115,$BJ$29:$BJ$2656)-SUM(BX$27:BX114),0),'Input og resultater'!$I$13) -> 188
A116: 116 | B116: 115 | D116: 0 | E116: 9.062238029 | F116: 9.062238029 | H116: 0 | I116: =MIN(D116,'Input og resultater'!$I$12,'Input og resultater'!$I$13-H116) -> 0 | J116: =MIN(E116,'Input og resultater'!$I$12,H116) -> 0 | K116: 9.062238029 | L116: 0 | N116: 0 | Q116: 0 | R116: =MIN(D116,'Input og resultater'!$I$12,'Input og resultater'!$I$13-Q116) -> 0 | S116: =MIN(F116,'Input og resultater'!$I$12,Q116) -> 0 | U116: =IF(B116>$O$2,'438 timer'!$BC116,0) -> 0 | W116: =MIN($U116-SUM(V116:$V116),'438 timer'!AK116) -> 0 | X116: =MIN($U116-SUM($V116:W116),'438 timer'!AL116) -> 0 | Y116: =MIN($U116-SUM($V116:X116),'438 timer'!AM116) -> 0 | Z116: =MIN($U116-SUM($V116:Y116),'438 timer'!AN116) -> 0 | AA116: =MIN($U116-SUM($V116:Z116),'438 timer'!AO116) -> 0 | AB116: =MIN($U116-SUM($V116:AA116),'438 timer'!AP116) -> 0 | AE116: 0 | AF116: 0 | AG116: 0 | AH116: 0 | AI116: 0 | AJ116: 0 | AT116: 0 | AU116: 88 | AV116: =SMALL('438 timer'!$AD$2:$AI$439,$AU116) -> 4.46e-05 | AW116: =IFERROR(MATCH($AV116,'438 timer'!AD$2:AD$439,0),0) -> 0 | AX116: =IFERROR(MATCH($AV116,'438 timer'!AE$2:AE$439,0),0) -> 44 | AY116: =IFERROR(MATCH($AV116,'438 timer'!AF$2:AF$439,0),0) -> 0 | AZ116: =IFERROR(MATCH($AV116,'438 timer'!AG$2:AG$439,0),0) -> 0 | BA116: =IFERROR(MATCH($AV116,'438 timer'!AH$2:AH$439,0),0) -> 0 | BB116: =IFERROR(MATCH($AV116,'438 timer'!AI$2:AI$439,0),0) -> 0 | BC116: =SUM(AW116:BB116,0) -> 44 | BD116: 2 | BE116: =INDEX('438 timer'!$AK$2:$AQ$439,BC116,BD116) -> 0 | BF116: =MAX(INDEX('438 timer'!$BC$2:$BC$439,BC116,)-SUMIF(BC$27:BC115,"="&BC116,BI$27:BI115),0) -> 21.13092603 | BG116: =MAX(INDEX('438 timer'!$BD$2:$BD$439,BC116,1)-SUM(BI$26:BI115),0) -> 6470.520195 | BH116: ='Input og resultater'!$I$12-SUMIF(BC$27:BC115,"="&BC116,BJ$27:BJ115) -> 10 | BI116: 0 | BJ116: 0 | BK116: =SUMIF(BC$27:BC115,"<="&BC116,BJ$27:BJ115)+'438 timer'!$AS$2 -> 119.9685126 | BL116: =INDEX($BV$29:$BV$2656,BP116,1) -> 0 | BM116: =INDEX('438 timer'!$BC$2:$BC$439,BC116,) -> 21.13092603 | BN116: =MAX('438 timer'!$BD$2-SUM(BI$26:BI115)-AT116,0) -> 7327.45026 | BO116: =LARGE('438 timer'!$AD$2:$AI$439,$AU116) -> 1423.94226 | BP116: 2541 | BQ116: 250 | BR116: 6 | BS116: =SUMIFS($BJ$29:$BJ$2656,$BC$29:$BC$2656,"<"&BQ116,$AV$29:$AV$2656,"<="&BO116)-SUMIF(BQ$27:BQ115,">"&BQ116,BV$27:BV115)+SUMIFS(BV$27:BV115,BQ$27:BQ115,">"&BQ116,$BO$27:BO115,"<="&BO116) -> 469.1617579 | BT116: ='Input og resultater'!$I$12-SUMIF(BQ$27:BQ115,"="&BQ116,BX$27:BX115) -> 10 | BU116: =INDEX($BI$29:$BI$2656,BP116,1) -> 0 | BV116: 0 | BW116: =MAX(LARGE($BZ$29:$BZ$2656,1)-SUM(BX$27:BX115),0) -> 1045.845736 | BX116: =MIN(MAX(MIN(CE116,'Input og resultater'!$I$12,BW116),0),BT116) -> 0 | BZ116: =-INDEX($BF$29:$BF$2656,BP116,1)+INDEX($BK$29:$BK$2656,BP116,1) -> 589.1302705 | CA116: =INDEX($BJ$29:$BJ$2656,BP116,1) -> 0 | CB116: =SUMIF($BC$29:$BC$2656,"<"&BQ116,$BJ$29:$BJ$2656)-SUM(BX$27:BX115) -> 469.1617579 | CC116: =INDEX($BF$29:$BF$2656,BP116,1) -> 0 | CD116: =INDEX($BJ$29:$BJ$2656,BP116,1) -> 0 | CE116: 0 | CG116: =MIN(MAX(SUMIF($BC$29:$BC$2656,"<"&BQ116,$BJ$29:$BJ$2656)-SUM(BX$27:BX115),0),'Input og resultater'!$I$13) -> 188
A117: 117 | B117: 116 | D117: 0 | E117: 9.285082029 | F117: 9.285082029 | H117: 0 | I117: =MIN(D117,'Input og resultater'!$I$12,'Input og resultater'!$I$13-H117) -> 0 | J117: =MIN(E117,'Input og resultater'!$I$12,H117) -> 0 | K117: 9.285082029 | L117: 0 | N117: 0 | Q117: 0 | R117: =MIN(D117,'Input og resultater'!$I$12,'Input og resultater'!$I$13-Q117) -> 0 | S117: =MIN(F117,'Input og resultater'!$I$12,Q117) -> 0 | U117: =IF(B117>$O$2,'438 timer'!$BC117,0) -> 0 | W117: =MIN($U117-SUM(V117:$V117),'438 timer'!AK117) -> 0 | X117: =MIN($U117-SUM($V117:W117),'438 timer'!AL117) -> 0 | Y117: =MIN($U117-SUM($V117:X117),'438 timer'!AM117) -> 0 | Z117: =MIN($U117-SUM($V117:Y117),'438 timer'!AN117) -> 0 | AA117: =MIN($U117-SUM($V117:Z117),'438 timer'!AO117) -> 0 | AB117: =MIN($U117-SUM($V117:AA117),'438 timer'!AP117) -> 0 | AE117: 0 | AF117: 0 | AG117: 0 | AH117: 0 | AI117: 0 | AJ117: 0 | AT117: 0 | AU117: 89 | AV117: =SMALL('438 timer'!$AD$2:$AI$439,$AU117) -> 4.55e-05 | AW117: =IFERROR(MATCH($AV117,'438 timer'!AD$2:AD$439,0),0) -> 45 | AX117: =IFERROR(MATCH($AV117,'438 timer'!AE$2:AE$439,0),0) -> 0 | AY117: =IFERROR(MATCH($AV117,'438 timer'!AF$2:AF$439,0),0) -> 0 | AZ117: =IFERROR(MATCH($AV117,'438 timer'!AG$2:AG$439,0),0) -> 0 | BA117: =IFERROR(MATCH($AV117,'438 timer'!AH$2:AH$439,0),0) -> 0 | BB117: =IFERROR(MATCH($AV117,'438 timer'!AI$2:AI$439,0),0) -> 0 | BC117: 45 | BD117: 1 | BE117: =INDEX('438 timer'!$AK$2:$AQ$439,BC117,BD117) -> 0 | BF117: =MAX(INDEX('438 timer'!$BC$2:$BC$439,BC117,)-SUMIF(BC$27:BC116,"="&BC117,BI$27:BI116),0) -> 21.27948803 | BG117: =MAX(INDEX('438 timer'!$BD$2:$BD$439,BC117,1)-SUM(BI$26:BI116),0) -> 6449.389269 | BH117: ='Input og resultater'!$I$12-SUMIF(BC$27:BC116,"="&BC117,BJ$27:BJ116) -> 10 | BI117: 0 | BJ117: 0 | BK117: =SUMIF(BC$27:BC116,"<="&BC117,BJ$27:BJ116)+'438 timer'!$AS$2 -> 119.9685126 | BL117: =INDEX($BV$29:$BV$2656,BP117,1) -> 0 | BM117: =INDEX('438 timer'!$BC$2:$BC$439,BC117,) -> 21.27948803 | BN117: =MAX('438 timer'!$BD$2-SUM(BI$26:BI116)-AT117,0) -> 7327.45026 | BO117: =LARGE('438 timer'!$AD$2:$AI$439,$AU117) -> 1423.390477 | BP117: 2540 | BQ117: 251 | BR117: 6 | BS117: =SUMIFS($BJ$29:$BJ$2656,$BC$29:$BC$2656,"<"&BQ117,$AV$29:$AV$2656,"<="&BO117)-SUMIF(BQ$27:BQ116,">"&BQ117,BV$27:BV116)+SUMIFS(BV$27:BV116,BQ$27:BQ116,">"&BQ117,$BO$27:BO116,"<="&BO117) -> 469.1617579 | BT117: ='Input og resultater'!$I$12-SUMIF(BQ$27:BQ116,"="&BQ117,BX$27:BX116) -> 10 | BU117: =INDEX($BI$29:$BI$2656,BP117,1) -> 0 | BV117: 0 | BW117: =MAX(LARGE($BZ$29:$BZ$2656,1)-SUM(BX$27:BX116),0) -> 1045.845736 | BX117: =MIN(MAX(MIN(CE117,'Input og resultater'!$I$12,BW117),0),BT117) -> 0 | BZ117: =-INDEX($BF$29:$BF$2656,BP117,1)+INDEX($BK$29:$BK$2656,BP117,1) -> 589.1302705 | CA117: =INDEX($BJ$29:$BJ$2656,BP117,1) -> 0 | CB117: =SUMIF($BC$29:$BC$2656,"<"&BQ117,$BJ$29:$BJ$2656)-SUM(BX$27:BX116) -> 469.1617579 | CC117: =INDEX($BF$29:$BF$2656,BP117,1) -> 0 | CD117: =INDEX($BJ$29:$BJ$2656,BP117,1) -> 0 | CE117: 0 | CG117: =MIN(MAX(SUMIF($BC$29:$BC$2656,"<"&BQ117,$BJ$29:$BJ$2656)-SUM(BX$27:BX116),0),'Input og resultater'!$I$13) -> 188
A118: 118 | B118: 117 | D118: 0 | E118: 9.433644029 | F118: 9.433644029 | H118: 0 | I118: =MIN(D118,'Input og resultater'!$I$12,'Input og resultater'!$I$13-H118) -> 0 | J118: =MIN(E118,'Input og resultater'!$I$12,H118) -> 0 | K118: 9.433644029 | L118: 0 | N118: 0 | Q118: 0 | R118: =MIN(D118,'Input og resultater'!$I$12,'Input og resultater'!$I$13-Q118) -> 0 | S118: =MIN(F118,'Input og resultater'!$I$12,Q118) -> 0 | U118: =IF(B118>$O$2,'438 timer'!$BC118,0) -> 0 | W118: =MIN($U118-SUM(V118:$V118),'438 timer'!AK118) -> 0 | X118: =MIN($U118-SUM($V118:W118),'438 timer'!AL118) -> 0 | Y118: =MIN($U118-SUM($V118:X118),'438 timer'!AM118) -> 0 | Z118: =MIN($U118-SUM($V118:Y118),'438 timer'!AN118) -> 0 | AA118: =MIN($U118-SUM($V118:Z118),'438 timer'!AO118) -> 0 | AB118: =MIN($U118-SUM($V118:AA118),'438 timer'!AP118) -> 0 | AE118: 0 | AF118: 0 | AG118: 0 | AH118: 0 | AI118: 0 | AJ118: 0 | AT118: 0 | AU118: 90 | AV118: =SMALL('438 timer'!$AD$2:$AI$439,$AU118) -> 4.56e-05 | AW118: =IFERROR(MATCH($AV118,'438 timer'!AD$2:AD$439,0),0) -> 0 | AX118: =IFERROR(MATCH($AV118,'438 timer'!AE$2:AE$439,0),0) -> 45 | AY118: =IFERROR(MATCH($AV118,'438 timer'!AF$2:AF$439,0),0) -> 0 | AZ118: =IFERROR(MATCH($AV118,'438 timer'!AG$2:AG$439,0),0) -> 0 | BA118: =IFERROR(MATCH($AV118,'438 timer'!AH$2:AH$439,0),0) -> 0 | BB118: =IFERROR(MATCH($AV118,'438 timer'!AI$2:AI$439,0),0) -> 0 | BC118: 45 | BD118: 2 | BE118: =INDEX('438 timer'!$AK$2:$AQ$439,BC118,BD118) -> 0 | BF118: =MAX(INDEX('438 timer'!$BC$2:$BC$439,BC118,)-SUMIF(BC$27:BC117,"="&BC118,BI$27:BI117),0) -> 21.27948803 | BG118: =MAX(INDEX('438 timer'!$BD$2:$BD$439,BC118,1)-SUM(BI$26:BI117),0) -> 6449.389269 | BH118: ='Input og resultater'!$I$12-SUMIF(BC$27:BC117,"="&BC118,BJ$27:BJ117) -> 10 | BI118: 0 | BJ118: 0 | BK118: =SUMIF(BC$27:BC117,"<="&BC118,BJ$27:BJ117)+'438 timer'!$AS$2 -> 119.9685126 | BL118: =INDEX($BV$29:$BV$2656,BP118,1) -> 0 | BM118: =INDEX('438 timer'!$BC$2:$BC$439,BC118,) -> 21.27948803 | BN118: =MAX('438 timer'!$BD$2-SUM(BI$26:BI117)-AT118,0) -> 7327.45026 | BO118: =LARGE('438 timer'!$AD$2:$AI$439,$AU118) -> 1422.913051 | BP118: 2539 | BQ118: 260 | BR118: 6 | BS118: =SUMIFS($BJ$29:$BJ$2656,$BC$29:$BC$2656,"<"&BQ118,$AV$29:$AV$2656,"<="&BO118)-SUMIF(BQ$27:BQ117,">"&BQ118,BV$27:BV117)+SUMIFS(BV$27:BV117,BQ$27:BQ117,">"&BQ118,$BO$27:BO117,"<="&BO118) -> 472.1332998 | BT118: ='Input og resultater'!$I$12-SUMIF(BQ$27:BQ117,"="&BQ118,BX$27:BX117) -> 10 | BU118: =INDEX($BI$29:$BI$2656,BP118,1) -> 0 | BV118: 0 | BW118: =MAX(LARGE($BZ$29:$BZ$2656,1)-SUM(BX$27:BX117),0) -> 1045.845736 | BX118: =MIN(MAX(MIN(CE118,'Input og resultater'!$I$12,BW118),0),BT118) -> 0 | BZ118: =-INDEX($BF$29:$BF$2656,BP118,1)+INDEX($BK$29:$BK$2656,BP118,1) -> 593.5132284 | CA118: =INDEX($BJ$29:$BJ$2656,BP118,1) -> 0 | CB118: =SUMIF($BC$29:$BC$2656,"<"&BQ118,$BJ$29:$BJ$2656)-SUM(BX$27:BX117) -> 472.1332998 | CC118: =INDEX($BF$29:$BF$2656,BP118,1) -> 0 | CD118: =INDEX($BJ$29:$BJ$2656,BP118,1) -> 0 | CE118: 0 | CG118: =MIN(MAX(SUMIF($BC$29:$BC$2656,"<"&BQ118,$BJ$29:$BJ$2656)-SUM(BX$27:BX117),0),'Input og resultater'!$I$13) -> 188
A119: 119 | B119: 118 | D119: 0 | E119: 8.913675028 | F119: 8.913675028 | H119: 0 | I119: =MIN(D119,'Input og resultater'!$I$12,'Input og resultater'!$I$13-H119) -> 0 | J119: =MIN(E119,'Input og resultater'!$I$12,H119) -> 0 | K119: 8.913675028 | L119: 0 | N119: 0 | Q119: 0 | R119: =MIN(D119,'Input og resultater'!$I$12,'Input og resultater'!$I$13-Q119) -> 0 | S119: =MIN(F119,'Input og resultater'!$I$12,Q119) -> 0 | U119: =IF(B119>$O$2,'438 timer'!$BC119,0) -> 0 | W119: =MIN($U119-SUM(V119:$V119),'438 timer'!AK119) -> 0 | X119: =MIN($U119-SUM($V119:W119),'438 timer'!AL119) -> 0 | Y119: =MIN($U119-SUM($V119:X119),'438 timer'!AM119) -> 0 | Z119: =MIN($U119-SUM($V119:Y119),'438 timer'!AN119) -> 0 | AA119: =MIN($U119-SUM($V119:Z119),'438 timer'!AO119) -> 0 | AB119: =MIN($U119-SUM($V119:AA119),'438 timer'!AP119) -> 0 | AE119: 0 | AF119: 0 | AG119: 0 | AH119: 0 | AI119: 0 | AJ119: 0 | AT119: 0 | AU119: 91 | AV119: =SMALL('438 timer'!$AD$2:$AI$439,$AU119) -> 4.65e-05 | AW119: =IFERROR(MATCH($AV119,'438 timer'!AD$2:AD$439,0),0) -> 46 | AX119: =IFERROR(MATCH($AV119,'438 timer'!AE$2:AE$439,0),0) -> 0 | AY119: =IFERROR(MATCH($AV119,'438 timer'!AF$2:AF$439,0),0) -> 0 | AZ119: =IFERROR(MATCH($AV119,'438 timer'!AG$2:AG$439,0),0) -> 0 | BA119: =IFERROR(MATCH($AV119,'438 timer'!AH$2:AH$439,0),0) -> 0 | BB119: =IFERROR(MATCH($AV119,'438 timer'!AI$2:AI$439,0),0) -> 0 | BC119: 46 | BD119: 1 | BE119: =INDEX('438 timer'!$AK$2:$AQ$439,BC119,BD119) -> 0 | BF119: =MAX(INDEX('438 timer'!$BC$2:$BC$439,BC119,)-SUMIF(BC$27:BC118,"="&BC119,BI$27:BI118),0) -> 20.90808203 | BG119: =MAX(INDEX('438 timer'!$BD$2:$BD$439,BC119,1)-SUM(BI$26:BI118),0) -> 6428.109781 | BH119: ='Input og resultater'!$I$12-SUMIF(BC$27:BC118,"="&BC119,BJ$27:BJ118) -> 10 | BI119: 0 | BJ119: 0 | BK119: =SUMIF(BC$27:BC118,"<="&BC119,BJ$27:BJ118)+'438 timer'!$AS$2 -> 119.9685126 | BL119: =INDEX($BV$29:$BV$2656,BP119,1) -> 0 | BM119: =INDEX('438 timer'!$BC$2:$BC$439,BC119,) -> 20.90808203 | BN119: =MAX('438 timer'!$BD$2-SUM(BI$26:BI118)-AT119,0) -> 7327.45026 | BO119: =LARGE('438 timer'!$AD$2:$AI$439,$AU119) -> 1420.461977 | BP119: 2538 | BQ119: 350 | BR119: 6 | BS119: =SUMIFS($BJ$29:$BJ$2656,$BC$29:$BC$2656,"<"&BQ119,$AV$29:$AV$2656,"<="&BO119)-SUMIF(BQ$27:BQ118,">"&BQ119,BV$27:BV118)+SUMIFS(BV$27:BV118,BQ$27:BQ118,">"&BQ119,$BO$27:BO118,"<="&BO119) -> 815.8772234 | BT119: ='Input og resultater'!$I$12-SUMIF(BQ$27:BQ118,"="&BQ119,BX$27:BX118) -> 10 | BU119: =INDEX($BI$29:$BI$2656,BP119,1) -> 0 | BV119: 0 | BW119: =MAX(LARGE($BZ$29:$BZ$2656,1)-SUM(BX$27:BX118),0) -> 1045.845736 | BX119: =MIN(MAX(MIN(CE119,'Input og resultater'!$I$12,BW119),0),BT119) -> 0 | BZ119: =-INDEX($BF$29:$BF$2656,BP119,1)+INDEX($BK$29:$BK$2656,BP119,1) -> 935.845736 | CA119: =INDEX($BJ$29:$BJ$2656,BP119,1) -> 0 | CB119: =SUMIF($BC$29:$BC$2656,"<"&BQ119,$BJ$29:$BJ$2656)-SUM(BX$27:BX118) -> 815.8772234 | CC119: =INDEX($BF$29:$BF$2656,BP119,1) -> 0 | CD119: =INDEX($BJ$29:$BJ$2656,BP119,1) -> 0 | CE119: 0 | CG119: =MIN(MAX(SUMIF($BC$29:$BC$2656,"<"&BQ119,$BJ$29:$BJ$2656)-SUM(BX$27:BX118),0),'Input og resultater'!$I$13) -> 188
